{"text_format":"1","workbook":"xlsx","n_sheets":3,"sheets":["ISTRUZIONI","Foglio1","Foglio2"],"not_rendered":{"charts":0,"images":1,"macros":1,"external_links":0,"defined_names":1,"comments":1,"pivot_tables":0},"unopened":[],"bounds":{"document_bytes":16777216,"sheet_cells":100000,"rows_first":2000,"rows_last":500,"rows_between":2000,"halvings":0,"cell_chars":16384,"cell_head_chars":4096},"cells_cut":0,"cells_raw":0,"read":"whole","date_system":"1900"}

{"sheet":"ISTRUZIONI","index":0,"n_rows":192,"n_cols":4,"rows_kept":192,"cut":false,"hidden":false,"merged":[]}
["Nel foglio \"Foglio1\":",null,null,"2TWINS4EVER"]
[null,null,null,"3T"]
["- inserire nella cella C1 il nome della propria squadra, nella grafia indicata in colonna D di questo foglio \"Istruzioni\"",null,null,"A TUTTA CALLARA"]
[null,null,null,"ABETO FC"]
[{"$f":"\"- accanto a ciascun giocatore (nella colonna B) inserire una X in corrispondenza degli 11 titolari che si vuole schierare\"","v":"- accanto a ciascun giocatore (nella colonna B) inserire una X in corrispondenza degli 11 titolari che si vuole schierare"},null,null,"AC DERBOLINA"]
[null,null,null,"AC MORRONE"]
["- sempre nella colonna B va inserito un progressivo, da 1 a 14, accanto alle riserve che si intendono schierare.",null,null,"AC ZDENEK"]
[null,null,null,"ACRESE"]
["- una volta fatte le due operazioni precedenti, cliccando sul pulsante \"AGGIORNA FORMAZIONE\" il foglio excel effettuerà una serie di controlli: gli eventuali messaggi di errore compariranno nella colonna P.",null,null,"ALAN FORD'S TEAM"]
[null,null,null,"ALL BLACKS"]
["- selezionare le celle dalla N5 alla N30, copiarle nel corpo della mail ed inviare la formazione",null,null,"AL-ZENA"]
[null,null,null,"AMBROSIANA"]
[null,null,null,"AMOREODIO"]
[null,null,null,"ANDREAS"]
[null,null,null,"A'NFAMI"]
[null,null,null,"ARMATA NERAZZURRA"]
[null,null,null,"AS NEW TEAM"]
[null,null,null,"AS QUARZA"]
[null,null,null,"AS TOTTIGO"]
[null,null,null,"AS_TONMARTIN"]
[null,null,null,"ATLETICO MA NON TROPPO"]
[null,null,null,"ATLETICO PIGROTTO"]
[null,null,null,"ATLETICO PIPPAO"]
[null,null,null,"ATLETICO SGANITO"]
[null,null,null,"ATLETICO SQUONK"]
[null,null,null,"BAR MARIO"]
[null,null,null,"BARBERA & CHAMPAGNE"]
[null,null,null,"BAYER LEVERRUKE"]
[null,null,null,"BEAUTIFUL BUT LOSERS"]
[null,null,null,"BEETLES"]
[null,null,null,"BETIS SEVILLA"]
[null,null,null,"BFC MARANO"]
[null,null,null,"BLACK&WHITE"]
[null,null,null,"BLUES BROTHERS"]
[null,null,null,"BOMBARELLANDIA"]
[null,null,null,"BORGOROSSO FC"]
[null,null,null,"BRUDYLEGHORN"]
[null,null,null,"CACAO MERAVIGLIAO"]
[null,null,null,"CACCIATORI FC"]
[null,null,null,"CAPIBARA SWOFFY FC"]
[null,null,null,"CARLITO'S VELEZ"]
[null,null,null,"CATENACCIO & CONTROPIEDE"]
[null,null,null,"CAVESE"]
[null,null,null,"CICCILLO"]
[null,null,null,"CINICI"]
[null,null,null,"CLOCKWORK ORANGE FC"]
[null,null,null,"COSENZA"]
[null,null,null,"COSENZA CALCIO 1914"]
[null,null,null,"CRIMSON"]
[null,null,null,"DAGNE BOYS"]
[null,null,null,"DAJE MO'"]
[null,null,null,"DAVINCI TEAM"]
[null,null,null,"DEP LA CAROGNA"]
[null,null,null,"DIAMANTE"]
[null,null,null,"DINAMO VIGIAK"]
[null,null,null,"DREAM TIN TEAM"]
[null,null,null,"EARL OF KENT"]
[null,null,null,"EL NIÑO"]
[null,null,null,"EL NINO FC"]
[null,null,null,"ELEVEN LIONS"]
[null,null,null,"ENDYMION"]
[null,null,null,"EROI DEL 1982"]
[null,null,null,"ETRURIA UNITED"]
[null,null,null,"EUREKA"]
[null,null,null,"FANTARAPID CACCAMO"]
[null,null,null,"FANTASPEZIA"]
[null,null,null,"FANTONI & GINELLI"]
[null,null,null,"FC BIBI 04"]
[null,null,null,"FC BIRO"]
[null,null,null,"FC FANTATLETICO"]
[null,null,null,"FC JAVIER ZANETTI"]
[null,null,null,"FC NAPOLI 2012"]
[null,null,null,"FC PARTIZAN DEGRADO"]
[null,null,null,"FC ROMA SUD"]
[null,null,null,"FC TRIPLETE"]
[null,null,null,"FC ZETAJ TEAM 1999"]
[null,null,null,"FERRON"]
[null,null,null,"FFC ALESSANDRO ALTOBELLI"]
[null,null,null,"FFC ANGELO DOMENGHINI"]
[null,null,null,"FFC EVARISTO BECCALOSSI"]
[null,null,null,"FFC GIUSEPPE BERGOMI"]
[null,null,null,"FFC LUISITO SUAREZ"]
[null,null,null,"FFC MARIO CORSO"]
[null,null,null,"FFC ROBERTO BONINSEGNA"]
[null,null,null,"FFC SANDRO MAZZOLA"]
[null,null,null,"FFC TARCISIO BURGNICH"]
[null,null,null,"FFC TOPENHAM"]
[null,null,null,"FIORENTINA"]
[null,null,null,"FK'S TEAM"]
[null,null,null,"FRIUL GALAXI"]
[null,null,null,"FUFF TEAM"]
[null,null,null,"GABRY FC"]
[null,null,null,"GIAMBOTTINO FC"]
[null,null,null,"GOBBOFINCHECAMPO"]
[null,null,null,"GRATTACHECCA"]
[null,null,null,"HIC SUNT FERAE"]
[null,null,null,"HOBBIT"]
[null,null,null,"I VAZANICCHI"]
[null,null,null,"INAZUMA ELEVEN"]
[null,null,null,"ISOLA CHE NON CE"]
[null,null,null,"JUNIORT"]
[null,null,null,"JUVE93"]
[null,null,null,"KITEMMUOR TEAM"]
[null,null,null,"LA BANDA DEGLI ONESTI"]
[null,null,null,"LA MUCONE"]
[null,null,null,"LA VECCHIA GUARDIA"]
[null,null,null,"LA10 BIELLA FC"]
[null,null,null,"LAMÙFOREVER"]
[null,null,null,"LAZIO"]
[null,null,null,"LIVELE"]
[null,null,null,"LIVERCOOL"]
[null,null,null,"LOS"]
[null,null,null,"LUCHINS"]
[null,null,null,"LUPIN III"]
[null,null,null,"MAGODINA FC"]
[null,null,null,"MANCHO FERE"]
[null,null,null,"MANZO TEAM"]
[null,null,null,"MARIANNA"]
[null,null,null,"MARUEGO BOYS"]
[null,null,null,"MOKA JUNIORS"]
[null,null,null,"MOMENTI DI GLORIA"]
[null,null,null,"MOMENTI DI GLORIA FMC"]
[null,null,null,"MOMPRACEM"]
[null,null,null,"NAPO-LEONI"]
[null,null,null,"NAPOLI FOREVER"]
[null,null,null,"NASONE NERAZZURRO"]
[null,null,null,"NEAPOLIS"]
[null,null,null,"NICKSTREGA"]
[null,null,null,"NOJOSETTE"]
[null,null,null,"NORTH COCKS"]
[null,null,null,"OLTREMARE"]
[null,null,null,"OLYMPIC KEBAB"]
[null,null,null,"OSTIAMARE FC"]
[null,null,null,"OXFORD UNITED"]
[null,null,null,"P CUATRO"]
[null,null,null,"PANZER8"]
[null,null,null,"PAPAVERI E PAPERE"]
[null,null,null,"PARASITE"]
[null,null,null,"PERDENTUS FC"]
[null,null,null,"PICARD"]
[null,null,null,"PICCIOTTI NERAZZURRI"]
[null,null,null,"PIGGI"]
[null,null,null,"PRAVETTONI CC"]
[null,null,null,"PRENESTINO FC"]
[null,null,null,"PRINCESS OF ETRURIA"]
[null,null,null,"PRO WC"]
[null,null,null,"RASTA DB"]
[null,null,null,"RASTA ZETA"]
[null,null,null,"RAT-MEN"]
[null,null,null,"REAL BABBUDOIU"]
[null,null,null,"REAL BUCCINASCO"]
[null,null,null,"REAL BUGGY"]
[null,null,null,"REAL CHR"]
[null,null,null,"REAL FARNESE"]
[null,null,null,"REAL GENOA"]
[null,null,null,"REAL GRIFO"]
[null,null,null,"REAL MADRINK"]
[null,null,null,"REAL PIPPERO"]
[null,null,null,"RED HOT CHILI PEPPERS"]
[null,null,null,"RED-GREEN"]
[null,null,null,"RISK UNITED"]
[null,null,null,"ROSSOBLU FC"]
[null,null,null,"SALENTO FC"]
[null,null,null,"SALEX"]
[null,null,null,"SAN SIRO"]
[null,null,null,"SFIGARENSE"]
[null,null,null,"SOLSBURY HILL FC"]
[null,null,null,"SPORTING 2000"]
[null,null,null,"SPORTING LABRONICA"]
[null,null,null,"SPORTING VINAO"]
[null,null,null,"STROMBOLI"]
[null,null,null,"SVICAT"]
[null,null,null,"SWANSEA"]
[null,null,null,"TC WILLIAMS"]
[null,null,null,"TEAM ENO"]
[null,null,null,"TERZO MUNICIPIO"]
[null,null,null,"TIME OUT"]
[null,null,null,"TITANS"]
[null,null,null,"TORI BRIANZOLI"]
[null,null,null,"TROPEA"]
[null,null,null,"TWOSTARS"]
[null,null,null,"UDI ONE"]
[null,null,null,"UDINESE 1896"]
[null,null,null,"URACAN"]
[null,null,null,"VARCELLONA"]
[null,null,null,"VIS FONNO"]
[null,null,null,"VIS TRONKO"]
[null,null,null,"VOTANTONIO"]
[null,null,null,"YOUNG BOYS"]
[null,null,null,"ZEMANLANDIA AFC"]
[null,null,null,"ZERU TITULI"]
[null,null,null,"ZERVENA VIGIAK"]

{"sheet":"Foglio1","index":1,"n_rows":40,"n_cols":60,"rows_kept":40,"cut":false,"hidden":false,"merged":[]}
[null,null,"ARMATA NERAZZURRA",{"$f":"VLOOKUP(C1,Foglio2!A:BF,58,FALSE)","v":"IMI_C1_girone_B@googlegroups.com"},null,null,null,null,null,null,{"$f":"IF(LEN($P6&$P7&$P17&$P18&$P19&$P20&$P21&$P22&$P23&$P24&$P25&$P27&$P28&$P29&$P30)>3,\"FORMAZIONE ERRATA\",\"\")","v":""}]
[]
[null,null,"ROSA",null,null,"Gioc.","Media","Fmedia",null,"QUI SOTTO I RIGORISTI","Indisponibile a causa di….",null,null,{"$f":"\"FORMAZIONE \"&UPPER(C1)","v":"FORMAZIONE ARMATA NERAZZURRA"},null,{"$f":"\"MODULO: \"&COUNTIF($M$5:$M$15,\"D\")&COUNTIF($M$5:$M$15,\"C\")&COUNTIF($M$5:$M$15,\"A\")","v":"MODULO: 433"}]
[null,"X",{"$f":"IF(VLOOKUP($C$1,Foglio2!$A:$AY,2,FALSE)=0,\"n.d.\",VLOOKUP($C$1,Foglio2!$A:$AY,2,FALSE))","v":"SUZUKI"},"P",{"$f":"IF(OR(C4=\"n.d.\",C4=\"\"),\"\",VLOOKUP($C4,Foglio2!$BA:$BC,2,FALSE))","v":"PAR"},{"$f":"IF(OR(C4=\"n.d.\",C4=\"\"),\"\",VLOOKUP(C4,Foglio2!BA:BD,4,FALSE))","v":19},{"$f":"IF(OR($C4=\"n.d.\",$C4=\"\"),\"\",VLOOKUP($C4,Foglio2!$BA:$BE,5,FALSE))","v":5.9736842105263159},{"$f":"IF(OR($C4=\"n.d.\",$C4=\"\"),\"\",VLOOKUP($C4,Foglio2!$BA:$BC,3,FALSE))","v":4.6842105263157894},{"$f":"IF(ISERROR(LOWER(VLOOKUP(E4,Foglio2!BK$2:BL$21,2,FALSE))),\"\",LOWER(VLOOKUP(E4,Foglio2!BK$2:BL$21,2,FALSE)))","v":"com - par"},null,{"$f":"IF($C4=\"\",\"\",IF(ISERROR(VLOOKUP($C4,Foglio2!$BG$2:$BH$150,2,FALSE)),\"\",VLOOKUP($C4,Foglio2!$BG$2:$BH$150,2,FALSE)))","v":""},null,"Ruolo",null,"Sq.",null,null,{"$f":"IF(TRIM($B4)<>\"\",IF(ISNUMBER(B4),(100-$B4),$D4),\"\")","v":"P"},{"$f":"IF(J4=\"\",$C4,$C4&\",\"&J4)","v":"SUZUKI"},{"$f":"IF(R4=\"\",\"\",IF(AND(TRIM($B4)<>\"\",ISTEXT($B4)),1,0))","v":1}]
[null,1,{"$f":"IF(VLOOKUP($C$1,Foglio2!$A:$AY,4,FALSE)=0,\"n.d.\",VLOOKUP($C$1,Foglio2!$A:$AY,4,FALSE))","v":"CORVI"},"P",{"$f":"IF(OR(C5=\"n.d.\",C5=\"\",C5=\"p_n.d.\"),\"\",VLOOKUP($C5,Foglio2!$BA:$BC,2,FALSE))","v":"PAR"},{"$f":"IF(OR(C5=\"n.d.\",C5=\"\"),\"\",VLOOKUP(C5,Foglio2!BA:BD,4,FALSE))","v":16},{"$f":"IF(OR($C5=\"n.d.\",$C5=\"\"),\"\",VLOOKUP($C5,Foglio2!$BA:$BE,5,FALSE))","v":6.15625},{"$f":"IF(OR(C5=\"n.d.\",C5=\"\"),\"\",VLOOKUP(C5,Foglio2!BA:BC,3,FALSE))","v":5},{"$f":"IF(ISERROR(LOWER(VLOOKUP(E5,Foglio2!BK$2:BL$21,2,FALSE))),\"\",LOWER(VLOOKUP(E5,Foglio2!BK$2:BL$21,2,FALSE)))","v":"com - par"},null,{"$f":"IF($C5=\"\",\"\",IF(ISERROR(VLOOKUP($C5,Foglio2!$BG$2:$BH$150,2,FALSE)),\"\",VLOOKUP($C5,Foglio2!$BG$2:$BH$150,2,FALSE)))","v":""},1,{"$f":"IF(W5<>\"\",IF(ISTEXT(VLOOKUP($W5,$C$4:$E$28,2,FALSE)),VLOOKUP($W5,$C$4:$E$28,2,FALSE),\"\"),\"\")","v":"P"},{"$f":"IF(BB5<>\"\",BC5&\";\",\"\")","v":"SUZUKI;"},{"$f":"IF(LEN(W5)<>1,IF(ISTEXT(VLOOKUP($W5,$C$4:$E$28,3,FALSE)),VLOOKUP($W5,$C$4:$E$28,3,FALSE),\"\"),\"ERRORE\")","v":"PAR"},null,null,99,"CORVI",{"$f":"IF(R5=\"\",\"\",IF(AND(TRIM($B5)<>\"\",ISTEXT($B5)),1,0))","v":0},null,null,{"$f":"IF(N5=\"\",\"\",IF(ISERROR(FIND(\",\",N5,1)),LEFT(N5,FIND(\";\",N5,1)-1),LEFT(N5,FIND(\",\",N5,1)-1)))","v":"SUZUKI"},null,null,null,null,null,null,null,null,null,null,null,null,null,null,null,null,null,null,null,null,null,null,null,null,null,null,null,null,null,null,"P","SUZUKI",1,{"$f":"IF(ISERROR(VLOOKUP(IF(ISERROR(FIND(\",\",BF5,1)),BF5,LEFT(BF5,FIND(\",\",BF5,1)-1)),$C$4:$D$28,2,FALSE)),\"\",VLOOKUP(IF(ISERROR(FIND(\",\",BF5,1)),BF5,LEFT(BF5,FIND(\",\",BF5,1)-1)),$C$4:$D$28,2,FALSE))","v":""},{"$f":"IF(BD16=\"\",BC16,\"\")","v":""},"",""]
[null,2,{"$f":"IF(VLOOKUP($C$1,Foglio2!$A:$AY,6,FALSE)=0,\"n.d.\",VLOOKUP($C$1,Foglio2!$A:$AY,6,FALSE))","v":"RINALDI"},"P",{"$f":"IF(OR(C6=\"n.d.\",C6=\"\",C6=\"p_n.d.\"),\"\",VLOOKUP($C6,Foglio2!$BA:$BC,2,FALSE))","v":"PAR"},{"$f":"IF(OR(C6=\"n.d.\",C6=\"\"),\"\",VLOOKUP(C6,Foglio2!BA:BD,4,FALSE))","v":1},{"$f":"IF(OR($C6=\"n.d.\",$C6=\"\"),\"\",VLOOKUP($C6,Foglio2!$BA:$BE,5,FALSE))","v":7},{"$f":"IF(OR(C6=\"n.d.\",C6=\"\"),\"\",VLOOKUP(C6,Foglio2!BA:BC,3,FALSE))","v":6.5},{"$f":"IF(ISERROR(LOWER(VLOOKUP(E6,Foglio2!BK$2:BL$21,2,FALSE))),\"\",LOWER(VLOOKUP(E6,Foglio2!BK$2:BL$21,2,FALSE)))","v":"com - par"},null,{"$f":"IF($C6=\"\",\"\",IF(ISERROR(VLOOKUP($C6,Foglio2!$BG$2:$BH$150,2,FALSE)),\"\",VLOOKUP($C6,Foglio2!$BG$2:$BH$150,2,FALSE)))","v":""},2,"D",{"$f":"IF(BB6<>\"\",BC6&\";\",\"\")","v":"AKANJI;"},"INT",{"$f":"IF(OR(RIGHT($P$3,3)=\"352\",RIGHT($P$3,3)=\"343\",RIGHT($P$3,3)=\"442\",RIGHT($P$3,3)=\"433\",RIGHT($P$3,3)=\"451\",RIGHT($P$3,3)=\"541\",RIGHT($P$3,3)=\"631\",RIGHT($P$3,3)=\"532\"),\"\",\"MODULO DI GIOCO ERRATO\")","v":""},null,98,"RINALDI",0,null,null,"AKANJI",null,null,null,null,null,null,null,null,null,null,null,null,null,null,null,null,null,null,null,null,null,null,null,null,null,null,null,null,null,null,"D","AKANJI",1,"",{"$f":"IF(BD17=\"\",BC17,\"\")","v":""},"",""]
[null,3,{"$f":"IF(VLOOKUP($C$1,Foglio2!$A:$AY,8,FALSE)=0,\"n.d.\",VLOOKUP($C$1,Foglio2!$A:$AY,8,FALSE))","v":"ASTALDI"},"P",{"$f":"IF(OR(C7=\"n.d.\",C7=\" \",C7=\"p_n.d.\"),\"\",VLOOKUP($C7,Foglio2!$BA:$BC,2,FALSE))","v":"PAR"},{"$f":"IF(OR(C7=\"n.d.\",C7=\" \",C7=\"P_n.d.\"),0,VLOOKUP(C7,Foglio2!BA:BD,4,FALSE))","v":0},{"$f":"IF(OR($C7=\"n.d.\",$C7=\"\"),\"\",VLOOKUP($C7,Foglio2!$BA:$BE,5,FALSE))","v":0},{"$f":"IF(OR(C7=\"n.d.\",C7=\" \",C7=\"P_n.d.\"),0,VLOOKUP(C7,Foglio2!BA:BC,3,FALSE))","v":0},{"$f":"IF(ISERROR(LOWER(VLOOKUP(E7,Foglio2!BK$2:BL$21,2,FALSE))),\"\",LOWER(VLOOKUP(E7,Foglio2!BK$2:BL$21,2,FALSE)))","v":"com - par"},null,{"$f":"IF($C7=\"\",\"\",IF(ISERROR(VLOOKUP($C7,Foglio2!$BG$2:$BH$150,2,FALSE)),\"\",VLOOKUP($C7,Foglio2!$BG$2:$BH$150,2,FALSE)))","v":""},3,"D","BISSECK;","INT",{"$f":"IF(SUM(T4:T28)<>11,CONCATENATE(\"CI SONO \",SUM(T4:T28),\" TITOLARI\"),\"\")","v":""},null,97,"ASTALDI",0,null,null,"BISSECK",null,null,null,null,null,null,null,null,null,null,null,null,null,null,null,null,null,null,null,null,null,null,null,null,null,null,null,null,null,null,"D","BISSECK",1,"","","",""]
[null,"X",{"$f":"IF(VLOOKUP($C$1,Foglio2!$A:$AY,10,FALSE)=0,\"n.d.\",VLOOKUP($C$1,Foglio2!$A:$AY,10,FALSE))","v":"AKANJI"},"D",{"$f":"IF(OR(C8=\"n.d.\",C8=\"\"),\"\",VLOOKUP($C8,Foglio2!$BA:$BC,2,FALSE))","v":"INT"},{"$f":"IF(OR(C8=\"n.d.\",C8=\"\"),\"\",VLOOKUP(C8,Foglio2!BA:BD,4,FALSE))","v":32},{"$f":"IF(OR($C8=\"n.d.\",$C8=\"\"),\"\",VLOOKUP($C8,Foglio2!$BA:$BE,5,FALSE))","v":6.28125},{"$f":"IF(OR(C8=\"n.d.\",C8=\"\"),\"\",VLOOKUP(C8,Foglio2!BA:BC,3,FALSE))","v":6.40625},{"$f":"IF(ISERROR(LOWER(VLOOKUP(E8,Foglio2!BK$2:BL$21,2,FALSE))),\"\",LOWER(VLOOKUP(E8,Foglio2!BK$2:BL$21,2,FALSE)))","v":"int - ver"},null,{"$f":"IF($C8=\"\",\"\",IF(ISERROR(VLOOKUP($C8,Foglio2!$BG$2:$BH$150,2,FALSE)),\"\",VLOOKUP($C8,Foglio2!$BG$2:$BH$150,2,FALSE)))","v":""},4,"D","HIEN;","ATA",null,null,"D","AKANJI",1,null,null,"HIEN",null,null,null,null,null,null,null,null,null,null,null,null,null,null,null,null,null,null,null,null,null,null,null,null,null,null,null,null,null,null,"D","HIEN",1,"","","",""]
[null,"X",{"$f":"IF(VLOOKUP($C$1,Foglio2!$A:$AY,12,FALSE)=0,\"n.d.\",VLOOKUP($C$1,Foglio2!$A:$AY,12,FALSE))","v":"BISSECK"},"D",{"$f":"IF(OR(C9=\"n.d.\",C9=\"\"),\"\",VLOOKUP($C9,Foglio2!$BA:$BC,2,FALSE))","v":"INT"},{"$f":"IF(OR(C9=\"n.d.\",C9=\"\"),\"\",VLOOKUP(C9,Foglio2!BA:BD,4,FALSE))","v":22},{"$f":"IF(OR($C9=\"n.d.\",$C9=\"\"),\"\",VLOOKUP($C9,Foglio2!$BA:$BE,5,FALSE))","v":6.25},{"$f":"IF(OR(C9=\"n.d.\",C9=\"\"),\"\",VLOOKUP(C9,Foglio2!BA:BC,3,FALSE))","v":6.6136363636363633},{"$f":"IF(ISERROR(LOWER(VLOOKUP(E9,Foglio2!BK$2:BL$21,2,FALSE))),\"\",LOWER(VLOOKUP(E9,Foglio2!BK$2:BL$21,2,FALSE)))","v":"int - ver"},null,{"$f":"IF($C9=\"\",\"\",IF(ISERROR(VLOOKUP($C9,Foglio2!$BG$2:$BH$150,2,FALSE)),\"\",VLOOKUP($C9,Foglio2!$BG$2:$BH$150,2,FALSE)))","v":""},5,"D","KALULU;","JUV",null,null,"D","BISSECK",1,null,null,"KALULU",null,null,null,null,null,null,null,null,null,null,null,null,null,null,null,null,null,null,null,null,null,null,null,null,null,null,null,null,null,null,"D","KALULU",1,"","","",""]
[null,"X",{"$f":"IF(VLOOKUP($C$1,Foglio2!$A:$AY,14,FALSE)=0,\"n.d.\",VLOOKUP($C$1,Foglio2!$A:$AY,14,FALSE))","v":"HIEN"},"D",{"$f":"IF(OR(C10=\"n.d.\",C10=\"\"),\"\",VLOOKUP($C10,Foglio2!$BA:$BC,2,FALSE))","v":"ATA"},{"$f":"IF(OR(C10=\"n.d.\",C10=\"\"),\"\",VLOOKUP(C10,Foglio2!BA:BD,4,FALSE))","v":27},{"$f":"IF(OR($C10=\"n.d.\",$C10=\"\"),\"\",VLOOKUP($C10,Foglio2!$BA:$BE,5,FALSE))","v":5.8888888888888893},{"$f":"IF(OR(C10=\"n.d.\",C10=\"\"),\"\",VLOOKUP(C10,Foglio2!BA:BC,3,FALSE))","v":5.833333333333333},{"$f":"IF(ISERROR(LOWER(VLOOKUP(E10,Foglio2!BK$2:BL$21,2,FALSE))),\"\",LOWER(VLOOKUP(E10,Foglio2!BK$2:BL$21,2,FALSE)))","v":"ata - bol"},null,{"$f":"IF($C10=\"\",\"\",IF(ISERROR(VLOOKUP($C10,Foglio2!$BG$2:$BH$150,2,FALSE)),\"\",VLOOKUP($C10,Foglio2!$BG$2:$BH$150,2,FALSE)))","v":""},6,"C","CALHANOGLU;","INT",null,null,"D","HIEN",1,null,null,"CALHANOGLU",null,null,null,null,null,null,null,null,null,null,null,null,null,null,null,null,null,null,null,null,null,null,null,null,null,null,null,null,null,null,"C","CALHANOGLU",1,"","","",""]
[null,"X",{"$f":"IF(VLOOKUP($C$1,Foglio2!$A:$AY,16,FALSE)=0,\"n.d.\",VLOOKUP($C$1,Foglio2!$A:$AY,16,FALSE))","v":"KALULU"},"D",{"$f":"IF(OR(C11=\"n.d.\",C11=\"\"),\"\",VLOOKUP($C11,Foglio2!$BA:$BC,2,FALSE))","v":"JUV"},{"$f":"IF(OR(C11=\"n.d.\",C11=\"\"),\"\",VLOOKUP(C11,Foglio2!BA:BD,4,FALSE))","v":35},{"$f":"IF(OR($C11=\"n.d.\",$C11=\"\"),\"\",VLOOKUP($C11,Foglio2!$BA:$BE,5,FALSE))","v":6.1571428571428575},{"$f":"IF(OR(C11=\"n.d.\",C11=\"\"),\"\",VLOOKUP(C11,Foglio2!BA:BC,3,FALSE))","v":6.2857142857142856},{"$f":"IF(ISERROR(LOWER(VLOOKUP(E11,Foglio2!BK$2:BL$21,2,FALSE))),\"\",LOWER(VLOOKUP(E11,Foglio2!BK$2:BL$21,2,FALSE)))","v":"juv - fio"},null,{"$f":"IF($C11=\"\",\"\",IF(ISERROR(VLOOKUP($C11,Foglio2!$BG$2:$BH$150,2,FALSE)),\"\",VLOOKUP($C11,Foglio2!$BG$2:$BH$150,2,FALSE)))","v":""},7,"C","FAGIOLI;","FIO",null,null,"D","KALULU",1,null,null,"FAGIOLI",null,null,null,null,null,null,null,null,null,null,null,null,null,null,null,null,null,null,null,null,null,null,null,null,null,null,null,null,null,null,"C","FAGIOLI",1,"","","",""]
[null,4,{"$f":"IF(VLOOKUP($C$1,Foglio2!$A:$AY,18,FALSE)=0,\"n.d.\",VLOOKUP($C$1,Foglio2!$A:$AY,18,FALSE))","v":"PARISI"},"D",{"$f":"IF(OR(C12=\"n.d.\",C12=\"\"),\"\",VLOOKUP($C12,Foglio2!$BA:$BC,2,FALSE))","v":"FIO"},{"$f":"IF(OR(C12=\"n.d.\",C12=\"\"),\"\",VLOOKUP(C12,Foglio2!BA:BD,4,FALSE))","v":22},{"$f":"IF(OR($C12=\"n.d.\",$C12=\"\"),\"\",VLOOKUP($C12,Foglio2!$BA:$BE,5,FALSE))","v":6.0227272727272725},{"$f":"IF(OR(C12=\"n.d.\",C12=\"\"),\"\",VLOOKUP(C12,Foglio2!BA:BC,3,FALSE))","v":5.9318181818181817},{"$f":"IF(ISERROR(LOWER(VLOOKUP(E12,Foglio2!BK$2:BL$21,2,FALSE))),\"\",LOWER(VLOOKUP(E12,Foglio2!BK$2:BL$21,2,FALSE)))","v":"juv - fio"},null,{"$f":"IF($C12=\"\",\"\",IF(ISERROR(VLOOKUP($C12,Foglio2!$BG$2:$BH$150,2,FALSE)),\"\",VLOOKUP($C12,Foglio2!$BG$2:$BH$150,2,FALSE)))","v":""},8,"C","FRATTESI;","INT",null,null,96,"PARISI",0,null,null,"FRATTESI",null,null,null,null,null,null,null,null,null,null,null,null,null,null,null,null,null,null,null,null,null,null,null,null,null,null,null,null,null,null,"C","FRATTESI",1,"","","",""]
[null,5,{"$f":"IF(VLOOKUP($C$1,Foglio2!$A:$AY,20,FALSE)=0,\"n.d.\",VLOOKUP($C$1,Foglio2!$A:$AY,20,FALSE))","v":"ROMAGNOLI"},"D",{"$f":"IF(OR(C13=\"n.d.\",C13=\"\"),\"\",VLOOKUP($C13,Foglio2!$BA:$BC,2,FALSE))","v":"LAZ"},{"$f":"IF(OR(C13=\"n.d.\",C13=\"\"),\"\",VLOOKUP(C13,Foglio2!BA:BD,4,FALSE))","v":31},{"$f":"IF(OR($C13=\"n.d.\",$C13=\"\"),\"\",VLOOKUP($C13,Foglio2!$BA:$BE,5,FALSE))","v":6.032258064516129},{"$f":"IF(OR(C13=\"n.d.\",C13=\"\"),\"\",VLOOKUP(C13,Foglio2!BA:BC,3,FALSE))","v":5.903225806451613},{"$f":"IF(ISERROR(LOWER(VLOOKUP(E13,Foglio2!BK$2:BL$21,2,FALSE))),\"\",LOWER(VLOOKUP(E13,Foglio2!BK$2:BL$21,2,FALSE)))","v":"rom - laz"},null,{"$f":"IF($C13=\"\",\"\",IF(ISERROR(VLOOKUP($C13,Foglio2!$BG$2:$BH$150,2,FALSE)),\"\",VLOOKUP($C13,Foglio2!$BG$2:$BH$150,2,FALSE)))","v":""},9,"A","BONNY;","INT",null,null,95,"ROMAGNOLI",0,null,null,"BONNY",null,null,null,null,null,null,null,null,null,null,null,null,null,null,null,null,null,null,null,null,null,null,null,null,null,null,null,null,null,null,"A","BONNY",1,"","","",""]
[null,6,{"$f":"IF(VLOOKUP($C$1,Foglio2!$A:$AY,22,FALSE)=0,\"n.d.\",VLOOKUP($C$1,Foglio2!$A:$AY,22,FALSE))","v":"SPINAZZOLA"},"D",{"$f":"IF(OR(C14=\"n.d.\",C14=\"\"),\"\",VLOOKUP($C14,Foglio2!$BA:$BC,2,FALSE))","v":"NAP"},{"$f":"IF(OR(C14=\"n.d.\",C14=\"\"),\"\",VLOOKUP(C14,Foglio2!BA:BD,4,FALSE))","v":29},{"$f":"IF(OR($C14=\"n.d.\",$C14=\"\"),\"\",VLOOKUP($C14,Foglio2!$BA:$BE,5,FALSE))","v":6.1724137931034484},{"$f":"IF(OR(C14=\"n.d.\",C14=\"\"),\"\",VLOOKUP(C14,Foglio2!BA:BC,3,FALSE))","v":6.4655172413793105},{"$f":"IF(ISERROR(LOWER(VLOOKUP(E14,Foglio2!BK$2:BL$21,2,FALSE))),\"\",LOWER(VLOOKUP(E14,Foglio2!BK$2:BL$21,2,FALSE)))","v":"pis - nap"},null,{"$f":"IF($C14=\"\",\"\",IF(ISERROR(VLOOKUP($C14,Foglio2!$BG$2:$BH$150,2,FALSE)),\"\",VLOOKUP($C14,Foglio2!$BG$2:$BH$150,2,FALSE)))","v":""},10,"A","CHEDDIRA;","LEC",null,null,94,"SPINAZZOLA",0,null,null,"CHEDDIRA",null,null,null,null,null,null,null,null,null,null,null,null,null,null,null,null,null,null,null,null,null,null,null,null,null,null,null,null,null,null,"A","CHEDDIRA",1,"","","",""]
[null,7,{"$f":"IF(VLOOKUP($C$1,Foglio2!$A:$AY,24,FALSE)=0,\"n.d.\",VLOOKUP($C$1,Foglio2!$A:$AY,24,FALSE))","v":"ZAPPACOSTA"},"D",{"$f":"IF(OR(C15=\"n.d.\",C15=\"\"),\"\",VLOOKUP($C15,Foglio2!$BA:$BC,2,FALSE))","v":"ATA"},{"$f":"IF(OR(C15=\"n.d.\",C15=\"\"),\"\",VLOOKUP(C15,Foglio2!BA:BD,4,FALSE))","v":33},{"$f":"IF(OR($C15=\"n.d.\",$C15=\"\"),\"\",VLOOKUP($C15,Foglio2!$BA:$BE,5,FALSE))","v":6.0606060606060606},{"$f":"IF(OR(C15=\"n.d.\",C15=\"\"),\"\",VLOOKUP(C15,Foglio2!BA:BC,3,FALSE))","v":6.2878787878787881},{"$f":"IF(ISERROR(LOWER(VLOOKUP(E15,Foglio2!BK$2:BL$21,2,FALSE))),\"\",LOWER(VLOOKUP(E15,Foglio2!BK$2:BL$21,2,FALSE)))","v":"ata - bol"},null,{"$f":"IF($C15=\"\",\"\",IF(ISERROR(VLOOKUP($C15,Foglio2!$BG$2:$BH$150,2,FALSE)),\"\",VLOOKUP($C15,Foglio2!$BG$2:$BH$150,2,FALSE)))","v":""},11,"A","DYBALA;","ROM",null,null,93,"ZAPPACOSTA",0,null,null,"DYBALA",null,null,null,null,null,null,null,null,null,null,null,null,null,null,null,null,null,null,null,null,null,null,null,null,null,null,null,null,null,null,"A","DYBALA",1,"","","",""]
[null,"X",{"$f":"IF(VLOOKUP($C$1,Foglio2!$A:$AY,26,FALSE)=0,\"n.d.\",VLOOKUP($C$1,Foglio2!$A:$AY,26,FALSE))","v":"CALHANOGLU"},"C",{"$f":"IF(OR(C16=\"n.d.\",C16=\"\"),\"\",VLOOKUP($C16,Foglio2!$BA:$BC,2,FALSE))","v":"INT"},{"$f":"IF(OR(C16=\"n.d.\",C16=\"\"),\"\",VLOOKUP(C16,Foglio2!BA:BD,4,FALSE))","v":22},{"$f":"IF(OR($C16=\"n.d.\",$C16=\"\"),\"\",VLOOKUP($C16,Foglio2!$BA:$BE,5,FALSE))","v":6.5227272727272725},{"$f":"IF(OR(C16=\"n.d.\",C16=\"\"),\"\",VLOOKUP(C16,Foglio2!BA:BC,3,FALSE))","v":7.4545454545454541},{"$f":"IF(ISERROR(LOWER(VLOOKUP(E16,Foglio2!BK$2:BL$21,2,FALSE))),\"\",LOWER(VLOOKUP(E16,Foglio2!BK$2:BL$21,2,FALSE)))","v":"int - ver"},null,{"$f":"IF($C16=\"\",\"\",IF(ISERROR(VLOOKUP($C16,Foglio2!$BG$2:$BH$150,2,FALSE)),\"\",VLOOKUP($C16,Foglio2!$BG$2:$BH$150,2,FALSE)))","v":""},null,null,null,null,null,null,"C","CALHANOGLU",1,null,null,null,null,null,null,null,null,null,null,null,null,null,null,null,null,null,null,null,null,null,null,null,null,null,null,null,null,null,null,null,null,null,99,"CORVI",0,"","","",""]
[null,"X",{"$f":"IF(VLOOKUP($C$1,Foglio2!$A:$AY,28,FALSE)=0,\"n.d.\",VLOOKUP($C$1,Foglio2!$A:$AY,28,FALSE))","v":"FAGIOLI"},"C",{"$f":"IF(OR(C17=\"n.d.\",C17=\"\"),\"\",VLOOKUP($C17,Foglio2!$BA:$BC,2,FALSE))","v":"FIO"},{"$f":"IF(OR(C17=\"n.d.\",C17=\"\"),\"\",VLOOKUP(C17,Foglio2!BA:BD,4,FALSE))","v":32},{"$f":"IF(OR($C17=\"n.d.\",$C17=\"\"),\"\",VLOOKUP($C17,Foglio2!$BA:$BE,5,FALSE))","v":6.015625},{"$f":"IF(OR(C17=\"n.d.\",C17=\"\"),\"\",VLOOKUP(C17,Foglio2!BA:BC,3,FALSE))","v":6.125},{"$f":"IF(ISERROR(LOWER(VLOOKUP(E17,Foglio2!BK$2:BL$21,2,FALSE))),\"\",LOWER(VLOOKUP(E17,Foglio2!BK$2:BL$21,2,FALSE)))","v":"juv - fio"},null,{"$f":"IF($C17=\"\",\"\",IF(ISERROR(VLOOKUP($C17,Foglio2!$BG$2:$BH$150,2,FALSE)),\"\",VLOOKUP($C17,Foglio2!$BG$2:$BH$150,2,FALSE)))","v":""},12,{"$f":"IF(W17<>\"\",IF(ISTEXT(VLOOKUP($W17,$C$4:$E$28,2,FALSE)),VLOOKUP($W17,$C$4:$E$28,2,FALSE),\"\"),\"\")","v":"P"},{"$f":"IF(BD16<>\"\",BC16&\";\",\"\")","v":"CORVI;"},{"$f":"IF(LEN(W17)<>1,IF(ISTEXT(VLOOKUP($W17,$C$4:$E$28,3,FALSE)),VLOOKUP($W17,$C$4:$E$28,3,FALSE),\"\"),\"ERRORE\")","v":"PAR"},{"$f":"V17","v":""},null,"C","FAGIOLI",1,null,{"$f":"IF(M17<>\"P\",\"la prima riserva deve essere un portiere\",IF(ISERROR(FIND(\",\",N17,1)),\"\",\"rigorista non disponibile\"))","v":""},{"$f":"IF(N17=\"\",\"\",IF(ISERROR(FIND(\",\",N17,1)),LEFT(N17,FIND(\";\",N17,1)-1),LEFT(N17,FIND(\",\",N17,1)-1)))","v":"CORVI"},null,null,null,null,null,null,null,null,null,null,null,null,null,null,null,null,null,null,null,null,null,null,null,null,null,null,null,null,null,null,98,"RINALDI",0,"","","",""]
[null,"X",{"$f":"IF(VLOOKUP($C$1,Foglio2!$A:$AY,30,FALSE)=0,\"n.d.\",VLOOKUP($C$1,Foglio2!$A:$AY,30,FALSE))","v":"FRATTESI"},"C",{"$f":"IF(OR(C18=\"n.d.\",C18=\"\"),\"\",VLOOKUP($C18,Foglio2!$BA:$BC,2,FALSE))","v":"INT"},{"$f":"IF(OR(C18=\"n.d.\",C18=\"\"),\"\",VLOOKUP(C18,Foglio2!BA:BD,4,FALSE))","v":14},{"$f":"IF(OR($C18=\"n.d.\",$C18=\"\"),\"\",VLOOKUP($C18,Foglio2!$BA:$BE,5,FALSE))","v":5.8928571428571432},{"$f":"IF(OR(C18=\"n.d.\",C18=\"\"),\"\",VLOOKUP(C18,Foglio2!BA:BC,3,FALSE))","v":5.8928571428571432},{"$f":"IF(ISERROR(LOWER(VLOOKUP(E18,Foglio2!BK$2:BL$21,2,FALSE))),\"\",LOWER(VLOOKUP(E18,Foglio2!BK$2:BL$21,2,FALSE)))","v":"int - ver"},null,{"$f":"IF($C18=\"\",\"\",IF(ISERROR(VLOOKUP($C18,Foglio2!$BG$2:$BH$150,2,FALSE)),\"\",VLOOKUP($C18,Foglio2!$BG$2:$BH$150,2,FALSE)))","v":""},13,"P",{"$f":"IF(BD17<>\"\",BC17&\";\",\"\")","v":"RINALDI;"},"PAR",{"$f":"V18","v":""},null,"C","FRATTESI",1,null,{"$f":"IF(ISERROR(FIND(\",\",N18,1)),\"\",\"rigorista non disponibile\")","v":""},"RINALDI",null,null,null,null,null,null,null,null,null,null,null,null,null,null,null,null,null,null,null,null,null,null,null,null,null,null,null,null,null,null,97,"ASTALDI",0,"","","",""]
[null,8,{"$f":"IF(VLOOKUP($C$1,Foglio2!$A:$AY,32,FALSE)=0,\"n.d.\",VLOOKUP($C$1,Foglio2!$A:$AY,32,FALSE))","v":"MALDINI"},"C",{"$f":"IF(OR(C19=\"n.d.\",C19=\"\"),\"\",VLOOKUP($C19,Foglio2!$BA:$BC,2,FALSE))","v":"LAZ"},{"$f":"IF(OR(C19=\"n.d.\",C19=\"\"),\"\",VLOOKUP(C19,Foglio2!BA:BD,4,FALSE))","v":16},{"$f":"IF(OR($C19=\"n.d.\",$C19=\"\"),\"\",VLOOKUP($C19,Foglio2!$BA:$BE,5,FALSE))","v":5.96875},{"$f":"IF(OR(C19=\"n.d.\",C19=\"\"),\"\",VLOOKUP(C19,Foglio2!BA:BC,3,FALSE))","v":6.3125},{"$f":"IF(ISERROR(LOWER(VLOOKUP(E19,Foglio2!BK$2:BL$21,2,FALSE))),\"\",LOWER(VLOOKUP(E19,Foglio2!BK$2:BL$21,2,FALSE)))","v":"rom - laz"},null,{"$f":"IF($C19=\"\",\"\",IF(ISERROR(VLOOKUP($C19,Foglio2!$BG$2:$BH$150,2,FALSE)),\"\",VLOOKUP($C19,Foglio2!$BG$2:$BH$150,2,FALSE)))","v":""},14,"P","ASTALDI;","PAR","",null,92,"MALDINI",0,null,"","ASTALDI",null,null,null,null,null,null,null,null,null,null,null,null,null,null,null,null,null,null,null,null,null,null,null,null,null,null,null,null,null,null,96,"PARISI",0,"",null,""]
[null,9,{"$f":"IF(VLOOKUP($C$1,Foglio2!$A:$AY,34,FALSE)=0,\"n.d.\",VLOOKUP($C$1,Foglio2!$A:$AY,34,FALSE))","v":"ROVELLA"},"C",{"$f":"IF(OR(C20=\"n.d.\",C20=\"\"),\"\",VLOOKUP($C20,Foglio2!$BA:$BC,2,FALSE))","v":"LAZ"},{"$f":"IF(OR(C20=\"n.d.\",C20=\"\"),\"\",VLOOKUP(C20,Foglio2!BA:BD,4,FALSE))","v":10},{"$f":"IF(OR($C20=\"n.d.\",$C20=\"\"),\"\",VLOOKUP($C20,Foglio2!$BA:$BE,5,FALSE))","v":5.85},{"$f":"IF(OR(C20=\"n.d.\",C20=\"\"),\"\",VLOOKUP(C20,Foglio2!BA:BC,3,FALSE))","v":5.8},{"$f":"IF(ISERROR(LOWER(VLOOKUP(E20,Foglio2!BK$2:BL$21,2,FALSE))),\"\",LOWER(VLOOKUP(E20,Foglio2!BK$2:BL$21,2,FALSE)))","v":"rom - laz"},null,{"$f":"IF($C20=\"\",\"\",IF(ISERROR(VLOOKUP($C20,Foglio2!$BG$2:$BH$150,2,FALSE)),\"\",VLOOKUP($C20,Foglio2!$BG$2:$BH$150,2,FALSE)))","v":""},15,"D","PARISI;","FIO","",null,91,"ROVELLA",0,null,"","PARISI",null,null,null,null,null,null,null,null,null,null,null,null,null,null,null,null,null,null,null,null,null,null,null,null,null,null,null,null,null,null,95,"ROMAGNOLI",0,"",null,""]
[null,10,{"$f":"IF(VLOOKUP($C$1,Foglio2!$A:$AY,36,FALSE)=0,\"n.d.\",VLOOKUP($C$1,Foglio2!$A:$AY,36,FALSE))","v":"SUCIC"},"C",{"$f":"IF(OR(C21=\"n.d.\",C21=\"\"),\"\",VLOOKUP($C21,Foglio2!$BA:$BC,2,FALSE))","v":"INT"},{"$f":"IF(OR(C21=\"n.d.\",C21=\"\"),\"\",VLOOKUP(C21,Foglio2!BA:BD,4,FALSE))","v":26},{"$f":"IF(OR($C21=\"n.d.\",$C21=\"\"),\"\",VLOOKUP($C21,Foglio2!$BA:$BE,5,FALSE))","v":6.0769230769230766},{"$f":"IF(OR(C21=\"n.d.\",C21=\"\"),\"\",VLOOKUP(C21,Foglio2!BA:BC,3,FALSE))","v":6.2115384615384617},{"$f":"IF(ISERROR(LOWER(VLOOKUP(E21,Foglio2!BK$2:BL$21,2,FALSE))),\"\",LOWER(VLOOKUP(E21,Foglio2!BK$2:BL$21,2,FALSE)))","v":"int - ver"},null,{"$f":"IF($C21=\"\",\"\",IF(ISERROR(VLOOKUP($C21,Foglio2!$BG$2:$BH$150,2,FALSE)),\"\",VLOOKUP($C21,Foglio2!$BG$2:$BH$150,2,FALSE)))","v":""},16,"D","ROMAGNOLI;","LAZ","",null,90,"SUCIC",0,null,"","ROMAGNOLI",null,null,null,null,null,null,null,null,null,null,null,null,null,null,null,null,null,null,null,null,null,null,null,null,null,null,null,null,null,null,94,"SPINAZZOLA",0,""]
[null,11,{"$f":"IF(VLOOKUP($C$1,Foglio2!$A:$AY,38,FALSE)=0,\"n.d.\",VLOOKUP($C$1,Foglio2!$A:$AY,38,FALSE))","v":"THURAM K."},"C",{"$f":"IF(OR(C22=\"n.d.\",C22=\"\"),\"\",VLOOKUP($C22,Foglio2!$BA:$BC,2,FALSE))","v":"JUV"},{"$f":"IF(OR(C22=\"n.d.\",C22=\"\"),\"\",VLOOKUP(C22,Foglio2!BA:BD,4,FALSE))","v":32},{"$f":"IF(OR($C22=\"n.d.\",$C22=\"\"),\"\",VLOOKUP($C22,Foglio2!$BA:$BE,5,FALSE))","v":6.125},{"$f":"IF(OR(C22=\"n.d.\",C22=\"\"),\"\",VLOOKUP(C22,Foglio2!BA:BC,3,FALSE))","v":6.375},{"$f":"IF(ISERROR(LOWER(VLOOKUP(E22,Foglio2!BK$2:BL$21,2,FALSE))),\"\",LOWER(VLOOKUP(E22,Foglio2!BK$2:BL$21,2,FALSE)))","v":"juv - fio"},null,{"$f":"IF($C22=\"\",\"\",IF(ISERROR(VLOOKUP($C22,Foglio2!$BG$2:$BH$150,2,FALSE)),\"\",VLOOKUP($C22,Foglio2!$BG$2:$BH$150,2,FALSE)))","v":""},17,"D","SPINAZZOLA;","NAP","",null,89,"THURAM K.",0,null,"","SPINAZZOLA",null,null,null,null,null,null,null,null,null,null,null,null,null,null,null,null,null,null,null,null,null,null,null,null,null,null,null,null,null,null,93,"ZAPPACOSTA",0,""]
[null,12,{"$f":"IF(VLOOKUP($C$1,Foglio2!$A:$AY,40,FALSE)=0,\"n.d.\",VLOOKUP($C$1,Foglio2!$A:$AY,40,FALSE))","v":"ZALEWSKI"},"C",{"$f":"IF(OR(C23=\"n.d.\",C23=\"\"),\"\",VLOOKUP($C23,Foglio2!$BA:$BC,2,FALSE))","v":"ATA"},{"$f":"IF(OR(C23=\"n.d.\",C23=\"\"),\"\",VLOOKUP(C23,Foglio2!BA:BD,4,FALSE))","v":30},{"$f":"IF(OR($C23=\"n.d.\",$C23=\"\"),\"\",VLOOKUP($C23,Foglio2!$BA:$BE,5,FALSE))","v":6.1166666666666663},{"$f":"IF(OR(C23=\"n.d.\",C23=\"\"),\"\",VLOOKUP(C23,Foglio2!BA:BC,3,FALSE))","v":6.2666666666666666},{"$f":"IF(ISERROR(LOWER(VLOOKUP(E23,Foglio2!BK$2:BL$21,2,FALSE))),\"\",LOWER(VLOOKUP(E23,Foglio2!BK$2:BL$21,2,FALSE)))","v":"ata - bol"},null,{"$f":"IF($C23=\"\",\"\",IF(ISERROR(VLOOKUP($C23,Foglio2!$BG$2:$BH$150,2,FALSE)),\"\",VLOOKUP($C23,Foglio2!$BG$2:$BH$150,2,FALSE)))","v":""},18,"D","ZAPPACOSTA;","ATA","",null,88,"ZALEWSKI",0,null,"","ZAPPACOSTA",null,null,null,null,null,null,null,null,null,null,null,null,null,null,null,null,null,null,null,null,null,null,null,null,null,null,null,null,null,null,92,"MALDINI",0,""]
[null,"X",{"$f":"IF(VLOOKUP($C$1,Foglio2!$A:$AY,42,FALSE)=0,\"n.d.\",VLOOKUP($C$1,Foglio2!$A:$AY,42,FALSE))","v":"BONNY"},"A",{"$f":"IF(OR(C24=\"n.d.\",C24=\"\"),\"\",VLOOKUP($C24,Foglio2!$BA:$BC,2,FALSE))","v":"INT"},{"$f":"IF(OR(C24=\"n.d.\",C24=\"\"),\"\",VLOOKUP(C24,Foglio2!BA:BD,4,FALSE))","v":25},{"$f":"IF(OR($C24=\"n.d.\",$C24=\"\"),\"\",VLOOKUP($C24,Foglio2!$BA:$BE,5,FALSE))","v":6.14},{"$f":"IF(OR(C24=\"n.d.\",C24=\"\"),\"\",VLOOKUP(C24,Foglio2!BA:BC,3,FALSE))","v":6.72},{"$f":"IF(ISERROR(LOWER(VLOOKUP(E24,Foglio2!BK$2:BL$21,2,FALSE))),\"\",LOWER(VLOOKUP(E24,Foglio2!BK$2:BL$21,2,FALSE)))","v":"int - ver"},null,{"$f":"IF($C24=\"\",\"\",IF(ISERROR(VLOOKUP($C24,Foglio2!$BG$2:$BH$150,2,FALSE)),\"\",VLOOKUP($C24,Foglio2!$BG$2:$BH$150,2,FALSE)))","v":""},19,"C","MALDINI;","LAZ","",null,"A","BONNY",1,null,"",{"$f":"IF(N24=\"\",\"\",IF(ISERROR(FIND(\",\",N24,1)),LEFT(N24,FIND(\";\",N24,1)-1),LEFT(N24,FIND(\",\",N24,1)-1)))","v":"MALDINI"},null,null,null,null,null,null,null,null,null,null,null,null,null,null,null,null,null,null,null,null,null,null,null,null,null,null,null,null,null,null,91,"ROVELLA",0,""]
[null,"X",{"$f":"IF(VLOOKUP($C$1,Foglio2!$A:$AY,44,FALSE)=0,\"n.d.\",VLOOKUP($C$1,Foglio2!$A:$AY,44,FALSE))","v":"CHEDDIRA"},"A",{"$f":"IF(OR(C25=\"n.d.\",C25=\"\"),\"\",VLOOKUP($C25,Foglio2!$BA:$BC,2,FALSE))","v":"LEC"},{"$f":"IF(OR(C25=\"n.d.\",C25=\"\"),\"\",VLOOKUP(C25,Foglio2!BA:BD,4,FALSE))","v":22},{"$f":"IF(OR($C25=\"n.d.\",$C25=\"\"),\"\",VLOOKUP($C25,Foglio2!$BA:$BE,5,FALSE))","v":5.7045454545454541},{"$f":"IF(OR(C25=\"n.d.\",C25=\"\"),\"\",VLOOKUP(C25,Foglio2!BA:BC,3,FALSE))","v":5.9318181818181817},{"$f":"IF(ISERROR(LOWER(VLOOKUP(E25,Foglio2!BK$2:BL$21,2,FALSE))),\"\",LOWER(VLOOKUP(E25,Foglio2!BK$2:BL$21,2,FALSE)))","v":"sas - lec"},null,{"$f":"IF($C25=\"\",\"\",IF(ISERROR(VLOOKUP($C25,Foglio2!$BG$2:$BH$150,2,FALSE)),\"\",VLOOKUP($C25,Foglio2!$BG$2:$BH$150,2,FALSE)))","v":""},20,"C","ROVELLA;","LAZ","",null,"A","CHEDDIRA",1,null,"","ROVELLA",null,null,null,null,null,null,null,null,null,null,null,null,null,null,null,null,null,null,null,null,null,null,null,null,null,null,null,null,null,null,90,"SUCIC",0,""]
[null,"X",{"$f":"IF(VLOOKUP($C$1,Foglio2!$A:$AY,46,FALSE)=0,\"n.d.\",VLOOKUP($C$1,Foglio2!$A:$AY,46,FALSE))","v":"DYBALA"},"A",{"$f":"IF(OR(C26=\"n.d.\",C26=\"\"),\"\",VLOOKUP($C26,Foglio2!$BA:$BC,2,FALSE))","v":"ROM"},{"$f":"IF(OR(C26=\"n.d.\",C26=\"\"),\"\",VLOOKUP(C26,Foglio2!BA:BD,4,FALSE))","v":19},{"$f":"IF(OR($C26=\"n.d.\",$C26=\"\"),\"\",VLOOKUP($C26,Foglio2!$BA:$BE,5,FALSE))","v":6.1315789473684212},{"$f":"IF(OR(C26=\"n.d.\",C26=\"\"),\"\",VLOOKUP(C26,Foglio2!BA:BC,3,FALSE))","v":6.2894736842105265},{"$f":"IF(ISERROR(LOWER(VLOOKUP(E26,Foglio2!BK$2:BL$21,2,FALSE))),\"\",LOWER(VLOOKUP(E26,Foglio2!BK$2:BL$21,2,FALSE)))","v":"rom - laz"},null,{"$f":"IF($C26=\"\",\"\",IF(ISERROR(VLOOKUP($C26,Foglio2!$BG$2:$BH$150,2,FALSE)),\"\",VLOOKUP($C26,Foglio2!$BG$2:$BH$150,2,FALSE)))","v":""},21,"C",{"$f":"IF(BD25<>\"\",BC25&\";\",\"\")","v":"SUCIC;"},"INT",null,null,"A","DYBALA",1,null,"","SUCIC",null,null,null,null,null,null,null,null,null,null,null,null,null,null,null,null,null,null,null,null,null,null,null,null,null,null,null,null,null,null,89,"THURAM K.",0,""]
[null,13,{"$f":"IF(VLOOKUP($C$1,Foglio2!$A:$AY,48,FALSE)=0,\"n.d.\",VLOOKUP($C$1,Foglio2!$A:$AY,48,FALSE))","v":"NKUNKU"},"A",{"$f":"IF(OR(C27=\"n.d.\",C27=\"\"),\"\",VLOOKUP($C27,Foglio2!$BA:$BC,2,FALSE))","v":"MIL"},{"$f":"IF(OR(C27=\"n.d.\",C27=\"\"),\"\",VLOOKUP(C27,Foglio2!BA:BD,4,FALSE))","v":24},{"$f":"IF(OR($C27=\"n.d.\",$C27=\"\"),\"\",VLOOKUP($C27,Foglio2!$BA:$BE,5,FALSE))","v":5.9375},{"$f":"IF(OR(C27=\"n.d.\",C27=\"\"),\"\",VLOOKUP(C27,Foglio2!BA:BC,3,FALSE))","v":6.6875},{"$f":"IF(ISERROR(LOWER(VLOOKUP(E27,Foglio2!BK$2:BL$21,2,FALSE))),\"\",LOWER(VLOOKUP(E27,Foglio2!BK$2:BL$21,2,FALSE)))","v":"gen - mil"},null,{"$f":"IF($C27=\"\",\"\",IF(ISERROR(VLOOKUP($C27,Foglio2!$BG$2:$BH$150,2,FALSE)),\"\",VLOOKUP($C27,Foglio2!$BG$2:$BH$150,2,FALSE)))","v":""},22,"C",{"$f":"IF(BD26<>\"\",BC26&\";\",\"\")","v":"THURAM K.;"},"JUV","",null,87,"NKUNKU",0,"","","THURAM K.",null,null,null,null,null,null,null,null,null,null,null,null,null,null,null,null,null,null,null,null,null,null,null,null,null,null,null,null,null,null,88,"ZALEWSKI",0,""]
[null,14,{"$f":"IF(VLOOKUP($C$1,Foglio2!$A:$AY,50,FALSE)=0,\"n.d.\",VLOOKUP($C$1,Foglio2!$A:$AY,50,FALSE))","v":"RASPADORI"},"A",{"$f":"IF(OR(C28=\"n.d.\",C28=\"\"),\"\",VLOOKUP($C28,Foglio2!$BA:$BC,2,FALSE))","v":"ATA"},{"$f":"IF(OR(C28=\"n.d.\",C28=\"\"),\"\",VLOOKUP(C28,Foglio2!BA:BD,4,FALSE))","v":11},{"$f":"IF(OR($C28=\"n.d.\",$C28=\"\"),\"\",VLOOKUP($C28,Foglio2!$BA:$BE,5,FALSE))","v":6.1818181818181817},{"$f":"IF(OR(C28=\"n.d.\",C28=\"\"),\"\",VLOOKUP(C28,Foglio2!BA:BC,3,FALSE))","v":7},{"$f":"IF(ISERROR(LOWER(VLOOKUP(E28,Foglio2!BK$2:BL$21,2,FALSE))),\"\",LOWER(VLOOKUP(E28,Foglio2!BK$2:BL$21,2,FALSE)))","v":"ata - bol"},null,{"$f":"IF($C28=\"\",\"\",IF(ISERROR(VLOOKUP($C28,Foglio2!$BG$2:$BH$150,2,FALSE)),\"\",VLOOKUP($C28,Foglio2!$BG$2:$BH$150,2,FALSE)))","v":""},23,"C",{"$f":"IF(BD27<>\"\",BC27&\";\",\"\")","v":"ZALEWSKI;"},"ATA","",null,86,"RASPADORI",{"$f":"IF(R28=\"\",\"\",IF(AND(TRIM($B28)<>\"\",ISTEXT($B28)),1,0))","v":0},"",{"$f":"IF(ISERROR(FIND(\",\",N28,1)),\"\",\"rigorista non disponibile\")","v":""},"ZALEWSKI",null,null,null,null,null,null,null,null,null,null,null,null,null,null,null,null,null,null,null,null,null,null,null,null,null,null,null,null,null,null,87,"NKUNKU",0,""]
[null,null,null,null,{"$f":"IF(OR(C29=\"n.d.\",C29=\"\"),\"\",VLOOKUP($C29,Foglio2!$BA:$BC,2,FALSE))","v":""},{"$f":"IF(OR(C29=\"n.d.\",C29=\"\"),\"\",VLOOKUP(C29,Foglio2!BA:BD,4,FALSE))","v":""},null,{"$f":"IF(OR(C29=\"n.d.\",C29=\"\"),\"\",VLOOKUP(C29,Foglio2!BA:BC,3,FALSE))","v":""},{"$f":"IF(ISERROR(LOWER(VLOOKUP(E29,Foglio2!BK$2:BL$21,2,FALSE))),\"\",LOWER(VLOOKUP(E29,Foglio2!BK$2:BL$21,2,FALSE)))","v":""},null,null,24,"A",{"$f":"IF(BD28<>\"\",BC28&\";\",\"\")","v":"NKUNKU;"},"MIL","",null,null,null,null,null,"","NKUNKU",null,null,null,null,null,null,null,null,null,null,null,null,null,null,null,null,null,null,null,null,null,null,null,null,null,null,null,null,null,null,86,"RASPADORI",0]
[null,null,{"$f":"IF(ISERROR(VLOOKUP(C$1,Foglio2!CC:CF,4,FALSE)),\"\",VLOOKUP(C$1,Foglio2!CC:CF,4,FALSE)&\": \"&VLOOKUP(C$1,Foglio2!CC:CF,2,FALSE)&\" - \"&VLOOKUP(C$1,Foglio2!CC:CF,3,FALSE))","v":"SPAREGGIO PROMOZIONE IN SERIE B: BOMBARELLANDIA - ARMATA NERAZZURRA"},null,null,null,null,null,null,null,{"$f":"IF(C30=\"\",\"\",\"INSERIRE I RIGORISTI\")","v":"INSERIRE I RIGORISTI"},25,"A",{"$f":"IF(BD29<>\"\",BC29&\";\",\"\")","v":"RASPADORI;"},"ATA","",null,null,null,null,null,"","RASPADORI"]
[null,null,{"$f":"IF(ISERROR(VLOOKUP(C$1,Foglio2!CH:CK,4,FALSE)),\"\",VLOOKUP(C$1,Foglio2!CH:CK,4,FALSE)&\": \"&VLOOKUP(C$1,Foglio2!CH:CK,2,FALSE)&\" - \"&VLOOKUP(C$1,Foglio2!CH:CK,3,FALSE))","v":""},null,null,null,null,null,null,null,{"$f":"IF(C31=\"\",\"\",\"INSERIRE I RIGORISTI\")","v":""}]
[]
[]
[]
[]
[]
[null,null,{"$f":"IF(NOT(ISERROR(VLOOKUP($C$1,Foglio2!$CL:$CL,1,FALSE))),\"MONDIALE PER CLUB - FINALE: \"&VLOOKUP($C$1,Foglio2!$CL:$CN,2,FALSE)&\" - \"&VLOOKUP($C$1,Foglio2!$CL:$CN,3,FALSE),\"SPAREGGIO PROMOZIONE IN SERIE B: \"&IF(ISERROR(INDEX(Foglio2!$CI:$CJ,MATCH($C$1,Foglio2!$CI:$CI,0),2)),INDEX(Foglio2!$CI:$CJ,MATCH($C$1,Foglio2!$CJ:$CJ,0),1)&\" - \"&$C$1,$C$1&\" - \"&INDEX(Foglio2!$CI:$CJ,MATCH($C$1,Foglio2!$CI:$CI,0),2)))","v":{"$error":"#N/A"}}]
[]
[]
[null,null,null,null,null,null,null,null,null,null,null,null,null,{"$f":"BH18","v":""}]

{"sheet":"Foglio2","index":2,"n_rows":1585,"n_cols":100,"rows_kept":562,"cut":true,"hidden":false,"merged":[],"bounds":{"rows_first":250,"rows_last":62,"rows_between":250,"halvings":3}}
["ABETO FC","MOTTA",1,"PROVEDEL",0,"GIACOMONE",0,"PANNOZZO",0,"BARTESAGHI",1,"DIEGO CARLOS",1,"HOLM",1,"N'DICKA",7,"OSTIGARD",3,"PAVLOVIC",17,"PROVSTGAARD",1,"ROMAGNOLI",6,"CASADEI",7,"EKKELENKAMP",2,"KOOPMEINERS",13,"MALDINI",2,"MANDRAGORA",7,"PELLEGRINI LO.",7,"SAELEMAEKERS",11,"STREFEZZA",2,"BOGA",2,"DE KETELAERE",18,"LEAO",11,"MALEN",155,"SIMEONE",71,"ABETO FC","CARNESECCHI","ATA",5.583333333333333,36,6.3611111111111107,"IMI_SerieA@googlegroups.com","Calciatore",null,null,null,"",null,null,"2TWINS4EVER",null,null,"","","","","","","","","","","","",null,"COPPE EUROPEE",null,null,null,"COPPA DI LEGA",null,null,null,"SUPERCOPPA EUROPEA/MONDIALE PER CLUB/SPAREGGIO PER LA B",null,null,null,null,null,"COPPE EUROPEE",null,"COPPA DI LEGA"]
["DEP LA CAROGNA","OKOYE",1,"NUNZIANTE",0,"PADELLI",0,"SAVA",0,"ANGORI",1,"BASTONI",34,"BREMER",36,"DELPRATO",9,"FRESE",1,"GOSENS",34,"KABASELE",2,"ZANOLI",3,"BERNEDE",1,"FREULER",9,"LERIS",1,"MORO",1,"NICO PAZ",11,"PIEROTTI",1,"SOTTIL",2,"THORSTVEDT",7,"ESPOSITO SE.",7,"LAURIENTÈ",7,"LUKAKU",23,"THURAM",72,"VITINHA",4,"DEP. LA CAROGNA","ROSSI","ATA",0,0,0,"IMI_SerieA@googlegroups.com","","","",null,"ATA","ATA - BOL",null,"3T",null,null,"","","","","","","","","","","","","G1_ABETO FC","ABETO FC","EROI DEL 1982","CHAMPIONS LEAGUE -  G. 1",null,"ZZ_RASTA DB","ZZ_RASTA DB","ZZ_TIME OUT","COPPA DI LEGA - FASE A GIRONI: 1a GIORNATA","",null,null,"SUPERCOPPA EUROPEA",null,null,"ABETO FC","EROI DEL 1982","RASTA DB","TIME OUT","G1"]
["RISK UNITED","CARNESECCHI",21,"ROSSI",0,"SPORTIELLO",0,"ZANCHI",0,"CAMBIASO",3,"FLORIANI",2,"GILA",4,"HEGGEM",2,"HIEN",3,"LAZARO",2,"MUHAREMOVIC",2,"VITIK",3,"FADERA",7,"FERGUSON",2,"GAETANO",7,"PIOTROWSKI",1,"RICCI",2,"TOURE'",4,"ZACCAGNI",71,"ZALEWSKI",8,"BONNY",10,"CASTRO",31,"FULLKRUG",10,"VARDY",31,"ZAPATA",7,"RISK UNITED","SPORTIELLO","ATA",0,0,0,"IMI_SerieA@googlegroups.com","BAILEY","CEDUTO ALL'ASTON VILLA","BAILEY",null,"BOL","ATA - BOL",null,"A TUTTA CALLARA",null,null,"","","","","","","","","","","","","G1_RASTA DB","RASTA DB","CICCILLO","CHAMPIONS LEAGUE -  G. 1",null,"ZZ_REAL CHR","ZZ_REAL CHR","ZZ_LAMÙFOREVER","COPPA DI LEGA - FASE A GIRONI: 1a GIORNATA",0,null,null,"SUPERCOPPA EUROPEA",null,null,0,0,"REAL CHR","LAMÙFOREVER","G1"]
["BAR MARIO","DE GEA",12,"LEZZERINI",0,"CHRISTENSEN",0,"DOLFI",0,"ANGELINO",4,"COCO",1,"DUMFRIES",4,"GUTIERREZ",1,"TERRACCIANO F.",1,"TOMORI",3,"VALLE",2,"WALUKIEWICZ",1,"CATALDI",1,"DE ROON",3,"ISAKSEN",11,"LUIS HENRIQUE",2,"NERES",6,"ORISTANIO",1,"POLITANO",9,"SANTOS",36,"DAVIS",4,"DOVBYK",22,"FERGUSON E.",204,"NZOLA",2,"SANABRIA",2,"BAR MARIO","ZANCHI","ATA",0,0,0,"IMI_SerieA@googlegroups.com","CUTRONE","CEDUTO AL MONZA","CUTRONE",null,"CAG","CAG - TOR",null,"ABETO FC",null,null,"","","","","","","","","","","","","G1_EUREKA","EU...REKA","MAGODINA FC","CHAMPIONS LEAGUE -  G. 1",null,"ZZ_DAJE MO'","ZZ_DAJE MO'","ZZ_FFC GIUSEPPE BERGOMI","COPPA DI LEGA - FASE A GIRONI: 1a GIORNATA"," ",null,null,null,null,null,0,0,"DAJE MO'","FFC GIUSEPPE BERGOMI","G1"]
["EARL & SOUL GALEONE","DI GREGORIO",1,"PERIN",0,"PINSOGLIO",0,"HULI",0,"BELGHALI",1,"BISSECK",1,"CARLOS AUGUSTO",1,"DIMARCO",29,"MARTIN",1,"MARUSIC",1,"MORENO",1,"OBERT",1,"BATURINA",6,"CAQUERET",1,"EL SHAARAWY",1,"HARRISON",2,"MAZZITELLI",2,"MESSIAS",1,"PULISIC",77,"VLASIC",4,"DALLINGA",1,"ELPHEGE",1,"PELLEGRINO",5,"PINAMONTI",18,"VLAHOVIC",56,"EARL & SOUL GALEONE","HAPPONEN","BOL",0,0,0,"IMI_SerieA@googlegroups.com","TETE MORENTE","CEDUTO ALL'ELCHE","TETE MORENTE",null,"COM","COM - PAR",null,"AC DERBOLINA",null,null,"","","","","","","","","","","","","G1_FC PARTIZAN DEGRADO","FC PARTIZAN DEGRADO","LA VECCHIA GUARDIA","CHAMPIONS LEAGUE -  G. 1",null,"ZZ_A.S. TOTTIGO","ZZ_A.S. TOTTIGO","ZZ_FC NAPOLI 2012","COPPA DI LEGA - FASE A GIRONI: 1a GIORNATA"," ",null,null,"MONDIALE PER CLUB",null,null,0,0,"A.S. TOTTIGO","FC NAPOLI 2012","G1"]
["ROSSOBLU FC","BUTEZ",2,"CAVLINA",0,"VIGORITO",0,"MENKE",0,"BEUKEMA",5,"BUONGIORNO",30,"EHIZIBUE",1,"KAMARA",1,"RRAHMANI",23,"VALERI",1,"VASQUEZ",3,"WESLEY",21,"CALHANOGLU",91,"DA CUNHA",2,"FOFANA",7,"LOBOTKA",2,"MCKENNIE",1,"MKHITARYAN",31,"SUCIC",39,"ZIELINSKI",1,"NOSLIN",2,"RASPADORI",5,"SCAMACCA",2,"SULEMANA K.",3,"VAZ",2,"ROSSOBLU FC","PESSINA","BOL",5.625,4,6.125,"IMI_SerieA@googlegroups.com","ABOUKHLAL","Il calciatore sottoposto il 7 aprile a un intervento per un problema al ginocchio destro. Il suo campionato è terminato con anticipo. ","ABOUKHLAL",null,"CRE","UDI - CRE",null,"AC MORRONE",null,null,"","","","","","","","","","","","","G1_PARASITE","PARASITE","NASONE NERAZZURRO","CHAMPIONS LEAGUE -  G. 1",null,"ZZ_P CUATRO","ZZ_P CUATRO","ZZ_FC ZETAJ TEAM 1999","COPPA DI LEGA - FASE A GIRONI: 1a GIORNATA"," ",null,null,"MONDIALE PER CLUB",null,null,0,0,"P CUATRO","FC ZETAJ TEAM 1999","G1"]
["BLACK&WHITE","MERET",12,"CONTINI",0,"MILINKOVIC",0,"FERRANTE",0,"GATTI",13,"KALULU",1,"KELLY",3,"KEMPF",1,"PONGRACIC",3,"RANIERI",6,"RUGANI",1,"TAVARES",4,"ANGUISSA",34,"CONCEICAO",3,"GANDELMAN",7,"LOCATELLI",13,"MALINOVSKYI",2,"MIRETTI",3,"THURAM K.",13,"ZARAGOZA",22,"MEISTER",23,"MOREO",6,"SOLOMON",46,"SOULE'",23,"STULIC",12,"BLACK&WHITE","RAVAGLIA","BOL",4.382352941176471,17,6.2058823529411766,"IMI_SerieA@googlegroups.com","ADDAI","L'ala offensiva dei lariani ai box da fine febbraio per una lesione del tendine d'Achille della gamba sinistra. Tempi di recupero da valutare, ma il suo campionato è finito con anticipo.","ADDAI",null,"FIO","JUV - FIO",null,"AC ZDENEK",null,null,"","","","","","","","","","","","","G1_ATLETICO SQUONK","ATLETICO SQUONK","REAL BUGGY","CHAMPIONS LEAGUE -  G. 1",null,"ZZ_FANTARAPID CACCAMO","ZZ_FANTARAPID CACCAMO","ZZ_REAL GENOA","COPPA DI LEGA - FASE A GIRONI: 1a GIORNATA"," ",null,null,null,null,null,0,0,"FANTARAPID CACCAMO","REAL GENOA","G1"]
["EUREKA","MAIGNAN",26,"TERRACCIANO",0,"TORRIANI",0,"DONEDA",0,"BELLA-KOTCHAP",1,"BELLANOVA",5,"DODO'",5,"GHILARDI",3,"JUAN JESUS",1,"MIRANDA",1,"PALESTRA",1,"ZAPPACOSTA",3,"EL AYNAOUI",5,"GUDMUNDSSON",37,"MATIC",1,"PASALIC",9,"RABIOT",56,"ROWE",29,"SAMARDZIC",3,"ZANIOLO",3,"CHEDDIRA",2,"COLOMBO",10,"DAVID",167,"DYBALA",51,"SARR",1,"EU...REKA","SKORUPSKI","BOL",5.34375,16,6.1875,"IMI_SerieA@googlegroups.com","ANJORIN","Il centrocampista ai box per un trauma distorsivo-contusivo all'anca sinistra; assente contro Sassuolo, Inter e Udinese, da valutare in vista della 37a di campionato. ","ANJORIN",null,"GEN","GEN - MIL",null,"ACRESE",null,null,"","","","","","","","","","","","","G1_ROSSOBLU FC","ROSSOBLU FC","2TWINS4EVER","CHAMPIONS LEAGUE -  G. 1",null,"ZZ_A.C. ZDENEK","ZZ_A.C. ZDENEK","ZZ_ATLETICO PIPPAO","COPPA DI LEGA - FASE A GIRONI: 1a GIORNATA",null,null,null,null,null,null,0,0,"A.C. ZDENEK","ATLETICO PIPPAO","G1"]
["SPORTING VINAO","SVILAR",2,"GOLLINI",0,"ZELEZNY",0,"DE MARZI",0,"ATHEKAME",1,"CANESTRELLI",3,"COMUZZO",2,"DJIMSITI",1,"GABBIA",2,"GALLO",1,"HERMOSO",2,"KOSSOUNOU",2,"DE BRUYNE",96,"ELMAS",3,"FRATTESI",1,"GINEITIS",1,"JASHARI",3,"ORSOLINI",83,"PERRONE",2,"PISILLI",1,"ADAMS",4,"EKHATOR",1,"KEAN",221,"LAUTARO",217,"YILDIZ",1,"SPORTING VINAO","AUSEKLIS","CAG",0,0,0,"IMI_SerieA@googlegroups.com","BAKOLA","Il calciatore assente contro Milan, Fiorentina e Como per noie fisiche. Da valutare in vista di venerdì a Torino nella 36a.","BAKOLA",null,"INT","INT - VER",null,"ALAN FORD'S TEAM",null,null,"","","","","","","","","","","","","G1_ZERU TITULI","ZERU TITULI","SWANSEA","CHAMPIONS LEAGUE -  G. 1",null,"ZZ_AMOREODIO","ZZ_AMOREODIO","ZZ_ENDYMION","COPPA DI LEGA - FASE A GIRONI: 1a GIORNATA",null,null,null,null,null,null,0,0,"AMOREODIO","ENDYMION","G1"]
["CATENACCIO & CONTROPIEDE","FALCONE",2,"FRUCHTL",0,"SAMOOJA",0,"PENEV",0,"AHANOR",7,"BERNASCONI",3,"KOLASINAC",3,"NORTON-CUFFY",4,"OBRADOR",2,"SOLET",5,"SPINAZZOLA",5,"ZORTEA",3,"ATTA",22,"BALDANZI",3,"BASIC",4,"EDERSON",27,"FAGIOLI",4,"MCTOMINAY",54,"MODRIC",20,"VERGARA",3,"DOUVIKAS",31,"ESPOSITO F.P.",12,"HOJLUND",84,"KRSTOVIC",36,"MENDY",8,"CATENACCIO & CONTROPIEDE","CAPRILE","CAG",4.8472222222222223,36,6.291666666666667,"IMI_SerieA@googlegroups.com","BALDANZI","Il trequartista non convocato dal 26 aprile contro il Como per noie fisiche w assente anche sabato scorso a Bergamo. Da valutare nei prossimi allenamenti in vista della trasferta di domenica a Firenze nella 36a.","BALDANZI",null,"JUV","JUV - FIO",null,"ALL BLACKS",null,null,"","","","","","","","","","","","","G1_EARL & SOUL GALEONE","EARL & SOUL GALEONE","FUFF TEAM","CHAMPIONS LEAGUE -  G. 1",null,"ZZ_FC FANTATLETICO","ZZ_FC FANTATLETICO","ZZ_FANTASPEZIA","COPPA DI LEGA - FASE A GIRONI: 1a GIORNATA",null,null,null,null,null,null,0,0,"FC FANTATLETICO","FANTASPEZIA","G1"]
["RAT-MEN","SKORUPSKI",2,"PESSINA",0,"RAVAGLIA",0,"HAPPONEN",0,"AKANJI",21,"BASCHIROTTO",16,"CIRCATI",4,"DI LORENZO",25,"MINA",4,"RAMON",8,"TIAGO GABRIEL",5,"VOJVODA",14,"BARELLA",42,"BERNABE'",23,"COULIBALY",6,"CRISTANTE",2,"KONE'",28,"PRATI",14,"THORSBY",13,"VANDEPUTTE",16,"BANDA",2,"BERARDI",62,"BONAZZOLI",3,"DIAO",8,"KILICSOY",4,"RAT-MEN","CIOCCI","CAG",0,0,0,"IMI_SerieA@googlegroups.com","BASCHIROTTO","il difensore costretto al cambio il 4 maggio allo Zini contro la Lazio vittima di una lesione muscolare di alto grado all'altezza del retto femorale, dunque campionato finito anzitempo. ","BASCHIROTTO",null,"LAZ","ROM - LAZ",null,"AL-ZENA",null,null,"","","","","","","","","","","","","G1_REAL CHR","REAL CHR","UDI ONE","CHAMPIONS LEAGUE -  G. 1",null,"ZZ_MOMENTI DI GLORIA","ZZ_MOMENTI DI GLORIA","ZZ_OXFORD UNITED","COPPA DI LEGA - FASE A GIRONI: 1a GIORNATA",null,null,null,null,null,null,0,0,"MOMENTI DI GLORIA","OXFORD UNITED","G1"]
["VIS FONNO","SOMMER",35,"MARTINEZ",0,"ADOMAVICIUS",0,"DI GENNARO",0,"CELIK",2,"KRISTENSEN",1,"MANCINI",7,"MARCANDALLI",1,"PEZZELLA",1,"SCALVINI",2,"SMOLCIC",1,"VALENTI",1,"BERNARDESCHI",2,"BRESCIANINI",2,"FOLORUNSHO",5,"FRENDRUP",1,"KONÈ I.",1,"LOFTUS-CHEEK",44,"ODGAARD",1,"TAYLOR",1,"CANCELLIERI",5,"GIMENEZ",89,"GIOVANE",2,"NKUNKU",131,"RODRIGUEZ",1,"VIS FONNO","RADUNOVIC","CAG",0,0,0,"IMI_SerieA@googlegroups.com","BELLA-KOTCHAP","Il difensore alle prese con un problema alla spalla, out domenica scorsa contro la Juventus e va verso il forfait anche nel prossimo turno contro il Como. Se dovesse rendersi necessaria l'operazione chirurgica la sua stagione sarebbe già chiusa.","BELLA-KOTCHAP",null,"LEC","SAS - LEC",null,"AMBROSIANA",null,null,"","","","","","","","","","","","","G1_CATENACCIO & CONTROPIEDE","CATENACCIO & CONTROPIEDE","DINAMO VIGIAK","CHAMPIONS LEAGUE -  G. 1",null,"ZZ_FC PARTIZAN DEGRADO","ZZ_FC PARTIZAN DEGRADO","ZZ_FFC SANDRO MAZZOLA","COPPA DI LEGA - FASE A GIRONI: 1a GIORNATA",null,null,null,null,null,null,0,0,"FC PARTIZAN DEGRADO","FFC SANDRO MAZZOLA","G1"]
["ALL BLACKS","OKOYE",1,"NUNZIANTE",0,"PADELLI",0,"SAVA",0,"AKANJI",12,"COCO",5,"DE WINTER",3,"GATTI",17,"LYKOGIANNIS",3,"OSTIGARD",2,"SPINAZZOLA",11,"VOJVODA",3,"ANGUISSA",19,"CATALDI",2,"DA CUNHA",11,"FREULER",2,"KONE'",3,"LOCATELLI",17,"NERES",3,"ZARAGOZA",30,"CHEDDIRA",6,"GIMENEZ",27,"PEDRO",9,"RASPADORI",50,"THURAM",75,"ALL BLACKS","SHERRI","CAG",0,0,0,"IMI_SerieB@googlegroups.com","BERISHA","Il centrocampista ha terminato anzitempo il suo campionato a causa di una lesione del tendine riflesso del retto femorale destro. ","BERISHA",null,"MIL","GEN - MIL",null,"AMOREODIO",null,null,"","","","","","","","","","","","","G1_SPORTING LABRONICA","SPORTING LABRONICA","FFC ANGELO DOMENGHINI","CHAMPIONS LEAGUE -  G. 1",null,"ZZ_CLOCKWORK ORANGE FC","ZZ_CLOCKWORK ORANGE FC","ZZ_SALENTO FC","COPPA DI LEGA - FASE A GIRONI: 1a GIORNATA",null,null,null,null,null,null,0,0,"CLOCKWORK ORANGE FC","SALENTO FC","G1"]
["ELEVEN LIONS","DI GREGORIO",22,"PERIN",0,"PINSOGLIO",0,"HULI",0,"DELPRATO",2,"HERMOSO",2,"LAZZARI",1,"MARTIN",2,"MUHAREMOVIC",3,"OBERT",3,"VALERI",1,"VALLE",2,"CALHANOGLU",51,"FADERA",21,"KARLSTROM",1,"LERIS",2,"MANDRAGORA",5,"MATIC",5,"ODGAARD",21,"ZALEWSKI",31,"BERARDI",71,"DE KETELAERE",21,"KEAN",11,"SCAMACCA",31,"VARDY",2,"ELEVEN LIONS","BUTEZ","COM",5.3194444444444446,36,6.0555555555555554,"IMI_SerieB@googlegroups.com","BERNASCONI","Il cursore di fascia della Dea costretto al cambio il 22 aprile in Coppa Italia per una lesione di primo-secondo grado del legamento collaterale mediale del ginocchio destro. Tre settimane di stop, ma la sua stagione è finita anzitempo. ","BERNASCONI",null,"NAP","PIS - NAP",null,"ANDREAS",null,null,"","","","","","","","","","","","","G1_RAT-MEN","RAT-MEN","GABRY FC","CHAMPIONS LEAGUE -  G. 1",null,"ZZ_EL NIÑO","ZZ_EL NIÑO","ZZ_SPORTING LABRONICA","COPPA DI LEGA - FASE A GIRONI: 1a GIORNATA",null,null,null,null,null,null,0,0,"EL NIÑO","SPORTING LABRONICA","G1"]
["PRENESTINO FC","BUTEZ",1,"CAVLINA",0,"VIGORITO",0,"MENKE",0,"EDMUNDSSON",1,"GARCIA",1,"KELLY",17,"KEMPF",2,"N'DICKA",7,"RRAHMANI",5,"VITIK",14,"ZAPPA",2,"ELLERTSSON",4,"FRENDRUP",2,"MCTOMINAY",51,"MKHITARYAN",22,"NICOLUSSI CAVIGLIA",1,"RAMADANI",1,"SOHM",1,"VOLPATO",2,"DOVBYK",13,"ESPOSITO F.P.",2,"LAUTARO",152,"MOREO",1,"NOSLIN",2,"PRENESTINO FC","CAVLINA","COM",0,0,0,"IMI_SerieB@googlegroups.com","BERTOLA","il difensore out dalla metà di aprile per una lesione muscolare al retto femorale della coscia destra; tentativo di rientro dalla prima metà di maggio, ma da valutare nella rifinitura le possibilità di convocazione per sabato a Cagliari. ","BERTOLA",null,"PAR","COM - PAR",null,"A'NFAMI",null,null,"","","","","","","","","","","","","G1_AS TOTTIGO","A.S. TOTTIGO","JUNIORT","CHAMPIONS LEAGUE -  G. 1",null,"ZZ_VOTANTONIO","ZZ_VOTANTONIO","ZZ_PANZER8","COPPA DI LEGA - FASE A GIRONI: 1a GIORNATA",null,null,null,null,null,null,0,0,"VOTANTONIO","PANZER8","G1"]
["BLUES BROTHERS","MAIGNAN",3,"TERRACCIANO",0,"TORRIANI",0,"DONEDA",0,"ATHEKAME",1,"BARTESAGHI",1,"BERNASCONI",1,"GABBIA",1,"JOAO MARIO",1,"SMOLCIC",1,"TAVARES",1,"TIAGO GABRIEL",1,"EKKELENKAMP",1,"FOFANA",4,"LOFTUS-CHEEK",1,"MESSIAS",1,"MODRIC",1,"NICO PAZ",114,"PISILLI",1,"PULISIC",82,"BOGA",3,"DOUVIKAS",3,"GIOVANE",1,"LEAO",114,"MENDY",1,"BLUES BROTHERS","MANZI","COM",0,0,0,"IMI_SerieB@googlegroups.com","BOLOCA","il centrocampista out per un problema al ginocchio sinistro. Ultimata la terapia conservativa, ha poi deciso di operarsi a metà febbraio per il perdurare del fastidio. Tempi di rientro da valutare, ma la sua stagione è terminata anzitempo. ","BOLOCA",null,"PIS","PIS - NAP",null,"ARMATA NERAZZURRA",null,null,"","","","","","","","","","","","","G1_BAR MARIO","BAR MARIO","NICKSTREGA","CHAMPIONS LEAGUE -  G. 1",null,"ZZ_FRIUL GALAXI","ZZ_FRIUL GALAXI","ZZ_ATLETICO SQUONK","COPPA DI LEGA - FASE A GIRONI: 1a GIORNATA",null,null,null,null,null,null,0,0,"FRIUL GALAXI","ATLETICO SQUONK","G1"]
["FERRON","MOTTA",1,"PROVEDEL",0,"GIACOMONE",0,"PANNOZZO",0,"ANGELINO",1,"BASTONI",31,"BELLANOVA",1,"CIRCATI",1,"DARMIAN",1,"DIMARCO",31,"DUMFRIES",31,"LAZARO",1,"BATURINA",1,"CAQUERET",1,"POLITANO",16,"ROWE",6,"TAYLOR",19,"TRAMONI",6,"VANDEPUTTE",6,"ZHEGROVA",16,"FULLKRUG",1,"MORATA",1,"RATKOV",80,"SOLOMON",1,"YILDIZ",101,"FERRON","MENKE","COM",0,0,0,"IMI_SerieB@googlegroups.com","BORRELLI","l'attaccante costretto al cambio contro l'Atalanta il 27 aprile per un problema muscolare alla coscia sinistra, tentativo rientro dalla metà di maggio. ","BORRELLI",null,"ROM","ROM - LAZ",null,"AS NEW TEAM",null,null,"","","","","","","","","","","","","G1_MOMENTI DI GLORIA","MOMENTI DI GLORIA","BRUDYLEGHORN","CHAMPIONS LEAGUE -  G. 1",null,"ZZ_REAL BABBUDOIU","ZZ_REAL BABBUDOIU","ZZ_SAN SIRO","COPPA DI LEGA - FASE A GIRONI: 1a GIORNATA",null,null,null,null,null,null,0,0,"REAL BABBUDOIU","SAN SIRO","G1"]
["RED HOT CHILI PEPPERS","DE GEA",21,"LEZZERINI",0,"CHRISTENSEN",0,"DOLFI",0,"ACERBI",7,"DE VRIJ",1,"ISMAJLI",3,"KAMARA",2,"LUPERTO",1,"MIRANDA",7,"PAVLOVIC",11,"TOMORI",16,"BALDANZI",1,"BARELLA",21,"FERGUSON",14,"LOBOTKA",7,"LOVRIC",1,"SAELEMAEKERS",36,"SAMARDZIC",1,"SUCIC",7,"BANDA",1,"DYBALA",61,"ESPOSITO SE.",3,"HOJLUND",174,"VAZ",24,"RED HOT CHILI PEPPERS","TORNQVIST","COM",0,0,0,"IMI_SerieB@googlegroups.com","CABAL","il difensore alle prese con un fastidio all'adduttore sinistro. La sua stagione rischia di essere terminata anzitempo. ","CABAL",null,"SAS","SAS - LEC",null,"AS QUARZA",null,null,"","","","","","","","","","","","","G1_FERRON","FERRON","GRATTACHECCA","CHAMPIONS LEAGUE -  G. 1",null,"ZZ_ZERU TITULI","ZZ_ZERU TITULI","ZZ_REAL BUCCINASCO","COPPA DI LEGA - FASE A GIRONI: 1a GIORNATA",null,null,null,null,null,null,0,0,"ZERU TITULI","REAL BUCCINASCO","G1"]
["BORGOROSSO FC","CARNESECCHI",12,"ROSSI",0,"SPORTIELLO",0,"ZANCHI",0,"BELGHALI",2,"BISSECK",3,"DIEGO CARLOS",1,"DODO'",15,"GALLO",1,"GHILARDI",1,"GOSENS",2,"MORENO",1,"BERNABE'",5,"CONCEICAO",21,"GUDMUNDSSON",15,"ISAKSEN",3,"NDOUR",1,"SANTOS",17,"VERGARA",1,"ZACCAGNI",42,"DAVIS",8,"ELPHEGE",5,"KILICSOY",3,"PELLEGRINO",2,"SIMEONE",32,"BORGOROSSO F.C.","VIGORITO","COM",0,0,0,"IMI_SerieB@googlegroups.com","CAMBIAGHI","l'attaccante ai box da fine aprile per una lesione di primo grado all’adduttore lungo sinistro. Stop di circa quattro settimane, campionato finito anzitempo. ","CAMBIAGHI",null,"TOR","CAG - TOR",null,"AS TOTTIGO",null,null,"","","","","","","","","","","","","G1_CLOCKWORK ORANGE FC","CLOCKWORK ORANGE FC","MARIANNA","CHAMPIONS LEAGUE -  G. 1",null,"ZZ_AMBROSIANA","ZZ_AMBROSIANA","ZZ_BARBERA & CHAMPAGNE","COPPA DI LEGA - FASE A GIRONI: 1a GIORNATA",null,null,null,null,null,null,0,0,"AMBROSIANA","BARBERA & CHAMPAGNE","G1"]
["LUCHINS","MERET",32,"CONTINI",0,"MILINKOVIC",0,"FERRANTE",0,"BASCHIROTTO",3,"DI LORENZO",8,"EHIZIBUE",4,"GILA",1,"MANCINI",13,"PEZZELLA",1,"WESLEY",21,"ZAPPACOSTA",12,"CASADEI",5,"DE ROON",8,"EL SHAARAWY",21,"FAGIOLI",1,"GAETANO",13,"MALDINI",23,"MCKENNIE",3,"THURAM K.",15,"ADAMS",21,"DAVID",71,"DIA",23,"PICCOLI",1,"VLAHOVIC",45,"LUCHINS","AUDERO","CRE",4.921875,32,6.171875,"IMI_SerieB@googlegroups.com","CANDE'","il difensore il 13 gennaio sottoposto alla ricostruzione del legamento crociato anteriore del ginocchio destro, campionato finito anzitempo. ","CANDE'",null,"UDI","UDI - CRE",null,"AS_TONMARTIN",null,null,"","","","","","","","","","","","","G1_BLACK&WHITE","BLACK&WHITE","TC WILLIAMS","CHAMPIONS LEAGUE -  G. 1",null,"ZZ_REAL GRIFO","ZZ_REAL GRIFO","ZZ_LA MUCONE","COPPA DI LEGA - FASE A GIRONI: 1a GIORNATA",null,null,null,null,null,null,0,0,"REAL GRIFO","LA MUCONE","G1"]
["SALEX","SKORUPSKI",9,"PESSINA",0,"RAVAGLIA",0,"HAPPONEN",0,"ANGORI",2,"COMUZZO",2,"DOIG",1,"KALULU",2,"NORTON-CUFFY",1,"PONGRACIC",3,"RAMON",2,"WALUKIEWICZ",2,"EDERSON",5,"JASHARI",11,"PASALIC",10,"PERRONE",5,"SOTTIL",5,"SULEMANA I.",5,"THORSBY",5,"TOURE'",1,"BOWIE",7,"LAURIENTÈ",35,"ORBAN",25,"SOULE'",65,"SULEMANA K.",7,"SALEX","NAVA","CRE",0,0,0,"IMI_SerieB@googlegroups.com","CASALE","Il difensore fermo da inizio maggio per una lesione al soleo sinistro. Campionato finito anzitempo. ","CASALE",null,"VER","INT - VER",null,"ATLETICO MA NON TROPPO",null,null,"","","","","","","","","","","","","G1_FANTARAPID CACCAMO","FANTARAPID CACCAMO","LA MUCONE","CHAMPIONS LEAGUE -  G. 1",null,"ZZ_CAVESE","ZZ_CAVESE","ZZ_CICCILLO","COPPA DI LEGA - FASE A GIRONI: 1a GIORNATA",null,null,null,null,null,null,0,0,"CAVESE","CICCILLO","G1"]
["DAVINCI TEAM","FALCONE",1,"FRUCHTL",0,"SAMOOJA",0,"PENEV",0,"CAMBIASO",20,"CELIK",1,"IDZES",1,"KABASELE",1,"KOLASINAC",1,"LUCUMI'",1,"OBRADOR",1,"PALESTRA",1,"COULIBALY",1,"DE BRUYNE",81,"GANDELMAN",1,"KEITA",1,"MORO",1,"PIOTROWSKI",1,"RABIOT",65,"THORSTVEDT",27,"CANCELLIERI",2,"LUKAKU",21,"MALEN",96,"PINAMONTI",51,"ZAPATA",50,"DAVINCI TEAM","NOVATI","CRE",0,0,0,"IMI_SerieB@googlegroups.com","CATALDI","il regista non è al meglio per noie fisiche e, dopo aver saltato le sfide contro Cremonese e Udinese, rimane da valutare in vista di sabato all'Olimpico contro l'Inter. ","CATALDI",null,null,null,null,"ATLETICO PIGROTTO",null,null,"","","","","","","","","","","","","G1_VIS FONNO","VIS FONNO","FC BIBI 04","CHAMPIONS LEAGUE -  G. 1",null,"ZZ_COSENZA","ZZ_COSENZA","ZZ_BETIS SEVILLA","COPPA DI LEGA - FASE A GIRONI: 1a GIORNATA",null,null,null,null,null,null,0,0,"COSENZA","BETIS SEVILLA","G1"]
["PARASITE","SOMMER",31,"MARTINEZ",0,"ADOMAVICIUS",0,"DI GENNARO",0,"BREMER",12,"BUONGIORNO",16,"KRISTENSEN",8,"MLACIC",3,"ROMAGNOLI",2,"SCALVINI",1,"TERRACCIANO F.",6,"ZIOLKOWSKI",1,"EL AYNAOUI",1,"ELMAS",2,"KOOPMEINERS",3,"MIRETTI",1,"ORSOLINI",21,"STREFEZZA",33,"VENTURINO",3,"ZANIOLO",1,"CASTRO",3,"COLOMBO",5,"FERGUSON E.",116,"KRSTOVIC",18,"RODRIGUEZ",21,"PARASITE","SILVESTRI","CRE",4.625,4,6.375,"IMI_SerieB@googlegroups.com","CREMASCHI","il calciatore fermo da metà marzo per una lesione del menisco esterno del ginocchio sinistro. Ipotesi di rientro tra i convocati dalla metà di maggio.","CREMASCHI",null,null,null,null,"ATLETICO PIPPAO",null,null,"","","","","","","","","","","","","G1_SAN SIRO","SAN SIRO","ISOLA CHE NON CE","CHAMPIONS LEAGUE -  G. 1",null,"ZZ_MARUEGO BOYS","ZZ_MARUEGO BOYS","ZZ_ATLETICO PIGROTTO","COPPA DI LEGA - FASE A GIRONI: 1a GIORNATA",null,null,null,null,null,null,0,0,"MARUEGO BOYS","ATLETICO PIGROTTO","G1"]
["SVICAT","SVILAR",21,"GOLLINI",0,"ZELEZNY",0,"DE MARZI",0,"BEUKEMA",2,"CARLOS AUGUSTO",3,"FLORIANI",2,"MARUSIC",2,"MINA",2,"RANIERI",1,"SOLET",2,"VASQUEZ",6,"ATTA",4,"CRISTANTE",11,"FOLORUNSHO",17,"HARRISON",2,"KONÈ I.",1,"MALINOVSKYI",6,"VLASIC",28,"ZIELINSKI",1,"BONAZZOLI",5,"BONNY",18,"DIAO",12,"EKUBAN",1,"VITINHA",5,"SVICAT","CHRISTENSEN","FIO",0,0,0,"IMI_SerieB@googlegroups.com","DEIOLA","il centrocampista KO a Bologna a inizio maggio per un affaticamento al retto femorale della coscia destra. Condizioni da valutare in vista della 37a giornata, non ci sarà infatti sabato contro l'Udinese. ","DEIOLA",null,null,null,null,"ATLETICO SGANITO",null,null,"","","","","","","","","","","","","G1_LUCHINS","LUCHINS","AC DERBOLINA","CHAMPIONS LEAGUE -  G. 1",null,"ZZ_DREAM TIN TEAM","ZZ_DREAM TIN TEAM","ZZ_A TUTTA CALLARA","COPPA DI LEGA - FASE A GIRONI: 1a GIORNATA",null,null,null,null,null,null,0,0,"DREAM TIN TEAM","A TUTTA CALLARA","G1"]
["BOMBARELLANDIA","MAIGNAN",23,"TERRACCIANO",0,"TORRIANI",0,"DONEDA",0,"BELLANOVA",1,"BERNASCONI",1,"GUTIERREZ",6,"MANCINI",22,"MUHAREMOVIC",1,"NORTON-CUFFY",6,"PALESTRA",2,"TROILO",1,"ATTA",2,"FRATTESI",1,"GUDMUNDSSON",52,"KONÈ I.",1,"NICO PAZ",17,"SANTOS",5,"THORSTVEDT",1,"ZACCAGNI",35,"BOWIE",1,"GIOVANE",1,"LAURIENTÈ",5,"SULEMANA K.",1,"VAZ",2,"BOMBARELLANDIA","DE GEA","FIO",4.9305555555555554,36,6.2222222222222223,"IMI_C1_girone_A@googlegroups.com","DENOON","Il difensore alle prese con noie fisiche e out anche nel prossimo turno di campionato. Da valutare. ","DENOON",null,null,null,null,"ATLETICO SQUONK",null,null,"","","","","","","","","","","","","G1_REAL GENOA","REAL GENOA","AC MORRONE","CHAMPIONS LEAGUE -  G. 1",null,"ZZ_MOMENTI DI GLORIA FMC","ZZ_MOMENTI DI GLORIA FMC","ZZ_LA VECCHIA GUARDIA","COPPA DI LEGA - FASE A GIRONI: 1a GIORNATA",null,null,null,null,null,null,0,0,"MOMENTI DI GLORIA FMC","LA VECCHIA GUARDIA","G1"]
["DIAMANTE","DI GREGORIO",41,"PERIN",0,"PINSOGLIO",0,"HULI",0,"BISSECK",1,"BREMER",31,"DE WINTER",1,"HIEN",2,"MARTIN",2,"SCALVINI",8,"VALERI",5,"VALLE",2,"BASIC",1,"BERNARDESCHI",6,"MCKENNIE",1,"MCTOMINAY",38,"ROWE",8,"ZALEWSKI",6,"ZANIOLO",16,"ZARAGOZA",29,"CAMBIAGHI",1,"CHEDDIRA",8,"COLOMBO",41,"OPENDA",101,"PICCOLI",4,"DIAMANTE","DOLFI","FIO",0,0,0,"IMI_C1_girone_A@googlegroups.com","DOVBYK","l'attaccante in recupero da una lesione miotendinea alla coscia sinistra, a metà gennaio ha deciso di operarsi. Rientro possibile dalla prima metà di maggio, ma da valutare la convocazione già domenica a Parma nella 36a.","DOVBYK",null,null,null,null,"BAR MARIO",null,null,"","","","","","","","","","","","","G1_RED HOT CHILI PEPPERS","RED HOT CHILI PEPPERS","FFC TOPENHAM","CHAMPIONS LEAGUE -  G. 1",null,"ZZ_ACRESE","ZZ_ACRESE","ZZ_HIC SUNT FERAE","COPPA DI LEGA - FASE A GIRONI: 1a GIORNATA",null,null,null,null,null,null,0,0,"ACRESE","HIC SUNT FERAE","G1"]
["JUVE93","DE GEA",19,"LEZZERINI",0,"CHRISTENSEN",0,"DOLFI",0,"ANGORI",1,"BASCHIROTTO",7,"DUMFRIES",2,"LUPERTO",1,"MARUSIC",1,"MINA",2,"N'DICKA",9,"TAVARES",15,"BERNEDE",1,"ELLERTSSON",3,"FOLORUNSHO",1,"HARRISON",1,"NERES",29,"ORISTANIO",1,"ORSOLINI",29,"TRAMONI",1,"BERARDI",47,"BONNY",7,"CANCELLIERI",2,"SCAMACCA",1,"THURAM",67,"JUVE93","LEZZERINI","FIO",0,0,0,"IMI_C1_girone_A@googlegroups.com","FADERA","squalificato nella 36a giornata di campionato","FADERA",null,null,null,null,"BARBERA & CHAMPAGNE",null,null,"","","","","","","","","","","","","G1_REAL BABBUDOIU","REAL BABBUDOIU","ACRESE","CHAMPIONS LEAGUE -  G. 1",null,"ZZ_ANDREAS","ZZ_ANDREAS","ZZ_REAL BUGGY","COPPA DI LEGA - FASE A GIRONI: 1a GIORNATA",null,null,null,null,null,null,0,0,"ANDREAS","REAL BUGGY","G1"]
["CAPIBARA SWOFFY FC","BUTEZ",13,"CAVLINA",0,"VIGORITO",0,"MENKE",0,"AKANJI",8,"BEUKEMA",3,"KELLY",8,"LUCUMI'",6,"OBRADOR",1,"OSTIGARD",3,"RAMON",13,"WESLEY",26,"ANGUISSA",17,"BARELLA",33,"CASADEI",6,"CONCEICAO",43,"FABBIAN",4,"GANDELMAN",1,"PULISIC",47,"VLASIC",3,"DIAO",2,"DOUVIKAS",2,"ESPOSITO F.P.",3,"GIMENEZ",1,"ORBAN",2,"CAPIBARA SWOFFY FC","MARTINELLI","FIO",0,0,0,"IMI_C1_girone_A@googlegroups.com","FELICI","Il calciatore vittima a inizio dicembre della rottura del legamento crociato del ginocchio. Lungo stop, campionato finito anzitempo.","FELICI",null,null,null,null,"BAYER LEVERRUKE",null,null,"","","","","","","","","","","","","G1_RISK UNITED","RISK UNITED","LA10 BIELLA FC","CHAMPIONS LEAGUE -  G. 1",null,"ZZ_RASTA ZETA","ZZ_RASTA ZETA","ZZ_MARIANNA","COPPA DI LEGA - FASE A GIRONI: 1a GIORNATA",null,null,null,null,null,null,0,0,"RASTA ZETA","MARIANNA","G1"]
["ETRURIA UNITED","MURIC",1,"TURATI",0,"SATALINO",0,"GURI",0,"ACERBI",1,"DELPRATO",6,"FLORIANI",2,"GABBIA",2,"KRISTENSEN",11,"PAVLOVIC",11,"PONGRACIC",1,"VOJVODA",2,"DE BRUYNE",111,"DE ROON",6,"FREULER",1,"LOCATELLI",9,"PAYERO",2,"PRATI",3,"ROVELLA",4,"VANDEPUTTE",12,"ADAMS",14,"FULLKRUG",50,"HOJLUND",76,"KILICSOY",45,"NKUNKU",34,"ETRURIA UNITED","BIJLOW","GEN",4.9000000000000004,15,6.1,"IMI_C1_girone_A@googlegroups.com","FERGUSON E.","l'attaccante, dopo il perdurare di un problema alla caviglia ed essersi sottoposto a inizio marzo a visite specialistiche a Brighton, ha deciso di operarsi. Tempi di recupero da valutare, ma la sua stagione si è chiusa anzitempo. ","FERGUSON E.",null,null,null,null,"BEAUTIFUL BUT LOSERS",null,null,"","","","","","","","","","","","","G1_ENDYMION","ENDYMION","NORTH COCKS","CHAMPIONS LEAGUE -  G. 1",null,"ZZ_FIORENTINA","ZZ_FIORENTINA","ZZ_FFC ANGELO DOMENGHINI","COPPA DI LEGA - FASE A GIRONI: 1a GIORNATA",null,null,null,null,null,null,0,0,"FIORENTINA","FFC ANGELO DOMENGHINI","G1"]
["LA BANDA DEGLI ONESTI","SKORUPSKI",1,"PESSINA",0,"RAVAGLIA",0,"HAPPONEN",0,"ANGELINO",2,"BUONGIORNO",1,"CARACCIOLO",2,"GALLO",2,"GARCIA",3,"MORENO",1,"TERRACCIANO F.",3,"VALENTI",1,"CRISTANTE",1,"EL AYNAOUI",3,"FAGIOLI",19,"FRENDRUP",3,"KARLSTROM",1,"LOBOTKA",2,"ODGAARD",1,"PASALIC",1,"BONAZZOLI",7,"CASTRO",39,"LEAO",82,"MALEN",73,"SOULE'",1,"LA BANDA DEGLI ONESTI","LEALI","GEN",4.8095238095238093,21,6.1428571428571432,"IMI_C1_girone_A@googlegroups.com","FOFANA SA.","Il centrocampista vittima a metà aprile della lesione parziale del legamento collaterale mediale del ginocchio sinistro, campionato finito anzitempo. ","FOFANA SA.",null,null,null,null,"BEETLES",null,null,"","","","","","","","","","","","","G1_DEP LA CAROGNA","DEP. LA CAROGNA","SPORTING 2000","CHAMPIONS LEAGUE -  G. 1",null,"ZZ_NORTH COCKS","ZZ_NORTH COCKS","ZZ_AC MORRONE","COPPA DI LEGA - FASE A GIRONI: 1a GIORNATA",null,null,null,null,null,null,0,0,"NORTH COCKS","AC MORRONE","G1"]
["CINICI","SUZUKI",1,"CORVI",0,"RINALDI",0,"ASTALDI",0,"BASTONI",26,"COCO",1,"COMUZZO",1,"GATTI",17,"KOLASINAC",6,"KOSSOUNOU",2,"PARISI",1,"RRAHMANI",4,"CALHANOGLU",41,"CAQUERET",1,"COULIBALY",1,"ISAKSEN",1,"KOOPMEINERS",3,"PERRONE",3,"POLITANO",17,"SAMARDZIC",3,"BORRELLI",2,"LAUTARO",141,"RASPADORI",16,"SIMEONE",3,"VARDY",6,"CINICI","LYSIONOK","GEN",0,0,0,"IMI_C1_girone_A@googlegroups.com","FORTINI","Il difensore condizionato nelle ultime settimane da una sindrome retto-adduttoria. Out contro il Genoa nel prossimo turno, condizioni da valutare in vista della 37a.","FORTINI",null,null,null,null,"BETIS SEVILLA",null,null,"","","","","","","","","","","","","G1_FC NAPOLI 2012","FC NAPOLI 2012","RASTA ZETA","CHAMPIONS LEAGUE -  G. 1",null,"ZZ_JUNIORT","ZZ_JUNIORT","ZZ_SWANSEA","COPPA DI LEGA - FASE A GIRONI: 1a GIORNATA",null,null,null,null,null,null,0,0,"JUNIORT","SWANSEA","G1"]
["HOBBIT","SVILAR",3,"GOLLINI",0,"ZELEZNY",0,"DE MARZI",0,"BARTESAGHI",1,"CELIK",1,"GILA",1,"HEGGEM",1,"KABASELE",1,"MARCANDALLI",3,"PEDERSEN",1,"WALUKIEWICZ",1,"BALDANZI",1,"KONE'",11,"MALDINI",2,"MANDRAGORA",1,"MKHITARYAN",1,"PISILLI",1,"SAELEMAEKERS",4,"STREFEZZA",5,"DE KETELAERE",120,"ELPHEGE",3,"MOREO",1,"PELLEGRINO",52,"VITINHA",1,"HOBBIT","SIEGRIST","GEN",0,0,0,"IMI_C1_girone_A@googlegroups.com","FRIGAN","L'attaccante ora alle prese con una lesione al menisco del ginocchio sinistro, il suo campionato è presumibilmente terminato anzitempo.","FRIGAN",null,null,null,null,"BFC MARANO",null,null,"","","","","","","","","","","","","G1_DAVINCI TEAM","DAVINCI TEAM","PRO WC","CHAMPIONS LEAGUE -  G. 1",null,"ZZ_SOLSBURY HILL FC","ZZ_SOLSBURY HILL FC","ZZ_TORI BRIANZOLI","COPPA DI LEGA - FASE A GIRONI: 1a GIORNATA",null,null,null,null,null,null,0,0,"SOLSBURY HILL FC","TORI BRIANZOLI","G1"]
["MANCHO FERE","MERET",7,"CONTINI",0,"MILINKOVIC",0,"FERRANTE",0,"CIRCATI",1,"DARMIAN",2,"ISMAJLI",3,"KEMPF",3,"RANIERI",3,"SPINAZZOLA",2,"TOMORI",7,"ZAPPACOSTA",3,"BRESCIANINI",1,"EKKELENKAMP",2,"LERIS",1,"LOFTUS-CHEEK",2,"LUIS HENRIQUE",2,"MALINOVSKYI",3,"SUCIC",10,"TAYLOR",3,"ADDAI",5,"KEAN",1,"LUKAKU",31,"SOLOMON",2,"VLAHOVIC",75,"MANCHO FERE","SOMMARIVA","GEN",3.75,2,5.75,"IMI_C1_girone_A@googlegroups.com","FURLANETTO","Il portiere a metà aprile vittima della rottura del legamento crociato del ginocchio, campionato finito anzitempo. ","FURLANETTO",null,null,null,null,"BLACK&WHITE",null,null,"","","","","","","","","","","","","G1_SALENTO FC","SALENTO FC","REAL GRIFO","CHAMPIONS LEAGUE -  G. 1",null,"ZZ_ISOLA CHE NON CE","ZZ_ISOLA CHE NON CE","ZZ_NEAPOLIS","COPPA DI LEGA - FASE A GIRONI: 1a GIORNATA",null,null,null,null,null,null,0,0,"ISOLA CHE NON CE","NEAPOLIS","G1"]
["COSENZA CALCIO 1914","SOMMER",31,"MARTINEZ",0,"ADOMAVICIUS",0,"DI GENNARO",0,"CABAL",4,"JUAN JESUS",1,"KALULU",3,"LAZARO",2,"ROMAGNOLI",7,"SMOLCIC",2,"SOLET",1,"VASQUEZ",3,"CATALDI",2,"DA CUNHA",2,"DELE-BASHIRU",2,"EDERSON",30,"MIRETTI",2,"POBEGA",2,"SOHM",5,"THURAM K.",11,"BOGA",3,"DAVID",101,"ESPOSITO SE.",11,"MORATA",2,"RATKOV",11,"COSENZA CALCIO 1914","ADOMAVICIUS","INT",0,0,0,"IMI_C1_girone_A@googlegroups.com","GASPAR","il difensore fermo dal 23 febbraio per un trauma distorsivo al ginocchio sinistro con lesione di primo grado del legamento collaterale mediale e lesione parziale del legamento crociato posteriore. Sta provando a tornare dalla prima metà di maggio, da valutare la convocazione per sabato in casa contro la Juve. ","GASPAR",null,null,null,null,"BLUES BROTHERS",null,null,"","","","","","","","","","","","","G1_EROI DEL 1982","ABETO FC","EROI DEL 1982","CHAMPIONS LEAGUE -  G. 1",null,"ZZ_STROMBOLI","ZZ_STROMBOLI","ZZ_TROPEA","COPPA DI LEGA - FASE A GIRONI: 1a GIORNATA",null,null,null,null,null,null,null,null,"STROMBOLI","TROPEA","G1"]
["I VAZANICCHI","CARNESECCHI",1,"ROSSI",0,"SPORTIELLO",0,"ZANCHI",0,"CAMBIASO",31,"CARLOS AUGUSTO",3,"DIEGO CARLOS",1,"DIMARCO",31,"ESTUPINAN",26,"GOSENS",27,"MIRANDA",1,"ZORTEA",1,"BATURINA",1,"CORNET",1,"ELMAS",1,"FERGUSON",2,"MODRIC",31,"PELLEGRINI LO.",1,"RABIOT",31,"RICCI",1,"DYBALA",91,"KRSTOVIC",2,"NZOLA",5,"PINAMONTI",51,"ZAPATA",2,"I VAZANICCHI","CALLIGARIS","INT",0,0,0,"IMI_C1_girone_A@googlegroups.com","IDRISSI","il cursore di fascia degli isolani a inizio marzo rimasto vittima della lesione del legamento crociato anteriore del ginocchio sinistro, campionato finito con anticipo. ","IDRISSI",null,null,null,null,"BOMBARELLANDIA",null,null,"","","","","","","","","","","","","G1_CICCILLO","RASTA DB","CICCILLO","CHAMPIONS LEAGUE -  G. 1",null,"ZZ_BRUDYLEGHORN","ZZ_BRUDYLEGHORN","ZZ_EL NINO FC","COPPA DI LEGA - FASE A GIRONI: 1a GIORNATA",null,null,null,null,null,null,0,0,"BRUDYLEGHORN","EL NINO FC","G1"]
["TERZO MUNICIPIO","MOTTA",1,"PROVEDEL",0,"GIACOMONE",0,"PANNOZZO",0,"DI LORENZO",11,"DJIMSITI",2,"DODO'",12,"GHILARDI",1,"HERMOSO",5,"IDZES",1,"JOAO MARIO",1,"TIAGO GABRIEL",1,"BERNABE'",6,"FOFANA",4,"GAETANO",1,"MATIC",2,"MESSIAS",2,"NDOUR",3,"ONDREJKA",1,"ZIELINSKI",3,"DAVIS",26,"DIA",2,"RODRIGUEZ",1,"STULIC",1,"YILDIZ",5,"TERZO MUNICIPIO","DI GENNARO","INT",0,0,0,"IMI_C1_girone_A@googlegroups.com","ISMAJLI","Il difensore assente sabato scorso a Udine per un interessamento distrattivo parziale del bicipite femorale della coscia destra. Da valutare i tempi di rientro, forfait anche venerdì in casa contro il Sassuolo. ","ISMAJLI",null,null,null,null,"BORGOROSSO FC",null,null,"","","","","","","","","","","","","G1_MAGODINA FC","EU...REKA","MAGODINA FC","CHAMPIONS LEAGUE -  G. 1",null,"ZZ_LIVELE","ZZ_LIVELE","ZZ_TEAM ENO","COPPA DI LEGA - FASE A GIRONI: 1a GIORNATA",null,null,null,null,null,null,0,0,"LIVELE","TEAM ENO","G1"]
["2TWINS4EVER","CAPRILE",1,"CIOCCI",0,"SHERRI",0,"AUSEKLIS",0,"ANGORI",1,"BARBIERI",2,"CELIK",1,"EHIZIBUE",3,"GILA",2,"MANCINI",14,"VALERI",1,"VALLE",1,"FOLORUNSHO",1,"MCKENNIE",5,"MKHITARYAN",6,"NDOUR",1,"PERRONE",5,"POLITANO",23,"TAYLOR",8,"ZARAGOZA",14,"GIMENEZ",11,"KEAN",54,"NOSLIN",1,"PELLEGRINO",1,"SIMEONE",45,"2TWINS4EVER","MARTINEZ","INT",5.875,4,6.125,"FC_Serie_A@googlegroups.com","KABASELE","squalificato nella 36a giornata di campionato","KABASELE",null,null,null,null,"BRUDYLEGHORN",null,null,"","","","","","","","","","","","","G1_LA VECCHIA GUARDIA","FC PARTIZAN DEGRADO","LA VECCHIA GUARDIA","CHAMPIONS LEAGUE -  G. 1",null,"ZZ_UDI ONE","ZZ_UDI ONE","ZZ_FFC MARIO CORSO","COPPA DI LEGA - FASE A GIRONI: 1a GIORNATA",null,null,null,null,null,null,0,0,"UDI ONE","FFC MARIO CORSO","G1"]
["FUFF TEAM","DE GEA",2,"LEZZERINI",0,"CHRISTENSEN",0,"DOLFI",0,"AKANJI",31,"BERTOLA",3,"CARLOS AUGUSTO",7,"GASPAR",1,"JUAN JESUS",4,"KEMPF",1,"N'DICKA",16,"VITIK",16,"AKINSANMIRO",2,"BERNABE'",21,"FERGUSON",2,"FRENDRUP",8,"LOBOTKA",6,"SUCIC",33,"THURAM K.",41,"ZIELINSKI",9,"BONNY",13,"DIAO",11,"ESPOSITO F.P.",58,"FERGUSON E.",63,"NKUNKU",9,"FUFF TEAM","SOMMER","INT",4.96875,32,5.90625,"FC_Serie_A@googlegroups.com","KEAN","l'attaccante out contro Roma, Sassuolo, Lazio e Lecce nelle ultime uscite per il perdurare di un fastidio alla tibia. Condizioni da valutare quotidianamente verso la sfida di domenica al Franchi contro il Genoa nella 36a di A.","KEAN",null,null,null,null,"CACAO MERAVIGLIAO",null,null,"","","","","","","","","","","","","G1_NASONE NERAZZURRO","PARASITE","NASONE NERAZZURRO","CHAMPIONS LEAGUE -  G. 1",null,"ZZ_FFC ROBERTO BONINSEGNA","ZZ_FFC ROBERTO BONINSEGNA","ZZ_GRATTACHECCA","COPPA DI LEGA - FASE A GIRONI: 1a GIORNATA",null,null,null,null,null,null,0,0,"FFC ROBERTO BONINSEGNA","GRATTACHECCA","G1"]
["PICCIOTTI NERAZZURRI","SKORUPSKI",1,"PESSINA",0,"RAVAGLIA",0,"HAPPONEN",0,"COCO",2,"GALLO",1,"HEGGEM",2,"KOLASINAC",2,"MINA",2,"NORTON-CUFFY",1,"ROMAGNOLI",1,"TERRACCIANO F.",2,"CALHANOGLU",21,"COULIBALY",1,"FAGIOLI",1,"LERIS",2,"MALDINI",21,"NERES",8,"PASALIC",6,"STREFEZZA",22,"BERARDI",49,"CASTRO",3,"ESPOSITO SE.",8,"LAUTARO",227,"PICCOLI",41,"PICCIOTTI NERAZZURRI","DI GREGORIO","JUV",5.3965517241379306,29,6.1034482758620694,"FC_Serie_A@googlegroups.com","LAMPTEY","l'esterno della Viola fermo per una lacerazione isolata del legamento crociato anteriore del ginocchio sinistro, il suo campionato è finito con largo anticipo. ","LAMPTEY",null,null,null,null,"CACCIATORI FC",null,null,"","","","","","","","","","","","","G1_REAL BUGGY","ATLETICO SQUONK","REAL BUGGY","CHAMPIONS LEAGUE -  G. 1",null,"ZZ_ATLETICO SGANITO","ZZ_ATLETICO SGANITO","ZZ_EROI DEL 1982","COPPA DI LEGA - FASE A GIRONI: 1a GIORNATA",null,null,null,null,null,null,0,0,"ATLETICO SGANITO","EROI DEL 1982","G1"]
["DINAMO VIGIAK","MERET",37,"CONTINI",0,"MILINKOVIC",0,"FERRANTE",0,"DJIMSITI",3,"GABBIA",16,"GARCIA",2,"HERMOSO",12,"HIEN",1,"KRISTENSEN",1,"TOMORI",1,"ZAPPA",1,"ADOPO",2,"CAQUERET",1,"CRISTANTE",12,"GINEITIS",3,"MODRIC",17,"PIEROTTI",1,"RICCI",1,"VLASIC",6,"ADAMS",23,"DAVIS",1,"DE KETELAERE",67,"EKUBAN",2,"LUKAKU",64,"DINAMO VIGIAK","HULI","JUV",0,0,0,"FC_Serie_A@googlegroups.com","LITETA","il centrocampista ai box da inizio maggio per una lesione di basso grado ai flessori della coscia destra, campionato presumibilmente terminato. ","LITETA",null,null,null,null,"CAPIBARA SWOFFY FC",null,null,"","","","","","","","","","","","","G1_2TWINS4EVER","ROSSOBLU FC","2TWINS4EVER","CHAMPIONS LEAGUE -  G. 1",null,"ZZ_NAPOLI FOREVER","ZZ_NAPOLI FOREVER","ZZ_NICKSTREGA","COPPA DI LEGA - FASE A GIRONI: 1a GIORNATA",null,null,null,null,null,null,0,0,"NAPOLI FOREVER","NICKSTREGA","G1"]
["MAGODINA FC","SOMMER",29,"MARTINEZ",0,"ADOMAVICIUS",0,"DI GENNARO",0,"BEUKEMA",1,"CANESTRELLI",2,"GATTI",29,"KAMARA",1,"LAZARO",1,"PARISI",1,"PAVLOVIC",29,"SMOLCIC",1,"GAETANO",1,"KARLSTROM",6,"KOOPMEINERS",28,"LUIS HENRIQUE",14,"MANDRAGORA",14,"POBEGA",1,"SAELEMAEKERS",2,"VOLPATO",1,"CAMBIAGHI",6,"CANCELLIERI",5,"RASPADORI",17,"SOLOMON",2,"VLAHOVIC",155,"MAGODINA FC","PERIN","JUV",5.1875,8,6.0625,"FC_Serie_A@googlegroups.com","LUKAKU","L'attaccante condizionato da un'infiammazione al muscolo flessore dell'anca, forfait anche per lunedì contro il Bologna al Maradona. Da valutare in vista della 37a giornata. ","LUKAKU",null,null,null,null,"CARLITO'S VELEZ",null,null,"","","","","","","","","","","","","G1_SWANSEA","ZERU TITULI","SWANSEA","CHAMPIONS LEAGUE -  G. 1",null,"ZZ_DINAMO VIGIAK","ZZ_DINAMO VIGIAK","ZZ_BFC MARANO","COPPA DI LEGA - FASE A GIRONI: 1a GIORNATA",null,null,null,null,null,null,0,0,"DINAMO VIGIAK","BFC MARANO","G1"]
["PRO WC","DI GREGORIO",48,"PERIN",0,"PINSOGLIO",0,"HULI",0,"BERNASCONI",3,"CAMBIASO",26,"DIMARCO",50,"DODO'",1,"DUMFRIES",15,"OBRADOR",2,"PALESTRA",4,"VOJVODA",1,"ATTA",1,"BAKOLA",1,"BATURINA",14,"EL AYNAOUI",2,"MCTOMINAY",33,"ODGAARD",3,"PISILLI",5,"THORSTVEDT",11,"BELOTTI",2,"COLOMBO",10,"EKHATOR",2,"SCAMACCA",2,"YILDIZ",14,"PRO WC","PINSOGLIO","JUV",0,0,0,"FC_Serie_A@googlegroups.com","MARIN","il centrocampista fermo da metà marzo per un problema al ginocchio. Proverà a recuperare dalla metà di maggio.","MARIN",null,null,null,null,"CATENACCIO & CONTROPIEDE",null,null,"","","","","","","","","","","","","G1_FUFF TEAM","EARL & SOUL GALEONE","FUFF TEAM","CHAMPIONS LEAGUE -  G. 1",null,"ZZ_KITEMMUOR TEAM","ZZ_KITEMMUOR TEAM","ZZ_MOKA JUNIORS","COPPA DI LEGA - FASE A GIRONI: 1a GIORNATA",null,null,null,null,null,null,0,0,"KITEMMUOR TEAM","MOKA JUNIORS","G1"]
["FC BIBI 04","SVILAR",9,"GOLLINI",0,"ZELEZNY",0,"DE MARZI",0,"AHANOR",4,"COMUZZO",11,"DIEGO CARLOS",3,"IDZES",2,"RAMON",8,"SCALVINI",6,"SPINAZZOLA",1,"WESLEY",37,"BRESCIANINI",6,"EKKELENKAMP",5,"FABBIAN",4,"KONE'",7,"LOCATELLI",2,"MATIC",2,"SAMARDZIC",7,"SANTOS",6,"GIOVANE",8,"SOULE'",74,"STULIC",1,"THURAM",98,"VAZ",6,"FC BIBI 04","BOSI","LAZ",0,0,0,"FC_Serie_A@googlegroups.com","MAZZITELLI","il centrocampista in ripresa da una lesione di basso grado al polpaccio destro; recuperabile dalla prima metà di maggio, ma difficile la convocazione già sabato contro l'Udinese.","MAZZITELLI",null,null,null,null,"CAVESE",null,null,"","","","","","","","","","","","","G1_UDI ONE","REAL CHR","UDI ONE","CHAMPIONS LEAGUE -  G. 1",null,"ZZ_BAYER LEVERRUKE","ZZ_BAYER LEVERRUKE","ZZ_MOMPRACEM","COPPA DI LEGA - FASE A GIRONI: 1a GIORNATA",null,null,null,null,null,null,0,0,"BAYER LEVERRUKE","MOMPRACEM","G1"]
["NASONE NERAZZURRO","BIJLOW",1,"LEALI",0,"SIEGRIST",0,"SOMMARIVA",0,"BASCHIROTTO",12,"BASTONI",38,"BELLANOVA",14,"BISSECK",6,"LUPERTO",13,"PONGRACIC",4,"RRAHMANI",18,"ZAPPACOSTA",18,"ANGUISSA",33,"CATALDI",12,"DE ROON",7,"DEIOLA",1,"FREULER",1,"MALINOVSKYI",7,"PRATI",1,"ZALEWSKI",21,"BONAZZOLI",14,"KRSTOVIC",92,"LAURIENTÈ",16,"MOREO",2,"VITINHA",2,"NASONE NERAZZURRO","FURLANETTO","LAZ",0,0,0,"FC_Serie_A@googlegroups.com","MESSIAS","il centrocampista alle prese con un problema muscolare alla coscia rimediato nella gara di Bergamo a inizio maggio. Condizioni da valutare, di certo out nel prossimo turno di campionato. ","MESSIAS",null,null,null,null,"CICCILLO",null,null,"","","","","","","","","","","","","G1_DINAMO VIGIAK","CATENACCIO & CONTROPIEDE","DINAMO VIGIAK","CHAMPIONS LEAGUE -  G. 1",null,"ZZ_MANZO TEAM","ZZ_MANZO TEAM","ZZ_TC WILLIAMS","COPPA DI LEGA - FASE A GIRONI: 1a GIORNATA",null,null,null,null,null,null,0,0,"MANZO TEAM","TC WILLIAMS","G1"]
["SPORTING 2000","MAIGNAN",26,"TERRACCIANO",0,"TORRIANI",0,"DONEDA",0,"ATHEKAME",1,"DE WINTER",1,"KOSSOUNOU",3,"MUHAREMOVIC",3,"RANIERI",1,"RENSCH",1,"RUGANI",5,"TAVARES",1,"BALDANZI",2,"CASADEI",8,"DA CUNHA",21,"DE BRUYNE",75,"JASHARI",1,"ORSOLINI",32,"RABIOT",75,"ZANIOLO",5,"BANDA",1,"DIA",1,"DOUVIKAS",1,"HOJLUND",135,"PEDRO",10,"SPORTING 2000","GIACOMONE","LAZ",0,0,0,"FC_Serie_A@googlegroups.com","MILIK","Il polacco a metà aprile vittima di una lesione di medio grado del bicipite femorale della coscia destra, campionato concluso con anticipo. ","MILIK",null,null,null,null,"CINICI",null,null,"","","","","","","","","","","","","G1_FFC ANGELO DOMENGHINI","SPORTING LABRONICA","FFC ANGELO DOMENGHINI","CHAMPIONS LEAGUE -  G. 1",null,"ZZ_TWOSTARS","ZZ_TWOSTARS","ZZ_FUFF TEAM","COPPA DI LEGA - FASE A GIRONI: 1a GIORNATA",null,null,null,null,null,null,0,0,"TWOSTARS","FUFF TEAM","G1"]
["FFC TOPENHAM","CARNESECCHI",1,"ROSSI",0,"SPORTIELLO",0,"ZANCHI",0,"BARTESAGHI",1,"BREMER",7,"CARACCIOLO",1,"GHILARDI",1,"HOLM",1,"KALULU",1,"MARTIN",1,"SOLET",1,"CONCEICAO",21,"EDERSON",8,"GANDELMAN",1,"GUDMUNDSSON",6,"PULISIC",93,"ROWE",1,"VERGARA",5,"ZACCAGNI",87,"DYBALA",1,"ELPHEGE",1,"MENDY",1,"PINAMONTI",36,"VARDY",10,"FFC TOPENHAM","MOTTA","LAZ",5.166666666666667,9,6,"FC_Serie_A@googlegroups.com","MODRIC","il regista croato vittima a fine aprile della frattura complessa pluriframmentaria dell'osso zigomatico sinistro. Operato con successo, ma il suo campionato è terminato anzitempo. ","MODRIC",null,null,null,null,"CLOCKWORK ORANGE FC",null,null,"","","","","","","","","","","","","G1_GABRY FC","RAT-MEN","GABRY FC","CHAMPIONS LEAGUE -  G. 1",null,"ZZ_VIS TRONKO","ZZ_VIS TRONKO","ZZ_FFC TOPENHAM","COPPA DI LEGA - FASE A GIRONI: 1a GIORNATA",null,null,null,null,null,null,0,0,"VIS TRONKO","FFC TOPENHAM","G1"]
["NICKSTREGA","MOTTA",33,"PROVEDEL",0,"GIACOMONE",0,"PANNOZZO",0,"ACERBI",2,"ANGELINO",8,"BUONGIORNO",14,"DELPRATO",7,"DOIG",6,"MIRANDA",3,"TIAGO GABRIEL",1,"VASQUEZ",1,"BASIC",1,"BERNARDESCHI",1,"ELLERTSSON",6,"FOFANA",14,"FRATTESI",11,"NICO PAZ",4,"PELLEGRINI LO.",7,"VANDEPUTTE",6,"DOVBYK",58,"LEAO",61,"RODRIGUEZ",17,"SULEMANA K.",3,"ZAPATA",2,"NICKSTREGA","PANNOZZO","LAZ",0,0,0,"FC_Serie_A@googlegroups.com","MOSQUERA","l'attaccante ai box per un trauma distorsivo al destro, campionato finito con anticipo.","MOSQUERA",null,null,null,null,"COSENZA",null,null,"","","","","","","","","","","","","G1_JUNIORT","A.S. TOTTIGO","JUNIORT","CHAMPIONS LEAGUE -  G. 1",null,"ZZ_FC TRIPLETE","ZZ_FC TRIPLETE","ZZ_NASONE NERAZZURRO","COPPA DI LEGA - FASE A GIRONI: 1a GIORNATA",null,null,null,null,null,null,0,0,"FC TRIPLETE","NASONE NERAZZURRO","G1"]
["TC WILLIAMS","BUTEZ",1,"CAVLINA",0,"VIGORITO",0,"MENKE",0,"BELGHALI",2,"CIRCATI",1,"GOSENS",35,"GUTIERREZ",1,"KABASELE",1,"KELLY",16,"MORENO",1,"OSTIGARD",3,"BARELLA",69,"HARRISON",1,"ISAKSEN",25,"KONÈ I.",2,"LOFTUS-CHEEK",1,"MAZZITELLI",1,"MESSIAS",1,"THORSBY",1,"ADDAI",1,"BOGA",3,"BORRELLI",1,"KILICSOY",1,"MALEN",87,"TC WILLIAMS","PROVEDEL","LAZ",5.3518518518518521,27,6.2592592592592595,"FC_Serie_A@googlegroups.com","MOUMBAGNA","l'attaccante alle prese con noie fisiche e prosegue il lavoro in disparte dal gruppo. Out nel prossimo turno di campionato, tempi di recupero da valutare. ","MOUMBAGNA",null,null,null,null,"COSENZA CALCIO 1914",null,null,"","","","","","","","","","","","","G1_NICKSTREGA","BAR MARIO","NICKSTREGA","CHAMPIONS LEAGUE -  G. 1",null,"ZZ_PICCIOTTI NERAZZURRI","ZZ_PICCIOTTI NERAZZURRI","ZZ_ALAN FORD'S TEAM","COPPA DI LEGA - FASE A GIRONI: 1a GIORNATA",null,null,null,null,null,null,0,0,"PICCIOTTI NERAZZURRI","ALAN FORD'S TEAM","G1"]
["AC DERBOLINA","CARNESECCHI",3,"ROSSI",0,"SPORTIELLO",0,"ZANCHI",0,"AKANJI",33,"BARTESAGHI",1,"DIMARCO",43,"DOIG",1,"GALLO",2,"IDZES",3,"KOSSOUNOU",1,"SCALVINI",18,"EKKELENKAMP",1,"ELMAS",8,"KONÈ I.",5,"RABIOT",53,"ROWE",18,"SANTOS",1,"THORSTVEDT",1,"VOLPATO",1,"BERARDI",75,"CASTRO",3,"LUKAKU",1,"NZOLA",1,"RODRIGUEZ",18,"AC DERBOLINA","FALCONE","LEC",5.2222222222222223,36,6.416666666666667,"FC_Serie_B@googlegroups.com","NERES","l'ala offensiva azzurra KO il 4 gennaio contro la Lazio vittima di una distorsione alla caviglia sinistra. Ha deciso di operarsi, intervento (26 gennaio) riuscito. Ora in fase di recupero e potrebbe tornare arruolabile dalla metà di maggio. ","NERES",null,null,null,null,"CRIMSON",null,null,"","","","","","","","","","","","","G1_BRUDYLEGHORN","MOMENTI DI GLORIA","BRUDYLEGHORN","CHAMPIONS LEAGUE -  G. 1",null,"ZZ_GABRY FC","ZZ_GABRY FC","ZZ_FC JAVIER ZANETTI","COPPA DI LEGA - FASE A GIRONI: 1a GIORNATA",null,null,null,null,null,null,0,0,"GABRY FC","FC JAVIER ZANETTI","G1"]
["EROI DEL 1982","SKORUPSKI",21,"PESSINA",0,"RAVAGLIA",0,"HAPPONEN",0,"BIANCHETTI",4,"CARACCIOLO",4,"DELPRATO",4,"DJIMSITI",7,"KRISTENSEN",5,"TERRACCIANO F.",8,"VASQUEZ",13,"VOJVODA",8,"ADOPO",2,"CRISTANTE",14,"FOFANA",11,"KARLSTROM",13,"MCKENNIE",3,"PRATI",4,"SUCIC",13,"ZALEWSKI",9,"EKHATOR",8,"MOREO",3,"PINAMONTI",40,"SOULE'",57,"SULEMANA K.",3,"EROI DEL 1982","FRUCHTL","LEC",0,0,0,"FC_Serie_B@googlegroups.com","NIASSE","il centrocampista alle prese con noie fisiche e out nel prossimo turno di campionato. Tempi di recupero da valutare. ","NIASSE",null,null,null,null,"DAGNE BOYS",null,null,"","","","","","","","","","","","","G1_GRATTACHECCA","FERRON","GRATTACHECCA","CHAMPIONS LEAGUE -  G. 1",null,"ZZ_PRO WC","ZZ_PRO WC","ZZ_AC DERBOLINA","COPPA DI LEGA - FASE A GIRONI: 1a GIORNATA",null,null,null,null,null,null,0,0,"PRO WC","AC DERBOLINA","G1"]
["LA10 BIELLA FC","MERET",15,"CONTINI",0,"MILINKOVIC",0,"FERRANTE",0,"BELLANOVA",11,"BERTOLA",1,"GOSENS",11,"LUCUMI'",1,"MARUSIC",1,"RANIERI",1,"TIAGO GABRIEL",1,"VALENTI",1,"BARELLA",25,"LOCATELLI",15,"LUIS HENRIQUE",1,"ODGAARD",1,"PAYERO",1,"PISILLI",1,"THURAM K.",7,"ZANIOLO",15,"ADAMS",5,"KEAN",105,"MEISTER",1,"VARDY",20,"YILDIZ",5,"LA10 BIELLA FC","PENEV","LEC",0,0,0,"FC_Serie_B@googlegroups.com","OLIVERA","Il difensore assente sabato scorso contro il Como per un affaticamento muscolare lamentato nella rifinitura. Da valutare nei prossimi giorni, a rischio la sua presenza anche per lunedì al Maradona contro il Bologna. ","OLIVERA",null,null,null,null,"DAJE MO'",null,null,"","","","","","","","","","","","","G1_MARIANNA","CLOCKWORK ORANGE FC","MARIANNA","CHAMPIONS LEAGUE -  G. 1",null,"ZZ_CRIMSON","ZZ_CRIMSON","ZZ_CACAO MERAVIGLIAO","COPPA DI LEGA - FASE A GIRONI: 1a GIORNATA",null,null,null,null,null,null,0,0,"CRIMSON","CACAO MERAVIGLIAO","G1"]
["ATLETICO MA NON TROPPO","BUTEZ",1,"CAVLINA",0,"VIGORITO",0,"MENKE",0,"ATHEKAME",1,"DE WINTER",1,"DIEGO CARLOS",2,"GILA",2,"HEGGEM",3,"HOLM",1,"KEMPF",7,"TOMORI",1,"CAQUERET",1,"CATALDI",2,"COULIBALY",3,"DE BRUYNE",105,"GILMOUR",1,"JASHARI",1,"LOFTUS-CHEEK",1,"RICCI",7,"DIAO",7,"DYBALA",1,"LEAO",15,"NKUNKU",18,"VLAHOVIC",105,"ATLETICO MA NON TROPPO","SAMOOJA","LEC",0,0,0,"FC_Serie_B@googlegroups.com","OYEGOKE","Il difensore degli scaligeri alle prese con un problema alla caviglia sinistra, campionato terminato con anticipo.","OYEGOKE",null,null,null,null,"DAVINCI TEAM",null,null,"","","","","","","","","","","","","G1_TC WILLIAMS","BLACK&WHITE","TC WILLIAMS","CHAMPIONS LEAGUE -  G. 1",null,"ZZ_LA10 BIELLA FC","ZZ_LA10 BIELLA FC","ZZ_FC BIBI 04","COPPA DI LEGA - FASE A GIRONI: 1a GIORNATA",null,null,null,null,null,null,0,0,"LA10 BIELLA FC","FC BIBI 04","G1"]
["FC TRIPLETE","OKOYE",18,"NUNZIANTE",0,"PADELLI",0,"SAVA",0,"BASCHIROTTO",7,"BISSECK",5,"MIRANDA",4,"MORENO",1,"NORTON-CUFFY",4,"PALESTRA",3,"SOLET",3,"VALLE",3,"BALDANZI",4,"FERGUSON",5,"GUDMUNDSSON",27,"ISAKSEN",5,"MALINOVSKYI",5,"ORISTANIO",3,"PASALIC",4,"SOTTIL",2,"COLOMBO",18,"ESPOSITO F.P.",12,"FERGUSON E.",108,"PICCOLI",1,"SCAMACCA",45,"FC TRIPLETE","DONEDA","MIL",0,0,0,"FC_Serie_B@googlegroups.com","PAVOLETTI","l'attaccante fermo da inizio aprile per un fastidio al ginocchio, ha deciso di operarsi e così per lui il campionato è terminato con anticipo.","PAVOLETTI",null,null,null,null,"DEP LA CAROGNA",null,null,"","","","","","","","","","","","","G1_LA MUCONE","FANTARAPID CACCAMO","LA MUCONE","CHAMPIONS LEAGUE -  G. 1",null,"ZZ_2TWINS4EVER","ZZ_2TWINS4EVER","ZZ_ATLETICO MA NON TROPPO","COPPA DI LEGA - FASE A GIRONI: 1a GIORNATA",null,null,null,null,null,null,0,0,"2TWINS4EVER","ATLETICO MA NON TROPPO","G1"]
["MOKA JUNIORS","MOTTA",31,"PROVEDEL",0,"GIACOMONE",0,"PANNOZZO",0,"BEUKEMA",6,"BREMER",10,"BRITSCHGI",2,"CARLOS AUGUSTO",5,"HERMOSO",2,"LUPERTO",1,"MARIPAN",5,"MUHAREMOVIC",1,"BAKOLA",1,"CONCEICAO",10,"DA CUNHA",4,"FRENDRUP",15,"MILLER",2,"PERRONE",2,"PULISIC",52,"ZIELINSKI",2,"GIOVANE",3,"HOJLUND",62,"MALEN",26,"SIMEONE",2,"VAZ",1,"MOKA JUNIORS","MAIGNAN","MIL",5.4428571428571431,35,6.2285714285714286,"FC_Serie_B@googlegroups.com","PELLEGRINI LO.","il centrocampista fermato il 10 aprile da una lesione muscolare alla coscia destra, tentativo di rientro dalla prima metà di maggio, ma da valutare la convocazione già domenica a Parma. ","PELLEGRINI LO.",null,null,null,null,"DIAMANTE",null,null,"","","","","","","","","","","","","G1_FC BIBI 04","VIS FONNO","FC BIBI 04","CHAMPIONS LEAGUE -  G. 1",null,"ZZ_SPORTING 2000","ZZ_SPORTING 2000","ZZ_REAL MADRINK","COPPA DI LEGA - FASE A GIRONI: 1a GIORNATA",null,null,null,null,null,null,0,0,"SPORTING 2000","REAL MADRINK","G1"]
["ATLETICO SGANITO","DE GEA",4,"LEZZERINI",0,"CHRISTENSEN",0,"DOLFI",0,"ESTUPINAN",17,"KALULU",12,"KELLY",1,"MINA",1,"N'DICKA",11,"OBERT",1,"VALERI",12,"WESLEY",22,"AEBISCHER",7,"EDERSON",18,"GAETANO",1,"MAZZITELLI",1,"MODRIC",18,"ORSOLINI",94,"TRAMONI",18,"VLASIC",17,"DAVID",115,"DJURIC",1,"DOUVIKAS",13,"KUHN",14,"LAURIENTÈ",20,"ATLETICO SGANITO","TERRACCIANO","MIL",6,2,6,"FC_Serie_B@googlegroups.com","PIERAGNOLO","Il difensore alle prese con una lesione del legamento crociato anteriore da inizio ottobre, lungo stop e probabile campionato finito anzitempo. ","PIERAGNOLO",null,null,null,null,"DINAMO VIGIAK",null,null,"","","","","","","","","","","","","G1_ISOLA CHE NON CE","SAN SIRO","ISOLA CHE NON CE","CHAMPIONS LEAGUE -  G. 1",null,"ZZ_MAGODINA FC","ZZ_MAGODINA FC","ZZ_AS QUARZA","COPPA DI LEGA - FASE A GIRONI: 1a GIORNATA",null,null,null,null,null,null,0,0,"MAGODINA FC","AS QUARZA","G1"]
["GABRY FC","DI GREGORIO",30,"PERIN",0,"PINSOGLIO",0,"HULI",0,"BUONGIORNO",18,"CABAL",1,"CAMBIASO",18,"CIRCATI",1,"DODO'",6,"MARTIN",2,"RAMON",7,"WALUKIEWICZ",1,"BATURINA",1,"BRESCIANINI",1,"CASADEI",5,"FAGIOLI",1,"KOOPMEINERS",8,"NICO PAZ",1,"VANDEPUTTE",1,"ZHEGROVA",25,"BONNY",25,"KRSTOVIC",35,"ORBAN",1,"SANABRIA",1,"THURAM",139,"GABRY FC","TORRIANI","MIL",0,0,0,"FC_Serie_B@googlegroups.com","PROVEDEL","Il portiere vittima di una lesione del legamento gleno-omerale. Operato, stop di circa quattro mesi e stagione finita anzitempo. ","PROVEDEL",null,null,null,null,"DREAM TIN TEAM",null,null,"","","","","","","","","","","","","G1_AC DERBOLINA","LUCHINS","AC DERBOLINA","CHAMPIONS LEAGUE -  G. 1",null,"ZZ_SPORTING VINAO","ZZ_SPORTING VINAO","ZZ_JUVE93","COPPA DI LEGA - FASE A GIRONI: 1a GIORNATA",null,null,null,null,null,null,0,0,"SPORTING VINAO","JUVE93","G1"]
["NAPOLI FOREVER","MAIGNAN",19,"TERRACCIANO",0,"TORRIANI",0,"DONEDA",0,"BRADARIC",2,"DI LORENZO",29,"GASPAR",2,"LYKOGIANNIS",3,"MANCINI",11,"OSTIGARD",1,"ROMAGNA",2,"SPINAZZOLA",2,"BERNABE'",21,"MALDINI",14,"MATIC",4,"MCTOMINAY",21,"PIEROTTI",4,"RAMADANI",2,"VERGARA",5,"ZACCAGNI",31,"BANDA",2,"CAMBIAGHI",5,"CANCELLIERI",29,"GIMENEZ",33,"SOLOMON",7,"NAPOLI FOREVER","CONTINI","NAP",0,0,0,"FC_Serie_B@googlegroups.com","RAMON","squalificato nella 36a giornata di campionato","RAMON",null,null,null,null,"EARL & SOUL GALEONE",null,null,"","","","","","","","","","","","","G1_AC MORRONE","REAL GENOA","AC MORRONE","CHAMPIONS LEAGUE -  G. 1",null,"ZZ_DIAMANTE","ZZ_DIAMANTE","ZZ_COSENZA CALCIO 1914","COPPA DI LEGA - FASE A GIRONI: 1a GIORNATA",null,null,null,null,null,null,0,0,"DIAMANTE","COSENZA CALCIO 1914","G1"]
["CACAO MERAVIGLIAO","SVILAR",21,"GOLLINI",0,"ZELEZNY",0,"DE MARZI",0,"BASTONI",20,"BERNASCONI",1,"ISMAJLI",1,"MARCANDALLI",1,"PARISI",1,"PAVLOVIC",13,"ROMAGNOLI",4,"ZANOLI",1,"DE ROON",6,"FOLORUNSHO",5,"FREULER",1,"HARRISON",1,"MKHITARYAN",18,"POLITANO",39,"SAMARDZIC",1,"STREFEZZA",1,"ESPOSITO SE.",15,"FULLKRUG",47,"PELLEGRINO",42,"RASPADORI",51,"VITINHA",1,"CACAO MERAVIGLIAO","FERRANTE","NAP",0,0,0,"FC_Serie_B@googlegroups.com","SERDAR","Il centrocampista KO a metà febbraio vittima della rottura del legamento crociato del ginocchio sinistro. Operato, campionato finito anzitempo.","SERDAR",null,null,null,null,"EL NIÑO",null,null,"","","","","","","","","","","","","G1_FFC TOPENHAM","RED HOT CHILI PEPPERS","FFC TOPENHAM","CHAMPIONS LEAGUE -  G. 1",null,"ZZ_BLUES BROTHERS","ZZ_BLUES BROTHERS","ZZ_ELEVEN LIONS","COPPA DI LEGA - FASE A GIRONI: 1a GIORNATA",null,null,null,null,null,null,0,0,"BLUES BROTHERS","ELEVEN LIONS","G1"]
["GRATTACHECCA","FALCONE",1,"FRUCHTL",0,"SAMOOJA",0,"PENEV",0,"BELGHALI",2,"CELIK",6,"COCO",4,"GABBIA",3,"GATTI",7,"KABASELE",1,"TAVARES",15,"ZAPPACOSTA",3,"ATTA",21,"BASIC",1,"CALHANOGLU",57,"KONE'",12,"MANDRAGORA",1,"MESSIAS",3,"PELLEGRINI LO.",6,"TAYLOR",11,"BOGA",2,"BONAZZOLI",6,"DAVIS",26,"KILICSOY",2,"ZAPATA",47,"GRATTACHECCA","MERET","NAP",4.7222222222222223,9,6.1111111111111107,"FC_Serie_B@googlegroups.com","SOTTIL","L'ala offensiva dei salentini condizionato dal perdurare della lombalgia e le sue condizioni restano da valutare in vista di sabato contro la Juve nella 36a.","SOTTIL",null,null,null,null,"EL NINO FC",null,null,"","","","","","","","","","","","","G1_ACRESE","REAL BABBUDOIU","ACRESE","CHAMPIONS LEAGUE -  G. 1",null,"ZZ_PARASITE","ZZ_PARASITE","ZZ_DAVINCI TEAM","COPPA DI LEGA - FASE A GIRONI: 1a GIORNATA",null,null,null,null,null,null,0,0,"PARASITE","DAVINCI TEAM","G1"]
["VIS TRONKO","SOMMER",50,"MARTINEZ",0,"ADOMAVICIUS",0,"DI GENNARO",0,"ANGORI",3,"CALABRESI",1,"CANESTRELLI",2,"CUADRADO",8,"DUMFRIES",15,"KAMARA",5,"PROVSTGAARD",2,"RRAHMANI",10,"AKINSANMIRO",5,"ANGUISSA",10,"ILING JUNIOR",1,"LERIS",2,"LOBOTKA",10,"LOYOLA",8,"NDOUR",2,"SAELEMAEKERS",3,"DE KETELAERE",33,"DUROSINMI",10,"LAUTARO",37,"NOSLIN",2,"STOJILKOVIC",1,"VIS TRONKO","MILINKOVIC","NAP",5.6481481481481479,27,6.2037037037037033,"FC_Serie_B@googlegroups.com","TOMORI","squalificato nella 36a giornata di campionato","TOMORI",null,null,null,null,"ELEVEN LIONS",null,null,"","","","","","","","","","","","","G1_LA10 BIELLA FC","RISK UNITED","LA10 BIELLA FC","CHAMPIONS LEAGUE -  G. 1",null,"ZZ_CINICI","ZZ_CINICI","ZZ_RED HOT CHILI PEPPERS","COPPA DI LEGA - FASE A GIRONI: 1a GIORNATA",null,null,null,null,null,null,0,0,"CINICI","RED HOT CHILI PEPPERS","G1"]
["ALAN FORD'S TEAM","MOTTA",33,"PROVEDEL",0,"GIACOMONE",0,"PANNOZZO",0,"BASCHIROTTO",5,"BASTONI",41,"BIRAGHI",1,"GALLO",3,"GOSENS",18,"ISMAJLI",2,"OBERT",1,"WALUKIEWICZ",2,"ANGUISSA",39,"ATTA",28,"DEIOLA",2,"GUDMUNDSSON",19,"RAMADANI",1,"VANDEPUTTE",19,"ZACCAGNI",25,"ZERBIN",1,"BANDA",1,"BERARDI",68,"DYBALA",89,"MOREO",15,"SIMEONE",1,"ALAN FORD'S TEAM","ASTALDI","PAR",0,0,0,"FC_Serie_C@googlegroups.com","TRAMONI","Il calciatore non convocato dalla gara di Parma (25 aprile) per noie muscolari. Da valutare in settimana, proverà a tornare arruolabile dalla prima metà di maggio, ma a rischio la sua convocazione anche nel prossimo turno a Cremona. ","TRAMONI",null,null,null,null,"ENDYMION",null,null,"","","","","","","","","","","","","G1_NORTH COCKS","ENDYMION","NORTH COCKS","CHAMPIONS LEAGUE -  G. 1",null,"ZZ_I VAZANICCHI","ZZ_I VAZANICCHI","ZZ_ETRURIA UNITED","COPPA DI LEGA - FASE A GIRONI: 1a GIORNATA",null,null,null,null,null,null,0,0,"I VAZANICCHI","ETRURIA UNITED","G1"]
["CRIMSON","CAPRILE",11,"CIOCCI",0,"SHERRI",0,"AUSEKLIS",0,"BREMER",34,"DE WINTER",1,"DI LORENZO",13,"DIMARCO",23,"HERMOSO",13,"JUAN JESUS",6,"MARTIN",2,"VOJVODA",1,"BARELLA",58,"DE ROON",3,"DIOUF",3,"ELLERTSSON",1,"KEITA",1,"MORO",1,"SOTTIL",1,"ZALEWSKI",23,"CANCELLIERI",13,"ESPOSITO F.P.",3,"HOJLUND",103,"PEDRO",1,"STULIC",1,"CRIMSON","CORVI","PAR",5,16,6.15625,"FC_Serie_C@googlegroups.com","VITIK","Il difensore non si allena da giovedì col gruppo a causa di un trauma distorsivo alla caviglia sinistra, verso il forfait lunedì a Napoli. Da valutare. ","VITIK",null,null,null,null,"EROI DEL 1982",null,null,"","","","","","","","","","","","","G1_SPORTING 2000","DEP. LA CAROGNA","SPORTING 2000","CHAMPIONS LEAGUE -  G. 1",null,"ZZ_CAPIBARA SWOFFY FC","ZZ_CAPIBARA SWOFFY FC","ZZ_TERZO MUNICIPIO","COPPA DI LEGA - FASE A GIRONI: 1a GIORNATA",null,null,null,null,null,null,0,0,"CAPIBARA SWOFFY FC","TERZO MUNICIPIO","G1"]
["MANZO TEAM","DE GEA",1,"LEZZERINI",0,"CHRISTENSEN",0,"DOLFI",0,"ANGELINO",2,"COCO",3,"DJIMSITI",2,"GASPAR",1,"GHILARDI",1,"KABASELE",1,"N'DICKA",2,"VASQUEZ",1,"CRISTANTE",5,"KONE'",12,"MANDRAGORA",1,"MCTOMINAY",63,"MODRIC",12,"PRATI",4,"PULISIC",43,"VERGARA",13,"ADAMS",12,"CASTRO",12,"ESPOSITO SE.",12,"FULLKRUG",23,"SCAMACCA",2,"MANZO TEAM","RINALDI","PAR",6.5,1,7,"FC_Serie_C@googlegroups.com","ZANOLI","Il cursore di fascia dei friulani a fine gennaio ha rimediato la lesione del legamento crociato anteriore del ginocchio destro. Operato, stop di almeno sei mesi. Campionato finito anzitempo. ","ZANOLI",null,null,null,null,"ETRURIA UNITED",null,null,"","","","","","","","","","","","","G1_RASTA ZETA","FC NAPOLI 2012","RASTA ZETA","CHAMPIONS LEAGUE -  G. 1",null,"ZZ_BAR MARIO","ZZ_BAR MARIO","ZZ_LUCHINS","COPPA DI LEGA - FASE A GIRONI: 1a GIORNATA",null,null,null,null,null,null,0,0,"BAR MARIO","LUCHINS","G1"]
["AS QUARZA","OKOYE",4,"NUNZIANTE",0,"PADELLI",0,"SAVA",0,"ACERBI",7,"BIANCHETTI",2,"GATTI",9,"KELLY",2,"KEMPF",3,"OSTIGARD",2,"TIAGO GABRIEL",3,"VEIGA",3,"ADOPO",2,"AKINSANMIRO",2,"BERNABE'",11,"CONCEICAO",2,"FRENDRUP",8,"KONÈ I.",2,"KOOPMEINERS",6,"LOCATELLI",6,"CAMBIAGHI",4,"KEAN",11,"KUHN",7,"VLAHOVIC",154,"YILDIZ",32,"AS QUARZA","SUZUKI","PAR",4.6842105263157894,19,5.9736842105263159,"FC_Serie_C@googlegroups.com","ZARAGOZA","L'ala offensiva giallorossa alle prese con un'infiammazione al ginocchio, forfait per lunedì scorso all'Olimpico contro la Fiorentina. Da valutare in vista di domenica a Parma nella 36a giornata di A.","ZARAGOZA",null,null,null,null,"EUREKA",null,null,"","","","","","","","","","","","","G1_PRO WC","DAVINCI TEAM","PRO WC","CHAMPIONS LEAGUE -  G. 1",null,"ZZ_ABETO FC","ZZ_ABETO FC","ZZ_EARL & SOUL GALEONE","COPPA DI LEGA - FASE A GIRONI: 1a GIORNATA",null,null,null,null,null,null,0,0,"ABETO FC","EARL & SOUL GALEONE","G1"]
["FC JAVIER ZANETTI","SOMMER",36,"MARTINEZ",0,"ADOMAVICIUS",0,"DI GENNARO",0,"BUONGIORNO",4,"DUMFRIES",41,"GILA",1,"LUCUMI'",6,"LUPERTO",1,"PONGRACIC",2,"SCALVINI",13,"ZAPPACOSTA",6,"EDERSON",24,"FAGIOLI",1,"NICO PAZ",4,"PISILLI",1,"POBEGA",1,"POLITANO",34,"SOHM",7,"TRAMONI",5,"GIOVANE",2,"KRSTOVIC",38,"MORATA",8,"PINAMONTI",18,"SOULE'",127,"FC JAVIER ZANETTI","BAGLINI","PIS",0,0,0,"FC_Serie_C@googlegroups.com","ZEMURA","Il difensore in recupero da una lesione muscolare al bicipite femorale della coscia sinistra; tentativo di rientro dalla prima metà di maggio, ma da valutare nella rifinitura le possibilità di convocazione per sabato a Cagliari. ","ZEMURA",null,null,null,null,"FANTARAPID CACCAMO",null,null,"","","","","","","","","","","","","G1_REAL GRIFO","SALENTO FC","REAL GRIFO","CHAMPIONS LEAGUE -  G. 1",null,"ZZ_VIS FONNO","ZZ_VIS FONNO","ZZ_DEP. LA CAROGNA","COPPA DI LEGA - FASE A GIRONI: 1a GIORNATA",null,null,null,null,null,null,0,0,"VIS FONNO","DEP. LA CAROGNA","G1"]
["MOMPRACEM","BUTEZ",3,"CAVLINA",0,"VIGORITO",0,"MENKE",0,"BEUKEMA",2,"CANESTRELLI",1,"CARLOS AUGUSTO",7,"DOIG",3,"MARUSIC",2,"MINA",1,"SPINAZZOLA",1,"ZAPPA",1,"COULIBALY",2,"DA CUNHA",3,"EKKELENKAMP",6,"FAZZINI",3,"LUIS HENRIQUE",6,"MKHITARYAN",6,"PIEROTTI",2,"ZIELINSKI",7,"DE KETELAERE",13,"DIA",17,"MALEN",21,"MEISTER",7,"RASPADORI",16,"MOMPRACEM","NICOLAS","PIS",3.5833333333333335,6,5.916666666666667,"FC_Serie_C@googlegroups.com",0,"00:00:00",0,null,null,null,null,"FANTASPEZIA",null,null,"","","","","","","","","","","","",null,null,null,null,null,"ZZ_LA BANDA DEGLI ONESTI","ZZ_LA BANDA DEGLI ONESTI","ZZ_SVICAT","COPPA DI LEGA - FASE A GIRONI: 1a GIORNATA",null,null,null,null,null,null,0,0,"LA BANDA DEGLI ONESTI","SVICAT","G1"]
["BAYER LEVERRUKE","SKORUPSKI",17,"PESSINA",0,"RAVAGLIA",0,"HAPPONEN",0,"AHANOR",3,"CIRCATI",1,"EHIZIBUE",1,"MANCINI",4,"NORTON-CUFFY",1,"OLIVERA",2,"PAVLOVIC",4,"RANIERI",1,"BASIC",1,"CATALDI",1,"FABBIAN",15,"ISAKSEN",2,"LOBOTKA",18,"MALINOVSKYI",15,"RICCI",1,"SAMARDZIC",27,"LAURIENTÈ",17,"OPENDA",123,"PICCOLI",27,"SOLOMON",11,"VITINHA",4,"BAYER LEVERRUKE","SCUFFET","PIS",4.0714285714285712,7,6.2142857142857144,"FC_Serie_C@googlegroups.com",0,"00:00:00",0,null,null,null,null,"FANTONI & GINELLI",null,null,"","","","","","","","","","","","","G1_SPORTING VINAO","SPORTING VINAO","BFC MARANO","EUROPA LEAGUE -  G. 1",null,"ZZ_FERRON","ZZ_FERRON","ZZ_RISK UNITED","COPPA DI LEGA - FASE A GIRONI: 1a GIORNATA",null,null,null,null,null,null,null,null,"FERRON","RISK UNITED","G1"]
["FFC ROBERTO BONINSEGNA","SVILAR",8,"GOLLINI",0,"ZELEZNY",0,"DE MARZI",0,"BISSECK",2,"HEGGEM",2,"MARCANDALLI",1,"MARIPAN",2,"OBRADOR",1,"PALESTRA",2,"RRAHMANI",5,"SMOLCIC",2,"CALHANOGLU",10,"GANDELMAN",1,"NERES",5,"ORSOLINI",24,"SAELEMAEKERS",2,"TAYLOR",5,"ZANIOLO",1,"ZARAGOZA",4,"COLOMBO",2,"DAVIS",5,"DOUVIKAS",5,"NKUNKU",1,"THURAM",152,"FFC ROBERTO BONINSEGNA","SEMPER","PIS",4.4565217391304346,23,6.0652173913043477,"FC_Serie_C@googlegroups.com",0,"00:00:00",0,null,null,null,null,"FC BIBI 04",null,null,"","","","","","","","","","","","","G1_DAJE MO'","DAJE MO'","ATLETICO PIGROTTO","EUROPA LEAGUE -  G. 1",null,"ZZ_ROSSOBLU FC","ZZ_ROSSOBLU FC","ZZ_RAT-MEN","COPPA DI LEGA - FASE A GIRONI: 1a GIORNATA",null,null,null,null,null,null,0,0,"ROSSOBLU FC","RAT-MEN","G1"]
["REAL MADRINK","MAIGNAN",1,"TERRACCIANO",0,"TORRIANI",0,"DONEDA",0,"BELGHALI",1,"CELIK",4,"DODO'",1,"GABBIA",1,"LAZARO",1,"ROMAGNOLI",1,"VALENTI",2,"ZORTEA",1,"BALDANZI",1,"ELMAS",2,"FOFANA",1,"FOLORUNSHO",1,"MALDINI",7,"MATIC",1,"SANTOS",1,"THORSBY",1,"BOGA",1,"LAUTARO",176,"LUKAKU",23,"RATKOV",2,"VARDY",7,"REAL MADRINK","DE MARZI","ROM",0,0,0,"FC_Serie_C@googlegroups.com",0,"00:00:00",0,null,null,null,null,"FC BIRO",null,null,"","","","","","","","","","","","","G1_BLUES BROTHERS","BLUES BROTHERS","MOMPRACEM","EUROPA LEAGUE -  G. 1",null,"ZZ_SALEX","ZZ_SALEX","ZZ_CATENACCIO & CONTROPIEDE","COPPA DI LEGA - FASE A GIRONI: 1a GIORNATA",null,null,null,null,null,null,0,0,"SALEX","CATENACCIO & CONTROPIEDE","G1"]
["BFC MARANO","DI GREGORIO",25,"PERIN",0,"PINSOGLIO",0,"HULI",0,"BARTESAGHI",2,"BERNASCONI",2,"MIRANDA",1,"MUHAREMOVIC",1,"SOLET",3,"TOMORI",1,"VALERI",2,"VALLE",1,"BERNARDESCHI",2,"FERGUSON",2,"FREULER",5,"GAETANO",2,"PELLEGRINI LO.",2,"PERRONE",1,"STREFEZZA",3,"TOURE'",2,"DAVID",101,"KILICSOY",1,"SARR",3,"SULEMANA K.",1,"ZAPATA",3,"BFC MARANO","GOLLINI","ROM",0,0,0,"FC_Serie_C@googlegroups.com",0,"00:00:00",0,null,null,null,null,"FC FANTATLETICO",null,null,"","","","","","","","","","","","","G1_AC ZDENEK","A.C. ZDENEK","EL NINO FC","EUROPA LEAGUE -  G. 1",null,"ZZ_ALL BLACKS","ZZ_ALL BLACKS","ZZ_PRENESTINO FC","COPPA DI LEGA - FASE A GIRONI: 1a GIORNATA",null,null,null,null,null,null,0,0,"ALL BLACKS","PRENESTINO FC","G1"]
["KITEMMUOR TEAM","CARNESECCHI",21,"ROSSI",0,"SPORTIELLO",0,"ZANCHI",0,"BELLANOVA",1,"CAMBIASO",21,"GUTIERREZ",3,"HIEN",1,"JOAO MARIO",3,"KALULU",5,"RAMON",3,"WESLEY",11,"BATURINA",7,"BELAHYANE",2,"MCKENNIE",1,"RABIOT",3,"ROWE",11,"THURAM K.",33,"VLASIC",11,"ZHEGROVA",17,"BONNY",33,"LEAO",111,"PELLEGRINO",23,"RODRIGUEZ",11,"VAZ",5,"KITEMMUOR TEAM","SVILAR","ROM",5.4027777777777777,36,6.2638888888888893,"FC_Serie_C@googlegroups.com",0,"00:00:00",0,null,null,null,null,"FC JAVIER ZANETTI",null,null,"","","","","","","","","","","","","G1_DIAMANTE","DIAMANTE","TWOSTARS","EUROPA LEAGUE -  G. 1",null,"ZZ_BORGOROSSO F.C.","ZZ_BORGOROSSO F.C.","ZZ_MANCHO FERE","COPPA DI LEGA - FASE A GIRONI: 1a GIORNATA",null,null,null,null,null,null,0,0,"BORGOROSSO F.C.","MANCHO FERE","G1"]
["TWOSTARS","MERET",16,"CONTINI",0,"MILINKOVIC",0,"FERRANTE",0,"AKANJI",12,"ANGORI",1,"DELPRATO",3,"KRISTENSEN",4,"LIROLA",1,"PELLEGRINI LU.",1,"TERRACCIANO F.",2,"ZANOLI",1,"BAILEY",0,"CASADEI",1,"DE BRUYNE",51,"ODGAARD",5,"PASALIC",7,"SERDAR",1,"SUCIC",18,"THORSTVEDT",1,"CHEDDIRA",1,"CUTRONE",0,"DIAO",18,"FERGUSON E.",80,"ORBAN",1,"TWOSTARS","ZELEZNY","ROM",0,0,0,"FC_Serie_C@googlegroups.com",0,"00:00:00",0,null,null,null,null,"FC NAPOLI 2012",null,null,"","","","","","","","","","","","","G1_FRIUL GALAXI","FRIUL GALAXI","NEAPOLIS","EUROPA LEAGUE -  G. 1",null,"ZZ_HOBBIT","ZZ_HOBBIT","ZZ_BOMBARELLANDIA","COPPA DI LEGA - FASE A GIRONI: 1a GIORNATA",null,null,null,null,null,null,0,0,"HOBBIT","BOMBARELLANDIA","G1"]
["ARMATA NERAZZURRA","SUZUKI",1,"CORVI",0,"RINALDI",0,"ASTALDI",0,"AKANJI",4,"BISSECK",1,"HIEN",4,"KALULU",3,"PARISI",1,"ROMAGNOLI",3,"SPINAZZOLA",1,"ZAPPACOSTA",4,"CALHANOGLU",20,"FAGIOLI",1,"FRATTESI",4,"MALDINI",13,"ROVELLA",1,"SUCIC",15,"THURAM K.",25,"ZALEWSKI",1,"BONNY",20,"CHEDDIRA",5,"DYBALA",5,"NKUNKU",30,"RASPADORI",15,"ARMATA NERAZZURRA","GURI","SAS",0,0,0,"IMI_C1_girone_B@googlegroups.com",0,"00:00:00",0,null,null,null,null,"FC PARTIZAN DEGRADO",null,null,"","","","","","","","","","","","","G1_ZEMANLANDIA AFC","ZEMANLANDIA AFC","CACAO MERAVIGLIAO","EUROPA LEAGUE -  G. 1",null,"ZZ_BLACK&WHITE","ZZ_BLACK&WHITE","ZZ_EU...REKA","COPPA DI LEGA - FASE A GIRONI: 1a GIORNATA",null,null,null,null,null,null,0,0,"BLACK&WHITE","EU...REKA","G1"]
["FFC ALESSANDRO ALTOBELLI","DI GREGORIO",15,"PERIN",0,"PINSOGLIO",0,"HULI",0,"DIEGO CARLOS",1,"HEGGEM",1,"HERMOSO",1,"NELSSON",1,"OBRADOR",1,"PALESTRA",3,"TROILO",1,"VALLE",4,"CAQUERET",1,"CRISTANTE",25,"MALINOVSKYI",1,"MANDRAGORA",1,"MESSIAS",1,"MODRIC",52,"SAMARDZIC",2,"STREFEZZA",2,"DIA",1,"ELPHEGE",1,"ORBAN",2,"PICCOLI",5,"SULEMANA K.",3,"FFC ALESSANDRO ALTOBELLI","MURIC","SAS",4.765625,32,6.078125,"IMI_C1_girone_B@googlegroups.com",0,"00:00:00",0,null,null,null,null,"FC ROMA SUD",null,null,"","","","","","","","","","","","","G1_FC ZETAJ TEAM 1999","FC ZETAJ TEAM 1999","TORI BRIANZOLI","EUROPA LEAGUE -  G. 1",null,"ZZ_ZERVENA VIGIAK","ZZ_ZERVENA VIGIAK","ZZ_TITANS","COPPA DI LEGA - FASE A GIRONI: 1a GIORNATA",null,null,null,null,null,null,0,0,"ZERVENA VIGIAK","TITANS","G1"]
["PRAVETTONI CC","MERET",35,"CONTINI",0,"MILINKOVIC",0,"FERRANTE",0,"BARTESAGHI",1,"CAMBIASO",25,"CANESTRELLI",1,"ESTUPINAN",14,"GATTI",5,"PAVLOVIC",2,"RANIERI",7,"VALERI",3,"ATTA",16,"BERNARDESCHI",1,"ELLERTSSON",4,"ILIC",1,"KOSTIC",3,"MCKENNIE",5,"MCTOMINAY",19,"TAYLOR",11,"CAMARDA",1,"DAVID",21,"ESPOSITO F.P.",5,"RATKOV",10,"ZAPATA",1,"PRAVETTONI CC","SATALINO","SAS",0,0,0,"IMI_C1_girone_B@googlegroups.com",0,"00:00:00",0,null,null,null,null,"FC TRIPLETE",null,null,"","","","","","","","","","","","","G1_ALL BLACKS","ALL BLACKS","ATLETICO MA NON TROPPO","EUROPA LEAGUE -  G. 1",null,"ZZ_OLTREMARE","ZZ_OLTREMARE","ZZ_REAL PIPPERO","COPPA DI LEGA - FASE A GIRONI: 1a GIORNATA",null,null,null,null,null,null,0,0,"OLTREMARE","REAL PIPPERO","G1"]
["AS NEW TEAM","BUTEZ",3,"CAVLINA",0,"VIGORITO",0,"MENKE",0,"GHILARDI",1,"MIRANDA",2,"N'DICKA",2,"OSTIGARD",2,"PEZZELLA",3,"RENSCH",1,"TERRACCIANO F.",2,"VOJVODA",1,"BATURINA",7,"CASADEI",9,"EKKELENKAMP",1,"FOFANA",5,"KONE'",48,"VLASIC",9,"ZERBIN",1,"ZIELINSKI",7,"DAVIS",1,"ESPOSITO SE.",2,"NZOLA",1,"PELLEGRINO",7,"VARDY",1,"AS NEW TEAM","TURATI","SAS",5.25,4,6,"IMI_C1_girone_B@googlegroups.com",0,"00:00:00",0,null,null,null,null,"FC ZETAJ TEAM 1999",null,null,"","","","","","","","","","","","","G1_FANTASPEZIA","FANTASPEZIA","MOMENTI DI GLORIA FMC","EUROPA LEAGUE -  G. 1",null,"ZZ_ZEMANLANDIA AFC","ZZ_ZEMANLANDIA AFC","ZZ_PICARD","COPPA DI LEGA - FASE A GIRONI: 1a GIORNATA",null,null,null,null,null,null,0,0,"ZEMANLANDIA AFC","PICARD","G1"]
["INAZUMA ELEVEN","SKORUPSKI",3,"PESSINA",0,"RAVAGLIA",0,"HAPPONEN",0,"AHANOR",1,"CARLOS AUGUSTO",5,"DODO'",3,"RAMON",2,"SCALVINI",1,"TIAGO GABRIEL",3,"WESLEY",26,"ZIOLKOWSKI",1,"ANGUISSA",3,"DE BRUYNE",37,"EL AYNAOUI",1,"FERGUSON",2,"KARLSTROM",2,"PISILLI",1,"PRATI",7,"RICCI",2,"ADAMS",5,"CASTRO",11,"EKHATOR",2,"SOULE'",1,"YILDIZ",55,"INAZUMA ELEVEN","ISRAEL","TOR",3.8333333333333335,9,5.8888888888888893,"IMI_C1_girone_B@googlegroups.com",0,"00:00:00",0,null,null,null,null,"FERRON",null,null,"","","","","","","","","","","","","G1_PRENESTINO FC","PRENESTINO FC","FC JAVIER ZANETTI","EUROPA LEAGUE -  G. 1",null,"ZZ_AS_TONMARTIN","ZZ_AS_TONMARTIN","ZZ_BEETLES","COPPA DI LEGA - FASE A GIRONI: 1a GIORNATA",null,null,null,null,null,null,0,0,"AS_TONMARTIN","BEETLES","G1"]
["TITANS","CARNESECCHI",1,"ROSSI",0,"SPORTIELLO",0,"ZANCHI",0,"BASTONI",24,"GUTIERREZ",4,"HOLM",1,"KABASELE",1,"KELLY",2,"KRISTENSEN",7,"SOLET",1,"TAVARES",1,"BARELLA",46,"CONCEICAO",57,"ISAKSEN",3,"KONÈ I.",1,"LOFTUS-CHEEK",1,"SANTOS",3,"THORSBY",1,"ZACCAGNI",57,"ADDAI",1,"BERARDI",53,"DIAO",23,"LEAO",7,"MENDY",1,"TITANS","PALEARI","TOR",4.5370370370370372,27,6.0740740740740744,"IMI_C1_girone_B@googlegroups.com",0,"00:00:00",0,null,null,null,null,"FFC ALESSANDRO ALTOBELLI",null,null,"","","","","","","","","","","","","G1_ATLETICO PIPPAO","ATLETICO PIPPAO","CAVESE","EUROPA LEAGUE -  G. 1",null,"ZZ_LIVERCOOL","ZZ_LIVERCOOL","ZZ_SFIGARENSE","COPPA DI LEGA - FASE A GIRONI: 1a GIORNATA",null,null,null,null,null,null,0,0,"LIVERCOOL","SFIGARENSE","G1"]
["CACCIATORI FC","SOMMER",25,"MARTINEZ",0,"ADOMAVICIUS",0,"DI GENNARO",0,"ANGELINO",2,"DELPRATO",1,"DJIMSITI",1,"GOSENS",31,"KOSSOUNOU",2,"MANCINI",7,"MORENO",1,"PELLEGRINI LU.",1,"BASIC",1,"GANDELMAN",1,"KEITA",1,"MATIC",1,"PERRONE",1,"SOTTIL",1,"SUSLOV",1,"THORSTVEDT",3,"BOGA",1,"DE KETELAERE",11,"FULLKRUG",7,"SOLOMON",11,"THURAM",74,"CACCIATORI FC","SANTER","TOR",0,0,0,"IMI_C1_girone_B@googlegroups.com",0,"00:00:00",0,null,null,null,null,"FFC ANGELO DOMENGHINI",null,null,"","","","","","","","","","","","","G1_LA BANDA DEGLI ONESTI","LA BANDA DEGLI ONESTI","BAYER LEVERRUKE","EUROPA LEAGUE -  G. 1",null,"ZZ_FFC LUISITO SUAREZ","ZZ_FFC LUISITO SUAREZ","ZZ_CACCIATORI FC","COPPA DI LEGA - FASE A GIRONI: 1a GIORNATA",null,null,null,null,null,null,0,0,"FFC LUISITO SUAREZ","CACCIATORI FC","G1"]
["NAPO-LEONI","MOTTA",14,"PROVEDEL",0,"GIACOMONE",0,"PANNOZZO",0,"COMUZZO",1,"DARMIAN",1,"DIMARCO",48,"DUMFRIES",24,"JUAN JESUS",1,"MARUSIC",1,"NORTON-CUFFY",1,"SMOLCIC",2,"DE ROON",4,"FABBIAN",8,"FREULER",14,"LOBOTKA",28,"LOCATELLI",1,"MKHITARYAN",2,"PASALIC",28,"VERGARA",18,"BANDA",1,"BONAZZOLI",2,"EKUBAN",2,"PEDRO",3,"SANABRIA",8,"NAPO-LEONI","SIVIERO","TOR",0,0,0,"IMI_C1_girone_B@googlegroups.com",0,"00:00:00",0,null,null,null,null,"FFC EVARISTO BECCALOSSI",null,null,"","","","","","","","","","","","","G1_FFC SANDRO MAZZOLA","FFC SANDRO MAZZOLA","A TUTTA CALLARA","EUROPA LEAGUE -  G. 1",null,"ZZ_PRINCESS OF ETRURIA","ZZ_PRINCESS OF ETRURIA","ZZ_PERDENTUS FC","COPPA DI LEGA - FASE A GIRONI: 1a GIORNATA",null,null,null,null,null,null,0,0,"PRINCESS OF ETRURIA","PERDENTUS FC","G1"]
["YOUNG BOYS","DE GEA",2,"LEZZERINI",0,"CHRISTENSEN",0,"DOLFI",0,"BELLANOVA",3,"CARACCIOLO",1,"CELIK",4,"COCO",1,"DE WINTER",1,"MARTIN",2,"MUHAREMOVIC",1,"ZORTEA",1,"BERNEDE",1,"EDERSON",8,"FOLORUNSHO",8,"JASHARI",16,"SAELEMAEKERS",3,"TOURE'",1,"TRAMONI",1,"VANDEPUTTE",4,"HOJLUND",87,"KRSTOVIC",35,"LAURIENTÈ",41,"MORATA",41,"VITINHA",1,"YOUNG BOYS","NUNZIANTE","UDI",0,0,0,"IMI_C1_girone_B@googlegroups.com",0,"00:00:00",0,null,null,null,null,"FFC GIUSEPPE BERGOMI",null,null,"","","","","","","","","","","","","G1_AS NEW TEAM","AS NEW TEAM","MOKA JUNIORS","EUROPA LEAGUE -  G. 1",null,"ZZ_FANTONI & GINELLI","ZZ_FANTONI & GINELLI","ZZ_FK'S TEAM","COPPA DI LEGA - FASE A GIRONI: 1a GIORNATA",null,null,null,null,null,null,0,0,"FANTONI & GINELLI","FK'S TEAM","G1"]
["DAGNE BOYS","SVILAR",11,"GOLLINI",0,"ZELEZNY",0,"DE MARZI",0,"BASCHIROTTO",6,"BELGHALI",3,"BERNASCONI",2,"BREMER",23,"DI LORENZO",7,"GABBIA",1,"GARCIA",1,"MINA",2,"BRESCIANINI",3,"GUDMUNDSSON",9,"KOOPMEINERS",1,"ODGAARD",1,"PELLEGRINI LO.",3,"POLITANO",5,"ROWE",1,"ZANIOLO",3,"CAMBIAGHI",1,"DOUVIKAS",37,"GIOVANE",1,"LAUTARO",133,"VLAHOVIC",12,"DAGNE BOYS","OKOYE","UDI",5.0357142857142856,28,6.0535714285714288,"IMI_C1_girone_B@googlegroups.com",0,"00:00:00",0,null,null,null,null,"FFC LUISITO SUAREZ",null,null,"","","","","","","","","","","","","G1_P CUATRO","P CUATRO","FIORENTINA","EUROPA LEAGUE -  G. 1",null,"ZZ_REAL FARNESE","ZZ_REAL FARNESE","ZZ_PAPAVERI E PAPERE","COPPA DI LEGA - FASE A GIRONI: 1a GIORNATA",null,null,null,null,null,null,0,0,"REAL FARNESE","PAPAVERI E PAPERE","G1"]
["OSTIAMARE FC","ISRAEL",16,"PALEARI",0,"SIVIERO",0,"SANTER",0,"ACERBI",32,"BEUKEMA",1,"BIANCHETTI",1,"KEMPF",1,"LAZARO",1,"LUPERTO",1,"RRAHMANI",11,"VASQUEZ",7,"CATALDI",2,"COULIBALY",2,"DA CUNHA",2,"DEIOLA",1,"FRENDRUP",11,"GAETANO",3,"GRASSI",1,"ORSOLINI",16,"CANCELLIERI",16,"MALEN",62,"PINAMONTI",41,"RODRIGUEZ",20,"SIMEONE",42,"OSTIAMARE FC","PADELLI","UDI",5.25,2,6.25,"IMI_C1_girone_B@googlegroups.com",0,"00:00:00",0,null,null,null,null,"FFC MARIO CORSO",null,null,"","","","","","","","","","","","","G1_INAZUMA ELEVEN","INAZUMA ELEVEN","FC TRIPLETE","EUROPA LEAGUE -  G. 1",null,"ZZ_YOUNG BOYS","ZZ_YOUNG BOYS","ZZ_CARLITO'S VELEZ","COPPA DI LEGA - FASE A GIRONI: 1a GIORNATA",null,null,null,null,null,null,0,0,"YOUNG BOYS","CARLITO'S VELEZ","G1"]
["ZEMANLANDIA AFC","MAIGNAN",35,"TERRACCIANO",0,"TORRIANI",0,"DONEDA",0,"BERTOLA",5,"BUONGIORNO",15,"CIRCATI",1,"GILA",1,"LUCUMI'",15,"TOMORI",10,"VALENTI",1,"ZAPPA",5,"BERNABE'",15,"DELE-BASHIRU",3,"NERES",25,"NICO PAZ",1,"PULISIC",25,"RABIOT",35,"SERDAR",3,"SERGI ROBERTO",1,"COLOMBO",30,"GIMENEZ",42,"OPENDA",26,"SCAMACCA",1,"VAZ",1,"ZEMANLANDIA AFC","SAVA","UDI",3.5,7,5.5714285714285712,"IMI_C1_girone_B@googlegroups.com",0,"00:00:00",0,null,null,null,null,"FFC ROBERTO BONINSEGNA",null,null,"","","","","","","","","","","","","G1_EL NIÑO","EL NIÑO","MARUEGO BOYS","EUROPA LEAGUE -  G. 1",null,"ZZ_UDINESE 1896","ZZ_UDINESE 1896","ZZ_BEAUTIFUL BUT LOSERS","COPPA DI LEGA - FASE A GIRONI: 1a GIORNATA",null,null,null,null,null,null,0,0,"UDINESE 1896","BEAUTIFUL BUT LOSERS","G1"]
["A'NFAMI","CAPRILE",1,"CIOCCI",0,"SHERRI",0,"AUSEKLIS",0,"DELPRATO",2,"HERMOSO",1,"KEMPF",2,"OSTIGARD",1,"PALESTRA",2,"PONGRACIC",2,"RAMON",2,"TERRACCIANO F.",4,"BATURINA",14,"BERNABE'",13,"CRISTANTE",1,"EDERSON",8,"GUDMUNDSSON",23,"MCTOMINAY",97,"ODGAARD",2,"PASALIC",13,"LAURIENTÈ",1,"PINAMONTI",38,"RASPADORI",7,"RODRIGUEZ",13,"VITINHA",1,"A'NFAMI","CASTAGNINI","VER",0,0,0,"IMI_C2_girone_A@googlegroups.com",0,"00:00:00",0,null,null,null,null,"FFC SANDRO MAZZOLA",null,null,"","","","","","","","","","","","","G1_BOMBARELLANDIA","BOMBARELLANDIA","ALAN FORD'S TEAM","EUROPA LEAGUE -  G. 1",null,"ZZ_A'NFAMI","ZZ_A'NFAMI","ZZ_AL-ZENA","COPPA DI LEGA - FASE A GIRONI: 1a GIORNATA",null,null,null,null,null,null,0,0,"A'NFAMI","AL-ZENA","G1"]
["LOS","MAIGNAN",1,"TERRACCIANO",0,"TORRIANI",0,"DONEDA",0,"BASCHIROTTO",3,"CABAL",7,"CARACCIOLO",1,"KABASELE",1,"KAMARA",5,"LUPERTO",4,"MANCINI",9,"ZAPPA",1,"ATTA",9,"BALDANZI",1,"CATALDI",1,"LOCATELLI",3,"PAYERO",1,"RAMADANI",1,"TRAMONI",2,"ZALEWSKI",5,"BONAZZOLI",11,"MOREO",11,"SARR",1,"SOULE'",62,"SULEMANA K.",1,"LOS","MONTIPO'","VER",4.7727272727272725,33,6.1363636363636367,"IMI_C2_girone_A@googlegroups.com",0,"00:00:00",0,null,null,null,null,"FFC TARCISIO BURGNICH",null,null,"","","","","","","","","","","","","G1_TIME OUT","TIME OUT","ANDREAS","EUROPA LEAGUE -  G. 1",null,"ZZ_FFC EVARISTO BECCALOSSI","ZZ_FFC EVARISTO BECCALOSSI","ZZ_GIAMBOTTINO FC","COPPA DI LEGA - FASE A GIRONI: 1a GIORNATA",null,null,null,null,null,null,0,0,"FFC EVARISTO BECCALOSSI","GIAMBOTTINO FC","G1"]
["PIGGI","CARNESECCHI",17,"ROSSI",0,"SPORTIELLO",0,"ZANCHI",0,"AHANOR",1,"DI LORENZO",23,"DODO'",21,"GILA",1,"JOAO MARIO",1,"N'DICKA",1,"VASQUEZ",3,"VOJVODA",1,"ANGUISSA",15,"GINEITIS",1,"KARLSTROM",1,"KONÈ I.",1,"KOOPMEINERS",1,"ORSOLINI",37,"PISILLI",5,"ZIELINSKI",1,"ADAMS",35,"BELOTTI",1,"BERARDI",1,"KRSTOVIC",18,"SOLOMON",1,"PIGGI","PERILLI","VER",3.8333333333333335,3,6.166666666666667,"IMI_C2_girone_A@googlegroups.com",0,"00:00:00",0,null,null,null,null,"FFC TOPENHAM",null,null,"","","","","","","","","","","","","G1_ELEVEN LIONS","ELEVEN LIONS","ATLETICO SGANITO","EUROPA LEAGUE -  G. 1",null,"ZZ_LOS","ZZ_LOS","ZZ_LUPIN III","COPPA DI LEGA - FASE A GIRONI: 1a GIORNATA",null,null,null,null,null,null,0,0,"LOS","LUPIN III","G1"]
["BEAUTIFUL BUT LOSERS","BUTEZ",8,"CAVLINA",0,"VIGORITO",0,"MENKE",0,"CAMBIASO",7,"DJIMSITI",4,"HIEN",1,"HOLM",2,"KALULU",3,"KELLY",18,"MIRANDA",1,"ZORTEA",1,"BARELLA",40,"BERISHA",5,"ELMAS",1,"FADERA",7,"FERGUSON",7,"FREULER",2,"GANDELMAN",2,"MANDRAGORA",3,"DUROSINMI",2,"NZOLA",3,"PICCOLI",3,"THURAM",66,"VARDY",2,"BEAUTIFUL BUT LOSERS","TONIOLO","VER",0,0,0,"IMI_C2_girone_A@googlegroups.com",0,"00:00:00",0,null,null,null,null,"FIORENTINA",null,null,"","","","","","","","","","","","","G1_FFC GIUSEPPE BERGOMI","FFC GIUSEPPE BERGOMI","TROPEA","EUROPA LEAGUE -  G. 1",null,"ZZ_AS NEW TEAM","ZZ_AS NEW TEAM","ZZ_RED-GREEN","COPPA DI LEGA - FASE A GIRONI: 1a GIORNATA",null,null,null,null,null,null,0,0,"AS NEW TEAM","RED-GREEN","G1"]
["LUPIN III","DE GEA",12,"LEZZERINI",0,"CHRISTENSEN",0,"DOLFI",0,"BELLANOVA",28,"CUADRADO",2,"DE WINTER",2,"DIMARCO",35,"GOSENS",22,"MARUSIC",2,"MINA",2,"NORTON-CUFFY",2,"COULIBALY",2,"ELLERTSSON",2,"ISAKSEN",10,"MATIC",2,"MIRETTI",5,"TAYLOR",5,"TETE MORENTE",0,"ZHEGROVA",2,"CAMARDA",8,"FERGUSON E.",30,"LEAO",30,"OKEREKE",1,"SIMEONE",2,"LUPIN III","AHANOR","ATA",5.7105263157894735,19,5.7894736842105265,"IMI_C2_girone_A@googlegroups.com",0,"00:00:00",0,null,null,null,null,"FK'S TEAM",null,null,"","","","","","","","","","","","","G1_SALEX","SALEX","PICCIOTTI NERAZZURRI","EUROPA LEAGUE -  G. 1",null,"ZZ_3T","ZZ_3T","ZZ_OSTIAMARE FC","COPPA DI LEGA - FASE A GIRONI: 1a GIORNATA",null,null,null,null,null,null,0,0,"3T","OSTIAMARE FC","G1"]
["PRINCESS OF ETRURIA","SKORUPSKI",1,"PESSINA",0,"RAVAGLIA",0,"HAPPONEN",0,"BEUKEMA",1,"GABBIA",1,"GHILARDI",1,"RATERINK",1,"RENSCH",3,"SMOLCIC",1,"SPINAZZOLA",7,"ZIOLKOWSKI",1,"DIOUF",1,"EL AYNAOUI",15,"KONE'",41,"MCKENNIE",1,"MODRIC",12,"SAELEMAEKERS",7,"VERGARA",1,"ZARAGOZA",3,"BOGA",4,"DIAO",15,"DYBALA",67,"ESPOSITO SE.",1,"LAUTARO",81,"PRINCESS OF ETRURIA","BELLANOVA","ATA",5.7857142857142856,21,5.833333333333333,"IMI_C2_girone_A@googlegroups.com",0,"00:00:00",0,null,null,null,null,"FRIUL GALAXI",null,null,"","","","","","","","","","","","","G1_PANZER8","PANZER8","TEAM ENO","EUROPA LEAGUE -  G. 1",null,"ZZ_FC ROMA SUD","ZZ_FC ROMA SUD","ZZ_PRAVETTONI CC","COPPA DI LEGA - FASE A GIRONI: 1a GIORNATA",null,null,null,null,null,null,0,0,"FC ROMA SUD","PRAVETTONI CC","G1"]
["FC BIRO","DI GREGORIO",31,"PERIN",0,"PINSOGLIO",0,"HULI",0,"COCO",1,"GUTIERREZ",2,"LUCUMI'",2,"MARIPAN",1,"OLIVERA",2,"PEZZELLA",2,"RANIERI",1,"WESLEY",16,"EKKELENKAMP",2,"FOLORUNSHO",3,"GAETANO",1,"PULISIC",43,"SOTTIL",4,"SUCIC",18,"THORSTVEDT",1,"ZACCAGNI",61,"CANCELLIERI",3,"CASTRO",2,"FULLKRUG",16,"RATKOV",19,"STULIC",1,"FC BIRO","BERNASCONI","ATA",6.0227272727272725,22,6.0909090909090908,"IMI_C2_girone_A@googlegroups.com",0,"00:00:00",0,null,null,null,null,"FUFF TEAM",null,null,"","","","","","","","","","","","","G1_SVICAT","SVICAT","VIS TRONKO","EUROPA LEAGUE -  G. 1",null,"ZZ_ARMATA NERAZZURRA","ZZ_ARMATA NERAZZURRA","ZZ_NAPO-LEONI","COPPA DI LEGA - FASE A GIRONI: 1a GIORNATA",null,null,null,null,null,null,0,0,"ARMATA NERAZZURRA","NAPO-LEONI","G1"]
["NOJOSETTE","SOMMER",13,"MARTINEZ",0,"ADOMAVICIUS",0,"DI GENNARO",0,"BIRAGHI",3,"BREMER",5,"BUONGIORNO",4,"CELIK",3,"ESTUPINAN",7,"LAZARO",1,"TOMORI",15,"VITIK",1,"FAZZINI",5,"FOFANA",11,"FRATTESI",13,"FRENDRUP",11,"LOBOTKA",13,"MKHITARYAN",3,"PRATI",3,"THORSBY",1,"ALMQVIST",1,"COLOMBO",5,"DE KETELAERE",17,"ESPOSITO F.P.",3,"HOJLUND",101,"NOJOSETTE","DJIMSITI","ATA",5.790322580645161,31,5.854838709677419,"IMI_C2_girone_A@googlegroups.com",0,"00:00:00",0,null,null,null,null,"GABRY FC",null,null,"","","","","","","","","","","","","G1_VOTANTONIO","VOTANTONIO","STROMBOLI","EUROPA LEAGUE -  G. 1",null,"ZZ_FC BIRO","ZZ_FC BIRO","ZZ_PIGGI","COPPA DI LEGA - FASE A GIRONI: 1a GIORNATA",null,null,null,null,null,null,0,0,"FC BIRO","PIGGI","G1"]
["SFIGARENSE","MERET",1,"CONTINI",0,"MILINKOVIC",0,"FERRANTE",0,"BARTESAGHI",1,"BELGHALI",5,"CIRCATI",1,"DIEGO CARLOS",3,"GATTI",11,"PAVLOVIC",11,"RRAHMANI",11,"TIAGO GABRIEL",3,"BRESCIANINI",13,"CALHANOGLU",22,"ILING JUNIOR",3,"KEITA",3,"LUIS HENRIQUE",2,"MALDINI",1,"MALINOVSKYI",5,"STREFEZZA",17,"DOVBYK",1,"GIMENEZ",63,"LUKAKU",1,"YILDIZ",9,"ZAPATA",35,"SFIGARENSE","HIEN","ATA",5.833333333333333,27,5.8888888888888893,"IMI_C2_girone_A@googlegroups.com",0,"00:00:00",0,null,null,null,null,"GIAMBOTTINO FC",null,null,"","","","","","","","","","","","","G1_TITANS","TITANS","MANZO TEAM","EUROPA LEAGUE -  G. 1",null,"ZZ_NOJOSETTE","ZZ_NOJOSETTE","ZZ_FFC TARCISIO BURGNICH","COPPA DI LEGA - FASE A GIRONI: 1a GIORNATA",null,null,null,null,null,null,0,0,"NOJOSETTE","FFC TARCISIO BURGNICH","G1"]
["FFC TARCISIO BURGNICH","FALCONE",1,"FRUCHTL",0,"SAMOOJA",0,"PENEV",0,"ACERBI",21,"AKANJI",1,"BASTONI",25,"BISSECK",8,"CARLOS AUGUSTO",8,"DE VRIJ",1,"DUMFRIES",12,"HEGGEM",3,"CAQUERET",2,"CASADEI",5,"DE BRUYNE",62,"JASHARI",2,"PERRONE",2,"RICCI",2,"SAMARDZIC",3,"SUSLOV",1,"BONNY",2,"DOUVIKAS",10,"MALEN",44,"NKUNKU",2,"SCAMACCA",2,"FFC TARCISIO BURGNICH","KOLASINAC","ATA",5.9411764705882355,17,6.0294117647058822,"IMI_C2_girone_A@googlegroups.com",0,"00:00:00",0,null,null,null,null,"GOBBOFINCHECAMPO",null,null,"","","","","","","","","","","","","G1_BARBERA & CHAMPAGNE","BARBERA & CHAMPAGNE","DREAM TIN TEAM","EUROPA LEAGUE -  G. 1",null,"ZZ_INAZUMA ELEVEN","ZZ_INAZUMA ELEVEN","ZZ_VARCELLONA","COPPA DI LEGA - FASE A GIRONI: 1a GIORNATA",null,null,null,null,null,null,0,0,"INAZUMA ELEVEN","VARCELLONA","G1"]
["PICARD","MOTTA",1,"PROVEDEL",0,"GIACOMONE",0,"PANNOZZO",0,"KOLASINAC",1,"KOSSOUNOU",1,"KRISTENSEN",1,"ROMAGNOLI",3,"SCALVINI",5,"SOLET",1,"VALERI",1,"VALLE",2,"BERNARDESCHI",3,"CONCEICAO",6,"DE ROON",1,"FAGIOLI",9,"POLITANO",69,"ROWE",1,"THURAM K.",21,"VANDEPUTTE",2,"CAMBIAGHI",6,"DAVID",89,"DAVIS",1,"KEAN",30,"PELLEGRINO",1,"PICARD","KOSSOUNOU","ATA",6.09375,16,5.9375,"IMI_C2_girone_A@googlegroups.com",0,"00:00:00",0,null,null,null,null,"GRATTACHECCA",null,null,"","","","","","","","","","","","","G1_BORGOROSSO FC","BORGOROSSO F.C.","NAPOLI FOREVER","EUROPA LEAGUE -  G. 1",null,"ZZ_LAZIO","ZZ_LAZIO","ZZ_URACAN","COPPA DI LEGA - FASE A GIRONI: 1a GIORNATA",null,null,null,null,null,null,0,0,"LAZIO","URACAN","G1"]
["UDINESE 1896","SVILAR",5,"GOLLINI",0,"ZELEZNY",0,"DE MARZI",0,"BERNASCONI",5,"BERTOLA",2,"COMUZZO",1,"MARTIN",1,"MLACIC",1,"MUHAREMOVIC",1,"TAVARES",8,"ZAPPACOSTA",3,"DA CUNHA",1,"NICO PAZ",7,"PELLEGRINI LO.",1,"RABIOT",42,"SANTOS",7,"TOURE'",1,"VLASIC",11,"ZANIOLO",5,"BANDA",1,"GIOVANE",3,"OPENDA",38,"VAZ",9,"VLAHOVIC",72,"UDINESE 1896","SCALVINI","ATA",6.4545454545454541,22,6.0909090909090908,"IMI_C2_girone_A@googlegroups.com",0,"00:00:00",0,null,null,null,null,"HIC SUNT FERAE",null,null,"","","","","","","","","","","","","G1_OXFORD UNITED","OXFORD UNITED","LIVELE","EUROPA LEAGUE -  G. 1",null,"ZZ_OLYMPIC KEBAB","ZZ_OLYMPIC KEBAB","ZZ_DAGNE BOYS","COPPA DI LEGA - FASE A GIRONI: 1a GIORNATA",null,null,null,null,null,null,0,0,"OLYMPIC KEBAB","DAGNE BOYS","G1"]
["3T","MOTTA",7,"PROVEDEL",0,"GIACOMONE",0,"PANNOZZO",0,"ALBIOL",1,"DODO'",3,"DUMFRIES",13,"EHIZIBUE",1,"KOLASINAC",1,"ROMAGNOLI",12,"TOMORI",7,"ZORTEA",9,"BERNARDESCHI",22,"DE ROON",14,"EDERSON",7,"ORSOLINI",1,"PASALIC",3,"PULISIC",41,"SUCIC",12,"THORSTVEDT",5,"DE KETELAERE",42,"KEAN",7,"MORATA",18,"SARR",1,"STULIC",1,"3T","ZAPPACOSTA","ATA",6.2878787878787881,33,6.0606060606060606,"IMI_C2_girone_B@googlegroups.com",0,"00:00:00",0,null,null,null,null,"HOBBIT",null,null,"","","","","","","","","","","","","G1_JUVE93","JUVE93","KITEMMUOR TEAM","EUROPA LEAGUE -  G. 1",null,"ZZ_FFC ALESSANDRO ALTOBELLI","ZZ_FFC ALESSANDRO ALTOBELLI","ZZ_GOBBOFINCHECAMPO","COPPA DI LEGA - FASE A GIRONI: 1a GIORNATA",null,null,null,null,null,null,0,0,"FFC ALESSANDRO ALTOBELLI","GOBBOFINCHECAMPO","G1"]
["LAZIO","SUZUKI",1,"CORVI",0,"RINALDI",0,"ASTALDI",0,"DE WINTER",6,"GILA",1,"JOAO MARIO",21,"KAMARA",16,"NORTON-CUFFY",1,"PEZZELLA",1,"RRAHMANI",11,"VALERI",1,"BALDANZI",1,"CONCEICAO",31,"KONÈ I.",1,"PRATI",7,"RABIOT",46,"SAELEMAEKERS",14,"SAMARDZIC",1,"ZACCAGNI",61,"BANDA",1,"DALLINGA",1,"DIA",3,"LEAO",41,"YILDIZ",1,"LAZIO","CASALE","BOL",5.65,10,5.65,"IMI_C2_girone_B@googlegroups.com",0,"00:00:00",0,null,null,null,null,"I VAZANICCHI",null,null,"","","","","","","","","","","","","G1_LAMÙFOREVER","LAMÙFOREVER","COSENZA","EUROPA LEAGUE -  G. 1",null,"ZZ_RASTA DB","ZZ_RASTA DB","ZZ_REAL CHR","COPPA DI LEGA - FASE A GIRONI: 2a GIORNATA",null,null,null,null,null,null,0,0,"RASTA DB","REAL CHR","G2"]
["REAL PIPPERO","DI GREGORIO",25,"PERIN",0,"PINSOGLIO",0,"HULI",0,"BREMER",31,"CAMBIASO",10,"DI LORENZO",30,"HEGGEM",1,"IDZES",1,"JUAN JESUS",11,"KOSSOUNOU",1,"OSTIGARD",1,"ADOPO",1,"ADZIC",1,"BARELLA",10,"FAGIOLI",3,"GILMOUR",3,"MIRETTI",3,"THURAM K.",21,"ZHEGROVA",11,"BOWIE",5,"FULLKRUG",5,"MOREO",1,"PEDRO",1,"RODRIGUEZ",51,"REAL PIPPERO","DE SILVESTRI","BOL",5.9444444444444446,9,6.0555555555555554,"IMI_C2_girone_B@googlegroups.com",0,"00:00:00",0,null,null,null,null,"INAZUMA ELEVEN",null,null,"","","","","","","","","","","","","G1_BFC MARANO","SPORTING VINAO","BFC MARANO","EUROPA LEAGUE -  G. 1",null,"ZZ_TIME OUT","ZZ_TIME OUT","ZZ_LAMÙFOREVER","COPPA DI LEGA - FASE A GIRONI: 2a GIORNATA",null,null,null,null,null,null,0,0,"TIME OUT","LAMÙFOREVER","G2"]
["BEETLES","CAPRILE",4,"CIOCCI",0,"SHERRI",0,"AUSEKLIS",0,"ANGORI",3,"BIANCHETTI",2,"CARACCIOLO",4,"MARTIN",5,"MINA",2,"MUHAREMOVIC",4,"OBERT",7,"TIAGO GABRIEL",7,"CATALDI",11,"KARLSTROM",3,"KEITA",1,"LOBOTKA",6,"MATIC",2,"MORO",3,"PERRONE",5,"TAMEZE",6,"BONAZZOLI",11,"CAMBIAGHI",3,"EKHATOR",4,"KILICSOY",14,"SULEMANA K.",1,"BEETLES","HEGGEM","BOL",5.770833333333333,24,5.8125,"IMI_C2_girone_B@googlegroups.com",0,"00:00:00",0,null,null,null,null,"ISOLA CHE NON CE",null,null,"","","","","","","","","","","","","G1_ATLETICO PIGROTTO","DAJE MO'","ATLETICO PIGROTTO","EUROPA LEAGUE -  G. 1",null,"ZZ_DAJE MO'","ZZ_DAJE MO'","ZZ_A.S. TOTTIGO","COPPA DI LEGA - FASE A GIRONI: 2a GIORNATA",null,null,null,null,null,null,null,null,"DAJE MO'","A.S. TOTTIGO","G2"]
["PAPAVERI E PAPERE","BUTEZ",1,"CAVLINA",0,"VIGORITO",0,"MENKE",0,"ACERBI",13,"COCO",9,"DE SILVESTRI",4,"KABASELE",2,"KELLY",8,"LUPERTO",8,"TERRACCIANO F.",7,"ZAPPACOSTA",11,"ANGUISSA",9,"EKKELENKAMP",1,"FRENDRUP",14,"ISAKSEN",33,"LOCATELLI",23,"RAMADANI",11,"RICCI",17,"SOHM",6,"ESPOSITO F.P.",18,"ESPOSITO SE.",13,"GIOVANE",16,"LAUTARO",16,"SANABRIA",16,"PAPAVERI E PAPERE","HELLAND","BOL",5.125,4,5.375,"IMI_C2_girone_B@googlegroups.com","","","",null,null,null,null,"JUNIORT",null,null,"","","","","","","","","","","","","G1_MOMPRACEM","BLUES BROTHERS","MOMPRACEM","EUROPA LEAGUE -  G. 1",null,"ZZ_FFC GIUSEPPE BERGOMI","ZZ_FFC GIUSEPPE BERGOMI","ZZ_FC NAPOLI 2012","COPPA DI LEGA - FASE A GIRONI: 2a GIORNATA",null,null,null,null,null,null,null,null,"FFC GIUSEPPE BERGOMI","FC NAPOLI 2012","G2"]
["RED-GREEN","SOMMER",23,"MARTINEZ",0,"ADOMAVICIUS",0,"DI GENNARO",0,"CELIK",1,"CUADRADO",2,"HERMOSO",7,"KEMPF",2,"MANCINI",9,"RAMON",1,"SMOLCIC",1,"VAN DER BREMPT",1,"BATURINA",1,"FADERA",1,"FERGUSON",5,"KOSTIC",1,"MANDRAGORA",8,"NICO PAZ",3,"PISILLI",3,"ZALEWSKI",3,"GIMENEZ",96,"LAURIENTÈ",4,"LUKAKU",60,"PINAMONTI",1,"VLAHOVIC",6,"RED-GREEN","JOAO MARIO","BOL",5.9230769230769234,13,5.7692307692307692,"IMI_C2_girone_B@googlegroups.com","","","",null,null,null,null,"JUVE93",null,null,"","","","","","","","","","","","","G1_EL NINO FC","A.C. ZDENEK","EL NINO FC","EUROPA LEAGUE -  G. 1",null,"ZZ_P CUATRO","ZZ_P CUATRO","ZZ_FANTARAPID CACCAMO","COPPA DI LEGA - FASE A GIRONI: 2a GIORNATA",null,null,null,null,null,null,"ABETO FC","RASTA DB","P CUATRO","FANTARAPID CACCAMO","G2"]
["FFC EVARISTO BECCALOSSI","SKORUPSKI",2,"PESSINA",0,"RAVAGLIA",0,"HAPPONEN",0,"AHANOR",1,"BERNASCONI",1,"DOIG",1,"KALULU",2,"LUCUMI'",1,"OBRADOR",1,"PALESTRA",3,"SCALVINI",1,"ATTA",12,"BERNABE'",3,"CALHANOGLU",23,"DE BRUYNE",78,"MALINOVSKYI",2,"ROWE",4,"SANTOS",1,"ZARAGOZA",1,"BERARDI",44,"COLOMBO",2,"DIAO",1,"DOUVIKAS",3,"VARDY",45,"FFC EVARISTO BECCALOSSI","LUCUMI'","BOL",5.8888888888888893,27,5.8703703703703702,"IMI_C2_girone_B@googlegroups.com","","","",null,null,null,null,"KITEMMUOR TEAM",null,null,"","","","","","","","","","","","","G1_TWOSTARS","DIAMANTE","TWOSTARS","EUROPA LEAGUE -  G. 1",null,"ZZ_FC ZETAJ TEAM 1999","ZZ_FC ZETAJ TEAM 1999","ZZ_REAL GENOA","COPPA DI LEGA - FASE A GIRONI: 2a GIORNATA",null,null,null,null,null,null,"EROI DEL 1982","CICCILLO","FC ZETAJ TEAM 1999","REAL GENOA","G2"]
["PERDENTUS FC","DE GEA",1,"LEZZERINI",0,"CHRISTENSEN",0,"DOLFI",0,"BASTONI",19,"CARLOS AUGUSTO",1,"DELPRATO",1,"DIEGO CARLOS",1,"GUTIERREZ",1,"MIRANDA",2,"OLIVERA",1,"PROVSTGAARD",1,"CAQUERET",1,"ELMAS",1,"FOFANA",2,"GAETANO",1,"NERES",2,"ODGAARD",7,"VANDEPUTTE",5,"VERGARA",2,"BONNY",1,"CASTRO",3,"DAVIS",1,"EKUBAN",1,"ZAPATA",35,"PERDENTUS FC","LYKOGIANNIS","BOL",5.4375,8,5.625,"IMI_C2_girone_B@googlegroups.com","","","",null,null,null,null,"LA BANDA DEGLI ONESTI",null,null,"","","","","","","","","","","","","G1_NEAPOLIS","FRIUL GALAXI","NEAPOLIS","EUROPA LEAGUE -  G. 1",null,"ZZ_A.C. ZDENEK","ZZ_A.C. ZDENEK","ZZ_AMOREODIO","COPPA DI LEGA - FASE A GIRONI: 2a GIORNATA",null,null,null,null,null,null,"EU...REKA","FC PARTIZAN DEGRADO","A.C. ZDENEK","AMOREODIO","G2"]
["VARCELLONA","SVILAR",5,"GOLLINI",0,"ZELEZNY",0,"DE MARZI",0,"AKANJI",19,"BISSECK",1,"BUONGIORNO",19,"DIMARCO",25,"GABBIA",1,"GOSENS",19,"HIEN",1,"PAVLOVIC",2,"BERISHA",2,"COULIBALY",2,"FRATTESI",18,"GUDMUNDSSON",16,"LUIS HENRIQUE",12,"MKHITARYAN",14,"POLITANO",2,"ZIELINSKI",12,"DAVID",30,"NKUNKU",12,"SCAMACCA",30,"SOLOMON",1,"VITINHA",3,"VARCELLONA","MIRANDA","BOL",6,29,6,"IMI_C2_girone_B@googlegroups.com","","","",null,null,null,null,"LA MUCONE",null,null,"","","","","","","","","","","","","G1_CACAO MERAVIGLIAO","ZEMANLANDIA AFC","CACAO MERAVIGLIAO","EUROPA LEAGUE -  G. 1",null,"ZZ_ATLETICO PIPPAO","ZZ_ATLETICO PIPPAO","ZZ_ENDYMION","COPPA DI LEGA - FASE A GIRONI: 2a GIORNATA",null,null,null,null,null,null,"MAGODINA FC","LA VECCHIA GUARDIA","ATLETICO PIPPAO","ENDYMION","G2"]
["FK'S TEAM","CARNESECCHI",30,"ROSSI",0,"SPORTIELLO",0,"ZANCHI",0,"BEUKEMA",2,"BRADARIC",5,"CANESTRELLI",10,"COMUZZO",10,"GALLO",5,"RENSCH",3,"SOLET",10,"VITIK",10,"ELLERTSSON",5,"FABBIAN",2,"FOLORUNSHO",5,"FREULER",2,"KONE'",15,"MESSIAS",2,"NICOLUSSI CAVIGLIA",13,"TAYLOR",3,"ADAMS",21,"KRSTOVIC",10,"MALEN",69,"PICCOLI",2,"SOULE'",20,"FK'S TEAM","VITIK","BOL",5.8611111111111107,18,5.9444444444444446,"IMI_C2_girone_B@googlegroups.com","","","",null,null,null,null,"LA VECCHIA GUARDIA",null,null,"","","","","","","","","","","","","G1_TORI BRIANZOLI","FC ZETAJ TEAM 1999","TORI BRIANZOLI","EUROPA LEAGUE -  G. 1",null,"ZZ_FC FANTATLETICO","ZZ_FC FANTATLETICO","ZZ_MOMENTI DI GLORIA","COPPA DI LEGA - FASE A GIRONI: 2a GIORNATA",null,null,null,null,null,null,"PARASITE","ATLETICO SQUONK","FC FANTATLETICO","MOMENTI DI GLORIA","G2"]
["REAL FARNESE","MAIGNAN",11,"TERRACCIANO",0,"TORRIANI",0,"DONEDA",0,"ANGELINO",1,"GHILARDI",1,"KRISTENSEN",1,"N'DICKA",25,"SPINAZZOLA",1,"VALLE",1,"VOJVODA",1,"WESLEY",36,"EL AYNAOUI",1,"GANDELMAN",1,"GINEITIS",1,"MALDINI",1,"MCKENNIE",1,"PELLEGRINI LO.",1,"STREFEZZA",1,"ZANIOLO",1,"BELOTTI",1,"BOGA",1,"DYBALA",67,"PELLEGRINO",7,"RASPADORI",7,"REAL FARNESE","ZORTEA","BOL",5.8148148148148149,27,5.8518518518518521,"IMI_C2_girone_B@googlegroups.com","","","",null,null,null,null,"LA10 BIELLA FC",null,null,"","","","","","","","","","","","","G1_ATLETICO MA NON TROPPO","ALL BLACKS","ATLETICO MA NON TROPPO","EUROPA LEAGUE -  G. 1",null,"ZZ_FANTASPEZIA","ZZ_FANTASPEZIA","ZZ_OXFORD UNITED","COPPA DI LEGA - FASE A GIRONI: 2a GIORNATA",null,null,null,null,null,null,"NASONE NERAZZURRO","REAL BUGGY","FANTASPEZIA","OXFORD UNITED","G2"]
["ZERVENA VIGIAK","MERET",7,"CONTINI",0,"MILINKOVIC",0,"FERRANTE",0,"BARTESAGHI",2,"BASCHIROTTO",4,"BELLANOVA",3,"DJIMSITI",9,"GARCIA",1,"MARUSIC",9,"VASQUEZ",9,"ZAPPA",1,"CASADEI",2,"CRISTANTE",3,"DA CUNHA",1,"MCTOMINAY",16,"MODRIC",13,"PIEROTTI",6,"POBEGA",2,"VLASIC",12,"CANCELLIERI",1,"HOJLUND",92,"NZOLA",12,"SIMEONE",43,"THURAM",113,"ZERVENA VIGIAK","DOSSENA","CAG",5.5,9,5.7777777777777777,"IMI_C2_girone_B@googlegroups.com","","","",null,null,null,null,"LAMÙFOREVER",null,null,"","","","","","","","","","","","","G1_MOMENTI DI GLORIA FMC","FANTASPEZIA","MOMENTI DI GLORIA FMC","EUROPA LEAGUE -  G. 1",null,"ZZ_FC PARTIZAN DEGRADO","ZZ_FC PARTIZAN DEGRADO","ZZ_CLOCKWORK ORANGE FC","COPPA DI LEGA - FASE A GIRONI: 2a GIORNATA",null,null,null,null,null,null,"ROSSOBLU FC","ZERU TITULI","FC PARTIZAN DEGRADO","CLOCKWORK ORANGE FC","G2"]
["AS TOTTIGO","BUTEZ",5,"CAVLINA",0,"VIGORITO",0,"MENKE",0,"BREMER",21,"DJIMSITI",3,"KALULU",5,"LUCUMI'",3,"MARIANUCCI",1,"PONGRACIC",3,"ROMAGNOLI",2,"RUGANI",2,"DE BRUYNE",71,"EL SHAARAWY",1,"ISAKSEN",11,"KARLSTROM",1,"KONE'",11,"NERES",2,"POLITANO",11,"THURAM K.",11,"BOGA",3,"CAMBIAGHI",11,"CANCELLIERI",2,"MALEN",120,"RASPADORI",75,"A.S. TOTTIGO","IDRISSI","CAG",6.0882352941176467,17,5.8235294117647056,"cihf_a@googlegroups.com","","","",null,null,null,null,"LAZIO",null,null,"","","","","","","","","","","","","G1_FC JAVIER ZANETTI","PRENESTINO FC","FC JAVIER ZANETTI","EUROPA LEAGUE -  G. 1",null,"ZZ_FFC SANDRO MAZZOLA","ZZ_FFC SANDRO MAZZOLA","ZZ_SALENTO FC","COPPA DI LEGA - FASE A GIRONI: 2a GIORNATA",null,null,null,null,null,null,"2TWINS4EVER","SWANSEA","FFC SANDRO MAZZOLA","SALENTO FC","G2"]
["FC NAPOLI 2012","MERET",3,"CONTINI",0,"MILINKOVIC",0,"FERRANTE",0,"DI LORENZO",7,"EHIZIBUE",1,"GILA",3,"HIEN",2,"KOSSOUNOU",7,"OLIVERA",3,"OSTIGARD",1,"PEZZELLA",1,"ANGUISSA",23,"COULIBALY",1,"FRATTESI",3,"GAETANO",3,"KEITA",1,"ROWE",6,"TOURE'",2,"ZERBIN",3,"DOVBYK",13,"HOJLUND",110,"KRSTOVIC",37,"SANABRIA",9,"VITINHA",7,"FC NAPOLI 2012","MINA","CAG",5.958333333333333,24,5.9375,"cihf_a@googlegroups.com","","","",null,null,null,null,"LIVELE",null,null,"","","","","","","","","","","","","G1_CAVESE","ATLETICO PIPPAO","CAVESE","EUROPA LEAGUE -  G. 1",null,"ZZ_EL NIÑO","ZZ_EL NIÑO","ZZ_VOTANTONIO","COPPA DI LEGA - FASE A GIRONI: 2a GIORNATA",null,null,null,null,null,null,"EARL & SOUL GALEONE","REAL CHR","EL NIÑO","VOTANTONIO","G2"]
["REAL GENOA","DE GEA",17,"LEZZERINI",0,"CHRISTENSEN",0,"DOLFI",0,"BASTONI",25,"BELLANOVA",2,"CAMBIASO",8,"CELIK",2,"DODO'",1,"GUTIERREZ",5,"KABASELE",2,"PROVSTGAARD",1,"ATTA",1,"CAQUERET",1,"CRISTANTE",2,"DE ROON",6,"KONÈ I.",1,"MCKENNIE",6,"MESSIAS",1,"PELLEGRINI LO.",19,"COLOMBO",18,"DIA",26,"FERGUSON E.",1,"GIMENEZ",31,"VLAHOVIC",98,"REAL GENOA","OBERT","CAG",5.703125,32,5.859375,"cihf_a@googlegroups.com","","","",null,null,null,null,"LIVERCOOL",null,null,"","","","","","","","","","","","","G1_BAYER LEVERRUKE","LA BANDA DEGLI ONESTI","BAYER LEVERRUKE","EUROPA LEAGUE -  G. 1",null,"ZZ_SPORTING LABRONICA","ZZ_SPORTING LABRONICA","ZZ_PANZER8","COPPA DI LEGA - FASE A GIRONI: 2a GIORNATA",null,null,null,null,null,null,"FUFF TEAM","UDI ONE","SPORTING LABRONICA","PANZER8","G2"]
["ATLETICO SQUONK","CARNESECCHI",3,"ROSSI",0,"SPORTIELLO",0,"ZANCHI",0,"BERNASCONI",31,"BUONGIORNO",9,"DIEGO CARLOS",4,"DUMFRIES",21,"EDMUNDSSON",4,"JUAN JESUS",3,"KEMPF",1,"MARTIN",2,"BATURINA",7,"BERNABE'",10,"DA CUNHA",20,"EDERSON",42,"FAGIOLI",10,"NICO PAZ",12,"PERRONE",4,"ZIELINSKI",2,"BONNY",28,"BOWIE",1,"ESPOSITO F.P.",45,"MORATA",24,"RODRIGUEZ",26,"ATLETICO SQUONK","PALESTRA","CAG",6.3,35,6.2571428571428571,"cihf_a@googlegroups.com","","","",null,null,null,null,"LOS",null,null,"","","","","","","","","","","","","G1_A TUTTA CALLARA","FFC SANDRO MAZZOLA","A TUTTA CALLARA","EUROPA LEAGUE -  G. 1",null,"ZZ_FRIUL GALAXI","ZZ_FRIUL GALAXI","ZZ_REAL BABBUDOIU","COPPA DI LEGA - FASE A GIRONI: 2a GIORNATA",null,null,null,null,null,null,"CATENACCIO & CONTROPIEDE","SPORTING LABRONICA","FRIUL GALAXI","REAL BABBUDOIU","G2"]
["RASTA DB","MOTTA",7,"PROVEDEL",0,"GIACOMONE",0,"PANNOZZO",0,"ACERBI",3,"AKANJI",3,"GARCIA",1,"GATTI",3,"LUPERTO",1,"MARIPAN",3,"MARUSIC",1,"VASQUEZ",1,"ELMAS",1,"GANDELMAN",1,"MALINOVSKYI",1,"ORSOLINI",94,"PULISIC",103,"VERGARA",23,"VLASIC",2,"VOLPATO",1,"DAVID",83,"DOUVIKAS",1,"LAUTARO",203,"MOREO",1,"ZAPATA",1,"RASTA DB","RATERINK","CAG",0,0,0,"cihf_a@googlegroups.com","","","",null,null,null,null,"LUCHINS",null,null,"","","","","","","","","","","","","G1_MOKA JUNIORS","AS NEW TEAM","MOKA JUNIORS","EUROPA LEAGUE -  G. 1",null,"ZZ_ATLETICO SQUONK","ZZ_ATLETICO SQUONK","ZZ_SAN SIRO","COPPA DI LEGA - FASE A GIRONI: 2a GIORNATA",null,null,null,null,null,null,"DINAMO VIGIAK","FFC ANGELO DOMENGHINI","ATLETICO SQUONK","SAN SIRO","G2"]
["SALENTO FC","BIJLOW",1,"LEALI",0,"SIEGRIST",0,"SOMMARIVA",0,"ANGORI",2,"COCO",2,"GASPAR",1,"MINA",1,"MIRANDA",2,"MUHAREMOVIC",1,"VALLE",1,"ZORTEA",1,"ADOPO",3,"BALDANZI",1,"KOOPMEINERS",32,"SOTTIL",8,"STREFEZZA",25,"ZACCAGNI",60,"ZANIOLO",2,"ZHEGROVA",15,"GIOVANE",8,"MOSQUERA",10,"PICCOLI",1,"SOLOMON",30,"YILDIZ",35,"SALENTO FC","RODRIGUEZ JU.","CAG",5.4333333333333336,15,5.5333333333333332,"cihf_a@googlegroups.com","","","",null,null,null,null,"LUPIN III",null,null,"","","","","","","","","","","","","G1_FIORENTINA","P CUATRO","FIORENTINA","EUROPA LEAGUE -  G. 1",null,"ZZ_ZERU TITULI","ZZ_ZERU TITULI","ZZ_AMBROSIANA","COPPA DI LEGA - FASE A GIRONI: 2a GIORNATA",null,null,null,null,null,null,"RAT-MEN","A.S. TOTTIGO","ZERU TITULI","AMBROSIANA","G2"]
["CLOCKWORK ORANGE FC","SVILAR",31,"GOLLINI",0,"ZELEZNY",0,"DE MARZI",0,"BISSECK",2,"HERMOSO",6,"KAMARA",3,"PAVLOVIC",16,"RAMON",7,"WESLEY",21,"ZAPPA",2,"ZEMURA",1,"CONCEICAO",31,"FERGUSON",6,"FRENDRUP",3,"GUDMUNDSSON",31,"LOCATELLI",7,"PASALIC",4,"RICCI",7,"VANDEPUTTE",4,"ADAMS",11,"DAVIS",47,"DYBALA",76,"EKHATOR",2,"ORBAN",19,"CLOCKWORK ORANGE FC","ZAPPA","CAG",5.8478260869565215,23,5.8913043478260869,"cihf_a@googlegroups.com","","","",null,null,null,null,"MAGODINA FC",null,null,"","","","","","","","","","","","","G1_FC TRIPLETE","INAZUMA ELEVEN","FC TRIPLETE","EUROPA LEAGUE -  G. 1",null,"ZZ_REAL BUCCINASCO","ZZ_REAL BUCCINASCO","ZZ_BARBERA & CHAMPAGNE","COPPA DI LEGA - FASE A GIRONI: 2a GIORNATA",null,null,null,null,null,null,"GABRY FC","JUNIORT","REAL BUCCINASCO","BARBERA & CHAMPAGNE","G2"]
["REAL BABBUDOIU","DI GREGORIO",42,"PERIN",0,"PINSOGLIO",0,"HULI",0,"BARBIERI",1,"BELGHALI",1,"DELPRATO",3,"GALLO",2,"GHILARDI",1,"NORTON-CUFFY",4,"PALESTRA",2,"TAVARES",18,"BASIC",1,"EL AYNAOUI",1,"ELLERTSSON",1,"FOLORUNSHO",2,"MALDINI",3,"SAELEMAEKERS",12,"SANTOS",13,"TAYLOR",8,"FULLKRUG",2,"KEAN",67,"NKUNKU",2,"SIMEONE",3,"VAZ",1,"REAL BABBUDOIU","ZE PEDRO","CAG",5.6428571428571432,21,5.7619047619047619,"cihf_a@googlegroups.com","","","",null,null,null,null,"MANCHO FERE",null,null,"","","","","","","","","","","","","G1_MARUEGO BOYS","EL NIÑO","MARUEGO BOYS","EUROPA LEAGUE -  G. 1",null,"ZZ_REAL GRIFO","ZZ_REAL GRIFO","ZZ_CAVESE","COPPA DI LEGA - FASE A GIRONI: 2a GIORNATA",null,null,null,null,null,null,"BAR MARIO","MOMENTI DI GLORIA","REAL GRIFO","CAVESE","G2"]
["VOTANTONIO","SKORUPSKI",2,"PESSINA",0,"RAVAGLIA",0,"HAPPONEN",0,"BARTESAGHI",1,"DE WINTER",1,"GABBIA",8,"GOSENS",33,"N'DICKA",6,"PARISI",1,"TIAGO GABRIEL",1,"VOJVODA",1,"BRESCIANINI",6,"CASADEI",13,"FOFANA",6,"JASHARI",13,"MANDRAGORA",1,"MKHITARYAN",7,"PISILLI",3,"ROVELLA",2,"BONAZZOLI",14,"DIAO",1,"LAURIENTÈ",18,"LEAO",97,"PELLEGRINO",42,"VOTANTONIO","DIEGO CARLOS","COM",6.1,25,6.14,"cihf_a@googlegroups.com","","","",null,null,null,null,"MANZO TEAM",null,null,"","","","","","","","","","","","","G1_ALAN FORD'S TEAM","BOMBARELLANDIA","ALAN FORD'S TEAM","EUROPA LEAGUE -  G. 1",null,"ZZ_LA MUCONE","ZZ_LA MUCONE","ZZ_CICCILLO","COPPA DI LEGA - FASE A GIRONI: 2a GIORNATA",null,null,null,null,null,null,"NICKSTREGA","BRUDYLEGHORN","LA MUCONE","CICCILLO","G2"]
["ENDYMION","CAPRILE",1,"CIOCCI",0,"SHERRI",0,"AUSEKLIS",0,"AHANOR",7,"BASCHIROTTO",1,"CARLOS AUGUSTO",11,"DIMARCO",55,"KOLASINAC",1,"KRISTENSEN",11,"RANIERI",1,"ZAPPACOSTA",11,"DELE-BASHIRU",1,"FREULER",13,"LOBOTKA",29,"LUIS HENRIQUE",1,"MODRIC",11,"NDOUR",3,"SUCIC",11,"ZALEWSKI",3,"CASTRO",7,"ELPHEGE",1,"ESPOSITO SE.",7,"NOSLIN",1,"SCAMACCA",22,"ENDYMION","GOLDANIGA","COM",0,0,0,"cihf_a@googlegroups.com","","","",null,null,null,null,"MARIANNA",null,null,"","","","","","","","","","","","","G1_ANDREAS","TIME OUT","ANDREAS","EUROPA LEAGUE -  G. 1",null,"ZZ_COSENZA","ZZ_COSENZA","ZZ_MARUEGO BOYS","COPPA DI LEGA - FASE A GIRONI: 2a GIORNATA",null,null,null,null,null,null,"FERRON","CLOCKWORK ORANGE FC","COSENZA","MARUEGO BOYS","G2"]
["REAL CHR","SOMMER",45,"MARTINEZ",0,"ADOMAVICIUS",0,"DI GENNARO",0,"DOIG",5,"LAZARO",7,"MANCINI",4,"OBERT",1,"SOLET",2,"SPINAZZOLA",3,"TERRACCIANO F.",4,"VEIGA",3,"BARELLA",25,"BERNARDESCHI",2,"EKKELENKAMP",4,"GINEITIS",1,"MATIC",1,"MCTOMINAY",22,"RABIOT",52,"SAMARDZIC",38,"CAMARDA",25,"DE KETELAERE",55,"KILICSOY",14,"LUKAKU",25,"PINAMONTI",11,"REAL CHR","KEMPF","COM",6.4814814814814818,27,6.0925925925925926,"cihf_a@googlegroups.com","","","",null,null,null,null,"MARUEGO BOYS",null,null,"","","","","","","","","","","","","G1_ATLETICO SGANITO","ELEVEN LIONS","ATLETICO SGANITO","EUROPA LEAGUE -  G. 1",null,"ZZ_BETIS SEVILLA","ZZ_BETIS SEVILLA","ZZ_ATLETICO PIGROTTO","COPPA DI LEGA - FASE A GIRONI: 2a GIORNATA",null,null,null,null,null,null,"GRATTACHECCA","MARIANNA","BETIS SEVILLA","ATLETICO PIGROTTO","G2"]
["ZERU TITULI","MAIGNAN",36,"TERRACCIANO",0,"TORRIANI",0,"DONEDA",0,"BEUKEMA",2,"CARACCIOLO",1,"KELLY",1,"RRAHMANI",7,"SCALVINI",1,"TOMORI",3,"VALERI",1,"VITIK",3,"CALHANOGLU",51,"FABBIAN",1,"LOFTUS-CHEEK",7,"MILLER",1,"ODGAARD",1,"PIEROTTI",1,"THORSTVEDT",5,"TRAMONI",8,"BERARDI",52,"KULENOVIC",2,"SOULE'",11,"THURAM",93,"VARDY",42,"ZERU TITULI","MORENO","COM",6.1428571428571432,14,6,"cihf_a@googlegroups.com","","","",null,null,null,null,"MOKA JUNIORS",null,null,"","","","","","","","","","","","","G1_TROPEA","FFC GIUSEPPE BERGOMI","TROPEA","EUROPA LEAGUE -  G. 1",null,"ZZ_DREAM TIN TEAM","ZZ_DREAM TIN TEAM","ZZ_MOMENTI DI GLORIA FMC","COPPA DI LEGA - FASE A GIRONI: 2a GIORNATA",null,null,null,null,null,null,"BLACK&WHITE","FANTARAPID CACCAMO","DREAM TIN TEAM","MOMENTI DI GLORIA FMC","G2"]
["FANTARAPID CACCAMO","SKORUPSKI",16,"PESSINA",0,"RAVAGLIA",0,"HAPPONEN",0,"ANGORI",3,"BELLANOVA",13,"DUMFRIES",21,"GABBIA",1,"MARIPAN",1,"PALESTRA",2,"VASQUEZ",1,"WESLEY",24,"FAGIOLI",1,"GAETANO",12,"ISAKSEN",16,"MKHITARYAN",13,"ODGAARD",20,"STREFEZZA",25,"TOURE'",1,"VLASIC",8,"ESPOSITO SE.",2,"FERGUSON E.",168,"KRSTOVIC",21,"PINAMONTI",31,"STULIC",15,"FANTARAPID CACCAMO","RAMON","COM",6.166666666666667,30,6.166666666666667,"cihf_b@googlegroups.com","","","",null,null,null,null,"MOMENTI DI GLORIA",null,null,"","","","","","","","","","","","","G1_PICCIOTTI NERAZZURRI","SALEX","PICCIOTTI NERAZZURRI","EUROPA LEAGUE -  G. 1",null,"ZZ_A TUTTA CALLARA","ZZ_A TUTTA CALLARA","ZZ_LA VECCHIA GUARDIA","COPPA DI LEGA - FASE A GIRONI: 2a GIORNATA",null,null,null,null,null,null,"TC WILLIAMS","LA MUCONE","A TUTTA CALLARA","LA VECCHIA GUARDIA","G2"]
["FFC SANDRO MAZZOLA","BUTEZ",1,"CAVLINA",0,"VIGORITO",0,"MENKE",0,"BREMER",26,"DOIG",1,"GALLO",1,"KEMPF",2,"MINA",2,"SMOLCIC",2,"TROILO",1,"ZAPPA",1,"DE BRUYNE",77,"FERGUSON",1,"JASHARI",2,"POLITANO",39,"RICCI",1,"ROWE",2,"SUSLOV",1,"ZANIOLO",2,"BOWIE",1,"DAVID",26,"DAVIS",5,"LAUTARO",186,"MORATA",2,"FFC SANDRO MAZZOLA","SMOLCIC","COM",5.7608695652173916,23,5.9347826086956523,"cihf_b@googlegroups.com","","","",null,null,null,null,"MOMENTI DI GLORIA FMC",null,null,"","","","","","","","","","","","","G1_TEAM ENO","PANZER8","TEAM ENO","EUROPA LEAGUE -  G. 1",null,"ZZ_ACRESE","ZZ_ACRESE","ZZ_ANDREAS","COPPA DI LEGA - FASE A GIRONI: 2a GIORNATA",null,null,null,null,null,null,"VIS FONNO","SAN SIRO","ACRESE","ANDREAS","G2"]
["OXFORD UNITED","MERET",16,"CONTINI",0,"MILINKOVIC",0,"FERRANTE",0,"BARBIERI",1,"HEGGEM",3,"KELLY",2,"MUHAREMOVIC",1,"PONGRACIC",7,"RANIERI",6,"VALLE",1,"VOJVODA",6,"ATTA",18,"BERNABE'",18,"KONÈ I.",1,"KOOPMEINERS",42,"LOCATELLI",23,"MESSIAS",5,"ONDREJKA",1,"SAMARDZIC",1,"BONNY",14,"DE KETELAERE",31,"HOJLUND",81,"KEAN",98,"RODRIGUEZ",6,"OXFORD UNITED","VALLE","COM",6.115384615384615,26,6.0576923076923075,"cihf_b@googlegroups.com","","","",null,null,null,null,"MOMPRACEM",null,null,"","","","","","","","","","","","","G1_VIS TRONKO","SVICAT","VIS TRONKO","EUROPA LEAGUE -  G. 1",null,"ZZ_HIC SUNT FERAE","ZZ_HIC SUNT FERAE","ZZ_REAL BUGGY","COPPA DI LEGA - FASE A GIRONI: 2a GIORNATA",null,null,null,null,null,null,"FC BIBI 04","ISOLA CHE NON CE","HIC SUNT FERAE","REAL BUGGY","G2"]
["FANTASPEZIA","DI GREGORIO",27,"PERIN",0,"PINSOGLIO",0,"HULI",0,"AHANOR",7,"BERTOLA",2,"EHIZIBUE",2,"GATTI",12,"HOLM",1,"MANCINI",7,"SPINAZZOLA",12,"ZAPPACOSTA",12,"FREULER",3,"GUDMUNDSSON",17,"MALDINI",2,"MANDRAGORA",7,"ORSOLINI",32,"PASALIC",24,"PIOTROWSKI",3,"POBEGA",2,"CAMBIAGHI",3,"DOVBYK",42,"MOREO",2,"NZOLA",13,"SANABRIA",14,"FANTASPEZIA","VAN DER BREMPT","COM",5.833333333333333,12,5.916666666666667,"cihf_b@googlegroups.com","","","",null,null,null,null,"NAPO-LEONI",null,null,"","","","","","","","","","","","","G1_STROMBOLI","VOTANTONIO","STROMBOLI","EUROPA LEAGUE -  G. 1",null,"ZZ_RASTA ZETA","ZZ_RASTA ZETA","ZZ_FIORENTINA","COPPA DI LEGA - FASE A GIRONI: 2a GIORNATA",null,null,null,null,null,null,"LUCHINS","REAL GENOA","RASTA ZETA","FIORENTINA","G2"]
["FRIUL GALAXI","SVILAR",1,"GOLLINI",0,"ZELEZNY",0,"DE MARZI",0,"ARIZALA",1,"BUONGIORNO",9,"CAMBIASO",9,"DIEGO CARLOS",3,"GUTIERREZ",2,"HERMOSO",5,"KOSSOUNOU",1,"ZORTEA",5,"BERNARDESCHI",3,"EKKELENKAMP",1,"ELMAS",12,"LAHDO",1,"MODRIC",16,"NICO PAZ",6,"VERGARA",2,"ZACCAGNI",14,"DYBALA",9,"KUHN",3,"SOULE'",15,"VAZ",3,"VLAHOVIC",107,"FRIUL GALAXI","VOJVODA","COM",6.2222222222222223,27,6.0185185185185182,"cihf_b@googlegroups.com","","","",null,null,null,null,"NAPOLI FOREVER",null,null,"","","","","","","","","","","","","G1_MANZO TEAM","TITANS","MANZO TEAM","EUROPA LEAGUE -  G. 1",null,"ZZ_MARIANNA","ZZ_MARIANNA","ZZ_FFC ANGELO DOMENGHINI","COPPA DI LEGA - FASE A GIRONI: 2a GIORNATA",null,null,null,null,null,null,"AC DERBOLINA","AC MORRONE","MARIANNA","FFC ANGELO DOMENGHINI","G2"]
["P CUATRO","ISRAEL",21,"PALEARI",0,"SIVIERO",0,"SANTER",0,"ACERBI",2,"AKANJI",3,"BASCHIROTTO",21,"CANESTRELLI",9,"LUCUMI'",6,"TAVARES",21,"TERRACCIANO F.",11,"TOMORI",9,"BARELLA",63,"DA CUNHA",6,"ILKHAN",1,"MAZZITELLI",5,"NERES",31,"PIEROTTI",3,"PULISIC",51,"SUCIC",13,"BERARDI",51,"BONAZZOLI",3,"DIA",33,"RASPADORI",41,"ZAPATA",1,"P CUATRO","BARBIERI","CRE",5.86,25,6,"cihf_b@googlegroups.com","","","",null,null,null,null,"NASONE NERAZZURRO",null,null,"","","","","","","","","","","","","G1_DREAM TIN TEAM","BARBERA & CHAMPAGNE","DREAM TIN TEAM","EUROPA LEAGUE -  G. 1",null,"ZZ_NORTH COCKS","ZZ_NORTH COCKS","ZZ_JUNIORT","COPPA DI LEGA - FASE A GIRONI: 2a GIORNATA",null,null,null,null,null,null,"RED HOT CHILI PEPPERS","REAL BABBUDOIU","NORTH COCKS","JUNIORT","G2"]
["FC PARTIZAN DEGRADO","DE GEA",1,"LEZZERINI",0,"CHRISTENSEN",0,"DOLFI",0,"CELIK",5,"COCO",2,"DJIMSITI",1,"HIEN",1,"KOLASINAC",1,"LAZARO",1,"MARUSIC",1,"ROMAGNOLI",1,"CALHANOGLU",51,"CATALDI",1,"EL AYNAOUI",1,"KONE'",16,"LOFTUS-CHEEK",23,"MCKENNIE",1,"SAELEMAEKERS",1,"THORSBY",1,"CASTRO",23,"DOUVIKAS",41,"MALEN",51,"THURAM",31,"VARDY",43,"FC PARTIZAN DEGRADO","BASCHIROTTO","CRE",6.1206896551724137,29,5.9482758620689653,"cihf_b@googlegroups.com","","","",null,null,null,null,"NEAPOLIS",null,null,"","","","","","","","","","","","","G1_NAPOLI FOREVER","BORGOROSSO F.C.","NAPOLI FOREVER","EUROPA LEAGUE -  G. 1",null,"ZZ_AC MORRONE","ZZ_AC MORRONE","ZZ_SWANSEA","COPPA DI LEGA - FASE A GIRONI: 2a GIORNATA",null,null,null,null,null,null,"FFC TOPENHAM","ACRESE","AC MORRONE","SWANSEA","G2"]
["LAMÙFOREVER","MOTTA",2,"PROVEDEL",0,"GIACOMONE",0,"PANNOZZO",0,"BEUKEMA",1,"DE WINTER",2,"DI LORENZO",17,"JUAN JESUS",4,"KALULU",2,"MARCANDALLI",1,"MIRANDA",1,"RRAHMANI",9,"CAQUERET",2,"DE ROON",3,"FOFANA",7,"KARLSTROM",2,"PELLEGRINI LO.",3,"PRATI",1,"SANTOS",2,"ZALEWSKI",7,"ADAMS",22,"BELOTTI",16,"KULENOVIC",1,"NKUNKU",4,"SCAMACCA",3,"LAMÙFOREVER","BIANCHETTI","CRE",5.7,25,5.76,"cihf_b@googlegroups.com","","","",null,null,null,null,"NICKSTREGA",null,null,"","","","","","","","","","","","","G1_LIVELE","OXFORD UNITED","LIVELE","EUROPA LEAGUE -  G. 1",null,"ZZ_SOLSBURY HILL FC","ZZ_SOLSBURY HILL FC","ZZ_ISOLA CHE NON CE","COPPA DI LEGA - FASE A GIRONI: 2a GIORNATA",null,null,null,null,null,null,"RISK UNITED","ENDYMION","SOLSBURY HILL FC","ISOLA CHE NON CE","G2"]
["SAN SIRO","MAIGNAN",1,"TERRACCIANO",0,"TORRIANI",0,"DONEDA",0,"DOSSENA",1,"GOSENS",31,"KABASELE",1,"N'DICKA",3,"OBRADOR",1,"OSTIGARD",1,"PAVLOVIC",31,"WALUKIEWICZ",1,"BALDANZI",5,"BRESCIANINI",1,"CASADEI",15,"COULIBALY",3,"CRISTANTE",1,"FOLORUNSHO",1,"MALINOVSKYI",1,"VOLPATO",1,"CAMARDA",1,"ELPHEGE",1,"GIMENEZ",87,"LAURIENTÈ",15,"VITINHA",1,"SAN SIRO","CECCHERINI","CRE",5.375,8,5.5625,"cihf_b@googlegroups.com","","","",null,null,null,null,"NOJOSETTE",null,null,"","","","","","","","","","","","","G1_KITEMMUOR TEAM","JUVE93","KITEMMUOR TEAM","EUROPA LEAGUE -  G. 1",null,"ZZ_TORI BRIANZOLI","ZZ_TORI BRIANZOLI","ZZ_NEAPOLIS","COPPA DI LEGA - FASE A GIRONI: 2a GIORNATA",null,null,null,null,null,null,"LA10 BIELLA FC","NORTH COCKS","TORI BRIANZOLI","NEAPOLIS","G2"]
["FC ZETAJ TEAM 1999","SOMMER",4,"MARTINEZ",0,"ADOMAVICIUS",0,"DI GENNARO",0,"BASTONI",21,"BISSECK",1,"CARLOS AUGUSTO",1,"CIRCATI",1,"DODO'",12,"GILA",2,"IDZES",1,"RENSCH",1,"EDERSON",28,"FRATTESI",12,"FRENDRUP",12,"GANDELMAN",2,"MCTOMINAY",26,"THURAM K.",22,"TRAMONI",1,"ZIELINSKI",1,"BOGA",3,"COLOMBO",18,"ESPOSITO F.P.",18,"GIOVANE",3,"PELLEGRINO",14,"FC ZETAJ TEAM 1999","FAYE","CRE",5.6428571428571432,7,5.7142857142857144,"cihf_b@googlegroups.com","","","",null,null,null,null,"NORTH COCKS",null,null,"","","","","","","","","","","","","G1_COSENZA","LAMÙFOREVER","COSENZA","EUROPA LEAGUE -  G. 1",null,"ZZ_STROMBOLI","ZZ_STROMBOLI","ZZ_BRUDYLEGHORN","COPPA DI LEGA - FASE A GIRONI: 2a GIORNATA",null,null,null,null,null,null,"DEP. LA CAROGNA","FC NAPOLI 2012","STROMBOLI","BRUDYLEGHORN","G2"]
["MOMENTI DI GLORIA","CARNESECCHI",5,"ROSSI",0,"SPORTIELLO",0,"ZANCHI",0,"ANGELINO",1,"BERNASCONI",3,"DELPRATO",2,"ISMAJLI",1,"RAMON",6,"SCALVINI",1,"SOLET",2,"TIAGO GABRIEL",2,"AMORIM",1,"BASIC",1,"LOBOTKA",3,"MATIC",7,"PERRONE",8,"PISILLI",2,"RABIOT",31,"THORSTVEDT",11,"ADDAI",1,"DIAO",6,"LEAO",11,"LUKAKU",1,"SOLOMON",2,"MOMENTI DI GLORIA","FLORIANI","CRE",5.666666666666667,21,5.7142857142857144,"cihf_b@googlegroups.com","","","",null,null,null,null,"OLTREMARE",null,null,"","","","","","","","","","","","",null,null,null,null,null,"ZZ_TROPEA","ZZ_TROPEA","ZZ_EL NINO FC","COPPA DI LEGA - FASE A GIRONI: 2a GIORNATA",null,null,null,null,null,null,"SPORTING 2000","RASTA ZETA","TROPEA","EL NINO FC","G2"]
["SPORTING LABRONICA","CAPRILE",1,"CIOCCI",0,"SHERRI",0,"AUSEKLIS",0,"BARTESAGHI",1,"BELGHALI",2,"DIMARCO",44,"GHILARDI",1,"KRISTENSEN",1,"NORTON-CUFFY",1,"PARISI",2,"VALERI",1,"ANGUISSA",34,"BATURINA",1,"CONCEICAO",21,"ELLERTSSON",1,"NDOUR",1,"TAYLOR",9,"VANDEPUTTE",1,"ZARAGOZA",18,"CANCELLIERI",1,"KILICSOY",3,"ORBAN",11,"SIMEONE",21,"YILDIZ",1,"SPORTING LABRONICA","FOLINO","CRE",6,11,5.7727272727272725,"cihf_b@googlegroups.com","","","",null,null,null,null,"OLYMPIC KEBAB",null,null,"","","","","","","","","","","","","G1_CAPIBARA SWOFFY FC","CAPIBARA SWOFFY FC","REAL BUCCINASCO","CONFERENCE LEAGUE -  G. 1",null,"ZZ_LIVELE","ZZ_LIVELE","ZZ_UDI ONE","COPPA DI LEGA - FASE A GIRONI: 2a GIORNATA",null,null,null,null,null,null,"DAVINCI TEAM","SALENTO FC","LIVELE","UDI ONE","G2"]
["AC ZDENEK","CARNESECCHI",4,"ROSSI",0,"SPORTIELLO",0,"ZANCHI",0,"BEUKEMA",1,"DE WINTER",1,"IDZES",1,"KOLASINAC",1,"MORENO",1,"NORTON-CUFFY",1,"OBRADOR",1,"VOJVODA",1,"CRISTANTE",2,"ELLERTSSON",2,"KONE'",11,"ODGAARD",1,"PULISIC",69,"ROWE",3,"VOLPATO",1,"ZIELINSKI",1,"BERARDI",77,"DE KETELAERE",38,"ORBAN",13,"PINAMONTI",14,"SOLOMON",3,"A.C. ZDENEK","LUPERTO","CRE",5.890625,32,5.859375,"cihf_c@googlegroups.com","","","",null,null,null,null,"OSTIAMARE FC",null,null,"","","","","","","","","","","","","G1_HIC SUNT FERAE","HIC SUNT FERAE","AS QUARZA","CONFERENCE LEAGUE -  G. 1",null,"ZZ_TEAM ENO","ZZ_TEAM ENO","ZZ_FFC MARIO CORSO","COPPA DI LEGA - FASE A GIRONI: 2a GIORNATA",null,null,null,null,null,null,"PRO WC","REAL GRIFO","TEAM ENO","FFC MARIO CORSO","G2"]
["BARBERA & CHAMPAGNE","SKORUPSKI",8,"PESSINA",0,"RAVAGLIA",0,"HAPPONEN",0,"BASCHIROTTO",3,"BUONGIORNO",20,"GHILARDI",1,"LUCUMI'",1,"MANCINI",23,"MARUSIC",1,"PROVSTGAARD",1,"TIAGO GABRIEL",1,"AEBISCHER",1,"CAQUERET",1,"EL AYNAOUI",7,"FREULER",3,"LERIS",1,"MANDRAGORA",1,"POLITANO",21,"SOTTIL",1,"ELPHEGE",1,"KILICSOY",1,"MALEN",122,"MOREO",1,"RASPADORI",10,"BARBERA & CHAMPAGNE","PEZZELLA","CRE",5.5344827586206895,29,5.7068965517241379,"cihf_c@googlegroups.com","","","",null,null,null,null,"OXFORD UNITED",null,null,"","","","","","","","","","","","","G1_FFC ROBERTO BONINSEGNA","FFC ROBERTO BONINSEGNA","AMOREODIO","CONFERENCE LEAGUE -  G. 1",null,"ZZ_FFC ROBERTO BONINSEGNA","ZZ_FFC ROBERTO BONINSEGNA","ZZ_ATLETICO SGANITO","COPPA DI LEGA - FASE A GIRONI: 2a GIORNATA",null,null,null,null,null,null,null,null,"FFC ROBERTO BONINSEGNA","ATLETICO SGANITO","G2"]
["FFC GIUSEPPE BERGOMI","DE GEA",2,"LEZZERINI",0,"CHRISTENSEN",0,"DOLFI",0,"AHANOR",1,"BASTONI",23,"BERTOLA",2,"DOIG",2,"DUMFRIES",32,"KOSSOUNOU",2,"MINA",2,"PALESTRA",2,"FABBIAN",2,"FRENDRUP",2,"NICO PAZ",75,"ORSOLINI",65,"RICCI",7,"SANTOS",1,"VERGARA",1,"ZARAGOZA",10,"LEAO",101,"MORATA",2,"STULIC",1,"THURAM",123,"VAZ",1,"FFC GIUSEPPE BERGOMI","TERRACCIANO F.","CRE",5.833333333333333,33,5.8636363636363633,"cihf_c@googlegroups.com","","","",null,null,null,null,"P CUATRO",null,null,"","","","","","","","","","","","","G1_BETIS SEVILLA","BETIS SEVILLA","BEETLES","CONFERENCE LEAGUE -  G. 1",null,"ZZ_GRATTACHECCA","ZZ_GRATTACHECCA","ZZ_EROI DEL 1982","COPPA DI LEGA - FASE A GIRONI: 2a GIORNATA",null,null,null,null,null,null,"SPORTING VINAO","DAJE MO'","GRATTACHECCA","EROI DEL 1982","G2"]
["AMBROSIANA","FALCONE",1,"FRUCHTL",0,"SAMOOJA",0,"PENEV",0,"ACERBI",1,"EDMUNDSSON",1,"GILA",1,"JOAO MARIO",1,"KRISTENSEN",1,"OSTIGARD",1,"SOLET",1,"WESLEY",33,"BERNEDE",1,"FOFANA",1,"GINEITIS",1,"ISAKSEN",1,"MALINOVSKYI",1,"MATIC",1,"PELLEGRINI LO.",1,"ZACCAGNI",50,"BELOTTI",1,"CHEDDIRA",1,"DALLINGA",1,"DIAO",1,"NZOLA",1,"AMBROSIANA","BALBO","FIO",5.666666666666667,3,5.666666666666667,"cihf_c@googlegroups.com","","","",null,null,null,null,"PANZER8",null,null,"","","","","","","","","","","","","G1_FC FANTATLETICO","FC FANTATLETICO","ETRURIA UNITED","CONFERENCE LEAGUE -  G. 1",null,"ZZ_NAPOLI FOREVER","ZZ_NAPOLI FOREVER","ZZ_DINAMO VIGIAK","COPPA DI LEGA - FASE A GIRONI: 2a GIORNATA",null,null,null,null,null,null,"BFC MARANO","ATLETICO PIGROTTO","NAPOLI FOREVER","DINAMO VIGIAK","G2"]
["DAJE MO'","SOMMER",31,"MARTINEZ",0,"ADOMAVICIUS",0,"DI GENNARO",0,"CABAL",2,"CAMBIASO",7,"DELPRATO",5,"DI LORENZO",9,"DIEGO CARLOS",2,"HEGGEM",3,"HIEN",2,"SPINAZZOLA",7,"ANGUISSA",15,"BRESCIANINI",5,"DE BRUYNE",29,"DE ROON",6,"EKKELENKAMP",2,"MIRETTI",6,"PERRONE",4,"RABIOT",29,"DOUVIKAS",1,"HOJLUND",101,"LAUTARO",201,"LUKAKU",51,"NKUNKU",25,"DAJE MO'","COMUZZO","FIO",5.8181818181818183,22,5.7272727272727275,"cihf_c@googlegroups.com","","","",null,null,null,null,"PAPAVERI E PAPERE",null,null,"","","","","","","","","","","","","G1_REAL MADRINK","REAL MADRINK","FFC MARIO CORSO","CONFERENCE LEAGUE -  G. 1",null,"ZZ_NICKSTREGA","ZZ_NICKSTREGA","ZZ_BFC MARANO","COPPA DI LEGA - FASE A GIRONI: 2a GIORNATA",null,null,null,null,null,null,"BLUES BROTHERS","A.C. ZDENEK","NICKSTREGA","BFC MARANO","G2"]
["PANZER8","DI GREGORIO",19,"PERIN",0,"PINSOGLIO",0,"HULI",0,"JUAN JESUS",2,"KALULU",9,"KELLY",9,"KEMPF",3,"PEZZELLA",3,"SMOLCIC",3,"TOMORI",9,"VASQUEZ",3,"BATURINA",2,"CATALDI",3,"FAGIOLI",7,"FERGUSON",3,"LUIS HENRIQUE",3,"MKHITARYAN",9,"MODRIC",25,"POBEGA",2,"CANCELLIERI",11,"DYBALA",51,"KRSTOVIC",33,"SCAMACCA",1,"VLAHOVIC",88,"PANZER8","DODO'","FIO",5.9411764705882355,34,5.9558823529411766,"cihf_c@googlegroups.com","","","",null,null,null,null,"PARASITE",null,null,"","","","","","","","","","","","","G1_SOLSBURY HILL FC","SOLSBURY HILL FC","CRIMSON","CONFERENCE LEAGUE -  G. 1",null,"ZZ_KITEMMUOR TEAM","ZZ_KITEMMUOR TEAM","ZZ_BAYER LEVERRUKE","COPPA DI LEGA - FASE A GIRONI: 2a GIORNATA",null,null,null,null,null,null,"MOMPRACEM","EL NINO FC","KITEMMUOR TEAM","BAYER LEVERRUKE","G2"]
["AMOREODIO","MOTTA",11,"PROVEDEL",0,"GIACOMONE",0,"PANNOZZO",0,"CARACCIOLO",5,"LYKOGIANNIS",1,"PONGRACIC",5,"SCALVINI",1,"VALERI",3,"VALLE",6,"VAN DER BREMPT",4,"ZAPPACOSTA",4,"BARELLA",29,"BERNARDESCHI",19,"KARLSTROM",13,"MCTOMINAY",61,"ORISTANIO",9,"SUCIC",9,"ZALEWSKI",9,"ZANIOLO",19,"BONAZZOLI",11,"COLOMBO",19,"DAVIS",29,"DIA",9,"PICCOLI",11,"AMOREODIO","FORTINI","FIO",5.958333333333333,12,5.958333333333333,"cihf_c@googlegroups.com","","","",null,null,null,null,"PERDENTUS FC",null,null,"","","","","","","","","","","","","G1_AL-ZENA","AL-ZENA","AMBROSIANA","CONFERENCE LEAGUE -  G. 1",null,"ZZ_MOKA JUNIORS","ZZ_MOKA JUNIORS","ZZ_MOMPRACEM","COPPA DI LEGA - FASE A GIRONI: 2a GIORNATA",null,null,null,null,null,null,"DIAMANTE","FRIUL GALAXI","MOKA JUNIORS","MOMPRACEM","G2"]
["EL NIÑO","ISRAEL",1,"PALEARI",0,"SIVIERO",0,"SANTER",0,"GABBIA",4,"GATTI",2,"GOSENS",21,"HERMOSO",2,"KABASELE",1,"PAVLOVIC",21,"RRAHMANI",8,"TERRACCIANO F.",2,"CONCEICAO",8,"COULIBALY",2,"LOBOTKA",8,"LOCATELLI",11,"MESSIAS",1,"PASALIC",11,"SAELEMAEKERS",22,"ZHEGROVA",2,"ADAMS",9,"EKHATOR",1,"EKUBAN",1,"SIMEONE",16,"YILDIZ",28,"EL NIÑO","GOSENS","FIO",6.2826086956521738,23,5.9347826086956523,"cihf_c@googlegroups.com","","","",null,null,null,null,"PICARD",null,null,"","","","","","","","","","","","","G1_CINICI","CINICI","GIAMBOTTINO FC","CONFERENCE LEAGUE -  G. 1",null,"ZZ_MANZO TEAM","ZZ_MANZO TEAM","ZZ_TWOSTARS","COPPA DI LEGA - FASE A GIRONI: 2a GIORNATA",null,null,null,null,null,null,"TWOSTARS","NEAPOLIS","MANZO TEAM","TWOSTARS","G2"]
["REAL BUCCINASCO","MERET",30,"CONTINI",0,"MILINKOVIC",0,"FERRANTE",0,"AKANJI",11,"BARTESAGHI",10,"BELLANOVA",20,"GUTIERREZ",5,"LIROLA",5,"MARTIN",5,"ZAPPA",5,"ZIOLKOWSKI",1,"ATTA",5,"EDERSON",21,"FOLORUNSHO",5,"GAETANO",5,"KONÈ I.",1,"MALDINI",5,"MCKENNIE",5,"PISILLI",10,"BOGA",10,"DAVID",81,"KEAN",5,"SOULE'",7,"SULEMANA K.",5,"REAL BUCCINASCO","KOUADIO","FIO",6,2,6,"cihf_c@googlegroups.com","","","",null,null,null,null,"PICCIOTTI NERAZZURRI",null,null,"","","","","","","","","","","","","G1_PERDENTUS FC","PERDENTUS FC","3T","CONFERENCE LEAGUE -  G. 1",null,"ZZ_TC WILLIAMS","ZZ_TC WILLIAMS","ZZ_FUFF TEAM","COPPA DI LEGA - FASE A GIRONI: 2a GIORNATA",null,null,null,null,null,null,"ZEMANLANDIA AFC","FC ZETAJ TEAM 1999","TC WILLIAMS","FUFF TEAM","G2"]
["ATLETICO PIPPAO","MAIGNAN",13,"TERRACCIANO",0,"TORRIANI",0,"DONEDA",0,"COCO",2,"DJIMSITI",2,"DODO'",2,"GALLO",1,"ROMAGNOLI",1,"TAVARES",1,"VALENTI",2,"ZORTEA",1,"BALDANZI",2,"BERNABE'",6,"CALHANOGLU",38,"CASADEI",2,"DA CUNHA",6,"JASHARI",11,"TRAMONI",4,"VANDEPUTTE",4,"BORRELLI",2,"FULLKRUG",11,"LAURIENTÈ",18,"OPENDA",72,"PEDRO",1,"ATLETICO PIPPAO","LAMPTEY","FIO",6,1,6,"cihf_c@googlegroups.com","","","",null,null,null,null,"PIGGI",null,null,"","","","","","","","","","","","","G1_REAL FARNESE","REAL FARNESE","PIGGI","CONFERENCE LEAGUE -  G. 1",null,"ZZ_VIS TRONKO","ZZ_VIS TRONKO","ZZ_FC TRIPLETE","COPPA DI LEGA - FASE A GIRONI: 2a GIORNATA",null,null,null,null,null,null,"CACAO MERAVIGLIAO","TORI BRIANZOLI","VIS TRONKO","FC TRIPLETE","G2"]
["FC FANTATLETICO","BUTEZ",1,"CAVLINA",0,"VIGORITO",0,"MENKE",0,"BELGHALI",1,"CANESTRELLI",3,"CELIK",2,"COMUZZO",1,"LAZARO",1,"MARCANDALLI",1,"MUHAREMOVIC",1,"N'DICKA",6,"BASIC",1,"ELMAS",3,"GUDMUNDSSON",44,"LOFTUS-CHEEK",45,"STREFEZZA",3,"TAYLOR",7,"THURAM K.",12,"VLASIC",6,"BONNY",11,"CASTRO",11,"FERGUSON E.",124,"PELLEGRINO",17,"VITINHA",11,"FC FANTATLETICO","PARISI","FIO",5.9318181818181817,22,6.0227272727272725,"cihf_c@googlegroups.com","","","",null,null,null,null,"PRAVETTONI CC",null,null,"","","","","","","","","","","","","G1_TERZO MUNICIPIO","TERZO MUNICIPIO","YOUNG BOYS","CONFERENCE LEAGUE -  G. 1",null,"ZZ_FFC TOPENHAM","ZZ_FFC TOPENHAM","ZZ_NASONE NERAZZURRO","COPPA DI LEGA - FASE A GIRONI: 2a GIORNATA",null,null,null,null,null,null,"ALL BLACKS","FANTASPEZIA","FFC TOPENHAM","NASONE NERAZZURRO","G2"]
["TIME OUT","SVILAR",21,"GOLLINI",0,"ZELEZNY",0,"DE MARZI",0,"ANGORI",5,"BISSECK",3,"BREMER",11,"CARLOS AUGUSTO",3,"DIMARCO",21,"MIRANDA",3,"RAMON",5,"RANIERI",1,"AKINSANMIRO",2,"FRATTESI",1,"KOOPMEINERS",34,"NERES",28,"PIEROTTI",2,"SAMARDZIC",7,"THORSTVEDT",3,"TOURE'",3,"CAMARDA",11,"ESPOSITO F.P.",21,"ESPOSITO SE.",5,"GIMENEZ",11,"RODRIGUEZ",11,"TIME OUT","PONGRACIC","FIO",5.6363636363636367,33,5.8030303030303028,"cihf_c@googlegroups.com","","","",null,null,null,null,"PRENESTINO FC",null,null,"","","","","","","","","","","","","G1_OLYMPIC KEBAB","OLYMPIC KEBAB","FC ROMA SUD","CONFERENCE LEAGUE -  G. 1",null,"ZZ_PICCIOTTI NERAZZURRI","ZZ_PICCIOTTI NERAZZURRI","ZZ_GABRY FC","COPPA DI LEGA - FASE A GIRONI: 2a GIORNATA",null,null,null,null,null,null,"ATLETICO MA NON TROPPO","MOMENTI DI GLORIA FMC","PICCIOTTI NERAZZURRI","GABRY FC","G2"]
["AL-ZENA","DI GREGORIO",39,"PERIN",0,"PINSOGLIO",0,"HULI",0,"AKANJI",15,"BISSECK",10,"BUONGIORNO",30,"GHILARDI",1,"LUCUMI'",2,"MUHAREMOVIC",1,"SCALVINI",4,"TIAGO GABRIEL",1,"ELLERTSSON",1,"FERGUSON",2,"GAETANO",2,"RICCI",15,"SAMARDZIC",21,"STREFEZZA",6,"ZACCAGNI",8,"ZARAGOZA",8,"ADAMS",12,"BONNY",12,"KILICSOY",8,"KRSTOVIC",11,"VAZ",2,"AL-ZENA","RANIERI","FIO",5.8,30,5.833333333333333,"IMI_C2_girone_C@googlegroups.com",null,null,null,null,null,null,null,"PRINCESS OF ETRURIA",null,null,"","","","","","","","","","","","","G1_NOJOSETTE","NOJOSETTE","NAPO-LEONI","CONFERENCE LEAGUE -  G. 1",null,"ZZ_ALAN FORD'S TEAM","ZZ_ALAN FORD'S TEAM","ZZ_FC JAVIER ZANETTI","COPPA DI LEGA - FASE A GIRONI: 2a GIORNATA",null,null,null,null,null,null,"PRENESTINO FC","ATLETICO PIPPAO","ALAN FORD'S TEAM","FC JAVIER ZANETTI","G2"]
["FC ROMA SUD","MOTTA",1,"PROVEDEL",0,"GIACOMONE",0,"PANNOZZO",0,"BELLANOVA",2,"CARACCIOLO",1,"CELIK",5,"COCO",1,"DJIMSITI",1,"HIEN",2,"N'DICKA",4,"VALENTI",4,"BALDANZI",1,"DE ROON",4,"EKKELENKAMP",1,"FOLORUNSHO",4,"LOBOTKA",1,"MANDRAGORA",1,"VERGARA",1,"VLASIC",3,"BONAZZOLI",3,"BORRELLI",2,"DOVBYK",16,"FULLKRUG",5,"KEAN",147,"FC ROMA SUD","RUGANI","FIO",5.5,7,5.6428571428571432,"IMI_C2_girone_C@googlegroups.com",null,null,null,null,null,null,null,"PRO WC",null,null,"","","","","","","","","","","","","G1_DAGNE BOYS","DAGNE BOYS","FC BIRO","CONFERENCE LEAGUE -  G. 1",null,"ZZ_PRO WC","ZZ_PRO WC","ZZ_CRIMSON","COPPA DI LEGA - FASE A GIRONI: 2a GIORNATA",null,null,null,null,null,null,"FC JAVIER ZANETTI","CAVESE","PRO WC","CRIMSON","G2"]
["LIVERCOOL","BUTEZ",2,"CAVLINA",0,"VIGORITO",0,"MENKE",0,"BARTESAGHI",3,"BELGHALI",3,"CIRCATI",1,"DELPRATO",5,"KABASELE",3,"MARCANDALLI",1,"OBRADOR",1,"VALERI",6,"GAGLIARDINI",1,"KEITA",2,"KONÈ I.",3,"MESSIAS",2,"NDOUR",1,"PERRONE",3,"PULISIC",60,"RABIOT",19,"BERARDI",29,"DAVIS",19,"DE KETELAERE",16,"LAUTARO",38,"VITINHA",6,"LIVERCOOL","DOUCOURE'","GEN",0,0,0,"IMI_C2_girone_C@googlegroups.com",null,null,null,null,null,null,null,"RASTA DB",null,null,"","","","","","","","","","","","","G1_RED-GREEN","RED-GREEN","FFC TARCISIO BURGNICH","CONFERENCE LEAGUE -  G. 1",null,"ZZ_AC DERBOLINA","ZZ_AC DERBOLINA","ZZ_CACAO MERAVIGLIAO","COPPA DI LEGA - FASE A GIRONI: 2a GIORNATA",null,null,null,null,null,null,"LA BANDA DEGLI ONESTI","FFC SANDRO MAZZOLA","AC DERBOLINA","CACAO MERAVIGLIAO","G2"]
["AS_TONMARTIN","SOMMER",11,"MARTINEZ",0,"ADOMAVICIUS",0,"DI GENNARO",0,"BASCHIROTTO",1,"GOSENS",17,"IDZES",1,"LAZARO",10,"LUPERTO",2,"PROVSTGAARD",1,"VALLE",1,"ZAPPACOSTA",1,"BERNABE'",3,"DA CUNHA",1,"FRATTESI",1,"FREULER",1,"MALDINI",1,"ORSOLINI",32,"SAELEMAEKERS",1,"VOLPATO",1,"CAMARDA",1,"CASTRO",8,"DAVID",89,"ESPOSITO SE.",11,"STULIC",1,"AS_TONMARTIN","MARCANDALLI","GEN",5.7931034482758621,29,5.8620689655172411,"IMI_C2_girone_C@googlegroups.com",null,null,null,null,null,null,null,"RASTA ZETA",null,null,"","","","","","","","","","","","","G1_ZERVENA VIGIAK","ZERVENA VIGIAK","I VAZANICCHI","CONFERENCE LEAGUE -  G. 1",null,"ZZ_LA10 BIELLA FC","ZZ_LA10 BIELLA FC","ZZ_2TWINS4EVER","COPPA DI LEGA - FASE A GIRONI: 2a GIORNATA",null,null,null,null,null,null,"BAYER LEVERRUKE","A TUTTA CALLARA","LA10 BIELLA FC","2TWINS4EVER","G2"]
["FFC LUISITO SUAREZ","OKOYE",1,"NUNZIANTE",0,"PADELLI",0,"SAVA",0,"BEUKEMA",1,"BRITSCHGI",3,"DE WINTER",2,"GILA",7,"ISMAJLI",1,"KOLASINAC",1,"MARIPAN",3,"MINA",2,"BERNARDESCHI",1,"BRESCIANINI",2,"CAQUERET",1,"CASADEI",2,"DE BRUYNE",81,"ELMAS",12,"NICO PAZ",1,"SUSLOV",1,"DIAO",3,"DOUVIKAS",3,"LUKAKU",37,"SCAMACCA",1,"SULEMANA K.",1,"FFC LUISITO SUAREZ","MARTIN","GEN",5.9285714285714288,28,5.9642857142857144,"IMI_C2_girone_C@googlegroups.com",null,null,null,null,null,null,null,"RAT-MEN",null,null,"","","","","","","","","","","","","G1_SFIGARENSE","SFIGARENSE","CARLITO'S VELEZ","CONFERENCE LEAGUE -  G. 1",null,"ZZ_FC BIBI 04","ZZ_FC BIBI 04","ZZ_ATLETICO MA NON TROPPO","COPPA DI LEGA - FASE A GIRONI: 2a GIORNATA",null,null,null,null,null,null,"AS NEW TEAM","P CUATRO","FC BIBI 04","ATLETICO MA NON TROPPO","G2"]
["OLTREMARE","MERET",32,"CONTINI",0,"MILINKOVIC",0,"FERRANTE",0,"ANGELINO",13,"DIMARCO",32,"GABBIA",4,"MANCINI",8,"RRAHMANI",8,"SMOLCIC",1,"WALUKIEWICZ",1,"ZAPPA",4,"EDERSON",11,"FOFANA",12,"MAZZITELLI",1,"MKHITARYAN",9,"TRAMONI",10,"VANDEPUTTE",9,"ZERBIN",1,"ZIELINSKI",1,"CANCELLIERI",29,"COLOMBO",10,"KUHN",8,"LAURIENTÈ",31,"PEDRO",9,"OLTREMARE","NORTON-CUFFY","GEN",6.0576923076923075,26,5.9230769230769234,"IMI_C2_girone_C@googlegroups.com",null,null,null,null,null,null,null,"REAL BABBUDOIU",null,null,"","","","","","","","","","","","","G1_FFC EVARISTO BECCALOSSI","FFC EVARISTO BECCALOSSI","BEAUTIFUL BUT LOSERS","CONFERENCE LEAGUE -  G. 1",null,"ZZ_SPORTING 2000","ZZ_SPORTING 2000","ZZ_MAGODINA FC","COPPA DI LEGA - FASE A GIRONI: 2a GIORNATA",null,null,null,null,null,null,"MOKA JUNIORS","FIORENTINA","SPORTING 2000","MAGODINA FC","G2"]
["CARLITO'S VELEZ","DE GEA",15,"LEZZERINI",0,"CHRISTENSEN",0,"DOLFI",0,"BASTONI",44,"CARLOS AUGUSTO",5,"DI LORENZO",13,"DUMFRIES",21,"GALLO",3,"RANIERI",10,"WESLEY",31,"ZANOLI",2,"CRISTANTE",5,"EL SHAARAWY",7,"MARIN",1,"MODRIC",21,"PELLEGRINI LO.",21,"PISILLI",5,"ZALEWSKI",3,"ZHEGROVA",2,"ARENA",2,"BELOTTI",3,"BUKSA",1,"DYBALA",61,"SIMEONE",7,"CARLITO'S VELEZ","OSTIGARD","GEN",6.5166666666666666,30,6.1333333333333337,"IMI_C2_girone_C@googlegroups.com",null,null,null,null,null,null,null,"REAL BUCCINASCO",null,null,"","","","","","","","","","","","","G1_LAZIO","LAZIO","FK'S TEAM","CONFERENCE LEAGUE -  G. 1",null,"ZZ_REAL MADRINK","ZZ_REAL MADRINK","ZZ_AS QUARZA","COPPA DI LEGA - FASE A GIRONI: 2a GIORNATA",null,null,null,null,null,null,"INAZUMA ELEVEN","EL NIÑO","REAL MADRINK","AS QUARZA","G2"]
["GIAMBOTTINO FC","SVILAR",26,"GOLLINI",0,"ZELEZNY",0,"DE MARZI",0,"CABAL",1,"DIEGO CARLOS",1,"GATTI",1,"KEMPF",1,"OLIVERA",1,"PAVLOVIC",1,"SPINAZZOLA",1,"TAVARES",3,"ANGUISSA",3,"KONE'",1,"MCTOMINAY",12,"NERES",1,"POLITANO",1,"ROWE",1,"TAYLOR",8,"TOURE'",1,"BOGA",1,"DIA",1,"MENDY",1,"NOSLIN",1,"RASPADORI",3,"GIAMBOTTINO FC","OTOA","GEN",5.25,8,5.5625,"IMI_C2_girone_C@googlegroups.com",null,null,null,null,null,null,null,"REAL BUGGY",null,null,"","","","","","","","","","","","","G1_VARCELLONA","VARCELLONA","OLTREMARE","CONFERENCE LEAGUE -  G. 1",null,"ZZ_SPORTING VINAO","ZZ_SPORTING VINAO","ZZ_DIAMANTE","COPPA DI LEGA - FASE A GIRONI: 2a GIORNATA",null,null,null,null,null,null,"FC TRIPLETE","MARUEGO BOYS","SPORTING VINAO","DIAMANTE","G2"]
["OLYMPIC KEBAB","SKORUPSKI",1,"PESSINA",0,"RAVAGLIA",0,"HAPPONEN",0,"AHANOR",4,"BERNASCONI",1,"BREMER",1,"KOSSOUNOU",1,"MARTIN",1,"MIRANDA",1,"RAMON",3,"SOLET",1,"BATURINA",1,"CALHANOGLU",3,"GUDMUNDSSON",14,"MALINOVSKYI",5,"PASALIC",1,"SANTOS",5,"SUCIC",1,"THORSTVEDT",1,"ESPOSITO F.P.",2,"HOJLUND",81,"MALEN",50,"PELLEGRINO",1,"VLAHOVIC",10,"OLYMPIC KEBAB","OUEDRAOGO","GEN",6,1,6,"IMI_C2_girone_C@googlegroups.com",null,null,null,null,null,null,null,"REAL CHR",null,null,"","","","","","","","","","","","","G1_FANTONI & GINELLI","FANTONI & GINELLI","OSTIAMARE FC","CONFERENCE LEAGUE -  G. 1",null,"ZZ_JUVE93","ZZ_JUVE93","ZZ_COSENZA CALCIO 1914","COPPA DI LEGA - FASE A GIRONI: 2a GIORNATA",null,null,null,null,null,null,"BOMBARELLANDIA","TIME OUT","JUVE93","COSENZA CALCIO 1914","G2"]
["FANTONI & GINELLI","CARNESECCHI",13,"ROSSI",0,"SPORTIELLO",0,"ZANCHI",0,"DODO'",9,"GARCIA",1,"KELLY",5,"KRISTENSEN",7,"PARISI",1,"ROMAGNOLI",9,"TERRACCIANO F.",7,"VOJVODA",1,"CONCEICAO",19,"FABBIAN",1,"ISAKSEN",18,"MCKENNIE",12,"MORO",1,"ODGAARD",1,"POBEGA",1,"SERDAR",11,"GIOVANE",17,"MOREO",1,"OKEREKE",1,"RODRIGUEZ",16,"THURAM",27,"FANTONI & GINELLI","SABELLI","GEN",5.625,12,5.791666666666667,"IMI_C2_girone_C@googlegroups.com",null,null,null,null,null,null,null,"REAL FARNESE",null,null,"","","","","","","","","","","","","G1_LIVERCOOL","LIVERCOOL","A'NFAMI","CONFERENCE LEAGUE -  G. 1",null,"ZZ_BLUES BROTHERS","ZZ_BLUES BROTHERS","ZZ_PARASITE","COPPA DI LEGA - FASE A GIRONI: 2a GIORNATA",null,null,null,null,null,null,"ALAN FORD'S TEAM","ANDREAS","BLUES BROTHERS","PARASITE","G2"]
["GOBBOFINCHECAMPO","MAIGNAN",31,"TERRACCIANO",0,"TORRIANI",0,"DONEDA",0,"CAMBIASO",27,"DOIG",2,"KALULU",3,"NORTON-CUFFY",2,"OSTIGARD",2,"PALESTRA",2,"VASQUEZ",1,"ZEMURA",1,"FRENDRUP",2,"HARRISON",3,"JASHARI",2,"KARLSTROM",1,"KOOPMEINERS",77,"LOCATELLI",1,"THURAM K.",23,"ZANIOLO",2,"BOWIE",3,"EKUBAN",3,"PICCOLI",12,"PINAMONTI",21,"YILDIZ",11,"GOBBOFINCHECAMPO","VASQUEZ","GEN",6.0285714285714285,35,6.0571428571428569,"IMI_C2_girone_C@googlegroups.com",null,null,null,null,null,null,null,"REAL GENOA",null,null,"","","","","","","","","","","","","G1_URACAN","URACAN","CACCIATORI FC","CONFERENCE LEAGUE -  G. 1",null,"ZZ_ELEVEN LIONS","ZZ_ELEVEN LIONS","ZZ_DAVINCI TEAM","COPPA DI LEGA - FASE A GIRONI: 2a GIORNATA",null,null,null,null,null,null,"ELEVEN LIONS","FFC GIUSEPPE BERGOMI","ELEVEN LIONS","DAVINCI TEAM","G2"]
["URACAN","BIJLOW",1,"LEALI",0,"SIEGRIST",0,"SOMMARIVA",0,"BARBIERI",1,"CUADRADO",1,"KAMARA",2,"MARUSIC",1,"PEZZELLA",2,"PONGRACIC",1,"TOMORI",1,"ZORTEA",11,"ATTA",21,"BARELLA",51,"COULIBALY",1,"FADERA",1,"FAGIOLI",2,"MATIC",2,"MIRETTI",7,"ORISTANIO",2,"BANDA",2,"CAMBIAGHI",21,"LEAO",41,"SOULE'",5,"ZAPATA",21,"URACAN","ZATTERSTROM","GEN",6,1,6,"IMI_C2_girone_C@googlegroups.com",null,null,null,null,null,null,null,"REAL GRIFO",null,null,"","","","","","","","","","","","","G1_UDINESE 1896","UDINESE 1896","PAPAVERI E PAPERE","CONFERENCE LEAGUE -  G. 1",null,"ZZ_CINICI","ZZ_CINICI","ZZ_I VAZANICCHI","COPPA DI LEGA - FASE A GIRONI: 2a GIORNATA",null,null,null,null,null,null,"ATLETICO SGANITO","TROPEA","CINICI","I VAZANICCHI","G2"]
["AC MORRONE","CARNESECCHI",null,"ROSSI",0,"SPORTIELLO",0,"ZANCHI",0,"BARTESAGHI",null,"CARLOS AUGUSTO",null,"DI LORENZO",null,"ESTUPINAN",null,"GABBIA",null,"GOSENS",null,"LUCUMI'",null,"RANIERI",null,"ELLERTSSON",null,"LOBOTKA",null,"LOCATELLI",null,"MALDINI",null,"MKHITARYAN",null,"VANDEPUTTE",null,"VERGARA",null,"ZANIOLO",null,"BERARDI",null,"DAVIS",null,"KRSTOVIC",null,"PINAMONTI",null,"VARDY",null,"AC MORRONE","ACERBI","INT",5.9666666666666668,15,6.0333333333333332,"fmc_a@googlegroups.com",null,null,null,null,null,null,null,"REAL MADRINK",null,null,null,null,null,null,null,null,null,null,null,null,null,null,"G1_FFC LUISITO SUAREZ","FFC LUISITO SUAREZ","LUPIN III","CONFERENCE LEAGUE -  G. 1",null,"ZZ_RED HOT CHILI PEPPERS","ZZ_RED HOT CHILI PEPPERS","ZZ_ETRURIA UNITED","COPPA DI LEGA - FASE A GIRONI: 2a GIORNATA",null,null,null,null,null,null,"SALEX","PANZER8","RED HOT CHILI PEPPERS","ETRURIA UNITED","G2"]
["ACRESE","SOMMER",null,"MARTINEZ",0,"ADOMAVICIUS",0,"DI GENNARO",0,"ATHEKAME",null,"CANESTRELLI",null,"COCO",null,"DOIG",null,"HERMOSO",null,"KOSSOUNOU",null,"MANCINI",null,"OSTIGARD",null,"ANGUISSA",null,"BARELLA",null,"FAGIOLI",null,"FRATTESI",null,"KEITA",null,"POLITANO",null,"RICCI",null,"ZACCAGNI",null,"EKUBAN",null,"LAUTARO",null,"LEAO",null,"LUKAKU",null,"SOLOMON",null,"ACRESE","AKANJI","INT",6.40625,32,6.28125,"fmc_a@googlegroups.com",null,null,null,null,null,null,null,"REAL PIPPERO",null,null,null,null,null,null,null,null,null,null,null,null,null,null,"G1_PRINCESS OF ETRURIA","PRINCESS OF ETRURIA","ARMATA NERAZZURRA","CONFERENCE LEAGUE -  G. 1",null,"ZZ_CAPIBARA SWOFFY FC","ZZ_CAPIBARA SWOFFY FC","ZZ_BAR MARIO","COPPA DI LEGA - FASE A GIRONI: 2a GIORNATA",null,null,null,null,null,null,"PICCIOTTI NERAZZURRI","TEAM ENO","CAPIBARA SWOFFY FC","BAR MARIO","G2"]
["ANDREAS","SKORUPSKI",null,"PESSINA",0,"RAVAGLIA",0,"HAPPONEN",0,"AKANJI",null,"BELLANOVA",null,"BREMER",null,"BUONGIORNO",null,"ISMAJLI",null,"KALULU",null,"MUHAREMOVIC",null,"RAMON",null,"CONCEICAO",null,"CRISTANTE",null,"FOLORUNSHO",null,"GUDMUNDSSON",null,"KONE'",null,"ROVELLA",null,"SORENSEN",null,"ZHEGROVA",null,"DAVID",null,"ESPOSITO SE.",null,"OPENDA",null,"RODRIGUEZ",null,"SOULE'",null,"ANDREAS","BASTONI","INT",6.1964285714285712,28,6.1964285714285712,"fmc_a@googlegroups.com",null,null,null,null,null,null,null,"RED HOT CHILI PEPPERS",null,null,null,null,null,null,null,null,null,null,null,null,null,null,"G1_LOS","LOS","MANCHO FERE","CONFERENCE LEAGUE -  G. 1",null,"ZZ_TERZO MUNICIPIO","ZZ_TERZO MUNICIPIO","ZZ_LUCHINS","COPPA DI LEGA - FASE A GIRONI: 2a GIORNATA",null,null,null,null,null,null,"SVICAT","VOTANTONIO","TERZO MUNICIPIO","LUCHINS","G2"]
["FFC ANGELO DOMENGHINI","BUTEZ",null,"CAVLINA",0,"VIGORITO",0,"MENKE",0,"AHANOR",null,"BISSECK",null,"DE WINTER",null,"DIMARCO",null,"MINA",null,"OBRADOR",null,"VALERI",null,"VALLE",null,"BERNARDESCHI",null,"CAQUERET",null,"CASADEI",null,"JASHARI",null,"ROWE",null,"SANTOS",null,"SUCIC",null,"ZARAGOZA",null,"DIAO",null,"DOUVIKAS",null,"NKUNKU",null,"RASPADORI",null,"SULEMANA K.",null,"FFC ANGELO DOMENGHINI","BISSECK","INT",6.6136363636363633,22,6.25,"fmc_a@googlegroups.com",null,null,null,null,null,null,null,"RED-GREEN",null,null,null,null,null,null,null,null,null,null,null,null,null,null,"G1_HOBBIT","HOBBIT","PICARD","CONFERENCE LEAGUE -  G. 1",null,"ZZ_ABETO FC","ZZ_ABETO FC","ZZ_VIS FONNO","COPPA DI LEGA - FASE A GIRONI: 2a GIORNATA",null,null,null,null,null,null,"VIS TRONKO","STROMBOLI","ABETO FC","VIS FONNO","G2"]
["ISOLA CHE NON CE","MOTTA",null,"PROVEDEL",0,"GIACOMONE",0,"PANNOZZO",0,"BERNASCONI",null,"CELIK",null,"EHIZIBUE",null,"HEGGEM",null,"KOLASINAC",null,"NORTON-CUFFY",null,"PALESTRA",null,"VASQUEZ",null,"BERNABE'",null,"CALHANOGLU",null,"DE ROON",null,"EL SHAARAWY",null,"FRENDRUP",null,"GAETANO",null,"HARRISON",null,"PELLEGRINI LO.",null,"CASTRO",null,"EKHATOR",null,"ESPOSITO F.P.",null,"LAURIENTÈ",null,"MALEN",null,"ISOLA CHE NON CE","CARLOS AUGUSTO","INT",6.1538461538461542,26,6.1538461538461542,"fmc_a@googlegroups.com",null,null,null,null,null,null,null,"RISK UNITED",null,null,null,null,null,null,null,null,null,null,null,null,null,null,"G1_FFC ALESSANDRO ALTOBELLI","FFC ALESSANDRO ALTOBELLI","REAL PIPPERO","CONFERENCE LEAGUE -  G. 1",null,"ZZ_EARL & SOUL GALEONE","ZZ_EARL & SOUL GALEONE","ZZ_DEP. LA CAROGNA","COPPA DI LEGA - FASE A GIRONI: 2a GIORNATA",null,null,null,null,null,null,"TITANS","BARBERA & CHAMPAGNE","EARL & SOUL GALEONE","DEP. LA CAROGNA","G2"]
["JUNIORT","MAIGNAN",null,"TERRACCIANO",0,"TORRIANI",0,"DONEDA",0,"BASTONI",null,"CIRCATI",null,"DODO'",null,"MARCANDALLI",null,"SCALVINI",null,"TAVARES",null,"ZAPPACOSTA",null,"ZORTEA",null,"COULIBALY",null,"FOFANA",null,"MANDRAGORA",null,"MATIC",null,"MODRIC",null,"NDOUR",null,"NERES",null,"PIOTROWSKI",null,"CANCELLIERI",null,"COLOMBO",null,"DIA",null,"KUHN",null,"PICCOLI",null,"JUNIORT","DARMIAN","INT",6,4,6,"fmc_a@googlegroups.com",null,null,null,null,null,null,null,"ROSSOBLU FC",null,null,null,null,null,null,null,null,null,null,null,null,null,null,"G1_PRAVETTONI CC","PRAVETTONI CC","AS_TONMARTIN","CONFERENCE LEAGUE -  G. 1",null,"ZZ_LA BANDA DEGLI ONESTI","ZZ_LA BANDA DEGLI ONESTI","ZZ_FERRON","COPPA DI LEGA - FASE A GIRONI: 2a GIORNATA",null,null,null,null,null,null,"MANZO TEAM","DREAM TIN TEAM","LA BANDA DEGLI ONESTI","FERRON","G2"]
["MARIANNA","SVILAR",null,"GOLLINI",0,"ZELEZNY",0,"DE MARZI",0,"BEUKEMA",null,"CARACCIOLO",null,"KRISTENSEN",null,"RRAHMANI",null,"SOLET",null,"SPINAZZOLA",null,"TERRACCIANO F.",null,"TIAGO GABRIEL",null,"EDERSON",null,"FREULER",null,"MALINOVSKYI",null,"MAZZITELLI",null,"PASALIC",null,"SOHM",null,"THURAM K.",null,"ZALEWSKI",null,"BONAZZOLI",null,"BONNY",null,"FERGUSON E.",null,"FULLKRUG",null,"HOJLUND",null,"MARIANNA","DE VRIJ","INT",6.166666666666667,6,6.25,"fmc_a@googlegroups.com",null,null,null,null,null,null,null,"SALENTO FC",null,null,null,null,null,null,null,null,null,null,null,null,null,null,"G1_GOBBOFINCHECAMPO","GOBBOFINCHECAMPO","COSENZA CALCIO 1914","CONFERENCE LEAGUE -  G. 1",null,"ZZ_SVICAT","ZZ_SVICAT","ZZ_RISK UNITED","COPPA DI LEGA - FASE A GIRONI: 2a GIORNATA",null,null,null,null,null,null,"BORGOROSSO F.C.","OXFORD UNITED","SVICAT","RISK UNITED","G2"]
["NORTH COCKS","MERET",null,"CONTINI",0,"MILINKOVIC",0,"FERRANTE",0,"BELGHALI",null,"CAMBIASO",null,"FLORIANI",null,"GALLO",null,"GHILARDI",null,"JUAN JESUS",null,"KEMPF",null,"LUPERTO",null,"DA CUNHA",null,"FABBIAN",null,"FERGUSON",null,"MCTOMINAY",null,"NICO PAZ",null,"NICOLUSSI CAVIGLIA",null,"PRATI",null,"ZIELINSKI",null,"DYBALA",null,"MENDY",null,"NZOLA",null,"SIMEONE",null,"YILDIZ",null,"NORTH COCKS","DIMARCO","INT",7.1212121212121211,33,6.6212121212121211,"fmc_a@googlegroups.com",null,null,null,null,null,null,null,"SALEX",null,null,null,null,null,null,null,null,null,null,null,null,null,null,"G1_REAL BUCCINASCO","CAPIBARA SWOFFY FC","REAL BUCCINASCO","CONFERENCE LEAGUE -  G. 1",null,"ZZ_ROSSOBLU FC","ZZ_ROSSOBLU FC","ZZ_SALEX","COPPA DI LEGA - FASE A GIRONI: 2a GIORNATA",null,null,null,null,null,null,"NAPOLI FOREVER","LIVELE","ROSSOBLU FC","SALEX","G2"]
["RASTA ZETA","DI GREGORIO",null,"PERIN",0,"PINSOGLIO",0,"HULI",0,"ACERBI",null,"ANGORI",null,"DELPRATO",null,"GILA",null,"MARIPAN",null,"MIRANDA",null,"N'DICKA",null,"ROMAGNOLI",null,"DE BRUYNE",null,"ELMAS",null,"GANDELMAN",null,"LOYOLA",null,"ORSOLINI",null,"RABIOT",null,"THORSBY",null,"VLASIC",null,"CHEDDIRA",null,"ELPHEGE",null,"KEAN",null,"PELLEGRINO",null,"THURAM",null,"RASTA ZETA","DUMFRIES","INT",6.5263157894736841,19,6.1052631578947372,"fmc_a@googlegroups.com",null,null,null,null,null,null,null,"SAN SIRO",null,null,null,null,null,null,null,null,null,null,null,null,null,null,"G1_AS QUARZA","HIC SUNT FERAE","AS QUARZA","CONFERENCE LEAGUE -  G. 1",null,"ZZ_RAT-MEN","ZZ_RAT-MEN","ZZ_CATENACCIO & CONTROPIEDE","COPPA DI LEGA - FASE A GIRONI: 2a GIORNATA",null,null,null,null,null,null,"JUVE93","LAMÙFOREVER","RAT-MEN","CATENACCIO & CONTROPIEDE","G2"]
["REAL BUGGY","DE GEA",null,"LEZZERINI",0,"CHRISTENSEN",0,"DOLFI",0,"CABAL",null,"DJIMSITI",null,"GATTI",null,"HOLM",null,"KELLY",null,"MARUSIC",null,"OLIVERA",null,"PONGRACIC",null,"KONÈ I.",null,"KOOPMEINERS",null,"MCKENNIE",null,"MIRETTI",null,"ODGAARD",null,"RAMADANI",null,"SAELEMAEKERS",null,"SAMARDZIC",null,"BOGA",null,"DE KETELAERE",null,"MOREO",null,"NOSLIN",null,"VLAHOVIC",null,"REAL BUGGY","BREMER","JUV",6.74,25,6.34,"fmc_a@googlegroups.com",null,null,null,null,null,null,null,"SFIGARENSE",null,null,null,null,null,null,null,null,null,null,null,null,null,null,"G1_AMOREODIO","FFC ROBERTO BONINSEGNA","AMOREODIO","CONFERENCE LEAGUE -  G. 1",null,"ZZ_ALL BLACKS","ZZ_ALL BLACKS","ZZ_BORGOROSSO F.C.","COPPA DI LEGA - FASE A GIRONI: 2a GIORNATA",null,null,null,null,null,null,"KITEMMUOR TEAM","COSENZA","ALL BLACKS","BORGOROSSO F.C.","G2"]
["SWANSEA","CAPRILE",null,"CIOCCI",0,"SHERRI",0,"AUSEKLIS",0,"DUMFRIES",null,"FRESE",null,"IDZES",null,"KABASELE",null,"LAZARO",null,"MARTIN",null,"TOMORI",null,"WESLEY",null,"ADOPO",null,"BATURINA",null,"EL AYNAOUI",null,"ISAKSEN",null,"LOVRIC",null,"ONDREJKA",null,"PERRONE",null,"THORSTVEDT",null,"BOWIE",null,"CAMBIAGHI",null,"DALLINGA",null,"DOVBYK",null,"SCAMACCA",null,"SWANSEA","CABAL","JUV",6.5555555555555554,9,5.9444444444444446,"fmc_a@googlegroups.com",null,null,null,null,null,null,null,"SOLSBURY HILL FC",null,null,null,null,null,null,null,null,null,null,null,null,null,null,"G1_BEETLES","BETIS SEVILLA","BEETLES","CONFERENCE LEAGUE -  G. 1",null,"ZZ_PRENESTINO FC","ZZ_PRENESTINO FC","ZZ_MANCHO FERE","COPPA DI LEGA - FASE A GIRONI: 2a GIORNATA",null,null,null,null,null,null,null,null,"PRENESTINO FC","MANCHO FERE","G2"]
["UDI ONE","OKOYE",null,"NUNZIANTE",0,"PADELLI",0,"SAVA",0,"HIEN",null,"KAMARA",null,"MORENO",null,"PAVLOVIC",null,"RUGANI",null,"VOJVODA",null,"WALUKIEWICZ",null,"ZAPPA",null,"ATTA",null,"BALDANZI",null,"BRESCIANINI",null,"EKKELENKAMP",null,"KARLSTROM",null,"PULISIC",null,"STREFEZZA",null,"TAYLOR",null,"ADAMS",null,"DUROSINMI",null,"GIOVANE",null,"ORBAN",null,"VITINHA",null,"UDI ONE","CAMBIASO","JUV",5.8970588235294121,34,5.8235294117647056,"fmc_a@googlegroups.com",null,null,null,null,null,null,null,"SPORTING 2000",null,null,null,null,null,null,null,null,null,null,null,null,null,null,"G1_ETRURIA UNITED","FC FANTATLETICO","ETRURIA UNITED","CONFERENCE LEAGUE -  G. 1",null,"ZZ_HOBBIT","ZZ_HOBBIT","ZZ_BLACK&WHITE","COPPA DI LEGA - FASE A GIRONI: 2a GIORNATA",null,null,null,null,null,null,"CAPIBARA SWOFFY FC","HIC SUNT FERAE","HOBBIT","BLACK&WHITE","G2"]
["A TUTTA CALLARA","MAIGNAN",null,"TERRACCIANO",0,"TORRIANI",0,"DONEDA",0,"CABAL",null,"DUMFRIES",null,"HEGGEM",null,"HERMOSO",null,"ISMAJLI",null,"KABASELE",null,"PONGRACIC",null,"SPINAZZOLA",null,"BATURINA",null,"CONCEICAO",null,"DIOUF",null,"MCTOMINAY",null,"SUCIC",null,"TRAMONI",null,"VANDEPUTTE",null,"VOLPATO",null,"ADDAI",null,"BOGA",null,"HOJLUND",null,"LUKAKU",null,"VLAHOVIC",null,"A TUTTA CALLARA","GATTI","JUV",6.3,15,6,"fmc_b@googlegroups.com",null,null,null,null,null,null,null,"SPORTING LABRONICA",null,null,null,null,null,null,null,null,null,null,null,null,null,null,"G1_FFC MARIO CORSO","REAL MADRINK","FFC MARIO CORSO","CONFERENCE LEAGUE -  G. 1",null,"ZZ_BOMBARELLANDIA","ZZ_BOMBARELLANDIA","ZZ_EU...REKA","COPPA DI LEGA - FASE A GIRONI: 2a GIORNATA",null,null,null,null,null,null,"REAL BUCCINASCO","AS QUARZA","BOMBARELLANDIA","EU...REKA","G2"]
["ATLETICO PIGROTTO","DE GEA",null,"LEZZERINI",0,"CHRISTENSEN",0,"DOLFI",0,"ANGELINO",null,"BASCHIROTTO",null,"LUPERTO",null,"MARUSIC",null,"PELLEGRINI LU.",null,"RENSCH",null,"ROMAGNOLI",null,"ZAPPA",null,"ATTA",null,"BONDO",null,"CATALDI",null,"DELE-BASHIRU",null,"EKKELENKAMP",null,"FABBIAN",null,"PERRONE",null,"PIOTROWSKI",null,"ADAMS",null,"CASTRO",null,"DAVID",null,"DIA",null,"PEDRO",null,"ATLETICO PIGROTTO","HOLM","JUV",6.2333333333333334,15,6.1333333333333337,"fmc_b@googlegroups.com",null,null,null,null,null,null,null,"SPORTING VINAO",null,null,null,null,null,null,null,null,null,null,null,null,null,null,"G1_CRIMSON","SOLSBURY HILL FC","CRIMSON","CONFERENCE LEAGUE -  G. 1",null,"ZZ_ZERVENA VIGIAK","ZZ_ZERVENA VIGIAK","ZZ_OLTREMARE","COPPA DI LEGA - FASE A GIRONI: 2a GIORNATA",null,null,null,null,null,null,"FFC ROBERTO BONINSEGNA","BETIS SEVILLA","ZERVENA VIGIAK","OLTREMARE","G2"]
["BRUDYLEGHORN","AUDERO",null,"NAVA",0,"SILVESTRI",0,"NOVATI",0,"DELPRATO",null,"DODO'",null,"GHILARDI",null,"MANCINI",null,"MUHAREMOVIC",null,"TAVARES",null,"VOJVODA",null,"ZORTEA",null,"BERNABE'",null,"BERNARDESCHI",null,"GUDMUNDSSON",null,"KARLSTROM",null,"MALDINI",null,"ODGAARD",null,"SAELEMAEKERS",null,"VERGARA",null,"CAMARDA",null,"DAVIS",null,"ESPOSITO F.P.",null,"NOSLIN",null,"THURAM",null,"BRUDYLEGHORN","KALULU","JUV",6.2857142857142856,35,6.1571428571428575,"fmc_b@googlegroups.com",null,null,null,null,null,null,null,"STROMBOLI",null,null,null,null,null,null,null,null,null,null,null,null,null,null,"G1_AMBROSIANA","AL-ZENA","AMBROSIANA","CONFERENCE LEAGUE -  G. 1",null,"ZZ_TITANS","ZZ_TITANS","ZZ_REAL PIPPERO","COPPA DI LEGA - FASE A GIRONI: 2a GIORNATA",null,null,null,null,null,null,"AMOREODIO","BEETLES","TITANS","REAL PIPPERO","G2"]
["CICCILLO","BIJLOW",null,"LEALI",0,"SIEGRIST",0,"SOMMARIVA",0,"GILA",null,"IDZES",null,"KEMPF",null,"LYKOGIANNIS",null,"N'DICKA",null,"NORTON-CUFFY",null,"OBERT",null,"PROVSTGAARD",null,"BRESCIANINI",null,"EDERSON",null,"ILKHAN",null,"PELLEGRINI LO.",null,"ROVELLA",null,"TAYLOR",null,"ZACCAGNI",null,"ZANIOLO",null,"DE KETELAERE",null,"GIMENEZ",null,"MORATA",null,"RATKOV",null,"SULEMANA K.",null,"CICCILLO","KELLY","JUV",6.0606060606060606,33,6.0303030303030303,"fmc_b@googlegroups.com",null,null,null,null,null,null,null,"SVICAT",null,null,null,null,null,null,null,null,null,null,null,null,null,null,"G1_GIAMBOTTINO FC","CINICI","GIAMBOTTINO FC","CONFERENCE LEAGUE -  G. 1",null,"ZZ_ZEMANLANDIA AFC","ZZ_ZEMANLANDIA AFC","ZZ_AS_TONMARTIN","COPPA DI LEGA - FASE A GIRONI: 2a GIORNATA",null,null,null,null,null,null,"FC FANTATLETICO","REAL MADRINK","ZEMANLANDIA AFC","AS_TONMARTIN","G2"]
["COSENZA","MERET",null,"CONTINI",0,"MILINKOVIC",0,"FERRANTE",0,"BELLANOVA",null,"CARLOS AUGUSTO",null,"DIMARCO",null,"GABBIA",null,"MARCANDALLI",null,"PAVLOVIC",null,"RRAHMANI",null,"TERRACCIANO F.",null,"BARELLA",null,"CRISTANTE",null,"FRENDRUP",null,"LOBOTKA",null,"LUIS HENRIQUE",null,"MALINOVSKYI",null,"MKHITARYAN",null,"SORENSEN",null,"CANCELLIERI",null,"KEAN",null,"RASPADORI",null,"SOULE'",null,"VITINHA",null,"COSENZA","GIGOT","LAZ",0,0,0,"fmc_b@googlegroups.com",null,null,null,null,null,null,null,"SWANSEA",null,null,null,null,null,null,null,null,null,null,null,null,null,null,"G1_3T","PERDENTUS FC","3T","CONFERENCE LEAGUE -  G. 1",null,"ZZ_PICARD","ZZ_PICARD","ZZ_BEETLES","COPPA DI LEGA - FASE A GIRONI: 2a GIORNATA",null,null,null,null,null,null,"ETRURIA UNITED","FFC MARIO CORSO","PICARD","BEETLES","G2"]
["LA MUCONE","DI GREGORIO",null,"PERIN",0,"PINSOGLIO",0,"HULI",0,"ATHEKAME",null,"BREMER",null,"CAMBIASO",null,"COCO",null,"DE WINTER",null,"GATTI",null,"MARTIN",null,"ZAPPACOSTA",null,"CASADEI",null,"FOFANA",null,"KONE'",null,"KOOPMEINERS",null,"LOCATELLI",null,"MODRIC",null,"RABIOT",null,"SAMARDZIC",null,"BONNY",null,"EKUBAN",null,"KRSTOVIC",null,"PICCOLI",null,"RODRIGUEZ",null,"LA MUCONE","GILA","LAZ",6,29,6.068965517241379,"fmc_b@googlegroups.com",null,null,null,null,null,null,null,"TC WILLIAMS",null,null,null,null,null,null,null,null,null,null,null,null,null,null,"G1_PIGGI","REAL FARNESE","PIGGI","CONFERENCE LEAGUE -  G. 1",null,"ZZ_LIVERCOOL","ZZ_LIVERCOOL","ZZ_FFC LUISITO SUAREZ","COPPA DI LEGA - FASE A GIRONI: 2a GIORNATA",null,null,null,null,null,null,"SOLSBURY HILL FC","AL-ZENA","LIVERCOOL","FFC LUISITO SUAREZ","G2"]
["MOMENTI DI GLORIA FMC","BUTEZ",null,"CAVLINA",0,"VIGORITO",0,"MENKE",0,"BERNASCONI",null,"EHIZIBUE",null,"GALLO",null,"MINA",null,"SCALVINI",null,"SOLET",null,"TIAGO GABRIEL",null,"VALERI",null,"AMORIM",null,"DA CUNHA",null,"EL AYNAOUI",null,"FOLORUNSHO",null,"HARRISON",null,"KONÈ I.",null,"ROWE",null,"THORSTVEDT",null,"BERARDI",null,"ESPOSITO SE.",null,"SCAMACCA",null,"SOLOMON",null,"ZAPATA",null,"MOMENTI DI GLORIA FMC","HYSAJ","LAZ",5.5,2,5.5,"fmc_b@googlegroups.com",null,null,null,null,null,null,null,"TEAM ENO",null,null,null,null,null,null,null,null,null,null,null,null,null,null,"G1_YOUNG BOYS","TERZO MUNICIPIO","YOUNG BOYS","CONFERENCE LEAGUE -  G. 1",null,"ZZ_SFIGARENSE","ZZ_SFIGARENSE","ZZ_CACCIATORI FC","COPPA DI LEGA - FASE A GIRONI: 2a GIORNATA",null,null,null,null,null,null,"CRIMSON","AMBROSIANA","SFIGARENSE","CACCIATORI FC","G2"]
["NEAPOLIS","SVILAR",null,"GOLLINI",0,"ZELEZNY",0,"DE MARZI",0,"AKANJI",null,"COMUZZO",null,"DI LORENZO",null,"DIEGO CARLOS",null,"DJIMSITI",null,"JUAN JESUS",null,"LUCUMI'",null,"OLIVERA",null,"CAQUERET",null,"DE BRUYNE",null,"DE ROON",null,"ELMAS",null,"LOFTUS-CHEEK",null,"MCKENNIE",null,"NERES",null,"THURAM K.",null,"BANDA",null,"DOVBYK",null,"DYBALA",null,"OPENDA",null,"PINAMONTI",null,"NEAPOLIS","LAZZARI","LAZ",5.7352941176470589,17,5.7941176470588234,"fmc_b@googlegroups.com",null,null,null,null,null,null,null,"TERZO MUNICIPIO",null,null,null,null,null,null,null,null,null,null,null,null,null,null,"G1_FC ROMA SUD","OLYMPIC KEBAB","FC ROMA SUD","CONFERENCE LEAGUE -  G. 1",null,"ZZ_PRINCESS OF ETRURIA","ZZ_PRINCESS OF ETRURIA","ZZ_FANTONI & GINELLI","COPPA DI LEGA - FASE A GIRONI: 2a GIORNATA",null,null,null,null,null,null,"CINICI","PERDENTUS FC","PRINCESS OF ETRURIA","FANTONI & GINELLI","G2"]
["REAL GRIFO","MOTTA",null,"PROVEDEL",0,"GIACOMONE",0,"PANNOZZO",0,"BARTESAGHI",null,"CELIK",null,"HIEN",null,"HOLM",null,"KELLY",null,"PALESTRA",null,"VALLE",null,"VASQUEZ",null,"BALDANZI",null,"CALHANOGLU",null,"ISAKSEN",null,"JASHARI",null,"MESSIAS",null,"PISILLI",null,"RICCI",null,"VLASIC",null,"DOUVIKAS",null,"EKHATOR",null,"FERGUSON E.",null,"LEAO",null,"SIMEONE",null,"REAL GRIFO","MARUSIC","LAZ",5.935483870967742,31,5.887096774193548,"fmc_b@googlegroups.com",null,null,null,null,null,null,null,"TIME OUT",null,null,null,null,null,null,null,null,null,null,null,null,null,null,"G1_NAPO-LEONI","NOJOSETTE","NAPO-LEONI","CONFERENCE LEAGUE -  G. 1",null,"ZZ_PERDENTUS FC","ZZ_PERDENTUS FC","ZZ_FK'S TEAM","COPPA DI LEGA - FASE A GIRONI: 2a GIORNATA",null,null,null,null,null,null,"GIAMBOTTINO FC","3T","PERDENTUS FC","FK'S TEAM","G2"]
["STROMBOLI","CARNESECCHI",null,"ROSSI",0,"SPORTIELLO",0,"ZANCHI",0,"ACERBI",null,"AHANOR",null,"KALULU",null,"KOSSOUNOU",null,"KRISTENSEN",null,"OSTIGARD",null,"RAMON",null,"SMOLCIC",null,"ANGUISSA",null,"BAKOLA",null,"COULIBALY",null,"GINEITIS",null,"MATIC",null,"NICO PAZ",null,"ORSOLINI",null,"ZIELINSKI",null,"BELOTTI",null,"CHEDDIRA",null,"DALLINGA",null,"GIOVANE",null,"NZOLA",null,"STROMBOLI","PATRIC","LAZ",5.75,10,5.85,"fmc_b@googlegroups.com",null,null,null,null,null,null,null,"TITANS",null,null,null,null,null,null,null,null,null,null,null,null,null,null,"G1_FC BIRO","DAGNE BOYS","FC BIRO","CONFERENCE LEAGUE -  G. 1",null,"ZZ_REAL FARNESE","ZZ_REAL FARNESE","ZZ_YOUNG BOYS","COPPA DI LEGA - FASE A GIRONI: 2a GIORNATA",null,null,null,null,null,null,"REAL FARNESE","TERZO MUNICIPIO","REAL FARNESE","YOUNG BOYS","G2"]
["TORI BRIANZOLI","SKORUPSKI",null,"PESSINA",0,"RAVAGLIA",0,"HAPPONEN",0,"BARBIERI",null,"BELGHALI",null,"GARCIA",null,"KAMARA",null,"MIRANDA",null,"OBRADOR",null,"RANIERI",null,"TOMORI",null,"FRATTESI",null,"GAETANO",null,"GILMOUR",null,"MAZZITELLI",null,"MIRETTI",null,"ONDREJKA",null,"PULISIC",null,"SANTOS",null,"BOWIE",null,"DIAO",null,"FULLKRUG",null,"MALEN",null,"PELLEGRINO",null,"TORI BRIANZOLI","PELLEGRINI LU.","LAZ",5.8043478260869561,23,5.8478260869565215,"fmc_b@googlegroups.com",null,null,null,null,null,null,null,"TORI BRIANZOLI",null,null,null,null,null,null,null,null,null,null,null,null,null,null,"G1_FFC TARCISIO BURGNICH","RED-GREEN","FFC TARCISIO BURGNICH","CONFERENCE LEAGUE -  G. 1",null,"ZZ_PAPAVERI E PAPERE","ZZ_PAPAVERI E PAPERE","ZZ_CARLITO'S VELEZ","COPPA DI LEGA - FASE A GIRONI: 2a GIORNATA",null,null,null,null,null,null,"PIGGI","YOUNG BOYS","PAPAVERI E PAPERE","CARLITO'S VELEZ","G2"]
["TROPEA","SOMMER",null,"MARTINEZ",0,"ADOMAVICIUS",0,"DI GENNARO",0,"ANGORI",null,"BASTONI",null,"BEUKEMA",null,"BISSECK",null,"BUONGIORNO",null,"CIRCATI",null,"PARISI",null,"WESLEY",null,"ELLERTSSON",null,"FAGIOLI",null,"FREULER",null,"KEITA",null,"MANDRAGORA",null,"PASALIC",null,"POLITANO",null,"ZALEWSKI",null,"BONAZZOLI",null,"COLOMBO",null,"LAUTARO",null,"VAZ",null,"YILDIZ",null,"TROPEA","PROVSTGAARD","LAZ",5.8809523809523814,21,5.9523809523809526,"fmc_b@googlegroups.com",null,null,null,null,null,null,null,"TROPEA",null,null,null,null,null,null,null,null,null,null,null,null,null,null,"G1_I VAZANICCHI","ZERVENA VIGIAK","I VAZANICCHI","CONFERENCE LEAGUE -  G. 1",null,"ZZ_UDINESE 1896","ZZ_UDINESE 1896","ZZ_A'NFAMI","COPPA DI LEGA - FASE A GIRONI: 2a GIORNATA",null,null,null,null,null,null,"OLYMPIC KEBAB","NOJOSETTE","UDINESE 1896","A'NFAMI","G2"]
["BETIS SEVILLA","SVILAR",null,"GOLLINI",0,"ZELEZNY",0,"DE MARZI",0,"BASCHIROTTO",null,"BREMER",null,"KOSSOUNOU",null,"NORTON-CUFFY",null,"OBRADOR",null,"SCALVINI",null,"TAVARES",null,"ZORTEA",null,"EDERSON",null,"ELLERTSSON",null,"PERRONE",null,"SAMARDZIC",null,"THURAM K.",null,"VANDEPUTTE",null,"ZALEWSKI",null,"ZARAGOZA",null,"BOGA",null,"FULLKRUG",null,"OPENDA",null,"ORBAN",null,"SCAMACCA",null,"BETIS SEVILLA","ROMAGNOLI","LAZ",5.903225806451613,31,6.032258064516129,"fmc_c@googlegroups.com",null,null,null,null,null,null,null,"TWOSTARS",null,null,null,null,null,null,null,null,null,null,null,null,null,null,"G1_CARLITO'S VELEZ","SFIGARENSE","CARLITO'S VELEZ","CONFERENCE LEAGUE -  G. 1",null,"ZZ_BEAUTIFUL BUT LOSERS","ZZ_BEAUTIFUL BUT LOSERS","ZZ_AL-ZENA","COPPA DI LEGA - FASE A GIRONI: 2a GIORNATA",null,null,null,null,null,null,"FC ROMA SUD","NAPO-LEONI","BEAUTIFUL BUT LOSERS","AL-ZENA","G2"]
["CAVESE","BUTEZ",null,"CAVLINA",0,"VIGORITO",0,"MENKE",0,"BELLANOVA",null,"KELLY",null,"KOLASINAC",null,"LUCUMI'",null,"LUPERTO",null,"MARIPAN",null,"VALLE",null,"ZAPPACOSTA",null,"BERNARDESCHI",null,"FRATTESI",null,"HARRISON",null,"ONDREJKA",null,"PASALIC",null,"PULISIC",null,"SUCIC",null,"VOLPATO",null,"ADAMS",null,"CAMBIAGHI",null,"KRSTOVIC",null,"NKUNKU",null,"VARDY",null,"CAVESE","TAVARES","LAZ",5.8571428571428568,21,5.9523809523809526,"fmc_c@googlegroups.com",null,null,null,null,null,null,null,"UDI ONE",null,null,null,null,null,null,null,null,null,null,null,null,null,null,"G1_BEAUTIFUL BUT LOSERS","FFC EVARISTO BECCALOSSI","BEAUTIFUL BUT LOSERS","CONFERENCE LEAGUE -  G. 1",null,"ZZ_FFC EVARISTO BECCALOSSI","ZZ_FFC EVARISTO BECCALOSSI","ZZ_LOS","COPPA DI LEGA - FASE A GIRONI: 2a GIORNATA",null,null,null,null,null,null,"DAGNE BOYS","RED-GREEN","FFC EVARISTO BECCALOSSI","LOS","G2"]
["DREAM TIN TEAM","SOMMER",null,"MARTINEZ",0,"ADOMAVICIUS",0,"DI GENNARO",0,"BELGHALI",null,"COCO",null,"DJIMSITI",null,"GASPAR",null,"LAZARO",null,"MARUSIC",null,"MUHAREMOVIC",null,"VASQUEZ",null,"DE ROON",null,"EL AYNAOUI",null,"FOFANA",null,"GUDMUNDSSON",null,"ORSOLINI",null,"PISILLI",null,"ROVELLA",null,"ZANIOLO",null,"CANCELLIERI",null,"CHEDDIRA",null,"KEAN",null,"LEAO",null,"PICCOLI",null,"DREAM TIN TEAM","GALLO","LEC",5.9142857142857146,35,5.9428571428571431,"fmc_c@googlegroups.com",null,null,null,null,null,null,null,"UDINESE 1896",null,null,null,null,null,null,null,null,null,null,null,null,null,null,"G1_FK'S TEAM","LAZIO","FK'S TEAM","CONFERENCE LEAGUE -  G. 1",null,"ZZ_GIAMBOTTINO FC","ZZ_GIAMBOTTINO FC","ZZ_LUPIN III","COPPA DI LEGA - FASE A GIRONI: 2a GIORNATA",null,null,null,null,null,null,"FC BIRO","FFC TARCISIO BURGNICH","GIAMBOTTINO FC","LUPIN III","G2"]
["EL NINO FC","FALCONE",null,"FRUCHTL",0,"SAMOOJA",0,"PENEV",0,"GABBIA",null,"GATTI",null,"JUAN JESUS",null,"KABASELE",null,"PAVLOVIC",null,"PROVSTGAARD",null,"RRAHMANI",null,"TERRACCIANO F.",null,"CRISTANTE",null,"FOLORUNSHO",null,"GANDELMAN",null,"LOBOTKA",null,"MODRIC",null,"MORO",null,"PELLEGRINI LO.",null,"ZHEGROVA",null,"BERARDI",null,"BONAZZOLI",null,"DYBALA",null,"PINAMONTI",null,"VLAHOVIC",null,"EL NINO FC","GASPAR","LEC",5.6428571428571432,21,5.833333333333333,"fmc_c@googlegroups.com",null,null,null,null,null,null,null,"URACAN",null,null,null,null,null,null,null,null,null,null,null,null,null,null,"G1_OLTREMARE","VARCELLONA","OLTREMARE","CONFERENCE LEAGUE -  G. 1",null,"ZZ_AS NEW TEAM","ZZ_AS NEW TEAM","ZZ_3T","COPPA DI LEGA - FASE A GIRONI: 2a GIORNATA",null,null,null,null,null,null,"ZERVENA VIGIAK","SFIGARENSE","AS NEW TEAM","3T","G2"]
["FFC MARIO CORSO","MAIGNAN",null,"TERRACCIANO",0,"TORRIANI",0,"DONEDA",0,"ACERBI",null,"BASTONI",null,"BISSECK",null,"DARMIAN",null,"DE VRIJ",null,"DE WINTER",null,"DUMFRIES",null,"MARTIN",null,"CAQUERET",null,"JASHARI",null,"MALDINI",null,"MALINOVSKYI",null,"POLITANO",null,"SUSLOV",null,"TAYLOR",null,"TRAMONI",null,"DIAO",null,"DOUVIKAS",null,"STULIC",null,"SULEMANA K.",null,"THURAM",null,"FFC MARIO CORSO","JEAN","LEC",5.75,4,5.875,"fmc_c@googlegroups.com",null,null,null,null,null,null,null,"VARCELLONA",null,null,null,null,null,null,null,null,null,null,null,null,null,null,"G1_OSTIAMARE FC","FANTONI & GINELLI","OSTIAMARE FC","CONFERENCE LEAGUE -  G. 1",null,"ZZ_RED-GREEN","ZZ_RED-GREEN","ZZ_OSTIAMARE FC","COPPA DI LEGA - FASE A GIRONI: 2a GIORNATA",null,null,null,null,null,null,"I VAZANICCHI","CARLITO'S VELEZ","RED-GREEN","OSTIAMARE FC","G2"]
["FIORENTINA","CARNESECCHI",null,"ROSSI",0,"SPORTIELLO",0,"ZANCHI",0,"AHANOR",null,"AKANJI",null,"BERNASCONI",null,"CARLOS AUGUSTO",null,"GOSENS",null,"N'DICKA",null,"RENSCH",null,"SOLET",null,"ATTA",null,"ELMAS",null,"LAHDO",null,"LOCATELLI",null,"NICO PAZ",null,"RABIOT",null,"STREFEZZA",null,"VERGARA",null,"DE KETELAERE",null,"DOMINGUEZ",null,"MORATA",null,"VAZ",null,"YILDIZ",null,"FIORENTINA","NDABA","LEC",5.5,9,5.5,"fmc_c@googlegroups.com",null,null,null,null,null,null,null,"VIS FONNO",null,null,null,null,null,null,null,null,null,null,null,null,null,null,"G1_A'NFAMI","LIVERCOOL","A'NFAMI","CONFERENCE LEAGUE -  G. 1",null,"ZZ_FC ROMA SUD","ZZ_FC ROMA SUD","ZZ_ARMATA NERAZZURRA","COPPA DI LEGA - FASE A GIRONI: 2a GIORNATA",null,null,null,null,null,null,"FFC EVARISTO BECCALOSSI","LAZIO","FC ROMA SUD","ARMATA NERAZZURRA","G2"]
["HIC SUNT FERAE","MERET",null,"CONTINI",0,"MILINKOVIC",0,"FERRANTE",0,"CELIK",null,"DI LORENZO",null,"HERMOSO",null,"IDZES",null,"KALULU",null,"MANCINI",null,"SPINAZZOLA",null,"TOMORI",null,"EL SHAARAWY",null,"FERGUSON",null,"FREULER",null,"LOFTUS-CHEEK",null,"MANDRAGORA",null,"MKHITARYAN",null,"POBEGA",null,"SAELEMAEKERS",null,"BANDA",null,"DALLINGA",null,"GIMENEZ",null,"LUKAKU",null,"SIMEONE",null,"HIC SUNT FERAE","PEREZ","LEC",5,1,5,"fmc_c@googlegroups.com",null,null,null,null,null,null,null,"VIS TRONKO",null,null,null,null,null,null,null,null,null,null,null,null,null,null,"G1_CACCIATORI FC","URACAN","CACCIATORI FC","CONFERENCE LEAGUE -  G. 1",null,"ZZ_PRAVETTONI CC","ZZ_PRAVETTONI CC","ZZ_NAPO-LEONI","COPPA DI LEGA - FASE A GIRONI: 2a GIORNATA",null,null,null,null,null,null,"BEAUTIFUL BUT LOSERS","FK'S TEAM","PRAVETTONI CC","NAPO-LEONI","G2"]
["LA VECCHIA GUARDIA","CAPRILE",null,"CIOCCI",0,"SHERRI",0,"AUSEKLIS",0,"BIANCHETTI",null,"CANESTRELLI",null,"KAMARA",null,"MARCANDALLI",null,"PONGRACIC",null,"RANIERI",null,"ROMAGNOLI",null,"WALUKIEWICZ",null,"ADOPO",null,"AEBISCHER",null,"CASADEI",null,"DE BRUYNE",null,"KARLSTROM",null,"KONÈ I.",null,"MCTOMINAY",null,"PRATI",null,"CASTRO",null,"MOREO",null,"PEDRO",null,"SARR",null,"VITINHA",null,"LA VECCHIA GUARDIA","SIEBERT","LEC",5.7647058823529411,17,5.6764705882352944,"fmc_c@googlegroups.com",null,null,null,null,null,null,null,"VOTANTONIO",null,null,null,null,null,null,null,null,null,null,null,null,null,null,"G1_PAPAVERI E PAPERE","UDINESE 1896","PAPAVERI E PAPERE","CONFERENCE LEAGUE -  G. 1",null,"ZZ_FC BIRO","ZZ_FC BIRO","ZZ_NOJOSETTE","COPPA DI LEGA - FASE A GIRONI: 2a GIORNATA",null,null,null,null,null,null,"VARCELLONA","FANTONI & GINELLI","FC BIRO","NOJOSETTE","G2"]
["LIVELE","SKORUPSKI",null,"PESSINA",0,"RAVAGLIA",0,"HAPPONEN",0,"BUONGIORNO",null,"CIRCATI",null,"DIMARCO",null,"GARCIA",null,"KEMPF",null,"KRISTENSEN",null,"OSTIGARD",null,"WESLEY",null,"ANGUISSA",null,"BARELLA",null,"BERNABE'",null,"MAZZITELLI",null,"MESSIAS",null,"SANTOS",null,"THORSBY",null,"ZIELINSKI",null,"ADDAI",null,"HOJLUND",null,"KILICSOY",null,"SOLOMON",null,"SOULE'",null,"LIVELE","TIAGO GABRIEL","LEC",6.0441176470588234,34,6,"fmc_c@googlegroups.com",null,null,null,null,null,null,null,"YOUNG BOYS",null,null,null,null,null,null,null,null,null,null,null,null,null,null,"G1_LUPIN III","FFC LUISITO SUAREZ","LUPIN III","CONFERENCE LEAGUE -  G. 1",null,"ZZ_PIGGI","ZZ_PIGGI","ZZ_FFC TARCISIO BURGNICH","COPPA DI LEGA - FASE A GIRONI: 2a GIORNATA",null,null,null,null,null,null,"OLTREMARE","OSTIAMARE FC","PIGGI","FFC TARCISIO BURGNICH","G2"]
["MARUEGO BOYS","BIJLOW",null,"LEALI",0,"SIEGRIST",0,"SOMMARIVA",0,"CAMBIASO",null,"DODO'",null,"ESTUPINAN",null,"HIEN",null,"JOAO MARIO",null,"OLIVERA",null,"RAMON",null,"TSIMIKAS",null,"BATURINA",null,"CONCEICAO",null,"DA CUNHA",null,"ISAKSEN",null,"KEITA",null,"LUIS HENRIQUE",null,"NERES",null,"ROWE",null,"BONNY",null,"COLOMBO",null,"DAVID",null,"PELLEGRINO",null,"RASPADORI",null,"MARUEGO BOYS","VEIGA","LEC",5.6911764705882355,34,5.8088235294117645,"fmc_c@googlegroups.com",null,null,null,null,null,null,null,"ZEMANLANDIA AFC",null,null,null,null,null,null,null,null,null,null,null,null,null,null,"G1_ARMATA NERAZZURRA","PRINCESS OF ETRURIA","ARMATA NERAZZURRA","CONFERENCE LEAGUE -  G. 1",null,"ZZ_INAZUMA ELEVEN","ZZ_INAZUMA ELEVEN","ZZ_LAZIO","COPPA DI LEGA - FASE A GIRONI: 2a GIORNATA",null,null,null,null,null,null,"LIVERCOOL","URACAN","INAZUMA ELEVEN","LAZIO","G2"]
["SOLSBURY HILL FC","DI GREGORIO",null,"PERIN",0,"PINSOGLIO",0,"HULI",0,"BEUKEMA",null,"CABAL",null,"GHILARDI",null,"ISMAJLI",null,"MINA",null,"TIAGO GABRIEL",null,"ZAPPA",null,"ZIOLKOWSKI",null,"BALDANZI",null,"COULIBALY",null,"EKKELENKAMP",null,"FAGIOLI",null,"FRENDRUP",null,"KONE'",null,"PAYERO",null,"VLASIC",null,"DAVIS",null,"ESPOSITO SE.",null,"LAURIENTÈ",null,"LAUTARO",null,"MALEN",null,"SOLSBURY HILL FC","ATHEKAME","MIL",5.9666666666666668,15,5.8666666666666663,"fmc_c@googlegroups.com",null,null,null,null,null,null,null,"ZERU TITULI",null,null,null,null,null,null,null,null,null,null,null,null,null,null,"G1_MANCHO FERE","LOS","MANCHO FERE","CONFERENCE LEAGUE -  G. 1",null,"ZZ_VARCELLONA","ZZ_VARCELLONA","ZZ_URACAN","COPPA DI LEGA - FASE A GIRONI: 2a GIORNATA",null,null,null,null,null,null,"A'NFAMI","CACCIATORI FC","VARCELLONA","URACAN","G2"]
["TEAM ENO","MOTTA",null,"PROVEDEL",0,"GIACOMONE",0,"PANNOZZO",0,"BARTESAGHI",null,"DELPRATO",null,"GILA",null,"MIRANDA",null,"PALESTRA",null,"PARISI",null,"VALERI",null,"VOJVODA",null,"BRESCIANINI",null,"CALHANOGLU",null,"GAETANO",null,"KOOPMEINERS",null,"MCKENNIE",null,"NDOUR",null,"THORSTVEDT",null,"ZACCAGNI",null,"ELPHEGE",null,"ESPOSITO F.P.",null,"GIOVANE",null,"NOSLIN",null,"RODRIGUEZ",null,"TEAM ENO","BARTESAGHI","MIL",6.068965517241379,29,5.9827586206896548,"fmc_c@googlegroups.com",null,null,null,null,null,null,null,"ZERVENA VIGIAK",null,null,null,null,null,null,null,null,null,null,null,null,null,null,"G1_PICARD","HOBBIT","PICARD","CONFERENCE LEAGUE -  G. 1",null,"ZZ_OLYMPIC KEBAB","ZZ_OLYMPIC KEBAB","ZZ_FFC ALESSANDRO ALTOBELLI","COPPA DI LEGA - FASE A GIRONI: 2a GIORNATA",null,null,null,null,null,null,"UDINESE 1896","FFC LUISITO SUAREZ","OLYMPIC KEBAB","FFC ALESSANDRO ALTOBELLI","G2"]
[null,null,null,null,null,null,null,null,null,null,null,null,null,null,null,null,null,null,null,null,null,null,null,null,null,null,null,null,null,null,null,null,null,null,null,null,null,null,null,null,null,null,null,null,null,null,null,null,null,null,null,null,"DE WINTER","MIL",5.8913043478260869,23,5.7826086956521738,null,null,null,null,null,null,null,null,null,null,null,null,null,null,null,null,null,null,null,null,null,null,null,"G1_REAL PIPPERO","FFC ALESSANDRO ALTOBELLI","REAL PIPPERO","CONFERENCE LEAGUE -  G. 1",null,"ZZ_DAGNE BOYS","ZZ_DAGNE BOYS","ZZ_GOBBOFINCHECAMPO","COPPA DI LEGA - FASE A GIRONI: 2a GIORNATA",null,null,null,null,null,null,"PAPAVERI E PAPERE","LUPIN III","DAGNE BOYS","GOBBOFINCHECAMPO","G2"]
[null,null,null,null,null,null,null,null,null,null,null,null,null,null,null,null,null,null,null,null,null,null,null,null,null,null,null,null,null,null,null,null,null,null,null,null,null,null,null,null,null,null,null,null,null,null,null,null,null,null,null,null,"ESTUPINAN","MIL",5.6428571428571432,14,5.6428571428571432,null,null,null,null,null,null,null,null,null,null,null,null,null,null,null,null,null,null,null,null,null,null,null,"G1_AS_TONMARTIN","PRAVETTONI CC","AS_TONMARTIN","CONFERENCE LEAGUE -  G. 1",null,"ZZ_LAMÙFOREVER","ZZ_LAMÙFOREVER","ZZ_RASTA DB","COPPA DI LEGA - FASE A GIRONI: 3a GIORNATA",null,null,null,null,null,null,"PRINCESS OF ETRURIA","LOS","LAMÙFOREVER","RASTA DB","G3"]
[null,null,null,null,null,null,null,null,null,null,null,null,null,null,null,null,null,null,null,null,null,null,null,null,null,null,null,null,null,null,null,null,null,null,null,null,null,null,null,null,null,null,null,null,null,null,null,null,null,null,null,null,"GABBIA","MIL",5.8703703703703702,27,5.9259259259259256,null,null,null,null,null,null,null,null,null,null,null,null,null,null,null,null,null,null,null,null,null,null,null,"G1_COSENZA CALCIO 1914","GOBBOFINCHECAMPO","COSENZA CALCIO 1914","CONFERENCE LEAGUE -  G. 1",null,"ZZ_REAL CHR","ZZ_REAL CHR","ZZ_TIME OUT","COPPA DI LEGA - FASE A GIRONI: 3a GIORNATA",null,null,null,null,null,null,"ARMATA NERAZZURRA","MANCHO FERE","REAL CHR","TIME OUT","G3"]
[null,null,null,null,null,null,null,null,null,null,null,null,null,null,null,null,null,null,null,null,null,null,null,null,null,null,null,null,null,null,null,null,null,null,null,null,null,null,null,null,null,null,null,null,null,null,null,null,null,null,null,null,"ODOGU","MIL",0,0,0,null,null,null,null,null,null,null,null,null,null,null,null,null,null,null,null,null,null,null,null,null,null,null,null,null,null,null,null,"ZZ_FC NAPOLI 2012","ZZ_FC NAPOLI 2012","ZZ_DAJE MO'","COPPA DI LEGA - FASE A GIRONI: 3a GIORNATA",null,null,null,null,null,null,"HOBBIT","FFC ALESSANDRO ALTOBELLI","FC NAPOLI 2012","DAJE MO'","G3"]
[null,null,null,null,null,null,null,null,null,null,null,null,null,null,null,null,null,null,null,null,null,null,null,null,null,null,null,null,null,null,null,null,null,null,null,null,null,null,null,null,null,null,null,null,null,null,null,null,null,null,null,null,"PAVLOVIC","MIL",6.6875,32,6.265625,null,null,null,null,null,null,null,null,null,null,null,null,null,null,null,null,null,null,null,null,null,null,null,null,null,null,null,null,"ZZ_A.S. TOTTIGO","ZZ_A.S. TOTTIGO","ZZ_FFC GIUSEPPE BERGOMI","COPPA DI LEGA - FASE A GIRONI: 3a GIORNATA",null,null,null,null,null,null,"PICARD","REAL PIPPERO","A.S. TOTTIGO","FFC GIUSEPPE BERGOMI","G3"]
[null,null,null,null,null,null,null,null,null,null,null,null,null,null,null,null,null,null,null,null,null,null,null,null,null,null,null,null,null,null,null,null,null,null,null,null,null,null,null,null,null,null,null,null,null,null,null,null,null,null,null,null,"TOMORI","MIL",5.8833333333333337,30,6,null,null,null,null,null,null,null,null,null,null,null,null,null,null,null,null,null,null,null,null,null,null,null,"",null,null,null,null,"ZZ_REAL GENOA","ZZ_REAL GENOA","ZZ_P CUATRO","COPPA DI LEGA - FASE A GIRONI: 3a GIORNATA",null,null,null,null,null,null,"PRAVETTONI CC","GOBBOFINCHECAMPO","REAL GENOA","P CUATRO","G3"]
[null,null,null,null,null,null,null,null,null,null,null,null,null,null,null,null,null,null,null,null,null,null,null,null,null,null,null,null,null,null,null,null,null,null,null,null,null,null,null,null,null,null,null,null,null,null,null,null,null,null,null,null,"BEUKEMA","NAP",6.166666666666667,21,5.9285714285714288,null,null,null,null,null,null,null,null,null,null,null,null,null,null,null,null,null,null,null,null,null,null,null,"G2_ABETO FC","ABETO FC","RASTA DB","CHAMPIONS LEAGUE -  G. 2",null,"ZZ_FANTARAPID CACCAMO","ZZ_FANTARAPID CACCAMO","ZZ_FC ZETAJ TEAM 1999","COPPA DI LEGA - FASE A GIRONI: 3a GIORNATA",null,null,null,null,null,null,"AS_TONMARTIN","COSENZA CALCIO 1914","FANTARAPID CACCAMO","FC ZETAJ TEAM 1999","G3"]
[null,null,null,null,null,null,null,null,null,null,null,null,null,null,null,null,null,null,null,null,null,null,null,null,null,null,null,null,null,null,null,null,null,null,null,null,null,null,null,null,null,null,null,null,null,null,null,null,null,null,null,null,"BUONGIORNO","NAP",5.854838709677419,31,5.903225806451613,null,null,null,null,null,null,null,null,null,null,null,null,null,null,null,null,null,null,null,null,null,null,null,"G2_EROI DEL 1982","EROI DEL 1982","CICCILLO","CHAMPIONS LEAGUE -  G. 2",null,"ZZ_ENDYMION","ZZ_ENDYMION","ZZ_A.C. ZDENEK","COPPA DI LEGA - FASE A GIRONI: 3a GIORNATA",null,null,null,null,null,null,null,null,"ENDYMION","A.C. ZDENEK","G3"]
[null,null,null,null,null,null,null,null,null,null,null,null,null,null,null,null,null,null,null,null,null,null,null,null,null,null,null,null,null,null,null,null,null,null,null,null,null,null,null,null,null,null,null,null,null,null,null,null,null,null,null,null,"DI LORENZO","NAP",6.291666666666667,24,6.0625,null,null,null,null,null,null,null,null,null,null,null,null,null,null,null,null,null,null,null,null,null,null,null,"G2_EUREKA","EU...REKA","FC PARTIZAN DEGRADO","CHAMPIONS LEAGUE -  G. 2",null,"ZZ_AMOREODIO","ZZ_AMOREODIO","ZZ_ATLETICO PIPPAO","COPPA DI LEGA - FASE A GIRONI: 3a GIORNATA",null,null,null,null,null,null,null,null,"AMOREODIO","ATLETICO PIPPAO","G3"]
[null,null,null,null,null,null,null,null,null,null,null,null,null,null,null,null,null,null,null,null,null,null,null,null,null,null,null,null,null,null,null,null,null,null,null,null,null,null,null,null,null,null,null,null,null,null,null,null,null,null,null,null,"GUTIERREZ","NAP",6.1,20,5.95,null,null,null,null,null,null,null,null,null,null,null,null,null,null,null,null,null,null,null,null,null,null,null,"G2_MAGODINA FC","MAGODINA FC","LA VECCHIA GUARDIA","CHAMPIONS LEAGUE -  G. 2",null,"ZZ_OXFORD UNITED","ZZ_OXFORD UNITED","ZZ_FC FANTATLETICO","COPPA DI LEGA - FASE A GIRONI: 3a GIORNATA",null,null,null,null,null,null,"CICCILLO","ABETO FC","OXFORD UNITED","FC FANTATLETICO","G3"]
[null,null,null,null,null,null,null,null,null,null,null,null,null,null,null,null,null,null,null,null,null,null,null,null,null,null,null,null,null,null,null,null,null,null,null,null,null,null,null,null,null,null,null,null,null,null,null,null,null,null,null,null,"JUAN JESUS","NAP",5.6,20,5.85,null,null,null,null,null,null,null,null,null,null,null,null,null,null,null,null,null,null,null,null,null,null,null,"G2_PARASITE","PARASITE","ATLETICO SQUONK","CHAMPIONS LEAGUE -  G. 2",null,"ZZ_MOMENTI DI GLORIA","ZZ_MOMENTI DI GLORIA","ZZ_FANTASPEZIA","COPPA DI LEGA - FASE A GIRONI: 3a GIORNATA",null,null,null,null,null,null,0,0,"MOMENTI DI GLORIA","FANTASPEZIA","G3"]
[null,null,null,null,null,null,null,null,null,null,null,null,null,null,null,null,null,null,null,null,null,null,null,null,null,null,null,null,null,null,null,null,null,null,null,null,null,null,null,null,null,null,null,null,null,null,null,null,null,null,null,null,"MAZZOCCHI","NAP",5.75,8,5.875,null,null,null,null,null,null,null,null,null,null,null,null,null,null,null,null,null,null,null,null,null,null,null,"G2_NASONE NERAZZURRO","NASONE NERAZZURRO","REAL BUGGY","CHAMPIONS LEAGUE -  G. 2",null,"ZZ_SALENTO FC","ZZ_SALENTO FC","ZZ_FC PARTIZAN DEGRADO","COPPA DI LEGA - FASE A GIRONI: 3a GIORNATA",null,null,null,null,null,null,0,0,"SALENTO FC","FC PARTIZAN DEGRADO","G3"]
[null,null,null,null,null,null,null,null,null,null,null,null,null,null,null,null,null,null,null,null,null,null,null,null,null,null,null,null,null,null,null,null,null,null,null,null,null,null,null,null,null,null,null,null,null,null,null,null,null,null,null,null,"OLIVERA","NAP",5.625,20,5.7,null,null,null,null,null,null,null,null,null,null,null,null,null,null,null,null,null,null,null,null,null,null,null,"G2_ROSSOBLU FC","ROSSOBLU FC","ZERU TITULI","CHAMPIONS LEAGUE -  G. 2",null,"ZZ_CLOCKWORK ORANGE FC","ZZ_CLOCKWORK ORANGE FC","ZZ_FFC SANDRO MAZZOLA","COPPA DI LEGA - FASE A GIRONI: 3a GIORNATA",null,null,null,null,null,null,0,0,"CLOCKWORK ORANGE FC","FFC SANDRO MAZZOLA","G3"]
[null,null,null,null,null,null,null,null,null,null,null,null,null,null,null,null,null,null,null,null,null,null,null,null,null,null,null,null,null,null,null,null,null,null,null,null,null,null,null,null,null,null,null,null,null,null,null,null,null,null,null,null,"RRAHMANI","NAP",6.2894736842105265,19,6.1842105263157894,null,null,null,null,null,null,null,null,null,null,null,null,null,null,null,null,null,null,null,null,null,null,null,"G2_2TWINS4EVER","2TWINS4EVER","SWANSEA","CHAMPIONS LEAGUE -  G. 2",null,"ZZ_PANZER8","ZZ_PANZER8","ZZ_EL NIÑO","COPPA DI LEGA - FASE A GIRONI: 3a GIORNATA",null,null,null,null,null,null,0,0,"PANZER8","EL NIÑO","G3"]
[null,null,null,null,null,null,null,null,null,null,null,null,null,null,null,null,null,null,null,null,null,null,null,null,null,null,null,null,null,null,null,null,null,null,null,null,null,null,null,null,null,null,null,null,null,null,null,null,null,null,null,null,"SPINAZZOLA","NAP",6.4655172413793105,29,6.1724137931034484,null,null,null,null,null,null,null,null,null,null,null,null,null,null,null,null,null,null,null,null,null,null,null,"G2_EARL & SOUL GALEONE","EARL & SOUL GALEONE","REAL CHR","CHAMPIONS LEAGUE -  G. 2",null,"ZZ_VOTANTONIO","ZZ_VOTANTONIO","ZZ_SPORTING LABRONICA","COPPA DI LEGA - FASE A GIRONI: 3a GIORNATA",null,null,null,null,null,null,0,0,"VOTANTONIO","SPORTING LABRONICA","G3"]
[null,null,null,null,null,null,null,null,null,null,null,null,null,null,null,null,null,null,null,null,null,null,null,null,null,null,null,null,null,null,null,null,null,null,null,null,null,null,null,null,null,null,null,null,null,null,null,null,null,null,null,null,"BRITSCHGI","PAR",5.6296296296296298,27,5.7407407407407405,null,null,null,null,null,null,null,null,null,null,null,null,null,null,null,null,null,null,null,null,null,null,null,"G2_FUFF TEAM","FUFF TEAM","UDI ONE","CHAMPIONS LEAGUE -  G. 2",null,"ZZ_SAN SIRO","ZZ_SAN SIRO","ZZ_FRIUL GALAXI","COPPA DI LEGA - FASE A GIRONI: 3a GIORNATA",null,null,null,null,null,null,0,0,"SAN SIRO","FRIUL GALAXI","G3"]
[null,null,null,null,null,null,null,null,null,null,null,null,null,null,null,null,null,null,null,null,null,null,null,null,null,null,null,null,null,null,null,null,null,null,null,null,null,null,null,null,null,null,null,null,null,null,null,null,null,null,null,null,"CARBONI F.","PAR",6,1,6,null,null,null,null,null,null,null,null,null,null,null,null,null,null,null,null,null,null,null,null,null,null,null,"G2_CATENACCIO & CONTROPIEDE","CATENACCIO & CONTROPIEDE","SPORTING LABRONICA","CHAMPIONS LEAGUE -  G. 2",null,"ZZ_REAL BABBUDOIU","ZZ_REAL BABBUDOIU","ZZ_ATLETICO SQUONK","COPPA DI LEGA - FASE A GIRONI: 3a GIORNATA",null,null,null,null,null,null,0,0,"REAL BABBUDOIU","ATLETICO SQUONK","G3"]
[null,null,null,null,null,null,null,null,null,null,null,null,null,null,null,null,null,null,null,null,null,null,null,null,null,null,null,null,null,null,null,null,null,null,null,null,null,null,null,null,null,null,null,null,null,null,null,null,null,null,null,null,"CIRCATI","PAR",5.931034482758621,29,5.931034482758621,null,null,null,null,null,null,null,null,null,null,null,null,null,null,null,null,null,null,null,null,null,null,null,"G2_DINAMO VIGIAK","DINAMO VIGIAK","FFC ANGELO DOMENGHINI","CHAMPIONS LEAGUE -  G. 2",null,"ZZ_BARBERA & CHAMPAGNE","ZZ_BARBERA & CHAMPAGNE","ZZ_ZERU TITULI","COPPA DI LEGA - FASE A GIRONI: 3a GIORNATA",null,null,null,null,null,null,0,0,"BARBERA & CHAMPAGNE","ZERU TITULI","G3"]
[null,null,null,null,null,null,null,null,null,null,null,null,null,null,null,null,null,null,null,null,null,null,null,null,null,null,null,null,null,null,null,null,null,null,null,null,null,null,null,null,null,null,null,null,null,null,null,null,null,null,null,null,"DELPRATO","PAR",6.0294117647058822,34,5.9264705882352944,null,null,null,null,null,null,null,null,null,null,null,null,null,null,null,null,null,null,null,null,null,null,null,"G2_RAT-MEN","RAT-MEN","A.S. TOTTIGO","CHAMPIONS LEAGUE -  G. 2",null,"ZZ_AMBROSIANA","ZZ_AMBROSIANA","ZZ_REAL BUCCINASCO","COPPA DI LEGA - FASE A GIRONI: 3a GIORNATA",null,null,null,null,null,null,0,0,"AMBROSIANA","REAL BUCCINASCO","G3"]
[null,null,null,null,null,null,null,null,null,null,null,null,null,null,null,null,null,null,null,null,null,null,null,null,null,null,null,null,null,null,null,null,null,null,null,null,null,null,null,null,null,null,null,null,null,null,null,null,null,null,null,null,"NDIAYE","PAR",5.3,10,5.55,null,null,null,null,null,null,null,null,null,null,null,null,null,null,null,null,null,null,null,null,null,null,null,"G2_GABRY FC","GABRY FC","JUNIORT","CHAMPIONS LEAGUE -  G. 2",null,"ZZ_CICCILLO","ZZ_CICCILLO","ZZ_REAL GRIFO","COPPA DI LEGA - FASE A GIRONI: 3a GIORNATA",null,null,null,null,null,null,0,0,"CICCILLO","REAL GRIFO","G3"]
[null,null,null,null,null,null,null,null,null,null,null,null,null,null,null,null,null,null,null,null,null,null,null,null,null,null,null,null,null,null,null,null,null,null,null,null,null,null,null,null,null,null,null,null,null,null,null,null,null,null,null,null,"TROILO","PAR",5.7105263157894735,19,5.7894736842105265,null,null,null,null,null,null,null,null,null,null,null,null,null,null,null,null,null,null,null,null,null,null,null,"G2_BAR MARIO","BAR MARIO","MOMENTI DI GLORIA","CHAMPIONS LEAGUE -  G. 2",null,"ZZ_CAVESE","ZZ_CAVESE","ZZ_LA MUCONE","COPPA DI LEGA - FASE A GIRONI: 3a GIORNATA",null,null,null,null,null,null,0,0,"CAVESE","LA MUCONE","G3"]
[null,null,null,null,null,null,null,null,null,null,null,null,null,null,null,null,null,null,null,null,null,null,null,null,null,null,null,null,null,null,null,null,null,null,null,null,null,null,null,null,null,null,null,null,null,null,null,null,null,null,null,null,"VALENTI","PAR",5.86,25,5.98,null,null,null,null,null,null,null,null,null,null,null,null,null,null,null,null,null,null,null,null,null,null,null,"G2_NICKSTREGA","NICKSTREGA","BRUDYLEGHORN","CHAMPIONS LEAGUE -  G. 2",null,"ZZ_ATLETICO PIGROTTO","ZZ_ATLETICO PIGROTTO","ZZ_COSENZA","COPPA DI LEGA - FASE A GIRONI: 3a GIORNATA",null,null,null,null,null,null,0,0,"ATLETICO PIGROTTO","COSENZA","G3"]
[null,null,null,null,null,null,null,null,null,null,null,null,null,null,null,null,null,null,null,null,null,null,null,null,null,null,null,null,null,null,null,null,null,null,null,null,null,null,null,null,null,null,null,null,null,null,null,null,null,null,null,null,"VALERI","PAR",6.015625,32,6.046875,null,null,null,null,null,null,null,null,null,null,null,null,null,null,null,null,null,null,null,null,null,null,null,"G2_FERRON","FERRON","CLOCKWORK ORANGE FC","CHAMPIONS LEAGUE -  G. 2",null,"ZZ_MARUEGO BOYS","ZZ_MARUEGO BOYS","ZZ_BETIS SEVILLA","COPPA DI LEGA - FASE A GIRONI: 3a GIORNATA",null,null,null,null,null,null,0,0,"MARUEGO BOYS","BETIS SEVILLA","G3"]
[null,null,null,null,null,null,null,null,null,null,null,null,null,null,null,null,null,null,null,null,null,null,null,null,null,null,null,null,null,null,null,null,null,null,null,null,null,null,null,null,null,null,null,null,null,null,null,null,null,null,null,null,"ALBIOL","PIS",5.5625,8,5.625,null,null,null,null,null,null,null,null,null,null,null,null,null,null,null,null,null,null,null,null,null,null,null,"G2_GRATTACHECCA","GRATTACHECCA","MARIANNA","CHAMPIONS LEAGUE -  G. 2",null,"ZZ_LA VECCHIA GUARDIA","ZZ_LA VECCHIA GUARDIA","ZZ_DREAM TIN TEAM","COPPA DI LEGA - FASE A GIRONI: 3a GIORNATA",null,null,null,null,null,null,0,0,"LA VECCHIA GUARDIA","DREAM TIN TEAM","G3"]
[null,null,null,null,null,null,null,null,null,null,null,null,null,null,null,null,null,null,null,null,null,null,null,null,null,null,null,null,null,null,null,null,null,null,null,null,null,null,null,null,null,null,null,null,null,null,null,null,null,null,null,null,"ANGORI","PIS",5.9393939393939394,33,5.9696969696969697,null,null,null,null,null,null,null,null,null,null,null,null,null,null,null,null,null,null,null,null,null,null,null,"G2_BLACK&WHITE","BLACK&WHITE","FANTARAPID CACCAMO","CHAMPIONS LEAGUE -  G. 2",null,"ZZ_MOMENTI DI GLORIA FMC","ZZ_MOMENTI DI GLORIA FMC","ZZ_A TUTTA CALLARA","COPPA DI LEGA - FASE A GIRONI: 3a GIORNATA",null,null,null,null,null,null,0,0,"MOMENTI DI GLORIA FMC","A TUTTA CALLARA","G3"]
[null,null,null,null,null,null,null,null,null,null,null,null,null,null,null,null,null,null,null,null,null,null,null,null,null,null,null,null,null,null,null,null,null,null,null,null,null,null,null,null,null,null,null,null,null,null,null,null,null,null,null,null,"BOZHINOV","PIS",5.0714285714285712,7,5.2857142857142856,null,null,null,null,null,null,null,null,null,null,null,null,null,null,null,null,null,null,null,null,null,null,null,"G2_TC WILLIAMS","TC WILLIAMS","LA MUCONE","CHAMPIONS LEAGUE -  G. 2",null,"ZZ_REAL BUGGY","ZZ_REAL BUGGY","ZZ_ACRESE","COPPA DI LEGA - FASE A GIRONI: 3a GIORNATA",null,null,null,null,null,null,0,0,"REAL BUGGY","ACRESE","G3"]
[null,null,null,null,null,null,null,null,null,null,null,null,null,null,null,null,null,null,null,null,null,null,null,null,null,null,null,null,null,null,null,null,null,null,null,null,null,null,null,null,null,null,null,null,null,null,null,null,null,null,null,null,"CALABRESI","PIS",5.6304347826086953,23,5.7826086956521738,null,null,null,null,null,null,null,null,null,null,null,null,null,null,null,null,null,null,null,null,null,null,null,"G2_VIS FONNO","VIS FONNO","SAN SIRO","CHAMPIONS LEAGUE -  G. 2",null,"ZZ_ANDREAS","ZZ_ANDREAS","ZZ_HIC SUNT FERAE","COPPA DI LEGA - FASE A GIRONI: 3a GIORNATA",null,null,null,null,null,null,0,0,"ANDREAS","HIC SUNT FERAE","G3"]
[null,null,null,null,null,null,null,null,null,null,null,null,null,null,null,null,null,null,null,null,null,null,null,null,null,null,null,null,null,null,null,null,null,null,null,null,null,null,null,null,null,null,null,null,null,null,null,null,null,null,null,null,"CANESTRELLI","PIS",5.7142857142857144,35,5.6857142857142859,null,null,null,null,null,null,null,null,null,null,null,null,null,null,null,null,null,null,null,null,null,null,null,"G2_FC BIBI 04","FC BIBI 04","ISOLA CHE NON CE","CHAMPIONS LEAGUE -  G. 2",null,"ZZ_FFC ANGELO DOMENGHINI","ZZ_FFC ANGELO DOMENGHINI","ZZ_RASTA ZETA","COPPA DI LEGA - FASE A GIRONI: 3a GIORNATA",null,null,null,null,null,null,0,0,"FFC ANGELO DOMENGHINI","RASTA ZETA","G3"]
[null,null,null,null,null,null,null,null,null,null,null,null,null,null,null,null,null,null,null,null,null,null,null,null,null,null,null,null,null,null,null,null,null,null,null,null,null,null,null,null,null,null,null,null,null,null,null,null,null,null,null,null,"CARACCIOLO","PIS",5.8088235294117645,34,5.8235294117647056,null,null,null,null,null,null,null,null,null,null,null,null,null,null,null,null,null,null,null,null,null,null,null,"G2_LUCHINS","LUCHINS","REAL GENOA","CHAMPIONS LEAGUE -  G. 2",null,"ZZ_FIORENTINA","ZZ_FIORENTINA","ZZ_MARIANNA","COPPA DI LEGA - FASE A GIRONI: 3a GIORNATA",null,null,null,null,null,null,0,0,"FIORENTINA","MARIANNA","G3"]
[null,null,null,null,null,null,null,null,null,null,null,null,null,null,null,null,null,null,null,null,null,null,null,null,null,null,null,null,null,null,null,null,null,null,null,null,null,null,null,null,null,null,null,null,null,null,null,null,null,null,null,null,"COPPOLA","PIS",4.9000000000000004,5,5.0999999999999996,null,null,null,null,null,null,null,null,null,null,null,null,null,null,null,null,null,null,null,null,null,null,null,"G2_AC DERBOLINA","AC DERBOLINA","AC MORRONE","CHAMPIONS LEAGUE -  G. 2",null,"ZZ_SWANSEA","ZZ_SWANSEA","ZZ_NORTH COCKS","COPPA DI LEGA - FASE A GIRONI: 3a GIORNATA",null,null,null,null,null,null,0,0,"SWANSEA","NORTH COCKS","G3"]
[null,null,null,null,null,null,null,null,null,null,null,null,null,null,null,null,null,null,null,null,null,null,null,null,null,null,null,null,null,null,null,null,null,null,null,null,null,null,null,null,null,null,null,null,null,null,null,null,null,null,null,null,"CUADRADO","PIS",6.1538461538461542,13,6.0384615384615383,null,null,null,null,null,null,null,null,null,null,null,null,null,null,null,null,null,null,null,null,null,null,null,"G2_RED HOT CHILI PEPPERS","RED HOT CHILI PEPPERS","REAL BABBUDOIU","CHAMPIONS LEAGUE -  G. 2",null,"ZZ_JUNIORT","ZZ_JUNIORT","ZZ_AC MORRONE","COPPA DI LEGA - FASE A GIRONI: 3a GIORNATA",null,null,null,null,null,null,0,0,"JUNIORT","AC MORRONE","G3"]
[null,null,null,null,null,null,null,null,null,null,null,null,null,null,null,null,null,null,null,null,null,null,null,null,null,null,null,null,null,null,null,null,null,null,null,null,null,null,null,null,null,null,null,null,null,null,null,null,null,null,null,null,"DENOON","PIS",5.25,2,5.5,null,null,null,null,null,null,null,null,null,null,null,null,null,null,null,null,null,null,null,null,null,null,null,"G2_FFC TOPENHAM","FFC TOPENHAM","ACRESE","CHAMPIONS LEAGUE -  G. 2",null,"ZZ_NEAPOLIS","ZZ_NEAPOLIS","ZZ_SOLSBURY HILL FC","COPPA DI LEGA - FASE A GIRONI: 3a GIORNATA",null,null,null,null,null,null,0,0,"NEAPOLIS","SOLSBURY HILL FC","G3"]
[null,null,null,null,null,null,null,null,null,null,null,null,null,null,null,null,null,null,null,null,null,null,null,null,null,null,null,null,null,null,null,null,null,null,null,null,null,null,null,null,null,null,null,null,null,null,null,null,null,null,null,null,"ANGELINO","ROM",5.666666666666667,6,5.833333333333333,null,null,null,null,null,null,null,null,null,null,null,null,null,null,null,null,null,null,null,null,null,null,null,"G2_RISK UNITED","RISK UNITED","ENDYMION","CHAMPIONS LEAGUE -  G. 2",null,"ZZ_ISOLA CHE NON CE","ZZ_ISOLA CHE NON CE","ZZ_TORI BRIANZOLI","COPPA DI LEGA - FASE A GIRONI: 3a GIORNATA",null,null,null,null,null,null,0,0,"ISOLA CHE NON CE","TORI BRIANZOLI","G3"]
[null,null,null,null,null,null,null,null,null,null,null,null,null,null,null,null,null,null,null,null,null,null,null,null,null,null,null,null,null,null,null,null,null,null,null,null,null,null,null,null,null,null,null,null,null,null,null,null,null,null,null,null,"CELIK","ROM",6.2,30,6.166666666666667,null,null,null,null,null,null,null,null,null,null,null,null,null,null,null,null,null,null,null,null,null,null,null,"G2_LA10 BIELLA FC","LA10 BIELLA FC","NORTH COCKS","CHAMPIONS LEAGUE -  G. 2",null,"ZZ_EL NINO FC","ZZ_EL NINO FC","ZZ_STROMBOLI","COPPA DI LEGA - FASE A GIRONI: 3a GIORNATA",null,null,null,null,null,null,0,0,"EL NINO FC","STROMBOLI","G3"]
[null,null,null,null,null,null,null,null,null,null,null,null,null,null,null,null,null,null,null,null,null,null,null,null,null,null,null,null,null,null,null,null,null,null,null,null,null,null,null,null,null,null,null,null,null,null,null,null,null,null,null,null,"GHILARDI","ROM",5.9749999999999996,20,6,null,null,null,null,null,null,null,null,null,null,null,null,null,null,null,null,null,null,null,null,null,null,null,"G2_DEP LA CAROGNA","DEP. LA CAROGNA","FC NAPOLI 2012","CHAMPIONS LEAGUE -  G. 2",null,"ZZ_BRUDYLEGHORN","ZZ_BRUDYLEGHORN","ZZ_TROPEA","COPPA DI LEGA - FASE A GIRONI: 3a GIORNATA",null,null,null,null,null,null,0,0,"BRUDYLEGHORN","TROPEA","G3"]
[null,null,null,null,null,null,null,null,null,null,null,null,null,null,null,null,null,null,null,null,null,null,null,null,null,null,null,null,null,null,null,null,null,null,null,null,null,null,null,null,null,null,null,null,null,null,null,null,null,null,null,null,"HERMOSO","ROM",6.34,25,6.14,null,null,null,null,null,null,null,null,null,null,null,null,null,null,null,null,null,null,null,null,null,null,null,"G2_SPORTING 2000","SPORTING 2000","RASTA ZETA","CHAMPIONS LEAGUE -  G. 2",null,"ZZ_FFC MARIO CORSO","ZZ_FFC MARIO CORSO","ZZ_LIVELE","COPPA DI LEGA - FASE A GIRONI: 3a GIORNATA",null,null,null,null,null,null,0,0,"FFC MARIO CORSO","LIVELE","G3"]
[null,null,null,null,null,null,null,null,null,null,null,null,null,null,null,null,null,null,null,null,null,null,null,null,null,null,null,null,null,null,null,null,null,null,null,null,null,null,null,null,null,null,null,null,null,null,null,null,null,null,null,null,"MANCINI","ROM",6.2352941176470589,34,6.1911764705882355,null,null,null,null,null,null,null,null,null,null,null,null,null,null,null,null,null,null,null,null,null,null,null,"G2_DAVINCI TEAM","DAVINCI TEAM","SALENTO FC","CHAMPIONS LEAGUE -  G. 2",null,"ZZ_UDI ONE","ZZ_UDI ONE","ZZ_TEAM ENO","COPPA DI LEGA - FASE A GIRONI: 3a GIORNATA",null,null,null,null,null,null,0,0,"UDI ONE","TEAM ENO","G3"]
[null,null,null,null,null,null,null,null,null,null,null,null,null,null,null,null,null,null,null,null,null,null,null,null,null,null,null,null,null,null,null,null,null,null,null,null,null,null,null,null,null,null,null,null,null,null,null,null,null,null,null,null,"N'DICKA","ROM",6.3,30,6.083333333333333,null,null,null,null,null,null,null,null,null,null,null,null,null,null,null,null,null,null,null,null,null,null,null,"G2_PRO WC","PRO WC","REAL GRIFO","CHAMPIONS LEAGUE -  G. 2",null,"ZZ_EROI DEL 1982","ZZ_EROI DEL 1982","ZZ_FFC ROBERTO BONINSEGNA","COPPA DI LEGA - FASE A GIRONI: 3a GIORNATA",null,null,null,null,null,null,0,0,"EROI DEL 1982","FFC ROBERTO BONINSEGNA","G3"]
[null,null,null,null,null,null,null,null,null,null,null,null,null,null,null,null,null,null,null,null,null,null,null,null,null,null,null,null,null,null,null,null,null,null,null,null,null,null,null,null,null,null,null,null,null,null,null,null,null,null,null,null,"RENSCH","ROM",6.2941176470588234,17,6.1470588235294121,null,null,null,null,null,null,null,null,null,null,null,null,null,null,null,null,null,null,null,null,null,null,null,"G2_RASTA DB","ABETO FC","RASTA DB","CHAMPIONS LEAGUE -  G. 2",null,"ZZ_ATLETICO SGANITO","ZZ_ATLETICO SGANITO","ZZ_GRATTACHECCA","COPPA DI LEGA - FASE A GIRONI: 3a GIORNATA",null,null,null,null,null,null,0,0,"ATLETICO SGANITO","GRATTACHECCA","G3"]
[null,null,null,null,null,null,null,null,null,null,null,null,null,null,null,null,null,null,null,null,null,null,null,null,null,null,null,null,null,null,null,null,null,null,null,null,null,null,null,null,null,null,null,null,null,null,null,null,null,null,null,null,"TSIMIKAS","ROM",5.6923076923076925,13,5.7307692307692308,null,null,null,null,null,null,null,null,null,null,null,null,null,null,null,null,null,null,null,null,null,null,null,"G2_CICCILLO","EROI DEL 1982","CICCILLO","CHAMPIONS LEAGUE -  G. 2",null,"ZZ_BFC MARANO","ZZ_BFC MARANO","ZZ_NAPOLI FOREVER","COPPA DI LEGA - FASE A GIRONI: 3a GIORNATA",null,null,null,null,null,null,0,0,"BFC MARANO","NAPOLI FOREVER","G3"]
[null,null,null,null,null,null,null,null,null,null,null,null,null,null,null,null,null,null,null,null,null,null,null,null,null,null,null,null,null,null,null,null,null,null,null,null,null,null,null,null,null,null,null,null,null,null,null,null,null,null,null,null,"WESLEY","ROM",6.5517241379310347,29,6.1551724137931032,null,null,null,null,null,null,null,null,null,null,null,null,null,null,null,null,null,null,null,null,null,null,null,"G2_FC PARTIZAN DEGRADO","EU...REKA","FC PARTIZAN DEGRADO","CHAMPIONS LEAGUE -  G. 2",null,"ZZ_DINAMO VIGIAK","ZZ_DINAMO VIGIAK","ZZ_NICKSTREGA","COPPA DI LEGA - FASE A GIRONI: 3a GIORNATA",null,null,null,null,null,null,0,0,"DINAMO VIGIAK","NICKSTREGA","G3"]
[null,null,null,null,null,null,null,null,null,null,null,null,null,null,null,null,null,null,null,null,null,null,null,null,null,null,null,null,null,null,null,null,null,null,null,null,null,null,null,null,null,null,null,null,null,null,null,null,null,null,null,null,"ZIOLKOWSKI","ROM",5.875,8,6,null,null,null,null,null,null,null,null,null,null,null,null,null,null,null,null,null,null,null,null,null,null,null,"G2_LA VECCHIA GUARDIA","MAGODINA FC","LA VECCHIA GUARDIA","CHAMPIONS LEAGUE -  G. 2",null,"ZZ_MOMPRACEM","ZZ_MOMPRACEM","ZZ_KITEMMUOR TEAM","COPPA DI LEGA - FASE A GIRONI: 3a GIORNATA",null,null,null,null,null,null,null,null,"MOMPRACEM","KITEMMUOR TEAM","G3"]
[null,null,null,null,null,null,null,null,null,null,null,null,null,null,null,null,null,null,null,null,null,null,null,null,null,null,null,null,null,null,null,null,null,null,null,null,null,null,null,null,null,null,null,null,null,null,null,null,null,null,null,null,"CANDE'","SAS",5.5625,8,5.6875,null,null,null,null,null,null,null,null,null,null,null,null,null,null,null,null,null,null,null,null,null,null,null,"G2_ATLETICO SQUONK","PARASITE","ATLETICO SQUONK","CHAMPIONS LEAGUE -  G. 2",null,"ZZ_BAYER LEVERRUKE","ZZ_BAYER LEVERRUKE","ZZ_MOKA JUNIORS","COPPA DI LEGA - FASE A GIRONI: 3a GIORNATA",null,null,null,null,null,null,0,0,"BAYER LEVERRUKE","MOKA JUNIORS","G3"]
[null,null,null,null,null,null,null,null,null,null,null,null,null,null,null,null,null,null,null,null,null,null,null,null,null,null,null,null,null,null,null,null,null,null,null,null,null,null,null,null,null,null,null,null,null,null,null,null,null,null,null,null,"COULIBALY W.","SAS",5.625,16,5.6875,null,null,null,null,null,null,null,null,null,null,null,null,null,null,null,null,null,null,null,null,null,null,null,"G2_REAL BUGGY","NASONE NERAZZURRO","REAL BUGGY","CHAMPIONS LEAGUE -  G. 2",null,"ZZ_FUFF TEAM","ZZ_FUFF TEAM","ZZ_MANZO TEAM","COPPA DI LEGA - FASE A GIRONI: 3a GIORNATA",null,null,null,null,null,null,0,0,"FUFF TEAM","MANZO TEAM","G3"]
[null,null,null,null,null,null,null,null,null,null,null,null,null,null,null,null,null,null,null,null,null,null,null,null,null,null,null,null,null,null,null,null,null,null,null,null,null,null,null,null,null,null,null,null,null,null,null,null,null,null,null,null,"DOIG","SAS",5.7592592592592595,27,5.8518518518518521,null,null,null,null,null,null,null,null,null,null,null,null,null,null,null,null,null,null,null,null,null,null,null,"G2_ZERU TITULI","ROSSOBLU FC","ZERU TITULI","CHAMPIONS LEAGUE -  G. 2",null,"ZZ_TWOSTARS","ZZ_TWOSTARS","ZZ_TC WILLIAMS","COPPA DI LEGA - FASE A GIRONI: 3a GIORNATA",null,null,null,null,null,null,0,0,"TWOSTARS","TC WILLIAMS","G3"]
[null,null,null,null,null,null,null,null,null,null,null,null,null,null,null,null,null,null,null,null,null,null,null,null,null,null,null,null,null,null,null,null,null,null,null,null,null,null,null,null,null,null,null,null,null,null,null,null,null,null,null,null,"GARCIA","SAS",6.4,10,6.25,null,null,null,null,null,null,null,null,null,null,null,null,null,null,null,null,null,null,null,null,null,null,null,"G2_SWANSEA","2TWINS4EVER","SWANSEA","CHAMPIONS LEAGUE -  G. 2",null,"ZZ_NASONE NERAZZURRO","ZZ_NASONE NERAZZURRO","ZZ_VIS TRONKO","COPPA DI LEGA - FASE A GIRONI: 3a GIORNATA",null,null,null,null,null,null,0,0,"NASONE NERAZZURRO","VIS TRONKO","G3"]
[null,null,null,null,null,null,null,null,null,null,null,null,null,null,null,null,null,null,null,null,null,null,null,null,null,null,null,null,null,null,null,null,null,null,null,null,null,null,null,null,null,null,null,null,null,null,null,null,null,null,null,null,"IDZES","SAS",5.8970588235294121,34,5.9264705882352944,null,null,null,null,null,null,null,null,null,null,null,null,null,null,null,null,null,null,null,null,null,null,null,"G2_REAL CHR","EARL & SOUL GALEONE","REAL CHR","CHAMPIONS LEAGUE -  G. 2",null,"ZZ_FC TRIPLETE","ZZ_FC TRIPLETE","ZZ_FFC TOPENHAM","COPPA DI LEGA - FASE A GIRONI: 3a GIORNATA",null,null,null,null,null,null,0,0,"FC TRIPLETE","FFC TOPENHAM","G3"]
[null,null,null,null,null,null,null,null,null,null,null,null,null,null,null,null,null,null,null,null,null,null,null,null,null,null,null,null,null,null,null,null,null,null,null,null,null,null,null,null,null,null,null,null,null,null,null,null,null,null,null,null,"MUHAREMOVIC","SAS",5.887096774193548,31,5.919354838709677,null,null,null,null,null,null,null,null,null,null,null,null,null,null,null,null,null,null,null,null,null,null,null,"G2_UDI ONE","FUFF TEAM","UDI ONE","CHAMPIONS LEAGUE -  G. 2",null,"ZZ_FC JAVIER ZANETTI","ZZ_FC JAVIER ZANETTI","ZZ_PICCIOTTI NERAZZURRI","COPPA DI LEGA - FASE A GIRONI: 3a GIORNATA",null,null,null,null,null,null,0,0,"FC JAVIER ZANETTI","PICCIOTTI NERAZZURRI","G3"]
[null,null,null,null,null,null,null,null,null,null,null,null,null,null,null,null,null,null,null,null,null,null,null,null,null,null,null,null,null,null,null,null,null,null,null,null,null,null,null,null,null,null,null,null,null,null,null,null,null,null,null,null,"PEDRO FELIPE","SAS",0,0,0,null,null,null,null,null,null,null,null,null,null,null,null,null,null,null,null,null,null,null,null,null,null,null,"G2_SPORTING LABRONICA","CATENACCIO & CONTROPIEDE","SPORTING LABRONICA","CHAMPIONS LEAGUE -  G. 2",null,"ZZ_GABRY FC","ZZ_GABRY FC","ZZ_ALAN FORD'S TEAM","COPPA DI LEGA - FASE A GIRONI: 3a GIORNATA",null,null,null,null,null,null,0,0,"GABRY FC","ALAN FORD'S TEAM","G3"]
[null,null,null,null,null,null,null,null,null,null,null,null,null,null,null,null,null,null,null,null,null,null,null,null,null,null,null,null,null,null,null,null,null,null,null,null,null,null,null,null,null,null,null,null,null,null,null,null,null,null,null,null,"PIERAGNOLO","SAS",0,0,0,null,null,null,null,null,null,null,null,null,null,null,null,null,null,null,null,null,null,null,null,null,null,null,"G2_FFC ANGELO DOMENGHINI","DINAMO VIGIAK","FFC ANGELO DOMENGHINI","CHAMPIONS LEAGUE -  G. 2",null,"ZZ_CACAO MERAVIGLIAO","ZZ_CACAO MERAVIGLIAO","ZZ_PRO WC","COPPA DI LEGA - FASE A GIRONI: 3a GIORNATA",null,null,null,null,null,null,0,0,"CACAO MERAVIGLIAO","PRO WC","G3"]
[null,null,null,null,null,null,null,null,null,null,null,null,null,null,null,null,null,null,null,null,null,null,null,null,null,null,null,null,null,null,null,null,null,null,null,null,null,null,null,null,null,null,null,null,null,null,null,null,null,null,null,null,"ROMAGNA","SAS",5.7,5,5.7,null,null,null,null,null,null,null,null,null,null,null,null,null,null,null,null,null,null,null,null,null,null,null,"G2_AS TOTTIGO","RAT-MEN","A.S. TOTTIGO","CHAMPIONS LEAGUE -  G. 2",null,"ZZ_CRIMSON","ZZ_CRIMSON","ZZ_AC DERBOLINA","COPPA DI LEGA - FASE A GIRONI: 3a GIORNATA",null,null,null,null,null,null,0,0,"CRIMSON","AC DERBOLINA","G3"]
[null,null,null,null,null,null,null,null,null,null,null,null,null,null,null,null,null,null,null,null,null,null,null,null,null,null,null,null,null,null,null,null,null,null,null,null,null,null,null,null,null,null,null,null,null,null,null,null,null,null,null,null,"WALUKIEWICZ","SAS",5.7058823529411766,34,5.8088235294117645,null,null,null,null,null,null,null,null,null,null,null,null,null,null,null,null,null,null,null,null,null,null,null,"G2_JUNIORT","GABRY FC","JUNIORT","CHAMPIONS LEAGUE -  G. 2",null,"ZZ_ATLETICO MA NON TROPPO","ZZ_ATLETICO MA NON TROPPO","ZZ_LA10 BIELLA FC","COPPA DI LEGA - FASE A GIRONI: 3a GIORNATA",null,null,null,null,null,null,0,0,"ATLETICO MA NON TROPPO","LA10 BIELLA FC","G3"]
[null,null,null,null,null,null,null,null,null,null,null,null,null,null,null,null,null,null,null,null,null,null,null,null,null,null,null,null,null,null,null,null,null,null,null,null,null,null,null,null,null,null,null,null,null,null,null,null,null,null,null,null,"BIRAGHI","TOR",5.5909090909090908,11,5.5909090909090908,null,null,null,null,null,null,null,null,null,null,null,null,null,null,null,null,null,null,null,null,null,null,null,"G2_MOMENTI DI GLORIA","BAR MARIO","MOMENTI DI GLORIA","CHAMPIONS LEAGUE -  G. 2",null,"ZZ_2TWINS4EVER","ZZ_2TWINS4EVER","ZZ_FC BIBI 04","COPPA DI LEGA - FASE A GIRONI: 3a GIORNATA",null,null,null,null,null,null,0,0,"2TWINS4EVER","FC BIBI 04","G3"]
[null,null,null,null,null,null,null,null,null,null,null,null,null,null,null,null,null,null,null,null,null,null,null,null,null,null,null,null,null,null,null,null,null,null,null,null,null,null,null,null,null,null,null,null,null,null,null,null,null,null,null,null,"COCO","TOR",5.9393939393939394,33,5.8939393939393936,null,null,null,null,null,null,null,null,null,null,null,null,null,null,null,null,null,null,null,null,null,null,null,"G2_BRUDYLEGHORN","NICKSTREGA","BRUDYLEGHORN","CHAMPIONS LEAGUE -  G. 2",null,"ZZ_AS QUARZA","ZZ_AS QUARZA","ZZ_SPORTING 2000","COPPA DI LEGA - FASE A GIRONI: 3a GIORNATA",null,null,null,null,null,null,0,0,"AS QUARZA","SPORTING 2000","G3"]
[null,null,null,null,null,null,null,null,null,null,null,null,null,null,null,null,null,null,null,null,null,null,null,null,null,null,null,null,null,null,null,null,null,null,null,null,null,null,null,null,null,null,null,null,null,null,null,null,null,null,null,null,"EBOSSE","TOR",5.7142857142857144,14,5.7857142857142856,null,null,null,null,null,null,null,null,null,null,null,null,null,null,null,null,null,null,null,null,null,null,null,"G2_CLOCKWORK ORANGE FC","FERRON","CLOCKWORK ORANGE FC","CHAMPIONS LEAGUE -  G. 2",null,"ZZ_MAGODINA FC","ZZ_MAGODINA FC","ZZ_REAL MADRINK","COPPA DI LEGA - FASE A GIRONI: 3a GIORNATA",null,null,null,null,null,null,0,0,"MAGODINA FC","REAL MADRINK","G3"]
[null,null,null,null,null,null,null,null,null,null,null,null,null,null,null,null,null,null,null,null,null,null,null,null,null,null,null,null,null,null,null,null,null,null,null,null,null,null,null,null,null,null,null,null,null,null,null,null,null,null,null,null,"ISMAJLI","TOR",5.8478260869565215,23,5.9565217391304346,null,null,null,null,null,null,null,null,null,null,null,null,null,null,null,null,null,null,null,null,null,null,null,"G2_MARIANNA","GRATTACHECCA","MARIANNA","CHAMPIONS LEAGUE -  G. 2",null,"ZZ_COSENZA CALCIO 1914","ZZ_COSENZA CALCIO 1914","ZZ_SPORTING VINAO","COPPA DI LEGA - FASE A GIRONI: 3a GIORNATA",null,null,null,null,null,null,0,0,"COSENZA CALCIO 1914","SPORTING VINAO","G3"]
[null,null,null,null,null,null,null,null,null,null,null,null,null,null,null,null,null,null,null,null,null,null,null,null,null,null,null,null,null,null,null,null,null,null,null,null,null,null,null,null,null,null,null,null,null,null,null,null,null,null,null,null,"LAZARO","TOR",5.6333333333333337,30,5.7,null,null,null,null,null,null,null,null,null,null,null,null,null,null,null,null,null,null,null,null,null,null,null,"G2_FANTARAPID CACCAMO","BLACK&WHITE","FANTARAPID CACCAMO","CHAMPIONS LEAGUE -  G. 2",null,"ZZ_DIAMANTE","ZZ_DIAMANTE","ZZ_JUVE93","COPPA DI LEGA - FASE A GIRONI: 3a GIORNATA",null,null,null,null,null,null,0,0,"DIAMANTE","JUVE93","G3"]
[null,null,null,null,null,null,null,null,null,null,null,null,null,null,null,null,null,null,null,null,null,null,null,null,null,null,null,null,null,null,null,null,null,null,null,null,null,null,null,null,null,null,null,null,null,null,null,null,null,null,null,null,"MARIANUCCI","TOR",5.65,10,5.75,null,null,null,null,null,null,null,null,null,null,null,null,null,null,null,null,null,null,null,null,null,null,null,"G2_LA MUCONE","TC WILLIAMS","LA MUCONE","CHAMPIONS LEAGUE -  G. 2",null,"ZZ_DAVINCI TEAM","ZZ_DAVINCI TEAM","ZZ_BLUES BROTHERS","COPPA DI LEGA - FASE A GIRONI: 3a GIORNATA",null,null,null,null,null,null,0,0,"DAVINCI TEAM","BLUES BROTHERS","G3"]
[null,null,null,null,null,null,null,null,null,null,null,null,null,null,null,null,null,null,null,null,null,null,null,null,null,null,null,null,null,null,null,null,null,null,null,null,null,null,null,null,null,null,null,null,null,null,null,null,null,null,null,null,"MARIPAN","TOR",6.12,25,5.94,null,null,null,null,null,null,null,null,null,null,null,null,null,null,null,null,null,null,null,null,null,null,null,"G2_SAN SIRO","VIS FONNO","SAN SIRO","CHAMPIONS LEAGUE -  G. 2",null,"ZZ_PARASITE","ZZ_PARASITE","ZZ_ELEVEN LIONS","COPPA DI LEGA - FASE A GIRONI: 3a GIORNATA",null,null,null,null,null,null,0,0,"PARASITE","ELEVEN LIONS","G3"]
[null,null,null,null,null,null,null,null,null,null,null,null,null,null,null,null,null,null,null,null,null,null,null,null,null,null,null,null,null,null,null,null,null,null,null,null,null,null,null,null,null,null,null,null,null,null,null,null,null,null,null,null,"BERTOLA","UDI",5.8043478260869561,23,5.8695652173913047,null,null,null,null,null,null,null,null,null,null,null,null,null,null,null,null,null,null,null,null,null,null,null,"G2_ENDYMION","RISK UNITED","ENDYMION","CHAMPIONS LEAGUE -  G. 2",null,"ZZ_VIS FONNO","ZZ_VIS FONNO","ZZ_EARL & SOUL GALEONE","COPPA DI LEGA - FASE A GIRONI: 3a GIORNATA",null,null,null,null,null,null,0,0,"VIS FONNO","EARL & SOUL GALEONE","G3"]
[null,null,null,null,null,null,null,null,null,null,null,null,null,null,null,null,null,null,null,null,null,null,null,null,null,null,null,null,null,null,null,null,null,null,null,null,null,null,null,null,null,null,null,null,null,null,null,null,null,null,null,null,"MLACIC","UDI",5.666666666666667,3,5.833333333333333,null,null,null,null,null,null,null,null,null,null,null,null,null,null,null,null,null,null,null,null,null,null,null,"G2_REAL GRIFO","PRO WC","REAL GRIFO","CHAMPIONS LEAGUE -  G. 2",null,"ZZ_MANCHO FERE","ZZ_MANCHO FERE","ZZ_ALL BLACKS","COPPA DI LEGA - FASE A GIRONI: 3a GIORNATA",null,null,null,null,null,null,0,0,"MANCHO FERE","ALL BLACKS","G3"]
[null,null,null,null,null,null,null,null,null,null,null,null,null,null,null,null,null,null,null,null,null,null,null,null,null,null,null,null,null,null,null,null,null,null,null,null,null,null,null,null,null,null,null,null,null,null,null,null,null,null,null,null,"BRADARIC","VER",5.7592592592592595,27,5.7962962962962967,null,null,null,null,null,null,null,null,null,null,null,null,null,null,null,null,null,null,null,null,null,null,null,"G2_DIAMANTE","DIAMANTE","FRIUL GALAXI","EUROPA LEAGUE -  G. 2",null,"ZZ_BEETLES","ZZ_BEETLES","ZZ_ZEMANLANDIA AFC","COPPA DI LEGA - FASE A GIRONI: 3a GIORNATA",null,null,null,null,null,null,0,0,"BEETLES","ZEMANLANDIA AFC","G3"]
[null,null,null,null,null,null,null,null,null,null,null,null,null,null,null,null,null,null,null,null,null,null,null,null,null,null,null,null,null,null,null,null,null,null,null,null,null,null,null,null,null,null,null,null,null,null,null,null,null,null,null,null,"NELSSON","VER",5.5428571428571427,35,5.6571428571428575,null,null,null,null,null,null,null,null,null,null,null,null,null,null,null,null,null,null,null,null,null,null,null,"G2_ATLETICO MA NON TROPPO","ATLETICO MA NON TROPPO","MOMENTI DI GLORIA FMC","EUROPA LEAGUE -  G. 2",null,"ZZ_FANTONI & GINELLI","ZZ_FANTONI & GINELLI","ZZ_PERDENTUS FC","COPPA DI LEGA - FASE A GIRONI: 3a GIORNATA",null,null,null,null,null,null,0,0,"FANTONI & GINELLI","PERDENTUS FC","G3"]
[null,null,null,null,null,null,null,null,null,null,null,null,null,null,null,null,null,null,null,null,null,null,null,null,null,null,null,null,null,null,null,null,null,null,null,null,null,null,null,null,null,null,null,null,null,null,null,null,null,null,null,null,"EDERSON","ATA",6.4137931034482758,29,6.2586206896551726,null,null,null,null,null,null,null,null,null,null,null,null,null,null,null,null,null,null,null,null,null,null,null,"G2_AS NEW TEAM","AS NEW TEAM","P CUATRO","EUROPA LEAGUE -  G. 2",null,"ZZ_LUPIN III","ZZ_LUPIN III","ZZ_FFC EVARISTO BECCALOSSI","COPPA DI LEGA - FASE A GIRONI: 3a GIORNATA",null,null,null,null,null,null,0,0,"LUPIN III","FFC EVARISTO BECCALOSSI","G3"]
[null,null,null,null,null,null,null,null,null,null,null,null,null,null,null,null,null,null,null,null,null,null,null,null,null,null,null,null,null,null,null,null,null,null,null,null,null,null,null,null,null,null,null,null,null,null,null,null,null,null,null,null,"FERGUSON","BOL",5.7857142857142856,21,5.8095238095238093,null,null,null,null,null,null,null,null,null,null,null,null,null,null,null,null,null,null,null,null,null,null,null,"G2_ELEVEN LIONS","ELEVEN LIONS","FFC GIUSEPPE BERGOMI","EUROPA LEAGUE -  G. 2",null,"ZZ_FFC TARCISIO BURGNICH","ZZ_FFC TARCISIO BURGNICH","ZZ_FC BIRO","COPPA DI LEGA - FASE A GIRONI: 3a GIORNATA",null,null,null,null,null,null,0,0,"FFC TARCISIO BURGNICH","FC BIRO","G3"]
[null,null,null,null,null,null,null,null,null,null,null,null,null,null,null,null,null,null,null,null,null,null,null,null,null,null,null,null,null,null,null,null,null,null,null,null,null,null,null,null,null,null,null,null,null,null,null,null,null,null,null,null,"POBEGA","BOL",5.9761904761904763,21,5.7619047619047619,null,null,null,null,null,null,null,null,null,null,null,null,null,null,null,null,null,null,null,null,null,null,null,"G2_VIS TRONKO","VIS TRONKO","STROMBOLI","EUROPA LEAGUE -  G. 2",null,"ZZ_FFC ALESSANDRO ALTOBELLI","ZZ_FFC ALESSANDRO ALTOBELLI","ZZ_DAGNE BOYS","COPPA DI LEGA - FASE A GIRONI: 3a GIORNATA",null,null,null,null,null,null,0,0,"FFC ALESSANDRO ALTOBELLI","DAGNE BOYS","G3"]
[null,null,null,null,null,null,null,null,null,null,null,null,null,null,null,null,null,null,null,null,null,null,null,null,null,null,null,null,null,null,null,null,null,null,null,null,null,null,null,null,null,null,null,null,null,null,null,null,null,null,null,null,"FELICI","CAG",6.4545454545454541,11,6.0454545454545459,null,null,null,null,null,null,null,null,null,null,null,null,null,null,null,null,null,null,null,null,null,null,null,"G2_KITEMMUOR TEAM","KITEMMUOR TEAM","COSENZA","EUROPA LEAGUE -  G. 2",null,"ZZ_SPORTING LABRONICA","ZZ_SPORTING LABRONICA","ZZ_A.S. TOTTIGO","COPPA DI LEGA - OTTAVI DI FINALE",null,null,null,null,null,null,0,0,"SPORTING LABRONICA","A.S. TOTTIGO","OTTAVI"]
[null,null,null,null,null,null,null,null,null,null,null,null,null,null,null,null,null,null,null,null,null,null,null,null,null,null,null,null,null,null,null,null,null,null,null,null,null,null,null,null,null,null,null,null,null,null,null,null,null,null,null,null,"SULEMANA I.","CAG",5.78125,16,5.65625,null,null,null,null,null,null,null,null,null,null,null,null,null,null,null,null,null,null,null,null,null,null,null,"G2_FRIUL GALAXI","DIAMANTE","FRIUL GALAXI","EUROPA LEAGUE -  G. 2",null,"ZZ_FIORENTINA","ZZ_FIORENTINA","ZZ_LA MUCONE","COPPA DI LEGA - OTTAVI DI FINALE",null,null,null,null,null,null,null,null,"FIORENTINA","LA MUCONE","OTTAVI"]
[null,null,null,null,null,null,null,null,null,null,null,null,null,null,null,null,null,null,null,null,null,null,null,null,null,null,null,null,null,null,null,null,null,null,null,null,null,null,null,null,null,null,null,null,null,null,null,null,null,null,null,null,"CAQUERET","COM",6.2884615384615383,26,6.115384615384615,null,null,null,null,null,null,null,null,null,null,null,null,null,null,null,null,null,null,null,null,null,null,null,"G2_FC ZETAJ TEAM 1999","ZEMANLANDIA AFC","FC ZETAJ TEAM 1999","EUROPA LEAGUE -  G. 2",null,"ZZ_SOLSBURY HILL FC","ZZ_SOLSBURY HILL FC","ZZ_BRUDYLEGHORN","COPPA DI LEGA - OTTAVI DI FINALE",null,null,null,null,null,null,null,null,"SOLSBURY HILL FC","BRUDYLEGHORN","OTTAVI"]
[null,null,null,null,null,null,null,null,null,null,null,null,null,null,null,null,null,null,null,null,null,null,null,null,null,null,null,null,null,null,null,null,null,null,null,null,null,null,null,null,null,null,null,null,null,null,null,null,null,null,null,null,"SERGI ROBERTO","COM",5.7307692307692308,13,5.8461538461538458,null,null,null,null,null,null,null,null,null,null,null,null,null,null,null,null,null,null,null,null,null,null,null,"G2_CAVESE","FC JAVIER ZANETTI","CAVESE","EUROPA LEAGUE -  G. 2",null,"ZZ_LIVELE","ZZ_LIVELE","ZZ_SWANSEA","COPPA DI LEGA - OTTAVI DI FINALE",null,null,null,null,null,null,null,null,"LIVELE","SWANSEA","OTTAVI"]
[null,null,null,null,null,null,null,null,null,null,null,null,null,null,null,null,null,null,null,null,null,null,null,null,null,null,null,null,null,null,null,null,null,null,null,null,null,null,null,null,null,null,null,null,null,null,null,null,null,null,null,null,"PAYERO","CRE",5.86,25,5.9,null,null,null,null,null,null,null,null,null,null,null,null,null,null,null,null,null,null,null,null,null,null,null,"G2_EL NIÑO","INAZUMA ELEVEN","EL NIÑO","EUROPA LEAGUE -  G. 2",null,"ZZ_ABETO FC","ZZ_ABETO FC","ZZ_SALEX","COPPA DI LEGA - OTTAVI DI FINALE",null,null,null,null,null,null,null,null,"ABETO FC","SALEX","OTTAVI"]
[null,null,null,null,null,null,null,null,null,null,null,null,null,null,null,null,null,null,null,null,null,null,null,null,null,null,null,null,null,null,null,null,null,null,null,null,null,null,null,null,null,null,null,null,null,null,null,null,null,null,null,null,"FABBIAN","FIO",6.0476190476190474,21,5.7857142857142856,null,null,null,null,null,null,null,null,null,null,null,null,null,null,null,null,null,null,null,null,null,null,null,"G2_TROPEA","ATLETICO SGANITO","TROPEA","EUROPA LEAGUE -  G. 2",null,"ZZ_DAGNE BOYS","ZZ_DAGNE BOYS","ZZ_REAL PIPPERO","COPPA DI LEGA - SEDICESIMI DI FINALE",null,null,null,null,null,null,null,null,"DAGNE BOYS","REAL PIPPERO","16simi"]
[null,null,null,null,null,null,null,null,null,null,null,null,null,null,null,null,null,null,null,null,null,null,null,null,null,null,null,null,null,null,null,null,null,null,null,null,null,null,null,null,null,null,null,null,null,null,null,null,null,null,null,null,"NDOUR","FIO",5.9285714285714288,28,5.75,null,null,null,null,null,null,null,null,null,null,null,null,null,null,null,null,null,null,null,null,null,null,null,"G2_DREAM TIN TEAM","MANZO TEAM","DREAM TIN TEAM","EUROPA LEAGUE -  G. 2",null,"ZZ_PRINCESS OF ETRURIA","ZZ_PRINCESS OF ETRURIA","ZZ_CACCIATORI FC","COPPA DI LEGA - SEDICESIMI DI FINALE",null,null,null,null,null,null,null,null,"PRINCESS OF ETRURIA","CACCIATORI FC","16simi"]
[null,null,null,null,null,null,null,null,null,null,null,null,null,null,null,null,null,null,null,null,null,null,null,null,null,null,null,null,null,null,null,null,null,null,null,null,null,null,null,null,null,null,null,null,null,null,null,null,null,null,null,null,"CORNET","GEN",4.5,5,5.0999999999999996,null,null,null,null,null,null,null,null,null,null,null,null,null,null,null,null,null,null,null,null,null,null,null,null,null,null,null,null,"ZZ_VARCELLONA","ZZ_VARCELLONA","ZZ_FK'S TEAM","COPPA DI LEGA - SEDICESIMI DI FINALE",null,null,null,null,null,null,null,null,"VARCELLONA","FK'S TEAM","16simi"]
[null,null,null,null,null,null,null,null,null,null,null,null,null,null,null,null,null,null,null,null,null,null,null,null,null,null,null,null,null,null,null,null,null,null,null,null,null,null,null,null,null,null,null,null,null,null,null,null,null,null,null,null,"ONANA","GEN",5.75,2,5.75,null,null,null,null,null,null,null,null,null,null,null,null,null,null,null,null,null,null,null,null,null,null,null,"G2_ETRURIA UNITED","ETRURIA UNITED","FFC MARIO CORSO","CONFERENCE LEAGUE -  G. 2",null,"ZZ_FC BIBI 04","ZZ_FC BIBI 04","ZZ_MAGODINA FC","COPPA DI LEGA - OTTAVI DI FINALE",null,null,null,null,null,null,null,null,"FC BIBI 04","MAGODINA FC","OTTAVI"]
[null,null,null,null,null,null,null,null,null,null,null,null,null,null,null,null,null,null,null,null,null,null,null,null,null,null,null,null,null,null,null,null,null,null,null,null,null,null,null,null,null,null,null,null,null,null,null,null,null,null,null,null,"LUIS HENRIQUE","INT",6,25,5.9,null,null,null,null,null,null,null,null,null,null,null,null,null,null,null,null,null,null,null,null,null,null,null,"G2_REAL FARNESE","REAL FARNESE","TERZO MUNICIPIO","CONFERENCE LEAGUE -  G. 2",null,"ZZ_MAGODINA FC","ZZ_MAGODINA FC","ZZ_BFC MARANO","COPPA DI LEGA - SPAREGGIO",null,null,null,null,null,null,null,null,"MAGODINA FC","BFC MARANO","SPAREGGIO"]
[null,null,null,null,null,null,null,null,null,null,null,null,null,null,null,null,null,null,null,null,null,null,null,null,null,null,null,null,null,null,null,null,null,null,null,null,null,null,null,null,null,null,null,null,null,null,null,null,null,null,null,null,"CONCEICAO","JUV",6.5535714285714288,28,6.2857142857142856,null,null,null,null,null,null,null,null,null,null,null,null,null,null,null,null,null,null,null,null,null,null,null,"G2_FC BIRO","FC BIRO","FFC TARCISIO BURGNICH","CONFERENCE LEAGUE -  G. 2",null,"ZZ_URACAN","ZZ_URACAN","ZZ_NOJOSETTE","COPPA DI LEGA - OTTAVI DI FINALE IMI 2",null,null,null,null,null,null,null,null,"URACAN","NOJOSETTE","OTTAVI IMI 2"]
[null,null,null,null,null,null,null,null,null,null,null,null,null,null,null,null,null,null,null,null,null,null,null,null,null,null,null,null,null,null,null,null,null,null,null,null,null,null,null,null,null,null,null,null,null,null,null,null,null,null,null,null,"THURAM K.","JUV",6.375,32,6.125,null,null,null,null,null,null,null,null,null,null,null,null,null,null,null,null,null,null,null,null,null,null,null,"G2_OLTREMARE","OLTREMARE","OSTIAMARE FC","CONFERENCE LEAGUE -  G. 2",null,"ZZ_FC ZETAJ TEAM 1999","ZZ_FC ZETAJ TEAM 1999","ZZ_TIME OUT","COPPA DI LEGA - ANDATA QUARTI DI FINALE",null,null,null,null,null,null,null,null,"FC ZETAJ TEAM 1999","TIME OUT","ANDATA QUARTI"]
[null,null,null,null,null,null,null,null,null,null,null,null,null,null,null,null,null,null,null,null,null,null,null,null,null,null,null,null,null,null,null,null,null,null,null,null,null,null,null,null,null,null,null,null,null,null,null,null,null,null,null,null,"DELE-BASHIRU","LAZ",5.6315789473684212,19,5.6315789473684212,null,null,null,null,null,null,null,null,null,null,null,null,null,null,null,null,null,null,null,null,null,null,null,"G2_PRINCESS OF ETRURIA","PRINCESS OF ETRURIA","LOS","CONFERENCE LEAGUE -  G. 2",null,"ZZ_LIVELE","ZZ_LIVELE","ZZ_FFC ANGELO DOMENGHINI","COPPA DI LEGA - ANDATA QUARTI DI FINALE",null,null,null,null,null,null,null,null,"LIVELE","FFC ANGELO DOMENGHINI","ANDATA QUARTI"]
[null,null,null,null,null,null,null,null,null,null,null,null,null,null,null,null,null,null,null,null,null,null,null,null,null,null,null,null,null,null,null,null,null,null,null,null,null,null,null,null,null,null,null,null,null,null,null,null,null,null,null,null,"MALDINI","LAZ",6.3125,16,5.96875,null,null,null,null,null,null,null,null,null,null,null,null,null,null,null,null,null,null,null,null,null,null,null,"G2_HOBBIT","HOBBIT","FFC ALESSANDRO ALTOBELLI","CONFERENCE LEAGUE -  G. 2",null,"ZZ_DINAMO VIGIAK","ZZ_DINAMO VIGIAK","ZZ_2TWINS4EVER","COPPA DI LEGA - ANDATA QUARTI DI FINALE",null,null,null,null,null,null,null,null,"DINAMO VIGIAK","2TWINS4EVER","ANDATA QUARTI"]
[null,null,null,null,null,null,null,null,null,null,null,null,null,null,null,null,null,null,null,null,null,null,null,null,null,null,null,null,null,null,null,null,null,null,null,null,null,null,null,null,null,null,null,null,null,null,null,null,null,null,null,null,"HELGASON","LEC",5.625,4,5.625,null,null,null,null,null,null,null,null,null,null,null,null,null,null,null,null,null,null,null,null,null,null,null,"G2_AL-ZENA","SOLSBURY HILL FC","AL-ZENA","CONFERENCE LEAGUE -  G. 2",null,"ZZ_PRINCESS OF ETRURIA","ZZ_PRINCESS OF ETRURIA","ZZ_GIAMBOTTINO FC","COPPA DI LEGA - ANDATA QUARTI DI FINALE",null,null,null,null,null,null,null,null,"PRINCESS OF ETRURIA","GIAMBOTTINO FC","ANDATA QUARTI"]
[null,null,null,null,null,null,null,null,null,null,null,null,null,null,null,null,null,null,null,null,null,null,null,null,null,null,null,null,null,null,null,null,null,null,null,null,null,null,null,null,null,null,null,null,null,null,null,null,null,null,null,null,"SALA","LEC",5.75,4,5.75,null,null,null,null,null,null,null,null,null,null,null,null,null,null,null,null,null,null,null,null,null,null,null,"G2_YOUNG BOYS","PIGGI","YOUNG BOYS","CONFERENCE LEAGUE -  G. 2",null,"ZZ_MOMENTI DI GLORIA FMC","ZZ_MOMENTI DI GLORIA FMC","ZZ_NORTH COCKS","COPPA DI LEGA - RITORNO QUARTI DI FINALE",null,null,null,null,null,null,null,null,"MOMENTI DI GLORIA FMC","NORTH COCKS","RITORNO QUARTI"]
[null,null,null,null,null,null,null,null,null,null,null,null,null,null,null,null,null,null,null,null,null,null,null,null,null,null,null,null,null,null,null,null,null,null,null,null,null,null,null,null,null,null,null,null,null,null,null,null,null,null,null,null,"SOTTIL","LEC",6.1428571428571432,21,6.0238095238095237,null,null,null,null,null,null,null,null,null,null,null,null,null,null,null,null,null,null,null,null,null,null,null,"G2_NOJOSETTE","OLYMPIC KEBAB","NOJOSETTE","CONFERENCE LEAGUE -  G. 2",null,"ZZ_FIORENTINA","ZZ_FIORENTINA","ZZ_BETIS SEVILLA","COPPA DI LEGA - RITORNO QUARTI DI FINALE",null,null,null,null,null,null,null,null,"FIORENTINA","BETIS SEVILLA","RITORNO QUARTI"]
[null,null,null,null,null,null,null,null,null,null,null,null,null,null,null,null,null,null,null,null,null,null,null,null,null,null,null,null,null,null,null,null,null,null,null,null,null,null,null,null,null,null,null,null,null,null,null,null,null,null,null,null,"MODRIC","MIL",6.59375,32,6.46875,null,null,null,null,null,null,null,null,null,null,null,null,null,null,null,null,null,null,null,null,null,null,null,"G2_CARLITO'S VELEZ","I VAZANICCHI","CARLITO'S VELEZ","CONFERENCE LEAGUE -  G. 2",null,"ZZ_NASONE NERAZZURRO","ZZ_NASONE NERAZZURRO","ZZ_FUFF TEAM","COPPA DI LEGA - RITORNO QUARTI DI FINALE",null,null,null,null,null,null,null,null,"NASONE NERAZZURRO","FUFF TEAM","RITORNO QUARTI"]
[null,null,null,null,null,null,null,null,null,null,null,null,null,null,null,null,null,null,null,null,null,null,null,null,null,null,null,null,null,null,null,null,null,null,null,null,null,null,null,null,null,null,null,null,null,null,null,null,null,null,null,null,"ANGUISSA","NAP",6.8055555555555554,18,6.166666666666667,null,null,null,null,null,null,null,null,null,null,null,null,null,null,null,null,null,null,null,null,null,null,null,"G2_URACAN","LIVERCOOL","URACAN","CONFERENCE LEAGUE -  G. 2",null,"ZZ_SVICAT","ZZ_SVICAT","ZZ_CAPIBARA SWOFFY FC","COPPA DI LEGA - RITORNO QUARTI DI FINALE",null,null,null,null,null,null,null,null,"SVICAT","CAPIBARA SWOFFY FC","RITORNO QUARTI"]
[null,null,null,null,null,null,null,null,null,null,null,null,null,null,null,null,null,null,null,null,null,null,null,null,null,null,null,null,null,null,null,null,null,null,null,null,null,null,null,null,null,null,null,null,null,null,null,null,null,null,null,null,"NERES","NAP",6.65625,16,6.1875,null,null,null,null,null,null,null,null,null,null,null,null,null,null,null,null,null,null,null,null,null,null,null,"G2_FFC ALESSANDRO ALTOBELLI","HOBBIT","FFC ALESSANDRO ALTOBELLI","CONFERENCE LEAGUE -  G. 2",null,"ZZ_FUFF TEAM","ZZ_FUFF TEAM","ZZ_GRATTACHECCA","COPPA DI LEGA - ANDATA SEMIFINALI",null,null,null,null,null,null,null,null,"FUFF TEAM","GRATTACHECCA","ANDATA SEMIFINALI"]
[null,null,null,null,null,null,null,null,null,null,null,null,null,null,null,null,null,null,null,null,null,null,null,null,null,null,null,null,null,null,null,null,null,null,null,null,null,null,null,null,null,null,null,null,null,null,null,null,null,null,null,null,"CREMASCHI","PAR",6,1,6,null,null,null,null,null,null,null,null,null,null,null,null,null,null,null,null,null,null,null,null,null,null,null,null,null,null,null,null,"ZZ_MOMENTI DI GLORIA FMC","ZZ_MOMENTI DI GLORIA FMC","ZZ_FIORENTINA","COPPA DI LEGA - ANDATA SEMIFINALI",null,null,null,null,null,null,null,null,"MOMENTI DI GLORIA FMC","FIORENTINA","ANDATA SEMIFINALI"]
[null,null,null,null,null,null,null,null,null,null,null,null,null,null,null,null,null,null,null,null,null,null,null,null,null,null,null,null,null,null,null,null,null,null,null,null,null,null,null,null,null,null,null,null,null,null,null,null,null,null,null,null,"ORISTANIO","PAR",5.916666666666667,18,5.7777777777777777,null,null,null,null,null,null,null,null,null,null,null,null,null,null,null,null,null,null,null,null,null,null,null,"G3_ATLETICO SQUONK","ATLETICO SQUONK","NASONE NERAZZURRO","CHAMPIONS LEAGUE -  G. 3",null,"ZZ_A'NFAMI","ZZ_A'NFAMI","ZZ_NOJOSETTE","COPPA DI LEGA - RITORNO SEMIFINALI",null,null,null,null,null,null,null,null,"A'NFAMI","NOJOSETTE","RITORNO SEMIFINALI"]
[null,null,null,null,null,null,null,null,null,null,null,null,null,null,null,null,null,null,null,null,null,null,null,null,null,null,null,null,null,null,null,null,null,null,null,null,null,null,null,null,null,null,null,null,null,null,null,null,null,null,null,null,"HOJHOLT","PIS",5.5,13,5.5769230769230766,null,null,null,null,null,null,null,null,null,null,null,null,null,null,null,null,null,null,null,null,null,null,null,"G3_FFC ANGELO DOMENGHINI","FFC ANGELO DOMENGHINI","CATENACCIO & CONTROPIEDE","CHAMPIONS LEAGUE -  G. 3",null,"ZZ_LIVELE","ZZ_LIVELE","ZZ_SOLSBURY HILL FC","COPPA DI LEGA - RITORNO SEMIFINALI",null,null,null,null,null,null,null,null,"LIVELE","SOLSBURY HILL FC","RITORNO SEMIFINALI"]
[null,null,null,null,null,null,null,null,null,null,null,null,null,null,null,null,null,null,null,null,null,null,null,null,null,null,null,null,null,null,null,null,null,null,null,null,null,null,null,null,null,null,null,null,null,null,null,null,null,null,null,null,"MARIN","PIS",5.7,20,5.875,null,null,null,null,null,null,null,null,null,null,null,null,null,null,null,null,null,null,null,null,null,null,null,"G3_MOMENTI DI GLORIA","MOMENTI DI GLORIA","NICKSTREGA","CHAMPIONS LEAGUE -  G. 3",null,"ZZ_NOJOSETTE","ZZ_NOJOSETTE","ZZ_VARCELLONA","COPPA DI LEGA - FINALE DI ANDATA",null,null,null,null,null,null,null,null,"NOJOSETTE","VARCELLONA","FINALE DI ANDATA"]
[null,null,null,null,null,null,null,null,null,null,null,null,null,null,null,null,null,null,null,null,null,null,null,null,null,null,null,null,null,null,null,null,null,null,null,null,null,null,null,null,null,null,null,null,null,null,null,null,null,null,null,null,"TRAMONI","PIS",5.92,25,5.72,null,null,null,null,null,null,null,null,null,null,null,null,null,null,null,null,null,null,null,null,null,null,null,"G3_FANTARAPID CACCAMO","FANTARAPID CACCAMO","TC WILLIAMS","CHAMPIONS LEAGUE -  G. 3",null,"ZZ_SVICAT","ZZ_SVICAT","ZZ_ABETO FC","COPPA DI LEGA - FINALE DI RITORNO",null,null,null,null,null,null,null,null,"SVICAT","ABETO FC","FINALE DI RITORNO"]
[null,null,null,null,null,null,null,null,null,null,null,null,null,null,null,null,null,null,null,null,null,null,null,null,null,null,null,null,null,null,null,null,null,null,null,null,null,null,null,null,null,null,null,null,null,null,null,null,null,null,null,null,"PISILLI","ROM",6.3,20,6.0750000000000002,null,null,null,null,null,null,null,null,null,null,null,null,null,null,null,null,null,null,null,null,null,null,null,"G3_ENDYMION","ENDYMION","LA10 BIELLA FC","CHAMPIONS LEAGUE -  G. 3",null,"ZZ_FC NAPOLI 2012","ZZ_A.S. TOTTIGO","ZZ_FC NAPOLI 2012","COPPA DI LEGA - FASE A GIRONI: 1a GIORNATA"]
[null,null,null,null,null,null,null,null,null,null,null,null,null,null,null,null,null,null,null,null,null,null,null,null,null,null,null,null,null,null,null,null,null,null,null,null,null,null,null,null,null,null,null,null,null,null,null,null,null,null,null,null,"BOLOCA","SAS",5.75,2,5.75,null,null,null,null,null,null,null,null,null,null,null,null,null,null,null,null,null,null,null,null,null,null,null,"G3_ABETO FC","CICCILLO","ABETO FC","CHAMPIONS LEAGUE -  G. 3",null,"ZZ_FANTASPEZIA","ZZ_FC FANTATLETICO","ZZ_FANTASPEZIA","COPPA DI LEGA - FASE A GIRONI: 1a GIORNATA"]
[null,null,null,null,null,null,null,null,null,null,null,null,null,null,null,null,null,null,null,null,null,null,null,null,null,null,null,null,null,null,null,null,null,null,null,null,null,null,null,null,null,null,null,null,null,null,null,null,null,null,null,null,"THORSTVEDT","SAS",6.4482758620689653,29,6.1724137931034484,null,null,null,null,null,null,null,null,null,null,null,null,null,null,null,null,null,null,null,null,null,null,null,"G3_ROSSOBLU FC","SWANSEA","ROSSOBLU FC","CHAMPIONS LEAGUE -  G. 3",null,"ZZ_ATLETICO SQUONK","ZZ_FRIUL GALAXI","ZZ_ATLETICO SQUONK","COPPA DI LEGA - FASE A GIRONI: 1a GIORNATA"]
[null,null,null,null,null,null,null,null,null,null,null,null,null,null,null,null,null,null,null,null,null,null,null,null,null,null,null,null,null,null,null,null,null,null,null,null,null,null,null,null,null,null,null,null,null,null,null,null,null,null,null,null,"GINEITIS","TOR",5.7692307692307692,26,5.865384615384615,null,null,null,null,null,null,null,null,null,null,null,null,null,null,null,null,null,null,null,null,null,null,null,"G3_DINAMO VIGIAK","SPORTING LABRONICA","DINAMO VIGIAK","CHAMPIONS LEAGUE -  G. 3",null,"ZZ_CICCILLO","ZZ_CAVESE","ZZ_CICCILLO","COPPA DI LEGA - FASE A GIRONI: 1a GIORNATA"]
[null,null,null,null,null,null,null,null,null,null,null,null,null,null,null,null,null,null,null,null,null,null,null,null,null,null,null,null,null,null,null,null,null,null,null,null,null,null,null,null,null,null,null,null,null,null,null,null,null,null,null,null,"ILIC","TOR",5.875,8,6,null,null,null,null,null,null,null,null,null,null,null,null,null,null,null,null,null,null,null,null,null,null,null,"G3_RAT-MEN","JUNIORT","RAT-MEN","CHAMPIONS LEAGUE -  G. 3",null,"ZZ_BETIS SEVILLA","ZZ_COSENZA","ZZ_BETIS SEVILLA","COPPA DI LEGA - FASE A GIRONI: 1a GIORNATA"]
[null,null,null,null,null,null,null,null,null,null,null,null,null,null,null,null,null,null,null,null,null,null,null,null,null,null,null,null,null,null,null,null,null,null,null,null,null,null,null,null,null,null,null,null,null,null,null,null,null,null,null,null,"ATTA","UDI",6.85,30,6.4,null,null,null,null,null,null,null,null,null,null,null,null,null,null,null,null,null,null,null,null,null,null,null,"G3_GRATTACHECCA","CLOCKWORK ORANGE FC","GRATTACHECCA","CHAMPIONS LEAGUE -  G. 3",null,"ZZ_REAL BUGGY","ZZ_ANDREAS","ZZ_REAL BUGGY","COPPA DI LEGA - FASE A GIRONI: 1a GIORNATA"]
[null,null,null,null,null,null,null,null,null,null,null,null,null,null,null,null,null,null,null,null,null,null,null,null,null,null,null,null,null,null,null,null,null,null,null,null,null,null,null,null,null,null,null,null,null,null,null,null,null,null,null,null,"ZANIOLO","UDI",6.612903225806452,31,6.258064516129032,null,null,null,null,null,null,null,null,null,null,null,null,null,null,null,null,null,null,null,null,null,null,null,"G3_LUCHINS","AC MORRONE","LUCHINS","CHAMPIONS LEAGUE -  G. 3",null,"ZZ_TORI BRIANZOLI","ZZ_SOLSBURY HILL FC","ZZ_TORI BRIANZOLI","COPPA DI LEGA - FASE A GIRONI: 1a GIORNATA"]
[null,null,null,null,null,null,null,null,null,null,null,null,null,null,null,null,null,null,null,null,null,null,null,null,null,null,null,null,null,null,null,null,null,null,null,null,null,null,null,null,null,null,null,null,null,null,null,null,null,null,null,null,"HARROUI","VER",5.8666666666666663,15,5.7333333333333334,null,null,null,null,null,null,null,null,null,null,null,null,null,null,null,null,null,null,null,null,null,null,null,"G3_DEP LA CAROGNA","RASTA ZETA","DEP. LA CAROGNA","CHAMPIONS LEAGUE -  G. 3",null,"ZZ_GRATTACHECCA","ZZ_FFC ROBERTO BONINSEGNA","ZZ_GRATTACHECCA","COPPA DI LEGA - FASE A GIRONI: 1a GIORNATA"]
[null,null,null,null,null,null,null,null,null,null,null,null,null,null,null,null,null,null,null,null,null,null,null,null,null,null,null,null,null,null,null,null,null,null,null,null,null,null,null,null,null,null,null,null,null,null,null,null,null,null,null,null,"DE KETELAERE","ATA",6.4655172413793105,29,6.2241379310344831,null,null,null,null,null,null,null,null,null,null,null,null,null,null,null,null,null,null,null,null,null,null,null,"G3_ATLETICO PIGROTTO","ATLETICO PIGROTTO","SPORTING VINAO","EUROPA LEAGUE -  G. 3",null,"ZZ_MOMPRACEM","ZZ_BAYER LEVERRUKE","ZZ_MOMPRACEM","COPPA DI LEGA - FASE A GIRONI: 1a GIORNATA"]
[null,null,null,null,null,null,null,null,null,null,null,null,null,null,null,null,null,null,null,null,null,null,null,null,null,null,null,null,null,null,null,null,null,null,null,null,null,null,null,null,null,null,null,null,null,null,null,null,null,null,null,null,"CASTRO","BOL",6.5454545454545459,33,5.9545454545454541,null,null,null,null,null,null,null,null,null,null,null,null,null,null,null,null,null,null,null,null,null,null,null,"G3_TORI BRIANZOLI","TORI BRIANZOLI","ZEMANLANDIA AFC","EUROPA LEAGUE -  G. 3",null,"ZZ_FC JAVIER ZANETTI","ZZ_GABRY FC","ZZ_FC JAVIER ZANETTI","COPPA DI LEGA - FASE A GIRONI: 1a GIORNATA"]
[null,null,null,null,null,null,null,null,null,null,null,null,null,null,null,null,null,null,null,null,null,null,null,null,null,null,null,null,null,null,null,null,null,null,null,null,null,null,null,null,null,null,null,null,null,null,null,null,null,null,null,null,"BORRELLI","CAG",6.28,25,5.88,null,null,null,null,null,null,null,null,null,null,null,null,null,null,null,null,null,null,null,null,null,null,null,"G3_ATLETICO PIPPAO","ATLETICO PIPPAO","FC JAVIER ZANETTI","EUROPA LEAGUE -  G. 3",null,"ZZ_REAL MADRINK","ZZ_SPORTING 2000","ZZ_REAL MADRINK","COPPA DI LEGA - FASE A GIRONI: 1a GIORNATA"]
[null,null,null,null,null,null,null,null,null,null,null,null,null,null,null,null,null,null,null,null,null,null,null,null,null,null,null,null,null,null,null,null,null,null,null,null,null,null,null,null,null,null,null,null,null,null,null,null,null,null,null,null,"ADDAI","COM",6.541666666666667,12,5.958333333333333,null,null,null,null,null,null,null,null,null,null,null,null,null,null,null,null,null,null,null,null,null,null,null,"G3_EL NIÑO","EL NIÑO","FC TRIPLETE","EUROPA LEAGUE -  G. 3",null,"ZZ_RED HOT CHILI PEPPERS","ZZ_CINICI","ZZ_RED HOT CHILI PEPPERS","COPPA DI LEGA - FASE A GIRONI: 1a GIORNATA"]
[null,null,null,null,null,null,null,null,null,null,null,null,null,null,null,null,null,null,null,null,null,null,null,null,null,null,null,null,null,null,null,null,null,null,null,null,null,null,null,null,null,null,null,null,null,null,null,null,null,null,null,null,"BONAZZOLI","CRE",6.8939393939393936,33,6.1212121212121211,null,null,null,null,null,null,null,null,null,null,null,null,null,null,null,null,null,null,null,null,null,null,null,"G3_PANZER8","PANZER8","PICCIOTTI NERAZZURRI","EUROPA LEAGUE -  G. 3",null,"ZZ_SVICAT","ZZ_LA BANDA DEGLI ONESTI","ZZ_SVICAT","COPPA DI LEGA - FASE A GIRONI: 1a GIORNATA"]
[null,null,null,null,null,null,null,null,null,null,null,null,null,null,null,null,null,null,null,null,null,null,null,null,null,null,null,null,null,null,null,null,null,null,null,null,null,null,null,null,null,null,null,null,null,null,null,null,null,null,null,null,"VARDY","CRE",6.5,27,5.9074074074074074,null,null,null,null,null,null,null,null,null,null,null,null,null,null,null,null,null,null,null,null,null,null,null,"G3_LIVELE","LIVELE","BORGOROSSO F.C.","EUROPA LEAGUE -  G. 3",null,"ZZ_MANCHO FERE","ZZ_BORGOROSSO F.C.","ZZ_MANCHO FERE","COPPA DI LEGA - FASE A GIRONI: 1a GIORNATA"]
[null,null,null,null,null,null,null,null,null,null,null,null,null,null,null,null,null,null,null,null,null,null,null,null,null,null,null,null,null,null,null,null,null,null,null,null,null,null,null,null,null,null,null,null,null,null,null,null,null,null,null,null,"SOLOMON","FIO",6.375,12,5.916666666666667,null,null,null,null,null,null,null,null,null,null,null,null,null,null,null,null,null,null,null,null,null,null,null,"G3_BFC MARANO","DAJE MO'","BFC MARANO","EUROPA LEAGUE -  G. 3",null,"ZZ_PICARD","ZZ_ZEMANLANDIA AFC","ZZ_PICARD","COPPA DI LEGA - FASE A GIRONI: 1a GIORNATA"]
[null,null,null,null,null,null,null,null,null,null,null,null,null,null,null,null,null,null,null,null,null,null,null,null,null,null,null,null,null,null,null,null,null,null,null,null,null,null,null,null,null,null,null,null,null,null,null,null,null,null,null,null,"BONNY","INT",6.72,25,6.14,null,null,null,null,null,null,null,null,null,null,null,null,null,null,null,null,null,null,null,null,null,null,null,"G3_CACAO MERAVIGLIAO","FC ZETAJ TEAM 1999","CACAO MERAVIGLIAO","EUROPA LEAGUE -  G. 3",null,"ZZ_PAPAVERI E PAPERE","ZZ_REAL FARNESE","ZZ_PAPAVERI E PAPERE","COPPA DI LEGA - FASE A GIRONI: 1a GIORNATA"]
[null,null,null,null,null,null,null,null,null,null,null,null,null,null,null,null,null,null,null,null,null,null,null,null,null,null,null,null,null,null,null,null,null,null,null,null,null,null,null,null,null,null,null,null,null,null,null,null,null,null,null,null,"THURAM","INT",7.7413793103448274,29,6.431034482758621,null,null,null,null,null,null,null,null,null,null,null,null,null,null,null,null,null,null,null,null,null,null,null,"G3_LA BANDA DEGLI ONESTI","A TUTTA CALLARA","LA BANDA DEGLI ONESTI","EUROPA LEAGUE -  G. 3",null,"ZZ_LUPIN III","ZZ_LOS","ZZ_LUPIN III","COPPA DI LEGA - FASE A GIRONI: 1a GIORNATA"]
[null,null,null,null,null,null,null,null,null,null,null,null,null,null,null,null,null,null,null,null,null,null,null,null,null,null,null,null,null,null,null,null,null,null,null,null,null,null,null,null,null,null,null,null,null,null,null,null,null,null,null,null,"BOGA","JUV",7.2727272727272725,11,6.2272727272727275,null,null,null,null,null,null,null,null,null,null,null,null,null,null,null,null,null,null,null,null,null,null,null,"G3_BAYER LEVERRUKE","FFC SANDRO MAZZOLA","BAYER LEVERRUKE","EUROPA LEAGUE -  G. 3",null,"ZZ_RED-GREEN","ZZ_AS NEW TEAM","ZZ_RED-GREEN","COPPA DI LEGA - FASE A GIRONI: 1a GIORNATA"]
[null,null,null,null,null,null,null,null,null,null,null,null,null,null,null,null,null,null,null,null,null,null,null,null,null,null,null,null,null,null,null,null,null,null,null,null,null,null,null,null,null,null,null,null,null,null,null,null,null,null,null,null,"YILDIZ","JUV",7.1764705882352944,34,6.4117647058823533,null,null,null,null,null,null,null,null,null,null,null,null,null,null,null,null,null,null,null,null,null,null,null,"G3_BOMBARELLANDIA","ANDREAS","BOMBARELLANDIA","EUROPA LEAGUE -  G. 3",null,"ZZ_FFC TARCISIO BURGNICH","ZZ_NOJOSETTE","ZZ_FFC TARCISIO BURGNICH","COPPA DI LEGA - FASE A GIRONI: 1a GIORNATA"]
[null,null,null,null,null,null,null,null,null,null,null,null,null,null,null,null,null,null,null,null,null,null,null,null,null,null,null,null,null,null,null,null,null,null,null,null,null,null,null,null,null,null,null,null,null,null,null,null,null,null,null,null,"RATKOV","LAZ",5.6428571428571432,7,5.6428571428571432,null,null,null,null,null,null,null,null,null,null,null,null,null,null,null,null,null,null,null,null,null,null,null,"G3_PICCIOTTI NERAZZURRI","PANZER8","PICCIOTTI NERAZZURRI","EUROPA LEAGUE -  G. 3",null,"ZZ_REAL CHR","ZZ_RASTA DB","ZZ_REAL CHR","COPPA DI LEGA - FASE A GIRONI: 2a GIORNATA"]
[null,null,null,null,null,null,null,null,null,null,null,null,null,null,null,null,null,null,null,null,null,null,null,null,null,null,null,null,null,null,null,null,null,null,null,null,null,null,null,null,null,null,null,null,null,null,null,null,null,null,null,null,"BALENTIEN","MIL",0,0,0,null,null,null,null,null,null,null,null,null,null,null,null,null,null,null,null,null,null,null,null,null,null,null,"G3_NAPOLI FOREVER","OXFORD UNITED","NAPOLI FOREVER","EUROPA LEAGUE -  G. 3",null,"ZZ_AMOREODIO","ZZ_A.C. ZDENEK","ZZ_AMOREODIO","COPPA DI LEGA - FASE A GIRONI: 2a GIORNATA"]
[null,null,null,null,null,null,null,null,null,null,null,null,null,null,null,null,null,null,null,null,null,null,null,null,null,null,null,null,null,null,null,null,null,null,null,null,null,null,null,null,null,null,null,null,null,null,null,null,null,null,null,null,"LUKAKU","NAP",9.5,1,7,null,null,null,null,null,null,null,null,null,null,null,null,null,null,null,null,null,null,null,null,null,null,null,"G3_BETIS SEVILLA","BETIS SEVILLA","AMOREODIO","CONFERENCE LEAGUE -  G. 3",null,"ZZ_PANZER8","ZZ_SPORTING LABRONICA","ZZ_PANZER8","COPPA DI LEGA - FASE A GIRONI: 2a GIORNATA"]
[null,null,null,null,null,null,null,null,null,null,null,null,null,null,null,null,null,null,null,null,null,null,null,null,null,null,null,null,null,null,null,null,null,null,null,null,null,null,null,null,null,null,null,null,null,null,null,null,null,null,null,null,"MIKOLAJEWSKI","PAR",6,1,6,null,null,null,null,null,null,null,null,null,null,null,null,null,null,null,null,null,null,null,null,null,null,null,"G3_3T","3T","CINICI","CONFERENCE LEAGUE -  G. 3",null,"ZZ_CAVESE","ZZ_REAL GRIFO","ZZ_CAVESE","COPPA DI LEGA - FASE A GIRONI: 2a GIORNATA"]
[null,null,null,null,null,null,null,null,null,null,null,null,null,null,null,null,null,null,null,null,null,null,null,null,null,null,null,null,null,null,null,null,null,null,null,null,null,null,null,null,null,null,null,null,null,null,null,null,null,null,null,null,"STOJILKOVIC","PIS",5.65,10,5.65,null,null,null,null,null,null,null,null,null,null,null,null,null,null,null,null,null,null,null,null,null,null,null,"G3_NOJOSETTE","NOJOSETTE","FC ROMA SUD","CONFERENCE LEAGUE -  G. 3",null,"ZZ_LA VECCHIA GUARDIA","ZZ_A TUTTA CALLARA","ZZ_LA VECCHIA GUARDIA","COPPA DI LEGA - FASE A GIRONI: 2a GIORNATA"]
[null,null,null,null,null,null,null,null,null,null,null,null,null,null,null,null,null,null,null,null,null,null,null,null,null,null,null,null,null,null,null,null,null,null,null,null,null,null,null,null,null,null,null,null,null,null,null,null,null,null,null,null,"MALEN","ROM",9.15625,16,6.75,null,null,null,null,null,null,null,null,null,null,null,null,null,null,null,null,null,null,null,null,null,null,null,"G3_FK'S TEAM","FK'S TEAM","FFC EVARISTO BECCALOSSI","CONFERENCE LEAGUE -  G. 3",null,"ZZ_JUNIORT","ZZ_NORTH COCKS","ZZ_JUNIORT","COPPA DI LEGA - FASE A GIRONI: 2a GIORNATA"]
[null,null,null,null,null,null,null,null,null,null,null,null,null,null,null,null,null,null,null,null,null,null,null,null,null,null,null,null,null,null,null,null,null,null,null,null,null,null,null,null,null,null,null,null,null,null,null,null,null,null,null,null,"NZOLA","SAS",6.3,25,6.02,null,null,null,null,null,null,null,null,null,null,null,null,null,null,null,null,null,null,null,null,null,null,null,"G3_LUPIN III","LUPIN III","UDINESE 1896","CONFERENCE LEAGUE -  G. 3",null,"ZZ_UDI ONE","ZZ_LIVELE","ZZ_UDI ONE","COPPA DI LEGA - FASE A GIRONI: 2a GIORNATA"]
[null,null,null,null,null,null,null,null,null,null,null,null,null,null,null,null,null,null,null,null,null,null,null,null,null,null,null,null,null,null,null,null,null,null,null,null,null,null,null,null,null,null,null,null,null,null,null,null,null,null,null,null,"NJIE","TOR",6,9,5.7222222222222223,null,null,null,null,null,null,null,null,null,null,null,null,null,null,null,null,null,null,null,null,null,null,null,"G3_FFC ALESSANDRO ALTOBELLI","FFC ALESSANDRO ALTOBELLI","PICARD","CONFERENCE LEAGUE -  G. 3",null,"ZZ_BFC MARANO","ZZ_NICKSTREGA","ZZ_BFC MARANO","COPPA DI LEGA - FASE A GIRONI: 2a GIORNATA"]
[null,null,null,null,null,null,null,null,null,null,null,null,null,null,null,null,null,null,null,null,null,null,null,null,null,null,null,null,null,null,null,null,null,null,null,null,null,null,null,null,null,null,null,null,null,null,null,null,null,null,null,null,"DAVIS","UDI",7.3571428571428568,28,6.375,null,null,null,null,null,null,null,null,null,null,null,null,null,null,null,null,null,null,null,null,null,null,null,"G3_FFC ROBERTO BONINSEGNA","BEETLES","FFC ROBERTO BONINSEGNA","CONFERENCE LEAGUE -  G. 3",null,"ZZ_FC TRIPLETE","ZZ_VIS TRONKO","ZZ_FC TRIPLETE","COPPA DI LEGA - FASE A GIRONI: 2a GIORNATA"]
[null,null,null,null,null,null,null,null,null,null,null,null,null,null,null,null,null,null,null,null,null,null,null,null,null,null,null,null,null,null,null,null,null,null,null,null,null,null,null,null,null,null,null,null,null,null,null,null,null,null,null,null,"ORBAN","VER",6.4642857142857144,28,5.8214285714285712,null,null,null,null,null,null,null,null,null,null,null,null,null,null,null,null,null,null,null,null,null,null,null,"G3_CINICI","3T","CINICI","CONFERENCE LEAGUE -  G. 3",null,"ZZ_2TWINS4EVER","ZZ_LA10 BIELLA FC","ZZ_2TWINS4EVER","COPPA DI LEGA - FASE A GIRONI: 2a GIORNATA"]
[null,null,null,null,null,null,null,null,null,null,null,null,null,null,null,null,null,null,null,null,null,null,null,null,null,null,null,null,null,null,null,null,null,null,null,null,null,null,null,null,null,null,null,null,null,null,null,null,null,null,null,null,0,0,0,0,0,null,null,null,null,null,null,null,null,null,null,null,null,null,null,null,null,null,null,null,null,null,null,null,"G3_FC ROMA SUD","NOJOSETTE","FC ROMA SUD","CONFERENCE LEAGUE -  G. 3",null,"ZZ_COSENZA CALCIO 1914","ZZ_JUVE93","ZZ_COSENZA CALCIO 1914","COPPA DI LEGA - FASE A GIRONI: 2a GIORNATA"]
[null,null,null,null,null,null,null,null,null,null,null,null,null,null,null,null,null,null,null,null,null,null,null,null,null,null,null,null,null,null,null,null,null,null,null,null,null,null,null,null,null,null,null,null,null,null,null,null,null,null,null,null,0,0,0,0,0,null,null,null,null,null,null,null,null,null,null,null,null,null,null,null,null,null,null,null,null,null,null,null,"G3_DAGNE BOYS","FFC TARCISIO BURGNICH","DAGNE BOYS","CONFERENCE LEAGUE -  G. 3",null,"ZZ_PARASITE","ZZ_BLUES BROTHERS","ZZ_PARASITE","COPPA DI LEGA - FASE A GIRONI: 2a GIORNATA"]
[null,null,null,null,null,null,null,null,null,null,null,null,null,null,null,null,null,null,null,null,null,null,null,null,null,null,null,null,null,null,null,null,null,null,null,null,null,null,null,null,null,null,null,null,null,null,null,null,null,null,null,null,0,0,0,0,0,null,null,null,null,null,null,null,null,null,null,null,null,null,null,null,null,null,null,null,null,null,null,null,"G3_BEAUTIFUL BUT LOSERS","LAZIO","BEAUTIFUL BUT LOSERS","CONFERENCE LEAGUE -  G. 3",null,"ZZ_LUCHINS","ZZ_TERZO MUNICIPIO","ZZ_LUCHINS","COPPA DI LEGA - FASE A GIRONI: 2a GIORNATA"]
[null,null,null,null,null,null,null,null,null,null,null,null,null,null,null,null,null,null,null,null,null,null,null,null,null,null,null,null,null,null,null,null,null,null,null,null,null,null,null,null,null,null,null,null,null,null,null,null,null,null,null,null,0,0,0,0,0,null,null,null,null,null,null,null,null,null,null,null,null,null,null,null,null,null,null,null,null,null,null,null,"G3_HOBBIT","REAL PIPPERO","HOBBIT","CONFERENCE LEAGUE -  G. 3",null,"ZZ_BLACK&WHITE","ZZ_HOBBIT","ZZ_BLACK&WHITE","COPPA DI LEGA - FASE A GIRONI: 2a GIORNATA"]
[null,null,null,null,null,null,null,null,null,null,null,null,null,null,null,null,null,null,null,null,null,null,null,null,null,null,null,null,null,null,null,null,null,null,null,null,null,null,null,null,null,null,null,null,null,null,null,null,null,null,null,null,0,0,0,0,0,null,null,null,null,null,null,null,null,null,null,null,null,null,null,null,null,null,null,null,null,null,null,null,"G3_AS_TONMARTIN","GOBBOFINCHECAMPO","AS_TONMARTIN","CONFERENCE LEAGUE -  G. 3",null,"ZZ_REAL PIPPERO","ZZ_TITANS","ZZ_REAL PIPPERO","COPPA DI LEGA - FASE A GIRONI: 2a GIORNATA"]
[null,null,null,null,null,null,null,null,null,null,null,null,null,null,null,null,null,null,null,null,null,null,null,null,null,null,null,null,null,null,null,null,null,null,null,null,null,null,null,null,null,null,null,null,null,null,null,null,null,null,null,null,0,0,0,0,0,null,null,null,null,null,null,null,null,null,null,null,null,null,null,null,null,null,null,null,null,null,null,null,"G4_LA VECCHIA GUARDIA","LA VECCHIA GUARDIA","FC PARTIZAN DEGRADO","CHAMPIONS LEAGUE -  G. 4",null,"ZZ_FANTONI & GINELLI","ZZ_PRINCESS OF ETRURIA","ZZ_FANTONI & GINELLI","COPPA DI LEGA - FASE A GIRONI: 2a GIORNATA",null,null,null,null,null,null,null,null,"NORTH COCKS","MOMENTI DI GLORIA FMC"]
[null,null,null,null,null,null,null,null,null,null,null,null,null,null,null,null,null,null,null,null,null,null,null,null,null,null,null,null,null,null,null,null,null,null,null,null,null,null,null,null,null,null,null,null,null,null,null,null,null,null,null,null,0,0,0,0,0,null,null,null,null,null,null,null,null,null,null,null,null,null,null,null,null,null,null,null,null,null,null,null,"G4_FUFF TEAM","FUFF TEAM","EARL & SOUL GALEONE","CHAMPIONS LEAGUE -  G. 4",null,"ZZ_AL-ZENA","ZZ_BEAUTIFUL BUT LOSERS","ZZ_AL-ZENA","COPPA DI LEGA - FASE A GIRONI: 2a GIORNATA",null,null,null,null,null,null,null,null,"DINAMO VIGIAK","2TWINS4EVER"]
[null,null,null,null,null,null,null,null,null,null,null,null,null,null,null,null,null,null,null,null,null,null,null,null,null,null,null,null,null,null,null,null,null,null,null,null,null,null,null,null,null,null,null,null,null,null,null,null,null,null,null,null,0,0,0,0,0,null,null,null,null,null,null,null,null,null,null,null,null,null,null,null,null,null,null,null,null,null,null,null,"G4_NICKSTREGA","NICKSTREGA","BAR MARIO","CHAMPIONS LEAGUE -  G. 4",null,"ZZ_NAPO-LEONI","ZZ_PRAVETTONI CC","ZZ_NAPO-LEONI","COPPA DI LEGA - FASE A GIRONI: 2a GIORNATA",null,null,null,null,null,null,0,0,"CAPIBARA SWOFFY FC","SVICAT"]
[null,null,null,null,null,null,null,null,null,null,null,null,null,null,null,null,null,null,null,null,null,null,null,null,null,null,null,null,null,null,null,null,null,null,null,null,null,null,null,null,null,null,null,null,null,null,null,null,null,null,null,null,0,0,0,0,0,null,null,null,null,null,null,null,null,null,null,null,null,null,null,null,null,null,null,null,null,null,null,null,"G4_LA MUCONE","LA MUCONE","FANTARAPID CACCAMO","CHAMPIONS LEAGUE -  G. 4",null,"ZZ_FFC ALESSANDRO ALTOBELLI","ZZ_OLYMPIC KEBAB","ZZ_FFC ALESSANDRO ALTOBELLI","COPPA DI LEGA - FASE A GIRONI: 2a GIORNATA",null,null,null,null,null,null,0,0]
[null,null,null,null,null,null,null,null,null,null,null,null,null,null,null,null,null,null,null,null,null,null,null,null,null,null,null,null,null,null,null,null,null,null,null,null,null,null,null,null,null,null,null,null,null,null,null,null,null,null,null,null,0,0,0,0,0,null,null,null,null,null,null,null,null,null,null,null,null,null,null,null,null,null,null,null,null,null,null,null,"G4_ACRESE","ACRESE","REAL BABBUDOIU","CHAMPIONS LEAGUE -  G. 4",null,"ZZ_P CUATRO","ZZ_REAL GENOA","ZZ_P CUATRO","COPPA DI LEGA - FASE A GIRONI: 3a GIORNATA",null,null,null,null,null,null,0,0]
[null,null,null,null,null,null,null,null,null,null,null,null,null,null,null,null,null,null,null,null,null,null,null,null,null,null,null,null,null,null,null,null,null,null,null,null,null,null,null,null,null,null,null,null,null,null,null,null,null,null,null,null,0,0,0,0,0,null,null,null,null,null,null,null,null,null,null,null,null,null,null,null,null,null,null,null,null,null,null,null,"G4_PRO WC","PRO WC","DAVINCI TEAM","CHAMPIONS LEAGUE -  G. 4",null,"ZZ_FANTASPEZIA","ZZ_MOMENTI DI GLORIA","ZZ_FANTASPEZIA","COPPA DI LEGA - FASE A GIRONI: 3a GIORNATA",null,null,null,null,null,null,0,0]
[null,null,null,null,null,null,null,null,null,null,null,null,null,null,null,null,null,null,null,null,null,null,null,null,null,null,null,null,null,null,null,null,null,null,null,null,null,null,null,null,null,null,null,null,null,null,null,null,null,null,null,null,0,0,0,0,0,null,null,null,null,null,null,null,null,null,null,null,null,null,null,null,null,null,null,null,null,null,null,null,"G4_FC PARTIZAN DEGRADO","LA VECCHIA GUARDIA","FC PARTIZAN DEGRADO","CHAMPIONS LEAGUE -  G. 4",null,"ZZ_FRIUL GALAXI","ZZ_SAN SIRO","ZZ_FRIUL GALAXI","COPPA DI LEGA - FASE A GIRONI: 3a GIORNATA",null,null,null,null,null,null,0,0]
[null,null,null,null,null,null,null,null,null,null,null,null,null,null,null,null,null,null,null,null,null,null,null,null,null,null,null,null,null,null,null,null,null,null,null,null,null,null,null,null,null,null,null,null,null,null,null,null,null,null,null,null,0,0,0,0,0,null,null,null,null,null,null,null,null,null,null,null,null,null,null,null,null,null,null,null,null,null,null,null,"G4_REAL CHR","UDI ONE","REAL CHR","CHAMPIONS LEAGUE -  G. 4",null,"ZZ_COSENZA","ZZ_ATLETICO PIGROTTO","ZZ_COSENZA","COPPA DI LEGA - FASE A GIRONI: 3a GIORNATA",null,null,null,null,null,null,0,0]
[null,null,null,null,null,null,null,null,null,null,null,null,null,null,null,null,null,null,null,null,null,null,null,null,null,null,null,null,null,null,null,null,null,null,null,null,null,null,null,null,null,null,null,null,null,null,null,null,null,null,null,null,0,0,0,0,0,null,null,null,null,null,null,null,null,null,null,null,null,null,null,null,null,null,null,null,null,null,null,null,"G4_BAR MARIO","NICKSTREGA","BAR MARIO","CHAMPIONS LEAGUE -  G. 4",null,"ZZ_HIC SUNT FERAE","ZZ_ANDREAS","ZZ_HIC SUNT FERAE","COPPA DI LEGA - FASE A GIRONI: 3a GIORNATA",null,null,null,null,null,null,0,0]
[null,null,null,null,null,null,null,null,null,null,null,null,null,null,null,null,null,null,null,null,null,null,null,null,null,null,null,null,null,null,null,null,null,null,null,null,null,null,null,null,null,null,null,null,null,null,null,null,null,null,null,null,0,0,0,0,0,null,null,null,null,null,null,null,null,null,null,null,null,null,null,null,null,null,null,null,null,null,null,null,"G4_BLACK&WHITE","TC WILLIAMS","BLACK&WHITE","CHAMPIONS LEAGUE -  G. 4",null,"ZZ_AC MORRONE","ZZ_JUNIORT","ZZ_AC MORRONE","COPPA DI LEGA - FASE A GIRONI: 3a GIORNATA",null,null,null,null,null,null,0,0]
[null,null,null,null,null,null,null,null,null,null,null,null,null,null,null,null,null,null,null,null,null,null,null,null,null,null,null,null,null,null,null,null,null,null,null,null,null,null,null,null,null,null,null,null,null,null,null,null,null,null,null,null,0,0,0,0,0,null,null,null,null,null,null,null,null,null,null,null,null,null,null,null,null,null,null,null,null,null,null,null,"G4_SAN SIRO","ISOLA CHE NON CE","SAN SIRO","CHAMPIONS LEAGUE -  G. 4",null,"ZZ_STROMBOLI","ZZ_EL NINO FC","ZZ_STROMBOLI","COPPA DI LEGA - FASE A GIRONI: 3a GIORNATA",null,null,null,null,null,null,0,0]
[null,null,null,null,null,null,null,null,null,null,null,null,null,null,null,null,null,null,null,null,null,null,null,null,null,null,null,null,null,null,null,null,null,null,null,null,null,null,null,null,null,null,null,null,null,null,null,null,null,null,null,null,0,0,0,0,0,null,null,null,null,null,null,null,null,null,null,null,null,null,null,null,null,null,null,null,null,null,null,null,"G4_RISK UNITED","LA10 BIELLA FC","RISK UNITED","CHAMPIONS LEAGUE -  G. 4",null,"ZZ_GRATTACHECCA","ZZ_ATLETICO SGANITO","ZZ_GRATTACHECCA","COPPA DI LEGA - FASE A GIRONI: 3a GIORNATA",null,null,null,null,null,null,0,0]
[null,null,null,null,null,null,null,null,null,null,null,null,null,null,null,null,null,null,null,null,null,null,null,null,null,null,null,null,null,null,null,null,null,null,null,null,null,null,null,null,null,null,null,null,null,null,null,null,null,null,null,null,0,0,0,0,0,null,null,null,null,null,null,null,null,null,null,null,null,null,null,null,null,null,null,null,null,null,null,null,null,null,null,null,null,"ZZ_TC WILLIAMS","ZZ_TWOSTARS","ZZ_TC WILLIAMS","COPPA DI LEGA - FASE A GIRONI: 3a GIORNATA",null,null,null,null,null,null,0,0,"ROSSOBLU FC","SVICAT"]
[null,null,null,null,null,null,null,null,null,null,null,null,null,null,null,null,null,null,null,null,null,null,null,null,null,null,null,null,null,null,null,null,null,null,null,null,null,null,null,null,null,null,null,null,null,null,null,null,null,null,null,null,0,0,0,0,0,null,null,null,null,null,null,null,null,null,null,null,null,null,null,null,null,null,null,null,null,null,null,null,"G4_TWOSTARS","TWOSTARS","DIAMANTE","EUROPA LEAGUE -  G. 4",null,"ZZ_PRO WC","ZZ_CACAO MERAVIGLIAO","ZZ_PRO WC","COPPA DI LEGA - FASE A GIRONI: 3a GIORNATA",null,null,null,null,null,null,0,0]
[null,null,null,null,null,null,null,null,null,null,null,null,null,null,null,null,null,null,null,null,null,null,null,null,null,null,null,null,null,null,null,null,null,null,null,null,null,null,null,null,null,null,null,null,null,null,null,null,null,null,null,null,0,0,0,0,0,null,null,null,null,null,null,null,null,null,null,null,null,null,null,null,null,null,null,null,null,null,null,null,"G4_MOMENTI DI GLORIA FMC","MOMENTI DI GLORIA FMC","FANTASPEZIA","EUROPA LEAGUE -  G. 4",null,"ZZ_REAL MADRINK","ZZ_MAGODINA FC","ZZ_REAL MADRINK","COPPA DI LEGA - FASE A GIRONI: 3a GIORNATA",null,null,null,null,null,null,0,0]
[null,null,null,null,null,null,null,null,null,null,null,null,null,null,null,null,null,null,null,null,null,null,null,null,null,null,null,null,null,null,null,null,null,null,null,null,null,null,null,null,null,null,null,null,null,null,null,null,null,null,null,null,0,0,0,0,0,null,null,null,null,null,null,null,null,null,null,null,null,null,null,null,null,null,null,null,null,null,null,null,"G4_FIORENTINA","FIORENTINA","P CUATRO","EUROPA LEAGUE -  G. 4",null,"ZZ_RED HOT CHILI PEPPERS","ZZ_I VAZANICCHI","ZZ_RED HOT CHILI PEPPERS","COPPA DI LEGA - FASE A GIRONI: 3a GIORNATA",null,null,null,null,null,null,0,0]
[null,null,null,null,null,null,null,null,null,null,null,null,null,null,null,null,null,null,null,null,null,null,null,null,null,null,null,null,null,null,null,null,null,null,null,null,null,null,null,null,null,null,null,null,null,null,null,null,null,null,null,null,0,0,0,0,0,null,null,null,null,null,null,null,null,null,null,null,null,null,null,null,null,null,null,null,null,null,null,null,"G4_ATLETICO SGANITO","ATLETICO SGANITO","ELEVEN LIONS","EUROPA LEAGUE -  G. 4",null,"ZZ_LA BANDA DEGLI ONESTI","ZZ_RISK UNITED","ZZ_LA BANDA DEGLI ONESTI","COPPA DI LEGA - FASE A GIRONI: 3a GIORNATA",null,null,null,null,null,null,0,0]
[null,null,null,null,null,null,null,null,null,null,null,null,null,null,null,null,null,null,null,null,null,null,null,null,null,null,null,null,null,null,null,null,null,null,null,null,null,null,null,null,null,null,null,null,null,null,null,null,null,null,null,null,0,0,0,0,0,null,null,null,null,null,null,null,null,null,null,null,null,null,null,null,null,null,null,null,null,null,null,null,"G4_MANZO TEAM","MANZO TEAM","TITANS","EUROPA LEAGUE -  G. 4",null,"ZZ_HOBBIT","ZZ_EU...REKA","ZZ_HOBBIT","COPPA DI LEGA - FASE A GIRONI: 3a GIORNATA",null,null,null,null,null,null,0,0]
[null,null,null,null,null,null,null,null,null,null,null,null,null,null,null,null,null,null,null,null,null,null,null,null,null,null,null,null,null,null,null,null,null,null,null,null,null,null,null,null,null,null,null,null,null,null,null,null,null,null,null,null,0,0,0,0,0,null,null,null,null,null,null,null,null,null,null,null,null,null,null,null,null,null,null,null,null,null,null,null,"G4_COSENZA","COSENZA","LAMÙFOREVER","EUROPA LEAGUE -  G. 4",null,"ZZ_PICARD","ZZ_AS_TONMARTIN","ZZ_PICARD","COPPA DI LEGA - FASE A GIRONI: 3a GIORNATA",null,null,null,null,null,null,0,0,"ABETO FC","SVICAT"]
[null,null,null,null,null,null,null,null,null,null,null,null,null,null,null,null,null,null,null,null,null,null,null,null,null,null,null,null,null,null,null,null,null,null,null,null,null,null,null,null,null,null,null,null,null,null,null,null,null,null,null,null,0,0,0,0,0,null,null,null,null,null,null,null,null,null,null,null,null,null,null,null,null,null,null,null,null,null,null,null,"G4_DIAMANTE","TWOSTARS","DIAMANTE","EUROPA LEAGUE -  G. 4",null,"ZZ_REAL FARNESE","ZZ_CARLITO'S VELEZ","ZZ_REAL FARNESE","COPPA DI LEGA - FASE A GIRONI: 3a GIORNATA",null,null,null,null,null,null,0,0]
[null,null,null,null,null,null,null,null,null,null,null,null,null,null,null,null,null,null,null,null,null,null,null,null,null,null,null,null,null,null,null,null,null,null,null,null,null,null,null,null,null,null,null,null,null,null,null,null,null,null,null,null,0,0,0,0,0,null,null,null,null,null,null,null,null,null,null,null,null,null,null,null,null,null,null,null,null,null,null,null,"G4_ATLETICO PIPPAO","CAVESE","ATLETICO PIPPAO","EUROPA LEAGUE -  G. 4",null,"ZZ_RED-GREEN","ZZ_3T","ZZ_RED-GREEN","COPPA DI LEGA - FASE A GIRONI: 3a GIORNATA"]
[null,null,null,null,null,null,null,null,null,null,null,null,null,null,null,null,null,null,null,null,null,null,null,null,null,null,null,null,null,null,null,null,null,null,null,null,null,null,null,null,null,null,null,null,null,null,null,null,null,null,null,null,"D_assente","???",0,0,null,null,null,null,null,null,null,null,null,null,null,null,null,null,null,null,null,null,null,null,null,null,null,null,"G4_INAZUMA ELEVEN","FC TRIPLETE","INAZUMA ELEVEN","EUROPA LEAGUE -  G. 4",null,"ZZ_INAZUMA ELEVEN","ZZ_URACAN","ZZ_INAZUMA ELEVEN","COPPA DI LEGA - FASE A GIRONI: 3a GIORNATA",null,null,null,null,null,null,0,0]
[null,null,null,null,null,null,null,null,null,null,null,null,null,null,null,null,null,null,null,null,null,null,null,null,null,null,null,null,null,null,null,null,null,null,null,null,null,null,null,null,null,null,null,null,null,null,null,null,null,null,null,null,"C_errato","???",0,0,null,null,null,null,null,null,null,null,null,null,null,null,null,null,null,null,null,null,null,null,null,null,null,null,"G4_FFC GIUSEPPE BERGOMI","TROPEA","FFC GIUSEPPE BERGOMI","EUROPA LEAGUE -  G. 4",null,"ZZ_FANTASPEZIA","ZZ_FC ZETAJ TEAM 1999","ZZ_FANTASPEZIA","COPPA DI LEGA - OTTAVI DI FINALE",null,null,null,null,null,null,0,0]
[null,null,null,null,null,null,null,null,null,null,null,null,null,null,null,null,null,null,null,null,null,null,null,null,null,null,null,null,null,null,null,null,null,null,null,null,null,null,null,null,null,null,null,null,null,null,null,null,null,null,null,null,"C_n.d.","???",5,33,null,null,null,null,null,null,null,null,null,null,null,null,null,null,null,null,null,null,null,null,null,null,null,null,"G4_SALEX","PICCIOTTI NERAZZURRI","SALEX","EUROPA LEAGUE -  G. 4",null,"ZZ_TIME OUT","ZZ_AMOREODIO","ZZ_TIME OUT","COPPA DI LEGA - OTTAVI DI FINALE",null,null,null,null,null,null,0,0]
[null,null,null,null,null,null,null,null,null,null,null,null,null,null,null,null,null,null,null,null,null,null,null,null,null,null,null,null,null,null,null,null,null,null,null,null,null,null,null,null,null,null,null,null,null,null,null,null,null,null,null,null,"ru_A","???",0,0,null,null,null,null,null,null,null,null,null,null,null,null,null,null,null,null,null,null,null,null,null,null,null,null,"G4_BARBERA & CHAMPAGNE","DREAM TIN TEAM","BARBERA & CHAMPAGNE","EUROPA LEAGUE -  G. 4",null,"ZZ_PANZER8","ZZ_FFC SANDRO MAZZOLA","ZZ_PANZER8","COPPA DI LEGA - OTTAVI DI FINALE",null,null,null,null,null,null,0,0]
[null,null,null,null,null,null,null,null,null,null,null,null,null,null,null,null,null,null,null,null,null,null,null,null,null,null,null,null,null,null,null,null,null,null,null,null,null,null,null,null,null,null,null,null,null,null,null,null,null,null,null,null,0,0,0,0,null,null,null,null,null,null,null,null,null,null,null,null,null,null,null,null,null,null,null,null,null,null,null,null,"G4_REAL BUCCINASCO","REAL BUCCINASCO","CAPIBARA SWOFFY FC","CONFERENCE LEAGUE -  G. 4",null,"ZZ_MOMENTI DI GLORIA FMC","ZZ_STROMBOLI","ZZ_MOMENTI DI GLORIA FMC","COPPA DI LEGA - OTTAVI DI FINALE",null,null,null,null,null,null,0,0]
[null,null,null,null,null,null,null,null,null,null,null,null,null,null,null,null,null,null,null,null,null,null,null,null,null,null,null,null,null,null,null,null,null,null,null,null,null,null,null,null,null,null,null,null,null,null,null,null,null,null,null,null,null,null,null,null,null,null,null,null,null,null,null,null,null,null,null,null,null,null,null,null,null,null,null,null,null,null,null,null,"G4_FFC MARIO CORSO","FFC MARIO CORSO","REAL MADRINK","CONFERENCE LEAGUE -  G. 4",null,"ZZ_DEP. LA CAROGNA","ZZ_CAPIBARA SWOFFY FC","ZZ_DEP. LA CAROGNA","COPPA DI LEGA - OTTAVI DI FINALE",null,null,null,null,null,null,0,0]
[null,null,null,null,null,null,null,null,null,null,null,null,null,null,null,null,null,null,null,null,null,null,null,null,null,null,null,null,null,null,null,null,null,null,null,null,null,null,null,null,null,null,null,null,null,null,null,null,null,null,null,null,null,null,null,null,null,null,null,null,null,null,null,null,null,null,null,null,null,null,null,null,null,null,null,null,null,null,null,null,"G4_PIGGI","PIGGI","REAL FARNESE","CONFERENCE LEAGUE -  G. 4",null,"ZZ_BORGOROSSO F.C.","ZZ_CINICI","ZZ_BORGOROSSO F.C.","COPPA DI LEGA - OTTAVI DI FINALE",null,null,null,null,null,null,0,0]
[null,null,null,null,null,null,null,null,null,null,null,null,null,null,null,null,null,null,null,null,null,null,null,null,null,null,null,null,null,null,null,null,null,null,null,null,null,null,null,null,null,null,null,null,null,null,null,null,null,null,null,null,null,null,null,null,null,null,null,null,null,null,null,null,null,null,null,null,null,null,null,null,null,null,null,null,null,null,null,null,"G4_I VAZANICCHI","I VAZANICCHI","ZERVENA VIGIAK","CONFERENCE LEAGUE -  G. 4",null,"ZZ_CARLITO'S VELEZ","ZZ_AS NEW TEAM","ZZ_CARLITO'S VELEZ","COPPA DI LEGA - SEDICESIMI DI FINALE",null,null,null,null,null,null,0,0]
[null,null,null,null,null,null,null,null,null,null,null,null,null,null,null,null,null,null,null,null,null,null,null,null,null,null,null,null,null,null,null,null,null,null,null,null,null,null,null,null,null,null,null,null,null,null,null,null,null,null,null,null,null,null,null,null,null,null,null,null,null,null,null,null,null,null,null,null,null,null,null,null,null,null,null,null,null,null,null,null,"G4_OSTIAMARE FC","OSTIAMARE FC","FANTONI & GINELLI","CONFERENCE LEAGUE -  G. 4",null,"ZZ_LOS","ZZ_PIGGI","ZZ_LOS","COPPA DI LEGA - SEDICESIMI DI FINALE",null,null,null,null,null,null,0,0]
[null,null,null,null,null,null,null,null,null,null,null,null,null,null,null,null,null,null,null,null,null,null,null,null,null,null,null,null,null,null,null,null,null,null,null,null,null,null,null,null,null,null,null,null,null,null,null,null,null,null,null,null,null,null,null,null,null,null,null,null,null,null,null,null,null,null,null,null,null,null,null,null,null,null,null,null,null,null,null,null,"G4_ARMATA NERAZZURRA","ARMATA NERAZZURRA","PRINCESS OF ETRURIA","CONFERENCE LEAGUE -  G. 4",null,"ZZ_BFC MARANO","ZZ_PRO WC","ZZ_BFC MARANO","COPPA DI LEGA - OTTAVI DI FINALE",null,null,null,null,null,null,0,0]
[null,null,null,null,null,null,null,null,null,null,null,null,null,null,null,null,null,null,null,null,null,null,null,null,null,null,null,null,null,null,null,null,null,null,null,null,null,null,null,null,null,null,null,null,null,null,null,null,null,null,null,null,null,null,null,null,null,null,null,null,null,null,null,null,null,null,null,null,null,null,null,null,null,null,null,null,null,null,null,null,"G4_HIC SUNT FERAE","AS QUARZA","HIC SUNT FERAE","CONFERENCE LEAGUE -  G. 4",null,"ZZ_DINAMO VIGIAK","ZZ_ATLETICO SGANITO","ZZ_DINAMO VIGIAK","COPPA DI LEGA - OTTAVI DI FINALE",null,null,null,null,null,null,0,0]
[null,null,null,null,null,null,null,null,null,null,null,null,null,null,null,null,null,null,null,null,null,null,null,null,null,null,null,null,null,null,null,null,null,null,null,null,null,null,null,null,null,null,null,null,null,null,null,null,null,null,null,null,null,null,null,null,null,null,null,null,null,null,null,null,null,null,null,null,null,null,null,null,null,null,null,null,null,null,null,null,"G4_SOLSBURY HILL FC","CRIMSON","SOLSBURY HILL FC","CONFERENCE LEAGUE -  G. 4",null,"ZZ_A TUTTA CALLARA","ZZ_MOMENTI DI GLORIA FMC","ZZ_A TUTTA CALLARA","COPPA DI LEGA - SPAREGGIO",null,null,null,null,null,null,0,0]
[null,null,null,null,null,null,null,null,null,null,null,null,null,null,null,null,null,null,null,null,null,null,null,null,null,null,null,null,null,null,null,null,null,null,null,null,null,null,null,null,null,null,null,null,null,null,null,null,null,null,null,null,null,null,null,null,null,null,null,null,null,null,null,null,null,null,null,null,null,null,null,null,null,null,null,null,null,null,null,null,"G4_OLYMPIC KEBAB","FC ROMA SUD","OLYMPIC KEBAB","CONFERENCE LEAGUE -  G. 4",null,"ZZ_VARCELLONA","ZZ_GIAMBOTTINO FC","ZZ_VARCELLONA","COPPA DI LEGA - OTTAVI DI FINALE IMI 2",null,null,null,null,null,null,0,0]
[null,null,null,null,null,null,null,null,null,null,null,null,null,null,null,null,null,null,null,null,null,null,null,null,null,null,null,null,null,null,null,null,null,null,null,null,null,null,null,null,null,null,null,null,null,null,null,null,null,null,null,null,null,null,null,null,null,null,null,null,null,null,null,null,null,null,null,null,null,null,null,null,null,null,null,null,null,null,null,null,"G4_SFIGARENSE","CARLITO'S VELEZ","SFIGARENSE","CONFERENCE LEAGUE -  G. 4",null,"ZZ_MOMENTI DI GLORIA FMC","ZZ_NORTH COCKS","ZZ_MOMENTI DI GLORIA FMC","COPPA DI LEGA - ANDATA QUARTI DI FINALE",null,null,null,null,null,null,0,0]
[null,null,null,null,null,null,null,null,null,null,null,null,null,null,null,null,null,null,null,null,null,null,null,null,null,null,null,null,null,null,null,null,null,null,null,null,null,null,null,null,null,null,null,null,null,null,null,null,null,null,null,null,null,null,null,null,null,null,null,null,null,null,null,null,null,null,null,null,null,null,null,null,null,null,null,null,null,null,null,null,"G4_LIVERCOOL","A'NFAMI","LIVERCOOL","CONFERENCE LEAGUE -  G. 4",null,"ZZ_2TWINS4EVER","ZZ_DINAMO VIGIAK","ZZ_2TWINS4EVER","COPPA DI LEGA - ANDATA QUARTI DI FINALE",null,null,null,null,null,null,0,0]
[null,null,null,null,null,null,null,null,null,null,null,null,null,null,null,null,null,null,null,null,null,null,null,null,null,null,null,null,null,null,null,null,null,null,null,null,null,null,null,null,null,null,null,null,null,null,null,null,null,null,null,null,null,null,null,null,null,null,null,null,null,null,null,null,null,null,null,null,null,null,null,null,null,null,null,null,null,null,null,null,"G4_URACAN","CACCIATORI FC","URACAN","CONFERENCE LEAGUE -  G. 4",null,"ZZ_NASONE NERAZZURRO","ZZ_FUFF TEAM","ZZ_NASONE NERAZZURRO","COPPA DI LEGA - ANDATA QUARTI DI FINALE",null,null,null,null,null,null,0,0]
[null,null,null,null,null,null,null,null,null,null,null,null,null,null,null,null,null,null,null,null,null,null,null,null,null,null,null,null,null,null,null,null,null,null,null,null,null,null,null,null,null,null,null,null,null,null,null,null,null,null,null,null,null,null,null,null,null,null,null,null,null,null,null,null,null,null,null,null,null,null,null,null,null,null,null,null,null,null,null,null,"G4_HOBBIT","PICARD","HOBBIT","CONFERENCE LEAGUE -  G. 4",null,"ZZ_SVICAT","ZZ_CAPIBARA SWOFFY FC","ZZ_SVICAT","COPPA DI LEGA - ANDATA QUARTI DI FINALE",null,null,null,null,null,null,0,0]
[null,null,null,null,null,null,null,null,null,null,null,null,null,null,null,null,null,null,null,null,null,null,null,null,null,null,null,null,null,null,null,null,null,null,null,null,null,null,null,null,null,null,null,null,null,null,null,null,null,null,null,null,null,null,null,null,null,null,null,null,null,null,null,null,null,null,null,null,null,null,null,null,null,null,null,null,null,null,null,null,"G. 5_RASTA DB","RASTA DB","ABETO FC","CHAMPIONS LEAGUE -  G. 5",null,"ZZ_REAL CHR","ZZ_MOMENTI DI GLORIA","ZZ_REAL CHR","COPPA DI LEGA - RITORNO QUARTI DI FINALE",null,null,null,null,null,null,0,0]
[null,null,null,null,null,null,null,null,null,null,null,null,null,null,null,null,null,null,null,null,null,null,null,null,null,null,null,null,null,null,null,null,null,null,null,null,null,null,null,null,null,null,null,null,null,null,null,null,null,null,null,null,null,null,null,null,null,null,null,null,null,null,null,null,null,null,null,null,null,null,null,null,null,null,null,null,null,null,null,null,"G. 5_REAL BUGGY","REAL BUGGY","NASONE NERAZZURRO","CHAMPIONS LEAGUE -  G. 5",null,"ZZ_SOLSBURY HILL FC","ZZ_MARUEGO BOYS","ZZ_SOLSBURY HILL FC","COPPA DI LEGA - RITORNO QUARTI DI FINALE",null,null,null,null,null,null,0,0]
[null,null,null,null,null,null,null,null,null,null,null,null,null,null,null,null,null,null,null,null,null,null,null,null,null,null,null,null,null,null,null,null,null,null,null,null,null,null,null,null,null,null,null,null,null,null,null,null,null,null,null,null,null,null,null,null,null,null,null,null,null,null,null,null,null,null,null,null,null,null,null,null,null,null,null,null,null,null,null,null,"G. 5_SPORTING LABRONICA","SPORTING LABRONICA","CATENACCIO & CONTROPIEDE","CHAMPIONS LEAGUE -  G. 5",null,"ZZ_GRATTACHECCA","ZZ_MOMPRACEM","ZZ_GRATTACHECCA","COPPA DI LEGA - RITORNO QUARTI DI FINALE",null,null,null,null,null,null,0,0]
[null,null,null,null,null,null,null,null,null,null,null,null,null,null,null,null,null,null,null,null,null,null,null,null,null,null,null,null,null,null,null,null,null,null,null,null,null,null,null,null,null,null,null,null,null,null,null,null,null,null,null,null,null,null,null,null,null,null,null,null,null,null,null,null,null,null,null,null,null,null,null,null,null,null,null,null,null,null,null,null,"G. 5_MARIANNA","MARIANNA","GRATTACHECCA","CHAMPIONS LEAGUE -  G. 5",null,"ZZ_VARCELLONA","ZZ_PRAVETTONI CC","ZZ_VARCELLONA","COPPA DI LEGA - RITORNO QUARTI DI FINALE",null,null,null,null,null,null,0,0]
[null,null,null,null,null,null,null,null,null,null,null,null,null,null,null,null,null,null,null,null,null,null,null,null,null,null,null,null,null,null,null,null,null,null,null,null,null,null,null,null,null,null,null,null,null,null,null,null,null,null,null,null,null,null,null,null,null,null,null,null,null,null,null,null,null,null,null,null,null,null,null,null,null,null,null,null,null,null,null,null,"G. 5_REAL GENOA","REAL GENOA","LUCHINS","CHAMPIONS LEAGUE -  G. 5",null,"ZZ_PRINCESS OF ETRURIA","ZZ_VARCELLONA","ZZ_PRINCESS OF ETRURIA","COPPA DI LEGA - ANDATA SEMIFINALI",null,null,null,null,null,null,0,0]
[null,null,null,null,null,null,null,null,null,null,null,null,null,null,null,null,null,null,null,null,null,null,null,null,null,null,null,null,null,null,null,null,null,null,null,null,null,null,null,null,null,null,null,null,null,null,null,null,null,null,null,null,null,null,null,null,null,null,null,null,null,null,null,null,null,null,null,null,null,null,null,null,null,null,null,null,null,null,null,null,"G. 5_FC NAPOLI 2012","FC NAPOLI 2012","DEP. LA CAROGNA","CHAMPIONS LEAGUE -  G. 5",null,"ZZ_FFC SANDRO MAZZOLA","ZZ_TIME OUT","ZZ_FFC SANDRO MAZZOLA","COPPA DI LEGA - ANDATA SEMIFINALI",null,null,null,null,null,null,0,0]
[null,null,null,null,null,null,null,null,null,null,null,null,null,null,null,null,null,null,null,null,null,null,null,null,null,null,null,null,null,null,null,null,null,null,null,null,null,null,null,null,null,null,null,null,null,null,null,null,null,null,null,null,null,null,null,null,null,null,null,null,null,null,null,null,null,null,null,null,null,null,null,null,null,null,null,null,null,null,null,null,"G. 5_EROI DEL 1982","CICCILLO","EROI DEL 1982","CHAMPIONS LEAGUE -  G. 5",null,"ZZ_PARASITE","ZZ_ABETO FC","ZZ_PARASITE","COPPA DI LEGA - RITORNO SEMIFINALI",null,null,null,null,null,null,0,0]
[null,null,null,null,null,null,null,null,null,null,null,null,null,null,null,null,null,null,null,null,null,null,null,null,null,null,null,null,null,null,null,null,null,null,null,null,null,null,null,null,null,null,null,null,null,null,null,null,null,null,null,null,null,null,null,null,null,null,null,null,null,null,null,null,null,null,null,null,null,null,null,null,null,null,null,null,null,null,null,null,"G. 5_ROSSOBLU FC","ZERU TITULI","ROSSOBLU FC","CHAMPIONS LEAGUE -  G. 5",null,"ZZ_TIME OUT","ZZ_FFC SANDRO MAZZOLA","ZZ_TIME OUT","COPPA DI LEGA - RITORNO SEMIFINALI",null,null,null,null,null,null,0,0]
[null,null,null,null,null,null,null,null,null,null,null,null,null,null,null,null,null,null,null,null,null,null,null,null,null,null,null,null,null,null,null,null,null,null,null,null,null,null,null,null,null,null,null,null,null,null,null,null,null,null,null,null,null,null,null,null,null,null,null,null,null,null,null,null,null,null,null,null,null,null,null,null,null,null,null,null,null,null,null,null,"G. 5_RAT-MEN","A.S. TOTTIGO","RAT-MEN","CHAMPIONS LEAGUE -  G. 5",null,"ZZ_MOKA JUNIORS","ZZ_FUFF TEAM","ZZ_MOKA JUNIORS","COPPA DI LEGA - FINALE DI RITORNO",null,null,null,null,null,null,0,0]
[null,null,null,null,null,null,null,null,null,null,null,null,null,null,null,null,null,null,null,null,null,null,null,null,null,null,null,null,null,null,null,null,null,null,null,null,null,null,null,null,null,null,null,null,null,null,null,null,null,null,null,null,null,null,null,null,null,null,null,null,null,null,null,null,null,null,null,null,null,null,null,null,null,null,null,null,null,null,null,null,"G. 5_GRATTACHECCA","MARIANNA","GRATTACHECCA","CHAMPIONS LEAGUE -  G. 5",null,"VARCELLONA","ABETO FC","VARCELLONA","COPPA DI LEGA - FINALISSIMA",null,null,null,null,null,null,0,0]
[null,null,null,null,null,null,null,null,null,null,null,null,null,null,null,null,null,null,null,null,null,null,null,null,null,null,null,null,null,null,null,null,null,null,null,null,null,null,null,null,null,null,null,null,null,null,null,null,null,null,null,null,null,null,null,null,null,null,null,null,null,null,null,null,null,null,null,null,null,null,null,null,null,null,null,null,null,null,null,null,"G. 5_LUCHINS","REAL GENOA","LUCHINS","CHAMPIONS LEAGUE -  G. 5",null,"ZZ_",null,null,null,null,null,null,null,null,null,0,0]
[null,null,null,null,null,null,null,null,null,null,null,null,null,null,null,null,null,null,null,null,null,null,null,null,null,null,null,null,null,null,null,null,null,null,null,null,null,null,null,null,null,null,null,null,null,null,null,null,null,null,null,null,null,null,null,null,null,null,null,null,null,null,null,null,null,null,null,null,null,null,null,null,null,null,null,null,null,null,null,null,"G. 5_AC DERBOLINA","AC MORRONE","AC DERBOLINA","CHAMPIONS LEAGUE -  G. 5",null,"ZZ_",null,null,null,null,null,null,null,null,null,0,0]
[null,null,null,null,null,null,null,null,null,null,null,null,null,null,null,null,null,null,null,null,null,null,null,null,null,null,null,null,null,null,null,null,null,null,null,null,null,null,null,null,null,null,null,null,null,null,null,null,null,null,null,null,null,null,null,null,null,null,null,null,null,null,null,null,null,null,null,null,null,null,null,null,null,null,null,null,null,null,null,null,"G. 5_DEP LA CAROGNA","FC NAPOLI 2012","DEP. LA CAROGNA","CHAMPIONS LEAGUE -  G. 5",null,null,null,null,null,null,null,null,null,null,null,0,0]
[null,null,null,null,null,null,null,null,null,null,null,null,null,null,null,null,null,null,null,null,null,null,null,null,null,null,null,null,null,null,null,null,null,null,null,null,null,null,null,null,null,null,null,null,null,null,null,null,null,null,null,null,null,null,null,null,null,null,null,null,null,null,null,null,null,null,null,null,null,null,null,null,null,null,null,null,null,null,null,null,"G. 5_ATLETICO PIGROTTO","ATLETICO PIGROTTO","BFC MARANO","EUROPA LEAGUE -  G. 5",null,null,null,null,null,null,null,null,null,null,null,0,0]
[null,null,null,null,null,null,null,null,null,null,null,null,null,null,null,null,null,null,null,null,null,null,null,null,null,null,null,null,null,null,null,null,null,null,null,null,null,null,null,null,null,null,null,null,null,null,null,null,null,null,null,null,null,null,null,null,null,null,null,null,null,null,null,null,null,null,null,null,null,null,null,null,null,null,null,null,null,null,null,null,"G. 5_MOMENTI DI GLORIA FMC","MOMENTI DI GLORIA FMC","ATLETICO MA NON TROPPO","EUROPA LEAGUE -  G. 5",null,null,null,null,null,null,null,null,null,null,null,0,0]
[null,null,null,null,null,null,null,null,null,null,null,null,null,null,null,null,null,null,null,null,null,null,null,null,null,null,null,null,null,null,null,null,null,null,null,null,null,null,null,null,null,null,null,null,null,null,null,null,null,null,null,null,null,null,null,null,null,null,null,null,null,null,null,null,null,null,null,null,null,null,null,null,null,null,null,null,null,null,null,null,"G. 5_FFC SANDRO MAZZOLA","FFC SANDRO MAZZOLA","LA BANDA DEGLI ONESTI","EUROPA LEAGUE -  G. 5",null,null,null,null,null,null,null,null,null,null,null,0,0]
[null,null,null,null,null,null,null,null,null,null,null,null,null,null,null,null,null,null,null,null,null,null,null,null,null,null,null,null,null,null,null,null,null,null,null,null,null,null,null,null,null,null,null,null,null,null,null,null,null,null,null,null,null,null,null,null,null,null,null,null,null,null,null,null,null,null,null,null,null,null,null,null,null,null,null,null,null,null,null,null,"G. 5_TIME OUT","TIME OUT","BOMBARELLANDIA","EUROPA LEAGUE -  G. 5",null,null,null,null,null,null,null,null,null,null,null,0,0]
[null,null,null,null,null,null,null,null,null,null,null,null,null,null,null,null,null,null,null,null,null,null,null,null,null,null,null,null,null,null,null,null,null,null,null,null,null,null,null,null,null,null,null,null,null,null,null,null,null,null,null,null,null,null,null,null,null,null,null,null,null,null,null,null,null,null,null,null,null,null,null,null,null,null,null,null,null,null,null,null,"G. 5_TEAM ENO","TEAM ENO","PICCIOTTI NERAZZURRI","EUROPA LEAGUE -  G. 5",null,null,null,null,null,null,null,null,null,null,null,0,0]
[null,null,null,null,null,null,null,null,null,null,null,null,null,null,null,null,null,null,null,null,null,null,null,null,null,null,null,null,null,null,null,null,null,null,null,null,null,null,null,null,null,null,null,null,null,null,null,null,null,null,null,null,null,null,null,null,null,null,null,null,null,null,null,null,null,null,null,null,null,null,null,null,null,null,null,null,null,null,null,null,"G. 5_OXFORD UNITED","OXFORD UNITED","BORGOROSSO F.C.","EUROPA LEAGUE -  G. 5",null,null,null,null,null,null,null,null,null,null,null,0,0]
[null,null,null,null,null,null,null,null,null,null,null,null,null,null,null,null,null,null,null,null,null,null,null,null,null,null,null,null,null,null,null,null,null,null,null,null,null,null,null,null,null,null,null,null,null,null,null,null,null,null,null,null,null,null,null,null,null,null,null,null,null,null,null,null,null,null,null,null,null,null,null,null,null,null,null,null,null,null,null,null,"G. 5_BLUES BROTHERS","A.C. ZDENEK","BLUES BROTHERS","EUROPA LEAGUE -  G. 5",null,null,null,null,null,null,null,null,null,null,null,0,0]
[null,null,null,null,null,null,null,null,null,null,null,null,null,null,null,null,null,null,null,null,null,null,null,null,null,null,null,null,null,null,null,null,null,null,null,null,null,null,null,null,null,null,null,null,null,null,null,null,null,null,null,null,null,null,null,null,null,null,null,null,null,null,null,null,null,null,null,null,null,null,null,null,null,null,null,null,null,null,null,null,"G. 5_CACAO MERAVIGLIAO","TORI BRIANZOLI","CACAO MERAVIGLIAO","EUROPA LEAGUE -  G. 5",null,null,null,null,null,null,null,null,null,null,null,0,0]
[null,null,null,null,null,null,null,null,null,null,null,null,null,null,null,null,null,null,null,null,null,null,null,null,null,null,null,null,null,null,null,null,null,null,null,null,null,null,null,null,null,null,null,null,null,null,null,null,null,null,null,null,null,null,null,null,null,null,null,null,null,null,null,null,null,null,null,null,null,null,null,null,null,null,null,null,null,null,null,null,"G. 5_BAYER LEVERRUKE","A TUTTA CALLARA","BAYER LEVERRUKE","EUROPA LEAGUE -  G. 5",null,null,null,null,null,null,null,null,null,null,null,0,0]
[null,null,null,null,null,null,null,null,null,null,null,null,null,null,null,null,null,null,null,null,null,null,null,null,null,null,null,null,null,null,null,null,null,null,null,null,null,null,null,null,null,null,null,null,null,null,null,null,null,null,null,null,null,null,null,null,null,null,null,null,null,null,null,null,null,null,null,null,null,null,null,null,null,null,null,null,null,null,null,null,"G. 5_BOMBARELLANDIA","TIME OUT","BOMBARELLANDIA","EUROPA LEAGUE -  G. 5"]
[null,null,null,null,null,null,null,null,null,null,null,null,null,null,null,null,null,null,null,null,null,null,null,null,null,null,null,null,null,null,null,null,null,null,null,null,null,null,null,null,null,null,null,null,null,null,null,null,null,null,null,null,null,null,null,null,null,null,null,null,null,null,null,null,null,null,null,null,null,null,null,null,null,null,null,null,null,null,null,null,"G. 5_PICCIOTTI NERAZZURRI","TEAM ENO","PICCIOTTI NERAZZURRI","EUROPA LEAGUE -  G. 5"]
[null,null,null,null,null,null,null,null,null,null,null,null,null,null,null,null,null,null,null,null,null,null,null,null,null,null,null,null,null,null,null,null,null,null,null,null,null,null,null,null,null,null,null,null,null,null,null,null,null,null,null,null,null,null,null,null,null,null,null,null,null,null,null,null,null,null,null,null,null,null,null,null,null,null,null,null,null,null,null,null,"G. 5_SVICAT","VOTANTONIO","SVICAT","EUROPA LEAGUE -  G. 5"]
[null,null,null,null,null,null,null,null,null,null,null,null,null,null,null,null,null,null,null,null,null,null,null,null,null,null,null,null,null,null,null,null,null,null,null,null,null,null,null,null,null,null,null,null,null,null,null,null,null,null,null,null,null,null,null,null,null,null,null,null,null,null,null,null,null,null,null,null,null,null,null,null,null,null,null,null,null,null,null,null,"G. 5_AS QUARZA","AS QUARZA","REAL BUCCINASCO","CONFERENCE LEAGUE -  G. 5"]
[null,null,null,null,null,null,null,null,null,null,null,null,null,null,null,null,null,null,null,null,null,null,null,null,null,null,null,null,null,null,null,null,null,null,null,null,null,null,null,null,null,null,null,null,null,null,null,null,null,null,null,null,null,null,null,null,null,null,null,null,null,null,null,null,null,null,null,null,null,null,null,null,null,null,null,null,null,null,null,null,"G. 5_BEETLES","BEETLES","AMOREODIO","CONFERENCE LEAGUE -  G. 5"]
[null,null,null,null,null,null,null,null,null,null,null,null,null,null,null,null,null,null,null,null,null,null,null,null,null,null,null,null,null,null,null,null,null,null,null,null,null,null,null,null,null,null,null,null,null,null,null,null,null,null,null,null,null,null,null,null,null,null,null,null,null,null,null,null,null,null,null,null,null,null,null,null,null,null,null,null,null,null,null,null,"G. 5_PERDENTUS FC","PERDENTUS FC","CINICI","CONFERENCE LEAGUE -  G. 5"]
[null,null,null,null,null,null,null,null,null,null,null,null,null,null,null,null,null,null,null,null,null,null,null,null,null,null,null,null,null,null,null,null,null,null,null,null,null,null,null,null,null,null,null,null,null,null,null,null,null,null,null,null,null,null,null,null,null,null,null,null,null,null,null,null,null,null,null,null,null,null,null,null,null,null,null,null,null,null,null,null,"G. 5_NAPO-LEONI","NAPO-LEONI","FC ROMA SUD","CONFERENCE LEAGUE -  G. 5"]
[null,null,null,null,null,null,null,null,null,null,null,null,null,null,null,null,null,null,null,null,null,null,null,null,null,null,null,null,null,null,null,null,null,null,null,null,null,null,null,null,null,null,null,null,null,null,null,null,null,null,null,null,null,null,null,null,null,null,null,null,null,null,null,null,null,null,null,null,null,null,null,null,null,null,null,null,null,null,null,null,"G. 5_FK'S TEAM","FK'S TEAM","BEAUTIFUL BUT LOSERS","CONFERENCE LEAGUE -  G. 5"]
[null,null,null,null,null,null,null,null,null,null,null,null,null,null,null,null,null,null,null,null,null,null,null,null,null,null,null,null,null,null,null,null,null,null,null,null,null,null,null,null,null,null,null,null,null,null,null,null,null,null,null,null,null,null,null,null,null,null,null,null,null,null,null,null,null,null,null,null,null,null,null,null,null,null,null,null,null,null,null,null,"G. 5_FFC LUISITO SUAREZ","FFC LUISITO SUAREZ","UDINESE 1896","CONFERENCE LEAGUE -  G. 5"]
[null,null,null,null,null,null,null,null,null,null,null,null,null,null,null,null,null,null,null,null,null,null,null,null,null,null,null,null,null,null,null,null,null,null,null,null,null,null,null,null,null,null,null,null,null,null,null,null,null,null,null,null,null,null,null,null,null,null,null,null,null,null,null,null,null,null,null,null,null,null,null,null,null,null,null,null,null,null,null,null,"G. 5_REAL PIPPERO","REAL PIPPERO","PICARD","CONFERENCE LEAGUE -  G. 5"]
[null,null,null,null,null,null,null,null,null,null,null,null,null,null,null,null,null,null,null,null,null,null,null,null,null,null,null,null,null,null,null,null,null,null,null,null,null,null,null,null,null,null,null,null,null,null,null,null,null,null,null,null,null,null,null,null,null,null,null,null,null,null,null,null,null,null,null,null,null,null,null,null,null,null,null,null,null,null,null,null,"G. 5_AMOREODIO","BEETLES","AMOREODIO","CONFERENCE LEAGUE -  G. 5"]
[null,null,null,null,null,null,null,null,null,null,null,null,null,null,null,null,null,null,null,null,null,null,null,null,null,null,null,null,null,null,null,null,null,null,null,null,null,null,null,null,null,null,null,null,null,null,null,null,null,null,null,null,null,null,null,null,null,null,null,null,null,null,null,null,null,null,null,null,null,null,null,null,null,null,null,null,null,null,null,null,"G. 5_CINICI","PERDENTUS FC","CINICI","CONFERENCE LEAGUE -  G. 5"]
[null,null,null,null,null,null,null,null,null,null,null,null,null,null,null,null,null,null,null,null,null,null,null,null,null,null,null,null,null,null,null,null,null,null,null,null,null,null,null,null,null,null,null,null,null,null,null,null,null,null,null,null,null,null,null,null,null,null,null,null,null,null,null,null,null,null,null,null,null,null,null,null,null,null,null,null,null,null,null,null,"G. 5_DAGNE BOYS","RED-GREEN","DAGNE BOYS","CONFERENCE LEAGUE -  G. 5"]
[null,null,null,null,null,null,null,null,null,null,null,null,null,null,null,null,null,null,null,null,null,null,null,null,null,null,null,null,null,null,null,null,null,null,null,null,null,null,null,null,null,null,null,null,null,null,null,null,null,null,null,null,null,null,null,null,null,null,null,null,null,null,null,null,null,null,null,null,null,null,null,null,null,null,null,null,null,null,null,null,"G. 5_BEAUTIFUL BUT LOSERS","FK'S TEAM","BEAUTIFUL BUT LOSERS","CONFERENCE LEAGUE -  G. 5"]
[null,null,null,null,null,null,null,null,null,null,null,null,null,null,null,null,null,null,null,null,null,null,null,null,null,null,null,null,null,null,null,null,null,null,null,null,null,null,null,null,null,null,null,null,null,null,null,null,null,null,null,null,null,null,null,null,null,null,null,null,null,null,null,null,null,null,null,null,null,null,null,null,null,null,null,null,null,null,null,null,"G. 5_VARCELLONA","FANTONI & GINELLI","VARCELLONA","CONFERENCE LEAGUE -  G. 5"]
[null,null,null,null,null,null,null,null,null,null,null,null,null,null,null,null,null,null,null,null,null,null,null,null,null,null,null,null,null,null,null,null,null,null,null,null,null,null,null,null,null,null,null,null,null,null,null,null,null,null,null,null,null,null,null,null,null,null,null,null,null,null,null,null,null,null,null,null,null,null,null,null,null,null,null,null,null,null,null,null,"G. 5_PRINCESS OF ETRURIA","LOS","PRINCESS OF ETRURIA","CONFERENCE LEAGUE -  G. 5"]
[null,null,null,null,null,null,null,null,null,null,null,null,null,null,null,null,null,null,null,null,null,null,null,null,null,null,null,null,null,null,null,null,null,null,null,null,null,null,null,null,null,null,null,null,null,null,null,null,null,null,null,null,null,null,null,null,null,null,null,null,null,null,null,null,null,null,null,null,null,null,null,null,null,null,null,null,null,null,null,null,"G. 5_AS_TONMARTIN","COSENZA CALCIO 1914","AS_TONMARTIN","CONFERENCE LEAGUE -  G. 5"]
[null,null,null,null,null,null,null,null,null,null,null,null,null,null,null,null,null,null,null,null,null,null,null,null,null,null,null,null,null,null,null,null,null,null,null,null,null,null,null,null,null,null,null,null,null,null,null,null,null,null,null,null,null,null,null,null,null,null,null,null,null,null,null,null,null,null,null,null,null,null,null,null,null,null,null,null,null,null,null,null,"G. 6 MAGODINA FC","MAGODINA FC","FC PARTIZAN DEGRADO","CHAMPIONS LEAGUE -  G. 6"]
[null,null,null,null,null,null,null,null,null,null,null,null,null,null,null,null,null,null,null,null,null,null,null,null,null,null,null,null,null,null,null,null,null,null,null,null,null,null,null,null,null,null,null,null,null,null,null,null,null,null,null,null,null,null,null,null,null,null,null,null,null,null,null,null,null,null,null,null,null,null,null,null,null,null,null,null,null,null,null,null,"G. 6 EARL & SOUL GALEONE","EARL & SOUL GALEONE","UDI ONE","CHAMPIONS LEAGUE -  G. 6"]
[null,null,null,null,null,null,null,null,null,null,null,null,null,null,null,null,null,null,null,null,null,null,null,null,null,null,null,null,null,null,null,null,null,null,null,null,null,null,null,null,null,null,null,null,null,null,null,null,null,null,null,null,null,null,null,null,null,null,null,null,null,null,null,null,null,null,null,null,null,null,null,null,null,null,null,null,null,null,null,null,"G. 6 GABRY FC","GABRY FC","A.S. TOTTIGO","CHAMPIONS LEAGUE -  G. 6"]
[null,null,null,null,null,null,null,null,null,null,null,null,null,null,null,null,null,null,null,null,null,null,null,null,null,null,null,null,null,null,null,null,null,null,null,null,null,null,null,null,null,null,null,null,null,null,null,null,null,null,null,null,null,null,null,null,null,null,null,null,null,null,null,null,null,null,null,null,null,null,null,null,null,null,null,null,null,null,null,null,"G. 6 TC WILLIAMS","TC WILLIAMS","FANTARAPID CACCAMO","CHAMPIONS LEAGUE -  G. 6"]
[null,null,null,null,null,null,null,null,null,null,null,null,null,null,null,null,null,null,null,null,null,null,null,null,null,null,null,null,null,null,null,null,null,null,null,null,null,null,null,null,null,null,null,null,null,null,null,null,null,null,null,null,null,null,null,null,null,null,null,null,null,null,null,null,null,null,null,null,null,null,null,null,null,null,null,null,null,null,null,null,"G. 6 RED HOT CHILI PEPPERS","RED HOT CHILI PEPPERS","ACRESE","CHAMPIONS LEAGUE -  G. 6"]
[null,null,null,null,null,null,null,null,null,null,null,null,null,null,null,null,null,null,null,null,null,null,null,null,null,null,null,null,null,null,null,null,null,null,null,null,null,null,null,null,null,null,null,null,null,null,null,null,null,null,null,null,null,null,null,null,null,null,null,null,null,null,null,null,null,null,null,null,null,null,null,null,null,null,null,null,null,null,null,null,"G. 6 SPORTING 2000","SPORTING 2000","FC NAPOLI 2012","CHAMPIONS LEAGUE -  G. 6"]
[null,null,null,null,null,null,null,null,null,null,null,null,null,null,null,null,null,null,null,null,null,null,null,null,null,null,null,null,null,null,null,null,null,null,null,null,null,null,null,null,null,null,null,null,null,null,null,null,null,null,null,null,null,null,null,null,null,null,null,null,null,null,null,null,null,null,null,null,null,null,null,null,null,null,null,null,null,null,null,null,"G. 6 FC PARTIZAN DEGRADO","MAGODINA FC","FC PARTIZAN DEGRADO","CHAMPIONS LEAGUE -  G. 6"]
[null,null,null,null,null,null,null,null,null,null,null,null,null,null,null,null,null,null,null,null,null,null,null,null,null,null,null,null,null,null,null,null,null,null,null,null,null,null,null,null,null,null,null,null,null,null,null,null,null,null,null,null,null,null,null,null,null,null,null,null,null,null,null,null,null,null,null,null,null,null,null,null,null,null,null,null,null,null,null,null,"G. 6 UDI ONE","EARL & SOUL GALEONE","UDI ONE","CHAMPIONS LEAGUE -  G. 6"]
[null,null,null,null,null,null,null,null,null,null,null,null,null,null,null,null,null,null,null,null,null,null,null,null,null,null,null,null,null,null,null,null,null,null,null,null,null,null,null,null,null,null,null,null,null,null,null,null,null,null,null,null,null,null,null,null,null,null,null,null,null,null,null,null,null,null,null,null,null,null,null,null,null,null,null,null,null,null,null,null,"G. 6 MOMENTI DI GLORIA","NICKSTREGA","MOMENTI DI GLORIA","CHAMPIONS LEAGUE -  G. 6"]
[null,null,null,null,null,null,null,null,null,null,null,null,null,null,null,null,null,null,null,null,null,null,null,null,null,null,null,null,null,null,null,null,null,null,null,null,null,null,null,null,null,null,null,null,null,null,null,null,null,null,null,null,null,null,null,null,null,null,null,null,null,null,null,null,null,null,null,null,null,null,null,null,null,null,null,null,null,null,null,null,"G. 6 ISOLA CHE NON CE","VIS FONNO","ISOLA CHE NON CE","CHAMPIONS LEAGUE -  G. 6"]
[null,null,null,null,null,null,null,null,null,null,null,null,null,null,null,null,null,null,null,null,null,null,null,null,null,null,null,null,null,null,null,null,null,null,null,null,null,null,null,null,null,null,null,null,null,null,null,null,null,null,null,null,null,null,null,null,null,null,null,null,null,null,null,null,null,null,null,null,null,null,null,null,null,null,null,null,null,null,null,null,"G. 6 REAL BABBUDOIU","FFC TOPENHAM","REAL BABBUDOIU","CHAMPIONS LEAGUE -  G. 6"]
[null,null,null,null,null,null,null,null,null,null,null,null,null,null,null,null,null,null,null,null,null,null,null,null,null,null,null,null,null,null,null,null,null,null,null,null,null,null,null,null,null,null,null,null,null,null,null,null,null,null,null,null,null,null,null,null,null,null,null,null,null,null,null,null,null,null,null,null,null,null,null,null,null,null,null,null,null,null,null,null,"G. 6 NORTH COCKS","RISK UNITED","NORTH COCKS","CHAMPIONS LEAGUE -  G. 6"]
[null,null,null,null,null,null,null,null,null,null,null,null,null,null,null,null,null,null,null,null,null,null,null,null,null,null,null,null,null,null,null,null,null,null,null,null,null,null,null,null,null,null,null,null,null,null,null,null,null,null,null,null,null,null,null,null,null,null,null,null,null,null,null,null,null,null,null,null,null,null,null,null,null,null,null,null,null,null,null,null,"G. 6 SALENTO FC","PRO WC","SALENTO FC","CHAMPIONS LEAGUE -  G. 6"]
[null,null,null,null,null,null,null,null,null,null,null,null,null,null,null,null,null,null,null,null,null,null,null,null,null,null,null,null,null,null,null,null,null,null,null,null,null,null,null,null,null,null,null,null,null,null,null,null,null,null,null,null,null,null,null,null,null,null,null,null,null,null,null,null,null,null,null,null,null,null,null,null,null,null,null,null,null,null,null,null,"G. 6 MOMPRACEM","MOMPRACEM","A.C. ZDENEK","EUROPA LEAGUE -  G. 6"]
[null,null,null,null,null,null,null,null,null,null,null,null,null,null,null,null,null,null,null,null,null,null,null,null,null,null,null,null,null,null,null,null,null,null,null,null,null,null,null,null,null,null,null,null,null,null,null,null,null,null,null,null,null,null,null,null,null,null,null,null,null,null,null,null,null,null,null,null,null,null,null,null,null,null,null,null,null,null,null,null,"G. 6 ATLETICO MA NON TROPPO","ATLETICO MA NON TROPPO","FANTASPEZIA","EUROPA LEAGUE -  G. 6"]
[null,null,null,null,null,null,null,null,null,null,null,null,null,null,null,null,null,null,null,null,null,null,null,null,null,null,null,null,null,null,null,null,null,null,null,null,null,null,null,null,null,null,null,null,null,null,null,null,null,null,null,null,null,null,null,null,null,null,null,null,null,null,null,null,null,null,null,null,null,null,null,null,null,null,null,null,null,null,null,null,"G. 6 AS NEW TEAM","AS NEW TEAM","FIORENTINA","EUROPA LEAGUE -  G. 6"]
[null,null,null,null,null,null,null,null,null,null,null,null,null,null,null,null,null,null,null,null,null,null,null,null,null,null,null,null,null,null,null,null,null,null,null,null,null,null,null,null,null,null,null,null,null,null,null,null,null,null,null,null,null,null,null,null,null,null,null,null,null,null,null,null,null,null,null,null,null,null,null,null,null,null,null,null,null,null,null,null,"G. 6 ELEVEN LIONS","ELEVEN LIONS","TROPEA","EUROPA LEAGUE -  G. 6"]
[null,null,null,null,null,null,null,null,null,null,null,null,null,null,null,null,null,null,null,null,null,null,null,null,null,null,null,null,null,null,null,null,null,null,null,null,null,null,null,null,null,null,null,null,null,null,null,null,null,null,null,null,null,null,null,null,null,null,null,null,null,null,null,null,null,null,null,null,null,null,null,null,null,null,null,null,null,null,null,null,"G. 6 VIS TRONKO","VIS TRONKO","VOTANTONIO","EUROPA LEAGUE -  G. 6"]
[null,null,null,null,null,null,null,null,null,null,null,null,null,null,null,null,null,null,null,null,null,null,null,null,null,null,null,null,null,null,null,null,null,null,null,null,null,null,null,null,null,null,null,null,null,null,null,null,null,null,null,null,null,null,null,null,null,null,null,null,null,null,null,null,null,null,null,null,null,null,null,null,null,null,null,null,null,null,null,null,"G. 6 JUVE93","JUVE93","COSENZA","EUROPA LEAGUE -  G. 6"]
[null,null,null,null,null,null,null,null,null,null,null,null,null,null,null,null,null,null,null,null,null,null,null,null,null,null,null,null,null,null,null,null,null,null,null,null,null,null,null,null,null,null,null,null,null,null,null,null,null,null,null,null,null,null,null,null,null,null,null,null,null,null,null,null,null,null,null,null,null,null,null,null,null,null,null,null,null,null,null,null,"G. 6 DAJE MO'","BFC MARANO","DAJE MO'","EUROPA LEAGUE -  G. 6"]
[null,null,null,null,null,null,null,null,null,null,null,null,null,null,null,null,null,null,null,null,null,null,null,null,null,null,null,null,null,null,null,null,null,null,null,null,null,null,null,null,null,null,null,null,null,null,null,null,null,null,null,null,null,null,null,null,null,null,null,null,null,null,null,null,null,null,null,null,null,null,null,null,null,null,null,null,null,null,null,null,"G. 6 CAVESE","PRENESTINO FC","CAVESE","EUROPA LEAGUE -  G. 6"]
[null,null,null,null,null,null,null,null,null,null,null,null,null,null,null,null,null,null,null,null,null,null,null,null,null,null,null,null,null,null,null,null,null,null,null,null,null,null,null,null,null,null,null,null,null,null,null,null,null,null,null,null,null,null,null,null,null,null,null,null,null,null,null,null,null,null,null,null,null,null,null,null,null,null,null,null,null,null,null,null,"G. 6 MARUEGO BOYS","INAZUMA ELEVEN","MARUEGO BOYS","EUROPA LEAGUE -  G. 6"]
[null,null,null,null,null,null,null,null,null,null,null,null,null,null,null,null,null,null,null,null,null,null,null,null,null,null,null,null,null,null,null,null,null,null,null,null,null,null,null,null,null,null,null,null,null,null,null,null,null,null,null,null,null,null,null,null,null,null,null,null,null,null,null,null,null,null,null,null,null,null,null,null,null,null,null,null,null,null,null,null,"G. 6 FFC GIUSEPPE BERGOMI","ATLETICO SGANITO","FFC GIUSEPPE BERGOMI","EUROPA LEAGUE -  G. 6"]
[null,null,null,null,null,null,null,null,null,null,null,null,null,null,null,null,null,null,null,null,null,null,null,null,null,null,null,null,null,null,null,null,null,null,null,null,null,null,null,null,null,null,null,null,null,null,null,null,null,null,null,null,null,null,null,null,null,null,null,null,null,null,null,null,null,null,null,null,null,null,null,null,null,null,null,null,null,null,null,null,"G. 6 DREAM TIN TEAM","TITANS","DREAM TIN TEAM","EUROPA LEAGUE -  G. 6"]
[null,null,null,null,null,null,null,null,null,null,null,null,null,null,null,null,null,null,null,null,null,null,null,null,null,null,null,null,null,null,null,null,null,null,null,null,null,null,null,null,null,null,null,null,null,null,null,null,null,null,null,null,null,null,null,null,null,null,null,null,null,null,null,null,null,null,null,null,null,null,null,null,null,null,null,null,null,null,null,null,"G. 6 BARBERA & CHAMPAGNE","MANZO TEAM","BARBERA & CHAMPAGNE","EUROPA LEAGUE -  G. 6"]
[]
[null,null,null,null,null,null,null,null,null,null,null,null,null,null,null,null,null,null,null,null,null,null,null,null,null,null,null,null,null,null,null,null,null,null,null,null,null,null,null,null,null,null,null,null,null,null,null,null,null,null,null,null,null,null,null,null,null,null,null,null,null,null,null,null,null,null,null,null,null,null,null,null,null,null,null,null,null,null,null,null,"G. 6 FC FANTATLETICO","FC FANTATLETICO","FFC MARIO CORSO","CONFERENCE LEAGUE -  G. 6"]
[null,null,null,null,null,null,null,null,null,null,null,null,null,null,null,null,null,null,null,null,null,null,null,null,null,null,null,null,null,null,null,null,null,null,null,null,null,null,null,null,null,null,null,null,null,null,null,null,null,null,null,null,null,null,null,null,null,null,null,null,null,null,null,null,null,null,null,null,null,null,null,null,null,null,null,null,null,null,null,null,"G. 6 REAL FARNESE","REAL FARNESE","YOUNG BOYS","CONFERENCE LEAGUE -  G. 6"]
[null,null,null,null,null,null,null,null,null,null,null,null,null,null,null,null,null,null,null,null,null,null,null,null,null,null,null,null,null,null,null,null,null,null,null,null,null,null,null,null,null,null,null,null,null,null,null,null,null,null,null,null,null,null,null,null,null,null,null,null,null,null,null,null,null,null,null,null,null,null,null,null,null,null,null,null,null,null,null,null,"G. 6 FC BIRO","FC BIRO","RED-GREEN","CONFERENCE LEAGUE -  G. 6"]
[null,null,null,null,null,null,null,null,null,null,null,null,null,null,null,null,null,null,null,null,null,null,null,null,null,null,null,null,null,null,null,null,null,null,null,null,null,null,null,null,null,null,null,null,null,null,null,null,null,null,null,null,null,null,null,null,null,null,null,null,null,null,null,null,null,null,null,null,null,null,null,null,null,null,null,null,null,null,null,null,"G. 6 A'NFAMI","A'NFAMI","URACAN","CONFERENCE LEAGUE -  G. 6"]
[null,null,null,null,null,null,null,null,null,null,null,null,null,null,null,null,null,null,null,null,null,null,null,null,null,null,null,null,null,null,null,null,null,null,null,null,null,null,null,null,null,null,null,null,null,null,null,null,null,null,null,null,null,null,null,null,null,null,null,null,null,null,null,null,null,null,null,null,null,null,null,null,null,null,null,null,null,null,null,null,"G. 6 ARMATA NERAZZURRA","ARMATA NERAZZURRA","LOS","CONFERENCE LEAGUE -  G. 6"]
[null,null,null,null,null,null,null,null,null,null,null,null,null,null,null,null,null,null,null,null,null,null,null,null,null,null,null,null,null,null,null,null,null,null,null,null,null,null,null,null,null,null,null,null,null,null,null,null,null,null,null,null,null,null,null,null,null,null,null,null,null,null,null,null,null,null,null,null,null,null,null,null,null,null,null,null,null,null,null,null,"G. 6 AS QUARZA","CAPIBARA SWOFFY FC","AS QUARZA","CONFERENCE LEAGUE -  G. 6"]
[null,null,null,null,null,null,null,null,null,null,null,null,null,null,null,null,null,null,null,null,null,null,null,null,null,null,null,null,null,null,null,null,null,null,null,null,null,null,null,null,null,null,null,null,null,null,null,null,null,null,null,null,null,null,null,null,null,null,null,null,null,null,null,null,null,null,null,null,null,null,null,null,null,null,null,null,null,null,null,null,"G. 6 AMBROSIANA","SOLSBURY HILL FC","AMBROSIANA","CONFERENCE LEAGUE -  G. 6"]
[null,null,null,null,null,null,null,null,null,null,null,null,null,null,null,null,null,null,null,null,null,null,null,null,null,null,null,null,null,null,null,null,null,null,null,null,null,null,null,null,null,null,null,null,null,null,null,null,null,null,null,null,null,null,null,null,null,null,null,null,null,null,null,null,null,null,null,null,null,null,null,null,null,null,null,null,null,null,null,null,"G. 6 TERZO MUNICIPIO","PIGGI","TERZO MUNICIPIO","CONFERENCE LEAGUE -  G. 6"]
[null,null,null,null,null,null,null,null,null,null,null,null,null,null,null,null,null,null,null,null,null,null,null,null,null,null,null,null,null,null,null,null,null,null,null,null,null,null,null,null,null,null,null,null,null,null,null,null,null,null,null,null,null,null,null,null,null,null,null,null,null,null,null,null,null,null,null,null,null,null,null,null,null,null,null,null,null,null,null,null,"G. 6 CARLITO'S VELEZ","ZERVENA VIGIAK","CARLITO'S VELEZ","CONFERENCE LEAGUE -  G. 6"]
[null,null,null,null,null,null,null,null,null,null,null,null,null,null,null,null,null,null,null,null,null,null,null,null,null,null,null,null,null,null,null,null,null,null,null,null,null,null,null,null,null,null,null,null,null,null,null,null,null,null,null,null,null,null,null,null,null,null,null,null,null,null,null,null,null,null,null,null,null,null,null,null,null,null,null,null,null,null,null,null,"G. 6 CACCIATORI FC","LIVERCOOL","CACCIATORI FC","CONFERENCE LEAGUE -  G. 6"]
[null,null,null,null,null,null,null,null,null,null,null,null,null,null,null,null,null,null,null,null,null,null,null,null,null,null,null,null,null,null,null,null,null,null,null,null,null,null,null,null,null,null,null,null,null,null,null,null,null,null,null,null,null,null,null,null,null,null,null,null,null,null,null,null,null,null,null,null,null,null,null,null,null,null,null,null,null,null,null,null,"G. 6 LOS","ARMATA NERAZZURRA","LOS","CONFERENCE LEAGUE -  G. 6"]
[null,null,null,null,null,null,null,null,null,null,null,null,null,null,null,null,null,null,null,null,null,null,null,null,null,null,null,null,null,null,null,null,null,null,null,null,null,null,null,null,null,null,null,null,null,null,null,null,null,null,null,null,null,null,null,null,null,null,null,null,null,null,null,null,null,null,null,null,null,null,null,null,null,null,null,null,null,null,null,null,"G. 6 REAL PIPPERO","HOBBIT","REAL PIPPERO","CONFERENCE LEAGUE -  G. 6"]
[]
[null,null,null,null,null,null,null,null,null,null,null,null,null,null,null,null,null,null,null,null,null,null,null,null,null,null,null,null,null,null,null,null,null,null,null,null,null,null,null,null,null,null,null,null,null,null,null,null,null,null,null,null,null,null,null,null,null,null,null,null,null,null,null,null,null,null,null,null,null,null,null,null,null,null,null,null,null,null,null,null,"and_16simi PRO WC","PRO WC","2TWINS4EVER","CHAMPIONS LEAGUE - ANDATA 16simi"]
[null,null,null,null,null,null,null,null,null,null,null,null,null,null,null,null,null,null,null,null,null,null,null,null,null,null,null,null,null,null,null,null,null,null,null,null,null,null,null,null,null,null,null,null,null,null,null,null,null,null,null,null,null,null,null,null,null,null,null,null,null,null,null,null,null,null,null,null,null,null,null,null,null,null,null,null,null,null,null,null,"and_16simi LA MUCONE","LA MUCONE","ABETO FC","CHAMPIONS LEAGUE - ANDATA 16simi"]
[null,null,null,null,null,null,null,null,null,null,null,null,null,null,null,null,null,null,null,null,null,null,null,null,null,null,null,null,null,null,null,null,null,null,null,null,null,null,null,null,null,null,null,null,null,null,null,null,null,null,null,null,null,null,null,null,null,null,null,null,null,null,null,null,null,null,null,null,null,null,null,null,null,null,null,null,null,null,null,null,"and_16simi ATLETICO SQUONK","ATLETICO SQUONK","RASTA ZETA","CHAMPIONS LEAGUE - ANDATA 16simi"]
[null,null,null,null,null,null,null,null,null,null,null,null,null,null,null,null,null,null,null,null,null,null,null,null,null,null,null,null,null,null,null,null,null,null,null,null,null,null,null,null,null,null,null,null,null,null,null,null,null,null,null,null,null,null,null,null,null,null,null,null,null,null,null,null,null,null,null,null,null,null,null,null,null,null,null,null,null,null,null,null,"and_16simi COSENZA","COSENZA","ALAN FORD'S TEAM","EUROPA LEAGUE - ANDATA 16simi",null,null,null,null,null,null,null,null,null,null,null,"AC DERBOLINA","GRATTACHECCA"]
[null,null,null,null,null,null,null,null,null,null,null,null,null,null,null,null,null,null,null,null,null,null,null,null,null,null,null,null,null,null,null,null,null,null,null,null,null,null,null,null,null,null,null,null,null,null,null,null,null,null,null,null,null,null,null,null,null,null,null,null,null,null,null,null,null,null,null,null,null,null,null,null,null,null,null,null,null,null,null,null,"and_16simi AS NEW TEAM","AS NEW TEAM","CACAO MERAVIGLIAO","EUROPA LEAGUE - ANDATA 16simi",null,null,null,null,null,null,null,null,null,null,null,"REAL CHR","NORTH COCKS"]
[null,null,null,null,null,null,null,null,null,null,null,null,null,null,null,null,null,null,null,null,null,null,null,null,null,null,null,null,null,null,null,null,null,null,null,null,null,null,null,null,null,null,null,null,null,null,null,null,null,null,null,null,null,null,null,null,null,null,null,null,null,null,null,null,null,null,null,null,null,null,null,null,null,null,null,null,null,null,null,null,"and_16simi AC ZDENEK","A.C. ZDENEK","MANZO TEAM","EUROPA LEAGUE - ANDATA 16simi",null,null,null,null,null,null,null,null,null,null,null,"FFC TOPENHAM","MAGODINA FC"]
[null,null,null,null,null,null,null,null,null,null,null,null,null,null,null,null,null,null,null,null,null,null,null,null,null,null,null,null,null,null,null,null,null,null,null,null,null,null,null,null,null,null,null,null,null,null,null,null,null,null,null,null,null,null,null,null,null,null,null,null,null,null,null,null,null,null,null,null,null,null,null,null,null,null,null,null,null,null,null,null,"and_16simi OLTREMARE","OLTREMARE","PAPAVERI E PAPERE","CONFERENCE LEAGUE - ANDATA 16simi",null,null,null,null,null,null,null,null,null,null,null,"BORGOROSSO F.C.","TITANS"]
[null,null,null,null,null,null,null,null,null,null,null,null,null,null,null,null,null,null,null,null,null,null,null,null,null,null,null,null,null,null,null,null,null,null,null,null,null,null,null,null,null,null,null,null,null,null,null,null,null,null,null,null,null,null,null,null,null,null,null,null,null,null,null,null,null,null,null,null,null,null,null,null,null,null,null,null,null,null,null,null,"and_16simi A'NFAMI","A'NFAMI","FC FANTATLETICO","CONFERENCE LEAGUE - ANDATA 16simi",null,null,null,null,null,null,null,null,null,null,null,"FC ZETAJ TEAM 1999","TEAM ENO"]
[null,null,null,null,null,null,null,null,null,null,null,null,null,null,null,null,null,null,null,null,null,null,null,null,null,null,null,null,null,null,null,null,null,null,null,null,null,null,null,null,null,null,null,null,null,null,null,null,null,null,null,null,null,null,null,null,null,null,null,null,null,null,null,null,null,null,null,null,null,null,null,null,null,null,null,null,null,null,null,null,"and_16simi VARCELLONA","VARCELLONA","FFC MARIO CORSO","CONFERENCE LEAGUE - ANDATA 16simi",null,null,null,null,null,null,null,null,null,null,null,"PRENESTINO FC","SPORTING VINAO"]
[null,null,null,null,null,null,null,null,null,null,null,null,null,null,null,null,null,null,null,null,null,null,null,null,null,null,null,null,null,null,null,null,null,null,null,null,null,null,null,null,null,null,null,null,null,null,null,null,null,null,null,null,null,null,null,null,null,null,null,null,null,null,null,null,null,null,null,null,null,null,null,null,null,null,null,null,null,null,null,null,"and_16simi GRATTACHECCA","AC DERBOLINA","GRATTACHECCA","CHAMPIONS LEAGUE - ANDATA 16simi",null,null,null,null,null,null,null,null,null,null,null,"PIGGI","AMOREODIO"]
[null,null,null,null,null,null,null,null,null,null,null,null,null,null,null,null,null,null,null,null,null,null,null,null,null,null,null,null,null,null,null,null,null,null,null,null,null,null,null,null,null,null,null,null,null,null,null,null,null,null,null,null,null,null,null,null,null,null,null,null,null,null,null,null,null,null,null,null,null,null,null,null,null,null,null,null,null,null,null,null,"and_16simi NORTH COCKS","REAL CHR","NORTH COCKS","CHAMPIONS LEAGUE - ANDATA 16simi",null,null,null,null,null,null,null,null,null,null,null,"SOLSBURY HILL FC","PICARD"]
[null,null,null,null,null,null,null,null,null,null,null,null,null,null,null,null,null,null,null,null,null,null,null,null,null,null,null,null,null,null,null,null,null,null,null,null,null,null,null,null,null,null,null,null,null,null,null,null,null,null,null,null,null,null,null,null,null,null,null,null,null,null,null,null,null,null,null,null,null,null,null,null,null,null,null,null,null,null,null,null,"and_16simi SPORTING 2000","MARIANNA","SPORTING 2000","CHAMPIONS LEAGUE - ANDATA 16simi",null,null,null,null,null,null,null,null,null,null,null,"CRIMSON","ARMATA NERAZZURRA"]
[null,null,null,null,null,null,null,null,null,null,null,null,null,null,null,null,null,null,null,null,null,null,null,null,null,null,null,null,null,null,null,null,null,null,null,null,null,null,null,null,null,null,null,null,null,null,null,null,null,null,null,null,null,null,null,null,null,null,null,null,null,null,null,null,null,null,null,null,null,null,null,null,null,null,null,null,null,null,null,null,"and_16simi ABETO FC","LA MUCONE","ABETO FC","CHAMPIONS LEAGUE - ANDATA 16simi",null,null,null,null,null,null,null,null,null,null,null,"REAL BUCCINASCO","UDINESE 1896"]
[null,null,null,null,null,null,null,null,null,null,null,null,null,null,null,null,null,null,null,null,null,null,null,null,null,null,null,null,null,null,null,null,null,null,null,null,null,null,null,null,null,null,null,null,null,null,null,null,null,null,null,null,null,null,null,null,null,null,null,null,null,null,null,null,null,null,null,null,null,null,null,null,null,null,null,null,null,null,null,null,"and_16simi ELEVEN LIONS","SVICAT","ELEVEN LIONS","EUROPA LEAGUE - ANDATA 16simi"]
[null,null,null,null,null,null,null,null,null,null,null,null,null,null,null,null,null,null,null,null,null,null,null,null,null,null,null,null,null,null,null,null,null,null,null,null,null,null,null,null,null,null,null,null,null,null,null,null,null,null,null,null,null,null,null,null,null,null,null,null,null,null,null,null,null,null,null,null,null,null,null,null,null,null,null,null,null,null,null,null,"and_16simi LAMÙFOREVER","BAYER LEVERRUKE","LAMÙFOREVER","EUROPA LEAGUE - ANDATA 16simi"]
[null,null,null,null,null,null,null,null,null,null,null,null,null,null,null,null,null,null,null,null,null,null,null,null,null,null,null,null,null,null,null,null,null,null,null,null,null,null,null,null,null,null,null,null,null,null,null,null,null,null,null,null,null,null,null,null,null,null,null,null,null,null,null,null,null,null,null,null,null,null,null,null,null,null,null,null,null,null,null,null,"and_16simi ALL BLACKS","PANZER8","ALL BLACKS","EUROPA LEAGUE - ANDATA 16simi"]
[null,null,null,null,null,null,null,null,null,null,null,null,null,null,null,null,null,null,null,null,null,null,null,null,null,null,null,null,null,null,null,null,null,null,null,null,null,null,null,null,null,null,null,null,null,null,null,null,null,null,null,null,null,null,null,null,null,null,null,null,null,null,null,null,null,null,null,null,null,null,null,null,null,null,null,null,null,null,null,null,"and_16simi 3T","I VAZANICCHI","3T","CONFERENCE LEAGUE - ANDATA 16simi"]
[null,null,null,null,null,null,null,null,null,null,null,null,null,null,null,null,null,null,null,null,null,null,null,null,null,null,null,null,null,null,null,null,null,null,null,null,null,null,null,null,null,null,null,null,null,null,null,null,null,null,null,null,null,null,null,null,null,null,null,null,null,null,null,null,null,null,null,null,null,null,null,null,null,null,null,null,null,null,null,null,"and_16simi PERDENTUS FC","TERZO MUNICIPIO","PERDENTUS FC","CONFERENCE LEAGUE - ANDATA 16simi"]
[null,null,null,null,null,null,null,null,null,null,null,null,null,null,null,null,null,null,null,null,null,null,null,null,null,null,null,null,null,null,null,null,null,null,null,null,null,null,null,null,null,null,null,null,null,null,null,null,null,null,null,null,null,null,null,null,null,null,null,null,null,null,null,null,null,null,null,null,null,null,null,null,null,null,null,null,null,null,null,null,"and_16simi GOBBOFINCHECAMPO","NAPO-LEONI","GOBBOFINCHECAMPO","CONFERENCE LEAGUE - ANDATA 16simi"]
[null,null,null,null,null,null,null,null,null,null,null,null,null,null,null,null,null,null,null,null,null,null,null,null,null,null,null,null,null,null,null,null,null,null,null,null,null,null,null,null,null,null,null,null,null,null,null,null,null,null,null,null,null,null,null,null,null,null,null,null,null,null,null,null,null,null,null,null,null,null,null,null,null,null,null,null,null,null,null,null,"rit_16simi SAN SIRO","SAN SIRO","A.S. TOTTIGO","CHAMPIONS LEAGUE - RITORNO 16simi"]
[null,null,null,null,null,null,null,null,null,null,null,null,null,null,null,null,null,null,null,null,null,null,null,null,null,null,null,null,null,null,null,null,null,null,null,null,null,null,null,null,null,null,null,null,null,null,null,null,null,null,null,null,null,null,null,null,null,null,null,null,null,null,null,null,null,null,null,null,null,null,null,null,null,null,null,null,null,null,null,null,"rit_16simi ACRESE","ACRESE","RASTA DB","CHAMPIONS LEAGUE - RITORNO 16simi"]
[null,null,null,null,null,null,null,null,null,null,null,null,null,null,null,null,null,null,null,null,null,null,null,null,null,null,null,null,null,null,null,null,null,null,null,null,null,null,null,null,null,null,null,null,null,null,null,null,null,null,null,null,null,null,null,null,null,null,null,null,null,null,null,null,null,null,null,null,null,null,null,null,null,null,null,null,null,null,null,null,"rit_16simi DAVINCI TEAM","DAVINCI TEAM","FUFF TEAM","CHAMPIONS LEAGUE - RITORNO 16simi"]
[null,null,null,null,null,null,null,null,null,null,null,null,null,null,null,null,null,null,null,null,null,null,null,null,null,null,null,null,null,null,null,null,null,null,null,null,null,null,null,null,null,null,null,null,null,null,null,null,null,null,null,null,null,null,null,null,null,null,null,null,null,null,null,null,null,null,null,null,null,null,null,null,null,null,null,null,null,null,null,null,"rit_16simi INAZUMA ELEVEN","INAZUMA ELEVEN","MOKA JUNIORS","EUROPA LEAGUE - RITORNO 16simi"]
[null,null,null,null,null,null,null,null,null,null,null,null,null,null,null,null,null,null,null,null,null,null,null,null,null,null,null,null,null,null,null,null,null,null,null,null,null,null,null,null,null,null,null,null,null,null,null,null,null,null,null,null,null,null,null,null,null,null,null,null,null,null,null,null,null,null,null,null,null,null,null,null,null,null,null,null,null,null,null,null,"rit_16simi ELEVEN LIONS","ELEVEN LIONS","SVICAT","EUROPA LEAGUE - RITORNO 16simi",null,null,null,null,null,null,null,null,null,null,null,"NICKSTREGA","CATENACCIO & CONTROPIEDE"]
[null,null,null,null,null,null,null,null,null,null,null,null,null,null,null,null,null,null,null,null,null,null,null,null,null,null,null,null,null,null,null,null,null,null,null,null,null,null,null,null,null,null,null,null,null,null,null,null,null,null,null,null,null,null,null,null,null,null,null,null,null,null,null,null,null,null,null,null,null,null,null,null,null,null,null,null,null,null,null,null,"rit_16simi FFC SANDRO MAZZOLA","FFC SANDRO MAZZOLA","MOMENTI DI GLORIA FMC","EUROPA LEAGUE - RITORNO 16simi",null,null,null,null,null,null,null,null,null,null,null,"TC WILLIAMS","AC MORRONE"]
[null,null,null,null,null,null,null,null,null,null,null,null,null,null,null,null,null,null,null,null,null,null,null,null,null,null,null,null,null,null,null,null,null,null,null,null,null,null,null,null,null,null,null,null,null,null,null,null,null,null,null,null,null,null,null,null,null,null,null,null,null,null,null,null,null,null,null,null,null,null,null,null,null,null,null,null,null,null,null,null,"rit_16simi DIAMANTE","DIAMANTE","NEAPOLIS","EUROPA LEAGUE - RITORNO 16simi",null,null,null,null,null,null,null,null,null,null,null,"LA10 BIELLA FC","ROSSOBLU FC"]
[null,null,null,null,null,null,null,null,null,null,null,null,null,null,null,null,null,null,null,null,null,null,null,null,null,null,null,null,null,null,null,null,null,null,null,null,null,null,null,null,null,null,null,null,null,null,null,null,null,null,null,null,null,null,null,null,null,null,null,null,null,null,null,null,null,null,null,null,null,null,null,null,null,null,null,null,null,null,null,null,"rit_16simi AMOREODIO","AMOREODIO","PIGGI","CONFERENCE LEAGUE - RITORNO 16simi",null,null,null,null,null,null,null,null,null,null,null,"RASTA ZETA","ATLETICO SQUONK"]
[null,null,null,null,null,null,null,null,null,null,null,null,null,null,null,null,null,null,null,null,null,null,null,null,null,null,null,null,null,null,null,null,null,null,null,null,null,null,null,null,null,null,null,null,null,null,null,null,null,null,null,null,null,null,null,null,null,null,null,null,null,null,null,null,null,null,null,null,null,null,null,null,null,null,null,null,null,null,null,null,"rit_16simi ARMATA NERAZZURRA","ARMATA NERAZZURRA","CRIMSON","CONFERENCE LEAGUE - RITORNO 16simi",null,null,null,null,null,null,null,null,null,null,null,"ALAN FORD'S TEAM","COSENZA"]
[null,null,null,null,null,null,null,null,null,null,null,null,null,null,null,null,null,null,null,null,null,null,null,null,null,null,null,null,null,null,null,null,null,null,null,null,null,null,null,null,null,null,null,null,null,null,null,null,null,null,null,null,null,null,null,null,null,null,null,null,null,null,null,null,null,null,null,null,null,null,null,null,null,null,null,null,null,null,null,null,"rit_16simi UDINESE 1896","UDINESE 1896","REAL BUCCINASCO","CONFERENCE LEAGUE - RITORNO 16simi",null,null,null,null,null,null,null,null,null,null,null,"CACAO MERAVIGLIAO","AS NEW TEAM"]
[null,null,null,null,null,null,null,null,null,null,null,null,null,null,null,null,null,null,null,null,null,null,null,null,null,null,null,null,null,null,null,null,null,null,null,null,null,null,null,null,null,null,null,null,null,null,null,null,null,null,null,null,null,null,null,null,null,null,null,null,null,null,null,null,null,null,null,null,null,null,null,null,null,null,null,null,null,null,null,null,null,null,null,null,null,null,null,null,null,null,null,null,null,null,null,"MANZO TEAM","A.C. ZDENEK"]
[null,null,null,null,null,null,null,null,null,null,null,null,null,null,null,null,null,null,null,null,null,null,null,null,null,null,null,null,null,null,null,null,null,null,null,null,null,null,null,null,null,null,null,null,null,null,null,null,null,null,null,null,null,null,null,null,null,null,null,null,null,null,null,null,null,null,null,null,null,null,null,null,null,null,null,null,null,null,null,null,"rit_16simi AC MORRONE","TC WILLIAMS","AC MORRONE","CHAMPIONS LEAGUE - RITORNO 16simi",null,null,null,null,null,null,null,null,null,null,null,"PAPAVERI E PAPERE","OLTREMARE"]
[null,null,null,null,null,null,null,null,null,null,null,null,null,null,null,null,null,null,null,null,null,null,null,null,null,null,null,null,null,null,null,null,null,null,null,null,null,null,null,null,null,null,null,null,null,null,null,null,null,null,null,null,null,null,null,null,null,null,null,null,null,null,null,null,null,null,null,null,null,null,null,null,null,null,null,null,null,null,null,null,"rit_16simi ROSSOBLU FC","LA10 BIELLA FC","ROSSOBLU FC","CHAMPIONS LEAGUE - RITORNO 16simi",null,null,null,null,null,null,null,null,null,null,null,"FC FANTATLETICO","A'NFAMI"]
[null,null,null,null,null,null,null,null,null,null,null,null,null,null,null,null,null,null,null,null,null,null,null,null,null,null,null,null,null,null,null,null,null,null,null,null,null,null,null,null,null,null,null,null,null,null,null,null,null,null,null,null,null,null,null,null,null,null,null,null,null,null,null,null,null,null,null,null,null,null,null,null,null,null,null,null,null,null,null,null,null,null,null,null,null,null,null,null,null,null,null,null,null,null,null,"AS_TONMARTIN","BETIS SEVILLA"]
[null,null,null,null,null,null,null,null,null,null,null,null,null,null,null,null,null,null,null,null,null,null,null,null,null,null,null,null,null,null,null,null,null,null,null,null,null,null,null,null,null,null,null,null,null,null,null,null,null,null,null,null,null,null,null,null,null,null,null,null,null,null,null,null,null,null,null,null,null,null,null,null,null,null,null,null,null,null,null,null,"rit_16simi COSENZA","ALAN FORD'S TEAM","COSENZA","EUROPA LEAGUE - RITORNO 16simi"]
[null,null,null,null,null,null,null,null,null,null,null,null,null,null,null,null,null,null,null,null,null,null,null,null,null,null,null,null,null,null,null,null,null,null,null,null,null,null,null,null,null,null,null,null,null,null,null,null,null,null,null,null,null,null,null,null,null,null,null,null,null,null,null,null,null,null,null,null,null,null,null,null,null,null,null,null,null,null,null,null,"rit_16simi BAYER LEVERRUKE","LAMÙFOREVER","BAYER LEVERRUKE","EUROPA LEAGUE - RITORNO 16simi"]
[]
[null,null,null,null,null,null,null,null,null,null,null,null,null,null,null,null,null,null,null,null,null,null,null,null,null,null,null,null,null,null,null,null,null,null,null,null,null,null,null,null,null,null,null,null,null,null,null,null,null,null,null,null,null,null,null,null,null,null,null,null,null,null,null,null,null,null,null,null,null,null,null,null,null,null,null,null,null,null,null,null,"rit_16simi RED-GREEN","ZERVENA VIGIAK","RED-GREEN","CONFERENCE LEAGUE - RITORNO 16simi"]
[null,null,null,null,null,null,null,null,null,null,null,null,null,null,null,null,null,null,null,null,null,null,null,null,null,null,null,null,null,null,null,null,null,null,null,null,null,null,null,null,null,null,null,null,null,null,null,null,null,null,null,null,null,null,null,null,null,null,null,null,null,null,null,null,null,null,null,null,null,null,null,null,null,null,null,null,null,null,null,null,"rit_16simi SOLSBURY HILL FC","PICARD","SOLSBURY HILL FC","CONFERENCE LEAGUE - RITORNO 16simi"]
[null,null,null,null,null,null,null,null,null,null,null,null,null,null,null,null,null,null,null,null,null,null,null,null,null,null,null,null,null,null,null,null,null,null,null,null,null,null,null,null,null,null,null,null,null,null,null,null,null,null,null,null,null,null,null,null,null,null,null,null,null,null,null,null,null,null,null,null,null,null,null,null,null,null,null,null,null,null,null,null,"rit_16simi FFC EVARISTO BECCALOSSI","HIC SUNT FERAE","FFC EVARISTO BECCALOSSI","CONFERENCE LEAGUE - RITORNO 16simi"]
[null,null,null,null,null,null,null,null,null,null,null,null,null,null,null,null,null,null,null,null,null,null,null,null,null,null,null,null,null,null,null,null,null,null,null,null,null,null,null,null,null,null,null,null,null,null,null,null,null,null,null,null,null,null,null,null,null,null,null,null,null,null,null,null,null,null,null,null,null,null,null,null,null,null,null,null,null,null,null,null,"rit_16simi OLYMPIC KEBAB","LIVERCOOL","OLYMPIC KEBAB","CONFERENCE LEAGUE - RITORNO 16simi"]
[null,null,null,null,null,null,null,null,null,null,null,null,null,null,null,null,null,null,null,null,null,null,null,null,null,null,null,null,null,null,null,null,null,null,null,null,null,null,null,null,null,null,null,null,null,null,null,null,null,null,null,null,null,null,null,null,null,null,null,null,null,null,null,null,null,null,null,null,null,null,null,null,null,null,null,null,null,null,null,null,"and_ottavi LA10 BIELLA FC","LA10 BIELLA FC","FUFF TEAM","CHAMPIONS L. - ANDATA OTTAVI"]
[null,null,null,null,null,null,null,null,null,null,null,null,null,null,null,null,null,null,null,null,null,null,null,null,null,null,null,null,null,null,null,null,null,null,null,null,null,null,null,null,null,null,null,null,null,null,null,null,null,null,null,null,null,null,null,null,null,null,null,null,null,null,null,null,null,null,null,null,null,null,null,null,null,null,null,null,null,null,null,null,"and_ottavi SVICAT","SVICAT","ATLETICO SGANITO","EUROPA LEAGUE - ANDATA OTTAVI"]
[null,null,null,null,null,null,null,null,null,null,null,null,null,null,null,null,null,null,null,null,null,null,null,null,null,null,null,null,null,null,null,null,null,null,null,null,null,null,null,null,null,null,null,null,null,null,null,null,null,null,null,null,null,null,null,null,null,null,null,null,null,null,null,null,null,null,null,null,null,null,null,null,null,null,null,null,null,null,null,null,"and_ottavi NEAPOLIS","NEAPOLIS","PANZER8","EUROPA LEAGUE - ANDATA OTTAVI"]
[null,null,null,null,null,null,null,null,null,null,null,null,null,null,null,null,null,null,null,null,null,null,null,null,null,null,null,null,null,null,null,null,null,null,null,null,null,null,null,null,null,null,null,null,null,null,null,null,null,null,null,null,null,null,null,null,null,null,null,null,null,null,null,null,null,null,null,null,null,null,null,null,null,null,null,null,null,null,null,null,"and_ottavi ARMATA NERAZZURRA","ARMATA NERAZZURRA","PERDENTUS FC","CONFERENCE L. - ANDATA OTTAVI",null,null,null,null,null,null,null,null,null,null,null,"TC WILLIAMS","ISOLA CHE NON CE","CHAMPIONS L. - RITORNO OTTAVI"]
[null,null,null,null,null,null,null,null,null,null,null,null,null,null,null,null,null,null,null,null,null,null,null,null,null,null,null,null,null,null,null,null,null,null,null,null,null,null,null,null,null,null,null,null,null,null,null,null,null,null,null,null,null,null,null,null,null,null,null,null,null,null,null,null,null,null,null,null,null,null,null,null,null,null,null,null,null,null,null,null,null,null,null,null,null,null,null,null,null,null,null,null,null,null,null,"RASTA ZETA","MOMENTI DI GLORIA","CHAMPIONS L. - RITORNO OTTAVI"]
[null,null,null,null,null,null,null,null,null,null,null,null,null,null,null,null,null,null,null,null,null,null,null,null,null,null,null,null,null,null,null,null,null,null,null,null,null,null,null,null,null,null,null,null,null,null,null,null,null,null,null,null,null,null,null,null,null,null,null,null,null,null,null,null,null,null,null,null,null,null,null,null,null,null,null,null,null,null,null,null,"and_ottavi NORTH COCKS","RASTA DB","NORTH COCKS","CHAMPIONS L. - ANDATA OTTAVI",null,null,null,null,null,null,null,null,null,null,null,"DAJE MO'","COSENZA","EUROPA LEAGUE - RITORNO OTTAVI"]
[null,null,null,null,null,null,null,null,null,null,null,null,null,null,null,null,null,null,null,null,null,null,null,null,null,null,null,null,null,null,null,null,null,null,null,null,null,null,null,null,null,null,null,null,null,null,null,null,null,null,null,null,null,null,null,null,null,null,null,null,null,null,null,null,null,null,null,null,null,null,null,null,null,null,null,null,null,null,null,null,"and_ottavi DAJE MO'","COSENZA","DAJE MO'","EUROPA LEAGUE - ANDATA OTTAVI",null,null,null,null,null,null,null,null,null,null,null,"PAPAVERI E PAPERE","I VAZANICCHI","CONFERENCE L. - RITORNO OTTAVI"]
[null,null,null,null,null,null,null,null,null,null,null,null,null,null,null,null,null,null,null,null,null,null,null,null,null,null,null,null,null,null,null,null,null,null,null,null,null,null,null,null,null,null,null,null,null,null,null,null,null,null,null,null,null,null,null,null,null,null,null,null,null,null,null,null,null,null,null,null,null,null,null,null,null,null,null,null,null,null,null,null,"and_ottavi MARUEGO BOYS","MANZO TEAM","MARUEGO BOYS","EUROPA LEAGUE - ANDATA OTTAVI",null,null,null,null,null,null,null,null,null,null,null,"VARCELLONA","GOBBOFINCHECAMPO","CONFERENCE L. - RITORNO OTTAVI"]
[null,null,null,null,null,null,null,null,null,null,null,null,null,null,null,null,null,null,null,null,null,null,null,null,null,null,null,null,null,null,null,null,null,null,null,null,null,null,null,null,null,null,null,null,null,null,null,null,null,null,null,null,null,null,null,null,null,null,null,null,null,null,null,null,null,null,null,null,null,null,null,null,null,null,null,null,null,null,null,null,"and_ottavi LAZIO","A'NFAMI","LAZIO","CONFERENCE L. - ANDATA OTTAVI"]
[null,null,null,null,null,null,null,null,null,null,null,null,null,null,null,null,null,null,null,null,null,null,null,null,null,null,null,null,null,null,null,null,null,null,null,null,null,null,null,null,null,null,null,null,null,null,null,null,null,null,null,null,null,null,null,null,null,null,null,null,null,null,null,null,null,null,null,null,null,null,null,null,null,null,null,null,null,null,null,null,"rit_ottavi SAN SIRO","SAN SIRO","CATENACCIO & CONTROPIEDE","CHAMPIONS L. - RITORNO OTTAVI"]
[null,null,null,null,null,null,null,null,null,null,null,null,null,null,null,null,null,null,null,null,null,null,null,null,null,null,null,null,null,null,null,null,null,null,null,null,null,null,null,null,null,null,null,null,null,null,null,null,null,null,null,null,null,null,null,null,null,null,null,null,null,null,null,null,null,null,null,null,null,null,null,null,null,null,null,null,null,null,null,null,"rit_ottavi FUFF TEAM","FUFF TEAM","LA10 BIELLA FC","CHAMPIONS L. - RITORNO OTTAVI"]
[null,null,null,null,null,null,null,null,null,null,null,null,null,null,null,null,null,null,null,null,null,null,null,null,null,null,null,null,null,null,null,null,null,null,null,null,null,null,null,null,null,null,null,null,null,null,null,null,null,null,null,null,null,null,null,null,null,null,null,null,null,null,null,null,null,null,null,null,null,null,null,null,null,null,null,null,null,null,null,null,"rit_ottavi ABETO FC","ABETO FC","MAGODINA FC","CHAMPIONS L. - RITORNO OTTAVI"]
[null,null,null,null,null,null,null,null,null,null,null,null,null,null,null,null,null,null,null,null,null,null,null,null,null,null,null,null,null,null,null,null,null,null,null,null,null,null,null,null,null,null,null,null,null,null,null,null,null,null,null,null,null,null,null,null,null,null,null,null,null,null,null,null,null,null,null,null,null,null,null,null,null,null,null,null,null,null,null,null,"rit_ottavi DAJE MO'","DAJE MO'","COSENZA","EUROPA LEAGUE - RITORNO OTTAVI"]
[]
[null,null,null,null,null,null,null,null,null,null,null,null,null,null,null,null,null,null,null,null,null,null,null,null,null,null,null,null,null,null,null,null,null,null,null,null,null,null,null,null,null,null,null,null,null,null,null,null,null,null,null,null,null,null,null,null,null,null,null,null,null,null,null,null,null,null,null,null,null,null,null,null,null,null,null,null,null,null,null,null,"rit_ottavi LAZIO","LAZIO","A'NFAMI","CONFERENCE L. - RITORNO OTTAVI"]
[null,null,null,null,null,null,null,null,null,null,null,null,null,null,null,null,null,null,null,null,null,null,null,null,null,null,null,null,null,null,null,null,null,null,null,null,null,null,null,null,null,null,null,null,null,null,null,null,null,null,null,null,null,null,null,null,null,null,null,null,null,null,null,null,null,null,null,null,null,null,null,null,null,null,null,null,null,null,null,null,"rit_ottavi CATENACCIO & CONTROPIEDE","SAN SIRO","CATENACCIO & CONTROPIEDE","CHAMPIONS L. - RITORNO OTTAVI"]
[null,null,null,null,null,null,null,null,null,null,null,null,null,null,null,null,null,null,null,null,null,null,null,null,null,null,null,null,null,null,null,null,null,null,null,null,null,null,null,null,null,null,null,null,null,null,null,null,null,null,null,null,null,null,null,null,null,null,null,null,null,null,null,null,null,null,null,null,null,null,null,null,null,null,null,null,null,null,null,null,"rit_ottavi MAGODINA FC","ABETO FC","MAGODINA FC","CHAMPIONS L. - RITORNO OTTAVI"]
[null,null,null,null,null,null,null,null,null,null,null,null,null,null,null,null,null,null,null,null,null,null,null,null,null,null,null,null,null,null,null,null,null,null,null,null,null,null,null,null,null,null,null,null,null,null,null,null,null,null,null,null,null,null,null,null,null,null,null,null,null,null,null,null,null,null,null,null,null,null,null,null,null,null,null,null,null,null,null,null,"rit_ottavi TEAM ENO","MOMENTI DI GLORIA FMC","TEAM ENO","EUROPA LEAGUE - RITORNO OTTAVI"]
[null,null,null,null,null,null,null,null,null,null,null,null,null,null,null,null,null,null,null,null,null,null,null,null,null,null,null,null,null,null,null,null,null,null,null,null,null,null,null,null,null,null,null,null,null,null,null,null,null,null,null,null,null,null,null,null,null,null,null,null,null,null,null,null,null,null,null,null,null,null,null,null,null,null,null,null,null,null,null,null,"rit_ottavi PIGGI","FFC TARCISIO BURGNICH","PIGGI","CONFERENCE L. - RITORNO OTTAVI"]
[null,null,null,null,null,null,null,null,null,null,null,null,null,null,null,null,null,null,null,null,null,null,null,null,null,null,null,null,null,null,null,null,null,null,null,null,null,null,null,null,null,null,null,null,null,null,null,null,null,null,null,null,null,null,null,null,null,null,null,null,null,null,null,null,null,null,null,null,null,null,null,null,null,null,null,null,null,null,null,null,"rit_ottavi HIC SUNT FERAE","REAL BUCCINASCO","HIC SUNT FERAE","CONFERENCE L. - RITORNO OTTAVI"]
[null,null,null,null,null,null,null,null,null,null,null,null,null,null,null,null,null,null,null,null,null,null,null,null,null,null,null,null,null,null,null,null,null,null,null,null,null,null,null,null,null,null,null,null,null,null,null,null,null,null,null,null,null,null,null,null,null,null,null,null,null,null,null,null,null,null,null,null,null,null,null,null,null,null,null,null,null,null,null,null,"and_quarti ISOLA CHE NON CE","ISOLA CHE NON CE","NORTH COCKS","CHAMPIONS L. - ANDATA QUARTI"]
[null,null,null,null,null,null,null,null,null,null,null,null,null,null,null,null,null,null,null,null,null,null,null,null,null,null,null,null,null,null,null,null,null,null,null,null,null,null,null,null,null,null,null,null,null,null,null,null,null,null,null,null,null,null,null,null,null,null,null,null,null,null,null,null,null,null,null,null,null,null,null,null,null,null,null,null,null,null,null,null,"and_quarti PANZER8","PANZER8","MARUEGO BOYS","EUROPA L. - ANDATA QUARTI"]
[]
[null,null,null,null,null,null,null,null,null,null,null,null,null,null,null,null,null,null,null,null,null,null,null,null,null,null,null,null,null,null,null,null,null,null,null,null,null,null,null,null,null,null,null,null,null,null,null,null,null,null,null,null,null,null,null,null,null,null,null,null,null,null,null,null,null,null,null,null,null,null,null,null,null,null,null,null,null,null,null,null,"and_quarti SVICAT","MOKA JUNIORS","SVICAT","EUROPA L. - ANDATA QUARTI"]
[null,null,null,null,null,null,null,null,null,null,null,null,null,null,null,null,null,null,null,null,null,null,null,null,null,null,null,null,null,null,null,null,null,null,null,null,null,null,null,null,null,null,null,null,null,null,null,null,null,null,null,null,null,null,null,null,null,null,null,null,null,null,null,null,null,null,null,null,null,null,null,null,null,null,null,null,null,null,null,null,"and_quarti TEAM ENO","DAJE MO'","TEAM ENO","EUROPA L. - ANDATA QUARTI"]
[null,null,null,null,null,null,null,null,null,null,null,null,null,null,null,null,null,null,null,null,null,null,null,null,null,null,null,null,null,null,null,null,null,null,null,null,null,null,null,null,null,null,null,null,null,null,null,null,null,null,null,null,null,null,null,null,null,null,null,null,null,null,null,null,null,null,null,null,null,null,null,null,null,null,null,null,null,null,null,null,"and_quarti HIC SUNT FERAE","A'NFAMI","HIC SUNT FERAE","CONFERENCE L. - ANDATA QUARTI"]
[null,null,null,null,null,null,null,null,null,null,null,null,null,null,null,null,null,null,null,null,null,null,null,null,null,null,null,null,null,null,null,null,null,null,null,null,null,null,null,null,null,null,null,null,null,null,null,null,null,null,null,null,null,null,null,null,null,null,null,null,null,null,null,null,null,null,null,null,null,null,null,null,null,null,null,null,null,null,null,null,"rit_quartiFUFF TEAM","FUFF TEAM","FFC ANGELO DOMENGHINI","CHAMPIONS L. - RITORNO QUARTI"]
[null,null,null,null,null,null,null,null,null,null,null,null,null,null,null,null,null,null,null,null,null,null,null,null,null,null,null,null,null,null,null,null,null,null,null,null,null,null,null,null,null,null,null,null,null,null,null,null,null,null,null,null,null,null,null,null,null,null,null,null,null,null,null,null,null,null,null,null,null,null,null,null,null,null,null,null,null,null,null,null,"rit_quartiI VAZANICCHI","I VAZANICCHI","PIGGI","CONFERENCE L. - RITORNO QUARTI"]
[null,null,null,null,null,null,null,null,null,null,null,null,null,null,null,null,null,null,null,null,null,null,null,null,null,null,null,null,null,null,null,null,null,null,null,null,null,null,null,null,null,null,null,null,null,null,null,null,null,null,null,null,null,null,null,null,null,null,null,null,null,null,null,null,null,null,null,null,null,null,null,null,null,null,null,null,null,null,null,null,"rit_quartiPERDENTUS FC","PERDENTUS FC","ZERVENA VIGIAK","CONFERENCE L. - RITORNO QUARTI"]
[null,null,null,null,null,null,null,null,null,null,null,null,null,null,null,null,null,null,null,null,null,null,null,null,null,null,null,null,null,null,null,null,null,null,null,null,null,null,null,null,null,null,null,null,null,null,null,null,null,null,null,null,null,null,null,null,null,null,null,null,null,null,null,null,null,null,null,null,null,null,null,null,null,null,null,null,null,null,null,null,"rit_quartiHIC SUNT FERAE","HIC SUNT FERAE","A'NFAMI","CONFERENCE L. - RITORNO QUARTI"]
[null,null,null,null,null,null,null,null,null,null,null,null,null,null,null,null,null,null,null,null,null,null,null,null,null,null,null,null,null,null,null,null,null,null,null,null,null,null,null,null,null,null,null,null,null,null,null,null,null,null,null,null,null,null,null,null,null,null,null,null,null,null,null,null,null,null,null,null,null,null,null,null,null,null,null,null,null,null,null,null,"rit_quartiLIVERCOOL","LIVERCOOL","VARCELLONA","CONFERENCE L. - RITORNO QUARTI"]
[]
[null,null,null,null,null,null,null,null,null,null,null,null,null,null,null,null,null,null,null,null,null,null,null,null,null,null,null,null,null,null,null,null,null,null,null,null,null,null,null,null,null,null,null,null,null,null,null,null,null,null,null,null,null,null,null,null,null,null,null,null,null,null,null,null,null,null,null,null,null,null,null,null,null,null,null,null,null,null,null,null,"rit_quartiCATENACCIO & CONTROPIEDE","PRO WC","CATENACCIO & CONTROPIEDE","CHAMPIONS L. - RITORNO QUARTI"]
[null,null,null,null,null,null,null,null,null,null,null,null,null,null,null,null,null,null,null,null,null,null,null,null,null,null,null,null,null,null,null,null,null,null,null,null,null,null,null,null,null,null,null,null,null,null,null,null,null,null,null,null,null,null,null,null,null,null,null,null,null,null,null,null,null,null,null,null,null,null,null,null,null,null,null,null,null,null,null,null,"rit_quartiISOLA CHE NON CE","NORTH COCKS","ISOLA CHE NON CE","CHAMPIONS L. - RITORNO QUARTI"]
[null,null,null,null,null,null,null,null,null,null,null,null,null,null,null,null,null,null,null,null,null,null,null,null,null,null,null,null,null,null,null,null,null,null,null,null,null,null,null,null,null,null,null,null,null,null,null,null,null,null,null,null,null,null,null,null,null,null,null,null,null,null,null,null,null,null,null,null,null,null,null,null,null,null,null,null,null,null,null,null,"rit_quartiFFC ANGELO DOMENGHINI","FUFF TEAM","FFC ANGELO DOMENGHINI","CHAMPIONS L. - RITORNO QUARTI"]
[null,null,null,null,null,null,null,null,null,null,null,null,null,null,null,null,null,null,null,null,null,null,null,null,null,null,null,null,null,null,null,null,null,null,null,null,null,null,null,null,null,null,null,null,null,null,null,null,null,null,null,null,null,null,null,null,null,null,null,null,null,null,null,null,null,null,null,null,null,null,null,null,null,null,null,null,null,null,null,null,"rit_quartiABETO FC","MOMENTI DI GLORIA","ABETO FC","CHAMPIONS L. - RITORNO QUARTI"]
[null,null,null,null,null,null,null,null,null,null,null,null,null,null,null,null,null,null,null,null,null,null,null,null,null,null,null,null,null,null,null,null,null,null,null,null,null,null,null,null,null,null,null,null,null,null,null,null,null,null,null,null,null,null,null,null,null,null,null,null,null,null,null,null,null,null,null,null,null,null,null,null,null,null,null,null,null,null,null,null,"rit_quartiMOKA JUNIORS","SVICAT","MOKA JUNIORS","EUROPA L. - RITORNO QUARTI"]
[null,null,null,null,null,null,null,null,null,null,null,null,null,null,null,null,null,null,null,null,null,null,null,null,null,null,null,null,null,null,null,null,null,null,null,null,null,null,null,null,null,null,null,null,null,null,null,null,null,null,null,null,null,null,null,null,null,null,null,null,null,null,null,null,null,null,null,null,null,null,null,null,null,null,null,null,null,null,null,null,"rit_quartiDAJE MO'","TEAM ENO","DAJE MO'","EUROPA L. - RITORNO QUARTI"]
[null,null,null,null,null,null,null,null,null,null,null,null,null,null,null,null,null,null,null,null,null,null,null,null,null,null,null,null,null,null,null,null,null,null,null,null,null,null,null,null,null,null,null,null,null,null,null,null,null,null,null,null,null,null,null,null,null,null,null,null,null,null,null,null,null,null,null,null,null,null,null,null,null,null,null,null,null,null,null,null,"rit_quartiAS NEW TEAM","PRENESTINO FC","AS NEW TEAM","EUROPA L. - RITORNO QUARTI"]
[null,null,null,null,null,null,null,null,null,null,null,null,null,null,null,null,null,null,null,null,null,null,null,null,null,null,null,null,null,null,null,null,null,null,null,null,null,null,null,null,null,null,null,null,null,null,null,null,null,null,null,null,null,null,null,null,null,null,null,null,null,null,null,null,null,null,null,null,null,null,null,null,null,null,null,null,null,null,null,null,"rit_quartiPANZER8","MARUEGO BOYS","PANZER8","EUROPA L. - RITORNO QUARTI"]
[null,null,null,null,null,null,null,null,null,null,null,null,null,null,null,null,null,null,null,null,null,null,null,null,null,null,null,null,null,null,null,null,null,null,null,null,null,null,null,null,null,null,null,null,null,null,null,null,null,null,null,null,null,null,null,null,null,null,null,null,null,null,null,null,null,null,null,null,null,null,null,null,null,null,null,null,null,null,null,null,"rit_quartiPIGGI","I VAZANICCHI","PIGGI","CONFERENCE L. - RITORNO QUARTI"]
[null,null,null,null,null,null,null,null,null,null,null,null,null,null,null,null,null,null,null,null,null,null,null,null,null,null,null,null,null,null,null,null,null,null,null,null,null,null,null,null,null,null,null,null,null,null,null,null,null,null,null,null,null,null,null,null,null,null,null,null,null,null,null,null,null,null,null,null,null,null,null,null,null,null,null,null,null,null,null,null,"rit_quartiZERVENA VIGIAK","PERDENTUS FC","ZERVENA VIGIAK","CONFERENCE L. - RITORNO QUARTI"]
[null,null,null,null,null,null,null,null,null,null,null,null,null,null,null,null,null,null,null,null,null,null,null,null,null,null,null,null,null,null,null,null,null,null,null,null,null,null,null,null,null,null,null,null,null,null,null,null,null,null,null,null,null,null,null,null,null,null,null,null,null,null,null,null,null,null,null,null,null,null,null,null,null,null,null,null,null,null,null,null,"rit_quartiA'NFAMI","HIC SUNT FERAE","A'NFAMI","CONFERENCE L. - RITORNO QUARTI"]
[null,null,null,null,null,null,null,null,null,null,null,null,null,null,null,null,null,null,null,null,null,null,null,null,null,null,null,null,null,null,null,null,null,null,null,null,null,null,null,null,null,null,null,null,null,null,null,null,null,null,null,null,null,null,null,null,null,null,null,null,null,null,null,null,null,null,null,null,null,null,null,null,null,null,null,null,null,null,null,null,"rit_quartiVARCELLONA","LIVERCOOL","VARCELLONA","CONFERENCE L. - RITORNO QUARTI"]
[]
[null,null,null,null,null,null,null,null,null,null,null,null,null,null,null,null,null,null,null,null,null,null,null,null,null,null,null,null,null,null,null,null,null,null,null,null,null,null,null,null,null,null,null,null,null,null,null,null,null,null,null,null,null,null,null,null,null,null,null,null,null,null,null,null,null,null,null,null,null,null,null,null,null,null,null,null,null,null,null,null,"and_semif PRO WC","PRO WC","NORTH COCKS","CHAMPIONS L. - ANDATA SEMIFINALI"]
[null,null,null,null,null,null,null,null,null,null,null,null,null,null,null,null,null,null,null,null,null,null,null,null,null,null,null,null,null,null,null,null,null,null,null,null,null,null,null,null,null,null,null,null,null,null,null,null,null,null,null,null,null,null,null,null,null,null,null,null,null,null,null,null,null,null,null,null,null,null,null,null,null,null,null,null,null,null,null,null,"and_semif FFC ANGELO DOMENGHINI","FFC ANGELO DOMENGHINI","ABETO FC","CHAMPIONS L. - ANDATA SEMIFINALI"]
[null,null,null,null,null,null,null,null,null,null,null,null,null,null,null,null,null,null,null,null,null,null,null,null,null,null,null,null,null,null,null,null,null,null,null,null,null,null,null,null,null,null,null,null,null,null,null,null,null,null,null,null,null,null,null,null,null,null,null,null,null,null,null,null,null,null,null,null,null,null,null,null,null,null,null,null,null,null,null,null,"and_semif MOKA JUNIORS","MOKA JUNIORS","TEAM ENO","EUROPA L. - ANDATA SEMIFINALI"]
[null,null,null,null,null,null,null,null,null,null,null,null,null,null,null,null,null,null,null,null,null,null,null,null,null,null,null,null,null,null,null,null,null,null,null,null,null,null,null,null,null,null,null,null,null,null,null,null,null,null,null,null,null,null,null,null,null,null,null,null,null,null,null,null,null,null,null,null,null,null,null,null,null,null,null,null,null,null,null,null,"and_semif PRENESTINO FC","PRENESTINO FC","MARUEGO BOYS","EUROPA L. - ANDATA SEMIFINALI"]
[null,null,null,null,null,null,null,null,null,null,null,null,null,null,null,null,null,null,null,null,null,null,null,null,null,null,null,null,null,null,null,null,null,null,null,null,null,null,null,null,null,null,null,null,null,null,null,null,null,null,null,null,null,null,null,null,null,null,null,null,null,null,null,null,null,null,null,null,null,null,null,null,null,null,null,null,null,null,null,null,"and_semif PIGGI","PIGGI","ZERVENA VIGIAK","CONFERENCE L. - ANDATA SEMIFINALI"]
[null,null,null,null,null,null,null,null,null,null,null,null,null,null,null,null,null,null,null,null,null,null,null,null,null,null,null,null,null,null,null,null,null,null,null,null,null,null,null,null,null,null,null,null,null,null,null,null,null,null,null,null,null,null,null,null,null,null,null,null,null,null,null,null,null,null,null,null,null,null,null,null,null,null,null,null,null,null,null,null,"and_semif A'NFAMI","A'NFAMI","LIVERCOOL","CONFERENCE L. - ANDATA SEMIFINALI"]
[]
[null,null,null,null,null,null,null,null,null,null,null,null,null,null,null,null,null,null,null,null,null,null,null,null,null,null,null,null,null,null,null,null,null,null,null,null,null,null,null,null,null,null,null,null,null,null,null,null,null,null,null,null,null,null,null,null,null,null,null,null,null,null,null,null,null,null,null,null,null,null,null,null,null,null,null,null,null,null,null,null,"and_semif NORTH COCKS","PRO WC","NORTH COCKS","CHAMPIONS L. - ANDATA SEMIFINALI"]
[null,null,null,null,null,null,null,null,null,null,null,null,null,null,null,null,null,null,null,null,null,null,null,null,null,null,null,null,null,null,null,null,null,null,null,null,null,null,null,null,null,null,null,null,null,null,null,null,null,null,null,null,null,null,null,null,null,null,null,null,null,null,null,null,null,null,null,null,null,null,null,null,null,null,null,null,null,null,null,null,"and_semif ABETO FC","FFC ANGELO DOMENGHINI","ABETO FC","CHAMPIONS L. - ANDATA SEMIFINALI"]
[null,null,null,null,null,null,null,null,null,null,null,null,null,null,null,null,null,null,null,null,null,null,null,null,null,null,null,null,null,null,null,null,null,null,null,null,null,null,null,null,null,null,null,null,null,null,null,null,null,null,null,null,null,null,null,null,null,null,null,null,null,null,null,null,null,null,null,null,null,null,null,null,null,null,null,null,null,null,null,null,"and_semif TEAM ENO","MOKA JUNIORS","TEAM ENO","EUROPA L. - ANDATA SEMIFINALI"]
[null,null,null,null,null,null,null,null,null,null,null,null,null,null,null,null,null,null,null,null,null,null,null,null,null,null,null,null,null,null,null,null,null,null,null,null,null,null,null,null,null,null,null,null,null,null,null,null,null,null,null,null,null,null,null,null,null,null,null,null,null,null,null,null,null,null,null,null,null,null,null,null,null,null,null,null,null,null,null,null,"and_semif MARUEGO BOYS","PRENESTINO FC","MARUEGO BOYS","EUROPA L. - ANDATA SEMIFINALI"]
[null,null,null,null,null,null,null,null,null,null,null,null,null,null,null,null,null,null,null,null,null,null,null,null,null,null,null,null,null,null,null,null,null,null,null,null,null,null,null,null,null,null,null,null,null,null,null,null,null,null,null,null,null,null,null,null,null,null,null,null,null,null,null,null,null,null,null,null,null,null,null,null,null,null,null,null,null,null,null,null,"and_semif ZERVENA VIGIAK","PIGGI","ZERVENA VIGIAK","CONFERENCE L. - ANDATA SEMIFINALI"]
[null,null,null,null,null,null,null,null,null,null,null,null,null,null,null,null,null,null,null,null,null,null,null,null,null,null,null,null,null,null,null,null,null,null,null,null,null,null,null,null,null,null,null,null,null,null,null,null,null,null,null,null,null,null,null,null,null,null,null,null,null,null,null,null,null,null,null,null,null,null,null,null,null,null,null,null,null,null,null,null,"and_semif LIVERCOOL","A'NFAMI","LIVERCOOL","CONFERENCE L. - ANDATA SEMIFINALI"]
[]
[null,null,null,null,null,null,null,null,null,null,null,null,null,null,null,null,null,null,null,null,null,null,null,null,null,null,null,null,null,null,null,null,null,null,null,null,null,null,null,null,null,null,null,null,null,null,null,null,null,null,null,null,null,null,null,null,null,null,null,null,null,null,null,null,null,null,null,null,null,null,null,null,null,null,null,null,null,null,null,null,"rit_semif NORTH COCKS","NORTH COCKS","PRO WC","CHAMPIONS L. - RITORNO SEMIFINALI"]
[null,null,null,null,null,null,null,null,null,null,null,null,null,null,null,null,null,null,null,null,null,null,null,null,null,null,null,null,null,null,null,null,null,null,null,null,null,null,null,null,null,null,null,null,null,null,null,null,null,null,null,null,null,null,null,null,null,null,null,null,null,null,null,null,null,null,null,null,null,null,null,null,null,null,null,null,null,null,null,null,"rit_semif ABETO FC","ABETO FC","FFC ANGELO DOMENGHINI","CHAMPIONS L. - RITORNO SEMIFINALI"]
[null,null,null,null,null,null,null,null,null,null,null,null,null,null,null,null,null,null,null,null,null,null,null,null,null,null,null,null,null,null,null,null,null,null,null,null,null,null,null,null,null,null,null,null,null,null,null,null,null,null,null,null,null,null,null,null,null,null,null,null,null,null,null,null,null,null,null,null,null,null,null,null,null,null,null,null,null,null,null,null,"rit_semif TEAM ENO","TEAM ENO","MOKA JUNIORS","EUROPA L. - RITORNO SEMIFINALI"]
[null,null,null,null,null,null,null,null,null,null,null,null,null,null,null,null,null,null,null,null,null,null,null,null,null,null,null,null,null,null,null,null,null,null,null,null,null,null,null,null,null,null,null,null,null,null,null,null,null,null,null,null,null,null,null,null,null,null,null,null,null,null,null,null,null,null,null,null,null,null,null,null,null,null,null,null,null,null,null,null,"rit_semif MARUEGO BOYS","MARUEGO BOYS","PRENESTINO FC","EUROPA L. - RITORNO SEMIFINALI"]
[null,null,null,null,null,null,null,null,null,null,null,null,null,null,null,null,null,null,null,null,null,null,null,null,null,null,null,null,null,null,null,null,null,null,null,null,null,null,null,null,null,null,null,null,null,null,null,null,null,null,null,null,null,null,null,null,null,null,null,null,null,null,null,null,null,null,null,null,null,null,null,null,null,null,null,null,null,null,null,null,"rit_semif ZERVENA VIGIAK","ZERVENA VIGIAK","PIGGI","CONFERENCE L. - RITORNO SEMIFINALI"]
[null,null,null,null,null,null,null,null,null,null,null,null,null,null,null,null,null,null,null,null,null,null,null,null,null,null,null,null,null,null,null,null,null,null,null,null,null,null,null,null,null,null,null,null,null,null,null,null,null,null,null,null,null,null,null,null,null,null,null,null,null,null,null,null,null,null,null,null,null,null,null,null,null,null,null,null,null,null,null,null,"rit_semif LIVERCOOL","LIVERCOOL","A'NFAMI","CONFERENCE L. - RITORNO SEMIFINALI"]
[]
[null,null,null,null,null,null,null,null,null,null,null,null,null,null,null,null,null,null,null,null,null,null,null,null,null,null,null,null,null,null,null,null,null,null,null,null,null,null,null,null,null,null,null,null,null,null,null,null,null,null,null,null,null,null,null,null,null,null,null,null,null,null,null,null,null,null,null,null,null,null,null,null,null,null,null,null,null,null,null,null,"rit_semif PRO WC","NORTH COCKS","PRO WC","CHAMPIONS L. - RITORNO SEMIFINALI"]
[null,null,null,null,null,null,null,null,null,null,null,null,null,null,null,null,null,null,null,null,null,null,null,null,null,null,null,null,null,null,null,null,null,null,null,null,null,null,null,null,null,null,null,null,null,null,null,null,null,null,null,null,null,null,null,null,null,null,null,null,null,null,null,null,null,null,null,null,null,null,null,null,null,null,null,null,null,null,null,null,"rit_semif FFC ANGELO DOMENGHINI","ABETO FC","FFC ANGELO DOMENGHINI","CHAMPIONS L. - RITORNO SEMIFINALI"]
[null,null,null,null,null,null,null,null,null,null,null,null,null,null,null,null,null,null,null,null,null,null,null,null,null,null,null,null,null,null,null,null,null,null,null,null,null,null,null,null,null,null,null,null,null,null,null,null,null,null,null,null,null,null,null,null,null,null,null,null,null,null,null,null,null,null,null,null,null,null,null,null,null,null,null,null,null,null,null,null,"rit_semif MOKA JUNIORS","TEAM ENO","MOKA JUNIORS","EUROPA L. - RITORNO SEMIFINALI"]
[null,null,null,null,null,null,null,null,null,null,null,null,null,null,null,null,null,null,null,null,null,null,null,null,null,null,null,null,null,null,null,null,null,null,null,null,null,null,null,null,null,null,null,null,null,null,null,null,null,null,null,null,null,null,null,null,null,null,null,null,null,null,null,null,null,null,null,null,null,null,null,null,null,null,null,null,null,null,null,null,"rit_semif PRENESTINO FC","MARUEGO BOYS","PRENESTINO FC","EUROPA L. - RITORNO SEMIFINALI"]
[null,null,null,null,null,null,null,null,null,null,null,null,null,null,null,null,null,null,null,null,null,null,null,null,null,null,null,null,null,null,null,null,null,null,null,null,null,null,null,null,null,null,null,null,null,null,null,null,null,null,null,null,null,null,null,null,null,null,null,null,null,null,null,null,null,null,null,null,null,null,null,null,null,null,null,null,null,null,null,null,"rit_semif PIGGI","ZERVENA VIGIAK","PIGGI","CONFERENCE L. - RITORNO SEMIFINALI"]
[null,null,null,null,null,null,null,null,null,null,null,null,null,null,null,null,null,null,null,null,null,null,null,null,null,null,null,null,null,null,null,null,null,null,null,null,null,null,null,null,null,null,null,null,null,null,null,null,null,null,null,null,null,null,null,null,null,null,null,null,null,null,null,null,null,null,null,null,null,null,null,null,null,null,null,null,null,null,null,null,"rit_semif A'NFAMI","LIVERCOOL","A'NFAMI","CONFERENCE L. - RITORNO SEMIFINALI"]
[]
[null,null,null,null,null,null,null,null,null,null,null,null,null,null,null,null,null,null,null,null,null,null,null,null,null,null,null,null,null,null,null,null,null,null,null,null,null,null,null,null,null,null,null,null,null,null,null,null,null,null,null,null,null,null,null,null,null,null,null,null,null,null,null,null,null,null,null,null,null,null,null,null,null,null,null,null,null,null,null,null,"fin_ PRO WC","PRO WC","FFC ANGELO DOMENGHINI","CHAMPIONS LEAGUE - FINALE"]
[null,null,null,null,null,null,null,null,null,null,null,null,null,null,null,null,null,null,null,null,null,null,null,null,null,null,null,null,null,null,null,null,null,null,null,null,null,null,null,null,null,null,null,null,null,null,null,null,null,null,null,null,null,null,null,null,null,null,null,null,null,null,null,null,null,null,null,null,null,null,null,null,null,null,null,null,null,null,null,null,"fin_ MOKA JUNIORS","MOKA JUNIORS","MARUEGO BOYS","EUROPA LEAGUE - FINALE"]
[null,null,null,null,null,null,null,null,null,null,null,null,null,null,null,null,null,null,null,null,null,null,null,null,null,null,null,null,null,null,null,null,null,null,null,null,null,null,null,null,null,null,null,null,null,null,null,null,null,null,null,null,null,null,null,null,null,null,null,null,null,null,null,null,null,null,null,null,null,null,null,null,null,null,null,null,null,null,null,null,"fin_ ZERVENA VIGIAK","ZERVENA VIGIAK","LIVERCOOL","CONFERENCE LEAGUE - FINALE"]
[]
[null,null,null,null,null,null,null,null,null,null,null,null,null,null,null,null,null,null,null,null,null,null,null,null,null,null,null,null,null,null,null,null,null,null,null,null,null,null,null,null,null,null,null,null,null,null,null,null,null,null,null,null,null,null,null,null,null,null,null,null,null,null,null,null,null,null,null,null,null,null,null,null,null,null,null,null,null,null,null,null,"fin_ FFC ANGELO DOMENGHINI","PRO WC","FFC ANGELO DOMENGHINI","CHAMPIONS LEAGUE - FINALE"]
[null,null,null,null,null,null,null,null,null,null,null,null,null,null,null,null,null,null,null,null,null,null,null,null,null,null,null,null,null,null,null,null,null,null,null,null,null,null,null,null,null,null,null,null,null,null,null,null,null,null,null,null,null,null,null,null,null,null,null,null,null,null,null,null,null,null,null,null,null,null,null,null,null,null,null,null,null,null,null,null,"fin_ MARUEGO BOYS","MOKA JUNIORS","MARUEGO BOYS","EUROPA LEAGUE - FINALE"]
[null,null,null,null,null,null,null,null,null,null,null,null,null,null,null,null,null,null,null,null,null,null,null,null,null,null,null,null,null,null,null,null,null,null,null,null,null,null,null,null,null,null,null,null,null,null,null,null,null,null,null,null,null,null,null,null,null,null,null,null,null,null,null,null,null,null,null,null,null,null,null,null,null,null,null,null,null,null,null,null,"fin_ LIVERCOOL","ZERVENA VIGIAK","LIVERCOOL","CONFERENCE LEAGUE - FINALE"]
[]
[null,null,null,null,null,null,null,null,null,null,null,null,null,null,null,null,null,null,null,null,null,null,null,null,null,null,null,null,null,null,null,null,null,null,null,null,null,null,null,null,null,null,null,null,null,null,null,null,null,null,null,null,null,null,null,null,null,null,null,null,null,null,null,null,null,null,null,null,null,null,null,null,null,null,null,null,null,null,null,null,"A'NFAMI","A'NFAMI","BEETLES","COPPA MAIOLATESI"]
[null,null,null,null,null,null,null,null,null,null,null,null,null,null,null,null,null,null,null,null,null,null,null,null,null,null,null,null,null,null,null,null,null,null,null,null,null,null,null,null,null,null,null,null,null,null,null,null,null,null,null,null,null,null,null,null,null,null,null,null,null,null,null,null,null,null,null,null,null,null,null,null,null,null,null,null,null,null,null,null,"BLUES BROTHERS","BLUES BROTHERS","LA BANDA DEGLI ONESTI","COPPA MAIOLATESI"]
[]
[null,null,null,null,null,null,null,null,null,null,null,null,null,null,null,null,null,null,null,null,null,null,null,null,null,null,null,null,null,null,null,null,null,null,null,null,null,null,null,null,null,null,null,null,null,null,null,null,null,null,null,null,null,null,null,null,null,null,null,null,null,null,null,null,null,null,null,null,null,null,null,null,null,null,null,null,null,null,null,null,"BEETLES","A'NFAMI","BEETLES","COPPA MAIOLATESI"]
[null,null,null,null,null,null,null,null,null,null,null,null,null,null,null,null,null,null,null,null,null,null,null,null,null,null,null,null,null,null,null,null,null,null,null,null,null,null,null,null,null,null,null,null,null,null,null,null,null,null,null,null,null,null,null,null,null,null,null,null,null,null,null,null,null,null,null,null,null,null,null,null,null,null,null,null,null,null,null,null,"LA BANDA DEGLI ONESTI","BLUES BROTHERS","LA BANDA DEGLI ONESTI","COPPA MAIOLATESI"]
[]
[null,null,null,null,null,null,null,null,null,null,null,null,null,null,null,null,null,null,null,null,null,null,null,null,null,null,null,null,null,null,null,null,null,null,null,null,null,null,null,null,null,null,null,null,null,null,null,null,null,null,null,null,null,null,null,null,null,null,null,null,null,null,null,null,null,null,null,null,null,null,null,null,null,null,null,null,null,null,null,null,"BOMBARELLANDIA","BOMBARELLANDIA","ARMATA NERAZZURRA","SPAREGGIO PROMOZIONE IN SERIE B"]
[null,null,null,null,null,null,null,null,null,null,null,null,null,null,null,null,null,null,null,null,null,null,null,null,null,null,null,null,null,null,null,null,null,null,null,null,null,null,null,null,null,null,null,null,null,null,null,null,null,null,null,null,null,null,null,null,null,null,null,null,null,null,null,null,null,null,null,null,null,null,null,null,null,null,null,null,null,null,null,null,"ARMATA NERAZZURRA","BOMBARELLANDIA","ARMATA NERAZZURRA","SPAREGGIO PROMOZIONE IN SERIE B"]